Workbook

Sheet EAS_HDLC
A1: 10¯⁸ | S1: 10¯⁷ | AK1: 10¯⁶ | BC1: 10¯⁵
A2: Exposure | H2: Outcome | O2: R^2 | P2: F | Q2: Mean F | R2: Median F | S2: Exposure | Z2: Outcome | AG2: R^2 | AH2: F | AI2: Mean F | AJ2: Median F | AK2: Exposure | AR2: Outcome | AY2: R^2 | AZ2: F | BA2: Mean F | BB2: Median F | BC2: Exposure | BJ2: Outcome | BQ2: R^2 | BR2: F | BS2: Mean F | BT2: Median F
A3: snp | B3: a1 | C3: a2 | D3: af | E3: p | F3: b | G3: bse | H3: snp | I3: a1 | J3: a2 | K3: af | L3: p | M3: b | N3: bse | S3: snp | T3: a1 | U3: a2 | V3: af | W3: p | X3: b | Y3: bse | Z3: snp | AA3: a1 | AB3: a2 | AC3: af | AD3: p | AE3: b | AF3: bse | AK3: snp | AL3: a1 | AM3: a2 | AN3: af | AO3: p | AP3: b | AQ3: bse | AR3: snp | AS3: a1 | AT3: a2 | AU3: af | AV3: p | AW3: b | AX3: bse | BC3: snp | BD3: a1 | BE3: a2 | BF3: af | BG3: p | BH3: b | BI3: bse | BJ3: snp | BK3: a1 | BL3: a2 | BM3: af | BN3: p | BO3: b | BP3: bse
A4: rs3764261 | B4: A | C4: C | D4: 0.169 | E4: 0.000 | F4: 0.262 | G4: 0.014 | H4: rs17138358 | I4: G | J4: C | K4: 0.502 | L4: 0.006 | M4: 0.018 | N4: 0.036 | O4: 0.019 | P4: 345.274 | Q4: =AVERAGE(P4:P20) -> 103.595 | R4: =MEDIAN(P4:P20) -> 50.832 | S4: rs3764261 | T4: A | U4: C | V4: 0.169 | W4: 0.000 | X4: 0.262 | Y4: 0.014 | Z4: rs17138358 | AA4: G | AB4: C | AC4: 0.502 | AD4: 0.006 | AE4: 0.018 | AF4: 0.036 | AG4: 0.019 | AH4: 345.274 | AI4: =AVERAGE(AH4:AH26) -> 83.605 | AJ4: =MEDIAN(AH4:AH26) -> 38.543 | AK4: rs3764261 | AL4: A | AM4: C | AN4: 0.169 | AO4: 0.000 | AP4: 0.262 | AQ4: 0.014 | AR4: rs17138358 | AS4: G | AT4: C | AU4: 0.502 | AV4: 0.006 | AW4: 0.018 | AX4: 0.036 | AY4: 0.019 | AZ4: 345.274 | BA4: =AVERAGE(AZ4:AZ36) -> 65.078 | BB4: =MEDIAN(AZ4:AZ36) -> 28.090 | BC4: rs3764261 | BD4: A | BE4: C | BF4: 0.169 | BG4: 0.000 | BH4: 0.262 | BI4: 0.014 | BJ4: rs551950 | BK4: G | BL4: C | BM4: 0.578 | BN4: 0.860 | BO4: -0.078 | BP4: 0.036 | BQ4: 0.019 | BR4: 345.274 | BS4: =AVERAGE(BR4:BR78) -> 38.603 | BT4: =MEDIAN(BR4:BR78) -> 19.360
A5: rs651821 | B5: T | C5: C | D5: 0.723 | E5: 0.000 | F5: 0.189 | G5: 0.010 | H5: rs4821116 | I5: C | J5: T | K5: 0.646 | L5: 0.360 | M5: -0.009 | N5: 0.038 | O5: 0.014 | P5: 342.613 | S5: rs651821 | T5: T | U5: C | V5: 0.723 | W5: 0.000 | X5: 0.189 | Y5: 0.010 | Z5: rs7077138 | AA5: T | AB5: A | AC5: 0.617 | AD5: 0.027 | AE5: -0.071 | AF5: 0.037 | AG5: 0.014 | AH5: 342.613 | AK5: rs651821 | AL5: T | AM5: C | AN5: 0.723 | AO5: 0.000 | AP5: 0.189 | AQ5: 0.010 | AR5: rs7077138 | AS5: T | AT5: A | AU5: 0.617 | AV5: 0.027 | AW5: -0.071 | AX5: 0.037 | AY5: 0.014 | AZ5: 342.613 | BC5: rs651821 | BD5: T | BE5: C | BF5: 0.723 | BG5: 0.000 | BH5: 0.189 | BI5: 0.010 | BJ5: rs12485500 | BK5: C | BL5: T | BM5: 0.817 | BN5: 0.172 | BO5: -0.015 | BP5: 0.047 | BQ5: 0.014 | BR5: 342.613
A6: rs1800588 | B6: T | C6: C | D6: 0.402 | E6: 0.000 | F6: 0.137 | G6: 0.010 | H6: rs1800588 | I6: C | J6: T | K6: 0.494 | L6: 0.984 | M6: 0.117 | N6: 0.036 | O6: 0.009 | P6: 191.501 | S6: rs1800588 | T6: T | U6: C | V6: 0.402 | W6: 0.000 | X6: 0.137 | Y6: 0.010 | Z6: rs4821116 | AA6: C | AB6: T | AC6: 0.646 | AD6: 0.360 | AE6: -0.009 | AF6: 0.038 | AG6: 0.009 | AH6: 191.501 | AK6: rs1800588 | AL6: T | AM6: C | AN6: 0.402 | AO6: 0.000 | AP6: 0.137 | AQ6: 0.010 | AR6: rs4344042 | AS6: A | AT6: G | AU6: 0.663 | AV6: 0.330 | AW6: -0.101 | AX6: 0.038 | AY6: 0.009 | AZ6: 191.501 | BC6: rs1800588 | BD6: T | BE6: C | BF6: 0.402 | BG6: 0.000 | BH6: 0.137 | BI6: 0.010 | BJ6: rs17138358 | BK6: G | BL6: C | BM6: 0.502 | BN6: 0.006 | BO6: 0.018 | BP6: 0.036 | BQ6: 0.009 | BR6: 191.501
A7: rs1011685 | B7: T | C7: C | D7: 0.105 | E7: 0.000 | F7: 0.166 | G7: 0.013 | H7: rs1883025 | I7: C | J7: T | K7: 0.727 | L7: 0.100 | M7: -0.062 | N7: 0.040 | O7: 0.005 | P7: 161.348 | S7: rs1011685 | T7: T | U7: C | V7: 0.105 | W7: 0.000 | X7: 0.166 | Y7: 0.013 | Z7: rs10899124 | AA7: C | AB7: G | AC7: 0.722 | AD7: 0.072 | AE7: -0.047 | AF7: 0.040 | AG7: 0.005 | AH7: 161.348 | AK7: rs1011685 | AL7: T | AM7: C | AN7: 0.105 | AO7: 0.000 | AP7: 0.166 | AQ7: 0.013 | AR7: rs4821116 | AS7: C | AT7: T | AU7: 0.646 | AV7: 0.360 | AW7: -0.009 | AX7: 0.038 | AY7: 0.005 | AZ7: 161.348 | BC7: rs1011685 | BD7: T | BE7: C | BF7: 0.105 | BG7: 0.000 | BH7: 0.166 | BI7: 0.013 | BJ7: rs7077138 | BK7: T | BL7: A | BM7: 0.617 | BN7: 0.027 | BO7: -0.071 | BP7: 0.037 | BQ7: 0.005 | BR7: 161.348
A8: rs1883025 | B8: T | C8: C | D8: 0.246 | E8: 0.000 | F8: -0.098 | G8: 0.009 | H8: rs10743940 | I8: T | J8: A | K8: 0.746 | L8: 0.142 | M8: -0.028 | N8: 0.041 | O8: 0.004 | P8: 116.687 | S8: rs1883025 | T8: T | U8: C | V8: 0.246 | W8: 0.000 | X8: -0.098 | Y8: 0.009 | Z8: rs1800588 | AA8: C | AB8: T | AC8: 0.494 | AD8: 0.984 | AE8: 0.117 | AF8: 0.036 | AG8: 0.004 | AH8: 116.687 | AK8: rs1883025 | AL8: T | AM8: C | AN8: 0.246 | AO8: 0.000 | AP8: -0.098 | AQ8: 0.009 | AR8: rs1547050 | AS8: C | AT8: T | AU8: 0.780 | AV8: 0.819 | AW8: 0.030 | AX8: 0.043 | AY8: 0.004 | AZ8: 116.687 | BC8: rs1883025 | BD8: T | BE8: C | BF8: 0.246 | BG8: 0.000 | BH8: -0.098 | BI8: 0.009 | BJ8: rs4344042 | BK8: A | BL8: G | BM8: 0.663 | BN8: 0.330 | BO8: -0.101 | BP8: 0.038 | BQ8: 0.004 | BR8: 116.687
A9: rs11984636 | B9: T | C9: C | D9: 0.898 | E9: 0.000 | F9: -0.171 | G9: 0.016 | H9: rs2144300 | I9: C | J9: T | K9: 0.812 | L9: 0.301 | M9: 0.012 | N9: 0.046 | O9: 0.005 | P9: 120.155 | S9: rs11984636 | T9: T | U9: C | V9: 0.898 | W9: 0.000 | X9: -0.171 | Y9: 0.016 | Z9: rs1883025 | AA9: C | AB9: T | AC9: 0.727 | AD9: 0.100 | AE9: -0.062 | AF9: 0.040 | AG9: 0.005 | AH9: 120.155 | AK9: rs11984636 | AL9: T | AM9: C | AN9: 0.898 | AO9: 0.000 | AP9: -0.171 | AQ9: 0.016 | AR9: rs10899124 | AS9: C | AT9: G | AU9: 0.722 | AV9: 0.072 | AW9: -0.047 | AX9: 0.040 | AY9: 0.005 | AZ9: 120.155 | BC9: rs11984636 | BD9: T | BE9: C | BF9: 0.898 | BG9: 0.000 | BH9: -0.171 | BI9: 0.016 | BJ9: rs4821116 | BK9: C | BL9: T | BM9: 0.646 | BN9: 0.360 | BO9: -0.009 | BP9: 0.038 | BQ9: 0.005 | BR9: 120.155
A10: rs3786247 | B10: T | C10: G | D10: 0.599 | E10: 0.000 | F10: -0.096 | G10: 0.010 | H10: rs4420638 | I10: A | J10: G | K10: 0.892 | L10: 0.002 | M10: 0.136 | N10: 0.059 | O10: 0.004 | P10: 88.029 | S10: rs3786247 | T10: T | U10: G | V10: 0.599 | W10: 0.000 | X10: -0.096 | Y10: 0.010 | Z10: rs10504476 | AA10: G | AB10: A | AC10: 0.530 | AD10: 0.335 | AE10: 0.012 | AF10: 0.036 | AG10: 0.004 | AH10: 88.029 | AK10: rs3786247 | AL10: T | AM10: G | AN10: 0.599 | AO10: 0.000 | AP10: -0.096 | AQ10: 0.010 | AR10: rs1800588 | AS10: C | AT10: T | AU10: 0.494 | AV10: 0.984 | AW10: 0.117 | AX10: 0.036 | AY10: 0.004 | AZ10: 88.029 | BC10: rs3786247 | BD10: T | BE10: G | BF10: 0.599 | BG10: 0.000 | BH10: -0.096 | BI10: 0.010 | BJ10: rs1144789 | BK10: G | BL10: A | BM10: 0.614 | BN10: 0.000 | BO10: -0.085 | BP10: 0.037 | BQ10: 0.004 | BR10: 88.029
A11: rs4420638 | B11: A | C11: G | D11: 0.883 | E11: 0.000 | F11: 0.113 | G11: 0.013 | H11: rs6124760 | I11: C | J11: G | K11: 0.940 | L11: 0.034 | M11: -0.128 | N11: 0.077 | O11: 0.003 | P11: 73.154 | S11: rs4420638 | T11: A | U11: G | V11: 0.883 | W11: 0.000 | X11: 0.113 | Y11: 0.013 | Z11: rs10743940 | AA11: T | AB11: A | AC11: 0.746 | AD11: 0.142 | AE11: -0.028 | AF11: 0.041 | AG11: 0.003 | AH11: 73.154 | AK11: rs4420638 | AL11: A | AM11: G | AN11: 0.883 | AO11: 0.000 | AP11: 0.113 | AQ11: 0.013 | AR11: rs1883025 | AS11: C | AT11: T | AU11: 0.727 | AV11: 0.100 | AW11: -0.062 | AX11: 0.040 | AY11: 0.003 | AZ11: 73.154 | BC11: rs4420638 | BD11: A | BE11: G | BF11: 0.883 | BG11: 0.000 | BH11: 0.113 | BI11: 0.013 | BJ11: rs1547050 | BK11: C | BL11: T | BM11: 0.780 | BN11: 0.819 | BO11: 0.030 | BP11: 0.043 | BQ11: 0.003 | BR11: 73.154
A12: rs11066280 | B12: A | C12: T | D12: 0.215 | E12: 0.000 | F12: -0.077 | G12: 0.011 | H12: rs3786247 | I12: T | J12: G | K12: 0.540 | L12: 0.307 | M12: -0.025 | N12: 0.036 | O12: 0.002 | P12: 50.832 | S12: rs11066280 | T12: A | U12: T | V12: 0.215 | W12: 0.000 | X12: -0.077 | Y12: 0.011 | Z12: rs2144300 | AA12: C | AB12: T | AC12: 0.812 | AD12: 0.301 | AE12: 0.012 | AF12: 0.046 | AG12: 0.002 | AH12: 50.832 | AK12: rs11066280 | AL12: A | AM12: T | AN12: 0.215 | AO12: 0.000 | AP12: -0.077 | AQ12: 0.011 | AR12: rs10504476 | AS12: G | AT12: A | AU12: 0.530 | AV12: 0.335 | AW12: 0.012 | AX12: 0.036 | AY12: 0.002 | AZ12: 50.832 | BC12: rs11066280 | BD12: A | BE12: T | BF12: 0.215 | BG12: 0.000 | BH12: -0.077 | BI12: 0.011 | BJ12: rs11000639 | BK12: T | BL12: C | BM12: 0.641 | BN12: 0.874 | BO12: -0.058 | BP12: 0.037 | BQ12: 0.002 | BR12: 50.832
A13: rs3760782 | B13: T | C13: C | D13: 0.253 | E13: 0.000 | F13: -0.068 | G13: 0.011 | H13: rs3764261 | I13: C | J13: A | K13: 0.792 | L13: 0.736 | M13: -0.020 | N13: 0.045 | O13: 0.002 | P13: 39.914 | S13: rs3760782 | T13: T | U13: C | V13: 0.253 | W13: 0.000 | X13: -0.068 | Y13: 0.011 | Z13: rs4420638 | AA13: A | AB13: G | AC13: 0.892 | AD13: 0.002 | AE13: 0.136 | AF13: 0.059 | AG13: 0.002 | AH13: 39.914 | AK13: rs3760782 | AL13: T | AM13: C | AN13: 0.253 | AO13: 0.000 | AP13: -0.068 | AQ13: 0.011 | AR13: rs10743940 | AS13: T | AT13: A | AU13: 0.746 | AV13: 0.142 | AW13: -0.028 | AX13: 0.041 | AY13: 0.002 | AZ13: 39.914 | BC13: rs3760782 | BD13: T | BE13: C | BF13: 0.253 | BG13: 0.000 | BH13: -0.068 | BI13: 0.011 | BJ13: rs10899124 | BK13: C | BL13: G | BM13: 0.722 | BN13: 0.072 | BO13: -0.047 | BP13: 0.040 | BQ13: 0.002 | BR13: 39.914
A14: rs1109166 | B14: T | C14: C | D14: 0.872 | E14: 0.000 | F14: -0.075 | G14: 0.012 | H14: rs3760782 | I14: C | J14: T | K14: 0.760 | L14: 0.125 | M14: -0.106 | N14: 0.042 | O14: 0.001 | P14: 40.290 | S14: rs1109166 | T14: T | U14: C | V14: 0.872 | W14: 0.000 | X14: -0.075 | Y14: 0.012 | Z14: rs6124760 | AA14: C | AB14: G | AC14: 0.940 | AD14: 0.034 | AE14: -0.128 | AF14: 0.077 | AG14: 0.001 | AH14: 40.290 | AK14: rs1109166 | AL14: T | AM14: C | AN14: 0.872 | AO14: 0.000 | AP14: -0.075 | AQ14: 0.012 | AR14: rs2144300 | AS14: C | AT14: T | AU14: 0.812 | AV14: 0.301 | AW14: 0.012 | AX14: 0.046 | AY14: 0.001 | AZ14: 40.290 | BC14: rs1109166 | BD14: T | BE14: C | BF14: 0.872 | BG14: 0.000 | BH14: -0.075 | BI14: 0.012 | BJ14: rs9918375 | BK14: G | BL14: A | BM14: 0.795 | BN14: 0.393 | BO14: 0.071 | BP14: 0.043 | BQ14: 0.001 | BR14: 40.290
A15: rs6124760 | B15: C | C15: G | D15: 0.937 | E15: 0.000 | F15: 0.104 | G15: 0.017 | H15: rs1011685 | I15: C | J15: T | K15: 0.875 | L15: 0.000 | M15: 0.038 | N15: 0.055 | O15: 0.001 | P15: 38.543 | S15: rs6124760 | T15: C | U15: G | V15: 0.937 | W15: 0.000 | X15: 0.104 | Y15: 0.017 | Z15: rs3786247 | AA15: T | AB15: G | AC15: 0.540 | AD15: 0.307 | AE15: -0.025 | AF15: 0.036 | AG15: 0.001 | AH15: 38.543 | AK15: rs6124760 | AL15: C | AM15: G | AN15: 0.937 | AO15: 0.000 | AP15: 0.104 | AQ15: 0.017 | AR15: rs4420638 | AS15: A | AT15: G | AU15: 0.892 | AV15: 0.002 | AW15: 0.136 | AX15: 0.059 | AY15: 0.001 | AZ15: 38.543 | BC15: rs6124760 | BD15: C | BE15: G | BF15: 0.937 | BG15: 0.000 | BH15: 0.104 | BI15: 0.017 | BJ15: rs10955991 | BK15: C | BL15: T | BM15: 0.614 | BN15: 0.045 | BO15: -0.029 | BP15: 0.036 | BQ15: 0.001 | BR15: 38.543
A16: rs10743940 | B16: A | C16: T | D16: 0.296 | E16: 0.000 | F16: 0.050 | G16: 0.009 | H16: rs1109166 | I16: T | J16: C | K16: 0.849 | L16: 0.680 | M16: -0.048 | N16: 0.050 | O16: 0.001 | P16: 34.879 | S16: rs10743940 | T16: A | U16: T | V16: 0.296 | W16: 0.000 | X16: 0.050 | Y16: 0.009 | Z16: rs3764261 | AA16: C | AB16: A | AC16: 0.792 | AD16: 0.736 | AE16: -0.020 | AF16: 0.045 | AG16: 0.001 | AH16: 34.879 | AK16: rs10743940 | AL16: A | AM16: T | AN16: 0.296 | AO16: 0.000 | AP16: 0.050 | AQ16: 0.009 | AR16: rs6124760 | AS16: C | AT16: G | AU16: 0.940 | AV16: 0.034 | AW16: -0.128 | AX16: 0.077 | AY16: 0.001 | AZ16: 34.879 | BC16: rs10743940 | BD16: A | BE16: T | BF16: 0.296 | BG16: 0.000 | BH16: 0.050 | BI16: 0.009 | BJ16: rs1800588 | BK16: C | BL16: T | BM16: 0.494 | BN16: 0.984 | BO16: 0.117 | BP16: 0.036 | BQ16: 0.001 | BR16: 34.879
A17: rs2188380 | B17: T | C17: C | D17: 0.825 | E17: 0.000 | F17: 0.061 | G17: 0.012 | H17: rs651821 | I17: T | J17: C | K17: 0.648 | L17: 0.000 | M17: -0.093 | N17: 0.038 | O17: 0.001 | P17: 27.926 | S17: rs2188380 | T17: T | U17: C | V17: 0.825 | W17: 0.000 | X17: 0.061 | Y17: 0.012 | Z17: rs3760782 | AA17: C | AB17: T | AC17: 0.760 | AD17: 0.125 | AE17: -0.106 | AF17: 0.042 | AG17: 0.001 | AH17: 27.926 | AK17: rs2188380 | AL17: T | AM17: C | AN17: 0.825 | AO17: 0.000 | AP17: 0.061 | AQ17: 0.012 | AR17: rs13005431 | AS17: T | AT17: C | AU17: 0.920 | AV17: 0.278 | AW17: -0.003 | AX17: 0.064 | AY17: 0.001 | AZ17: 27.926 | BC17: rs2188380 | BD17: T | BE17: C | BF17: 0.825 | BG17: 0.000 | BH17: 0.061 | BI17: 0.012 | BJ17: rs910369 | BK17: C | BL17: A | BM17: 0.577 | BN17: 0.035 | BO17: 0.000 | BP17: 0.036 | BQ17: 0.001 | BR17: 27.926
A18: rs4821116 | B18: T | C18: C | D18: 0.386 | E18: 0.000 | F18: -0.044 | G18: 0.008 | O18: 0.001 | P18: 30.803 | S18: rs4821116 | T18: T | U18: C | V18: 0.386 | W18: 0.000 | X18: -0.044 | Y18: 0.008 | Z18: rs1011685 | AA18: C | AB18: T | AC18: 0.875 | AD18: 0.000 | AE18: 0.038 | AF18: 0.055 | AG18: 0.001 | AH18: 30.803 | AK18: rs4821116 | AL18: T | AM18: C | AN18: 0.386 | AO18: 0.000 | AP18: -0.044 | AQ18: 0.008 | AR18: rs11097127 | AS18: G | AT18: T | AU18: 0.523 | AV18: 0.567 | AW18: 0.008 | AX18: 0.036 | AY18: 0.001 | AZ18: 30.803 | BC18: rs4821116 | BD18: T | BE18: C | BF18: 0.386 | BG18: 0.000 | BH18: -0.044 | BI18: 0.008 | BJ18: rs6707950 | BK18: C | BL18: T | BM18: 0.885 | BN18: 0.030 | BO18: 0.038 | BP18: 0.056 | BQ18: 0.001 | BR18: 30.803
A19: rs17138358 | B19: C | C19: G | D19: 0.530 | E19: 0.000 | F19: -0.042 | G19: 0.008 | O19: 0.001 | P19: 29.752 | S19: rs17138358 | T19: C | U19: G | V19: 0.530 | W19: 0.000 | X19: -0.042 | Y19: 0.008 | Z19: rs1109166 | AA19: T | AB19: C | AC19: 0.849 | AD19: 0.680 | AE19: -0.048 | AF19: 0.050 | AG19: 0.001 | AH19: 29.752 | AK19: rs17138358 | AL19: C | AM19: G | AN19: 0.530 | AO19: 0.000 | AP19: -0.042 | AQ19: 0.008 | AR19: rs11570094 | AS19: C | AT19: A | AU19: 0.641 | AV19: 0.343 | AW19: 0.037 | AX19: 0.037 | AY19: 0.001 | AZ19: 29.752 | BC19: rs17138358 | BD19: C | BE19: G | BF19: 0.530 | BG19: 0.000 | BH19: -0.042 | BI19: 0.008 | BJ19: rs10822150 | BK19: A | BL19: G | BM19: 0.700 | BN19: 0.501 | BO19: -0.021 | BP19: 0.039 | BQ19: 0.001 | BR19: 29.752
A20: rs2144300 | B20: T | C20: C | D20: 0.180 | E20: 0.000 | F20: 0.056 | G20: 0.010 | O20: 0.001 | P20: 29.410 | S20: rs2144300 | T20: T | U20: C | V20: 0.180 | W20: 0.000 | X20: 0.056 | Y20: 0.010 | Z20: rs1129555 | AA20: G | AB20: A | AC20: 0.776 | AD20: 0.839 | AE20: -0.018 | AF20: 0.043 | AG20: 0.001 | AH20: 29.410 | AK20: rs2144300 | AL20: T | AM20: C | AN20: 0.180 | AO20: 0.000 | AP20: 0.056 | AQ20: 0.010 | AR20: rs3786247 | AS20: T | AT20: G | AU20: 0.540 | AV20: 0.307 | AW20: -0.025 | AX20: 0.036 | AY20: 0.001 | AZ20: 29.410 | BC20: rs2144300 | BD20: T | BE20: C | BF20: 0.180 | BG20: 0.000 | BH20: 0.056 | BI20: 0.010 | BJ20: rs1883025 | BK20: C | BL20: T | BM20: 0.727 | BN20: 0.100 | BO20: -0.062 | BP20: 0.040 | BQ20: 0.001 | BR20: 29.410
S21: rs11066453 | T21: A | U21: G | V21: 0.845 | W21: 0.000 | X21: 0.063 | Y21: 0.012 | Z21: rs651821 | AA21: T | AB21: C | AC21: 0.648 | AD21: 0.000 | AE21: -0.093 | AF21: 0.038 | AG21: 0.001 | AH21: 27.368 | AK21: rs11066453 | AL21: A | AM21: G | AN21: 0.845 | AO21: 0.000 | AP21: 0.063 | AQ21: 0.012 | AR21: rs11608305 | AS21: G | AT21: C | AU21: 0.738 | AV21: 0.017 | AW21: 0.029 | AX21: 0.041 | AY21: 0.001 | AZ21: 27.368 | BC21: rs11066453 | BD21: A | BE21: G | BF21: 0.845 | BG21: 0.000 | BH21: 0.063 | BI21: 0.012 | BJ21: rs10504476 | BK21: G | BL21: A | BM21: 0.530 | BN21: 0.335 | BO21: 0.012 | BP21: 0.036 | BQ21: 0.001 | BR21: 27.368
S22: rs10899124 | T22: C | U22: G | V22: 0.781 | W22: 0.000 | X22: 0.049 | Y22: 0.009 | Z22: rs2240008 | AA22: C | AB22: T | AC22: 0.867 | AD22: 0.152 | AE22: 0.013 | AF22: 0.053 | AG22: 0.001 | AH22: 27.906 | AK22: rs10899124 | AL22: C | AM22: G | AN22: 0.781 | AO22: 0.000 | AP22: 0.049 | AQ22: 0.009 | AR22: rs3764261 | AS22: C | AT22: A | AU22: 0.792 | AV22: 0.736 | AW22: -0.020 | AX22: 0.045 | AY22: 0.001 | AZ22: 27.906 | BC22: rs10899124 | BD22: C | BE22: G | BF22: 0.781 | BG22: 0.000 | BH22: 0.049 | BI22: 0.009 | BJ22: rs10743940 | BK22: T | BL22: A | BM22: 0.746 | BN22: 0.142 | BO22: -0.028 | BP22: 0.041 | BQ22: 0.001 | BR22: 27.906
S23: rs2240008 | T23: T | U23: C | V23: 0.102 | W23: 0.000 | X23: 0.101 | Y23: 0.019 | AG23: 0.002 | AH23: 28.090 | AK23: rs2240008 | AL23: T | AM23: C | AN23: 0.102 | AO23: 0.000 | AP23: 0.101 | AQ23: 0.019 | AR23: rs783149 | AS23: C | AT23: A | AU23: 0.577 | AV23: 0.443 | AW23: -0.058 | AX23: 0.036 | AY23: 0.002 | AZ23: 28.090 | BC23: rs2240008 | BD23: T | BE23: C | BF23: 0.102 | BG23: 0.000 | BH23: 0.101 | BI23: 0.019 | BJ23: rs13046232 | BK23: A | BL23: G | BM23: 0.959 | BN23: 0.134 | BO23: -0.011 | BP23: 0.085 | BQ23: 0.002 | BR23: 28.090
S24: rs1129555 | T24: A | U24: G | V24: 0.292 | W24: 0.000 | X24: 0.044 | Y24: 0.009 | AG24: 0.001 | AH24: 26.432 | AK24: rs1129555 | AL24: A | AM24: G | AN24: 0.292 | AO24: 0.000 | AP24: 0.044 | AQ24: 0.009 | AR24: rs174570 | AS24: C | AT24: T | AU24: 0.613 | AV24: 0.434 | AW24: 0.032 | AX24: 0.037 | AY24: 0.001 | AZ24: 26.432 | BC24: rs1129555 | BD24: A | BE24: G | BF24: 0.292 | BG24: 0.000 | BH24: 0.044 | BI24: 0.009 | BJ24: rs2144300 | BK24: C | BL24: T | BM24: 0.812 | BN24: 0.301 | BO24: 0.012 | BP24: 0.046 | BQ24: 0.001 | BR24: 26.432
S25: rs10504476 | T25: A | U25: G | V25: 0.382 | W25: 0.000 | X25: -0.042 | Y25: 0.008 | AG25: 0.001 | AH25: 26.886 | AK25: rs10504476 | AL25: A | AM25: G | AN25: 0.382 | AO25: 0.000 | AP25: -0.042 | AQ25: 0.008 | AR25: rs3760782 | AS25: C | AT25: T | AU25: 0.760 | AV25: 0.125 | AW25: -0.106 | AX25: 0.042 | AY25: 0.001 | AZ25: 26.886 | BC25: rs10504476 | BD25: A | BE25: G | BF25: 0.382 | BG25: 0.000 | BH25: -0.042 | BI25: 0.008 | BJ25: rs2765545 | BK25: A | BL25: G | BM25: 0.635 | BN25: 0.191 | BO25: -0.002 | BP25: 0.037 | BQ25: 0.001 | BR25: 26.886
S26: rs7077138 | T26: A | U26: T | V26: 0.403 | W26: 0.000 | X26: -0.041 | Y26: 0.008 | AG26: 0.001 | AH26: 25.122 | AK26: rs7077138 | AL26: A | AM26: T | AN26: 0.403 | AO26: 0.000 | AP26: -0.041 | AQ26: 0.008 | AR26: rs114043199 | AS26: A | AT26: G | AU26: 0.827 | AV26: 0.932 | AW26: 0.041 | AX26: 0.047 | AY26: 0.001 | AZ26: 25.122 | BC26: rs7077138 | BD26: A | BE26: T | BF26: 0.403 | BG26: 0.000 | BH26: -0.041 | BI26: 0.008 | BJ26: rs957001 | BK26: C | BL26: T | BM26: 0.799 | BN26: 0.956 | BO26: 0.051 | BP26: 0.045 | BQ26: 0.001 | BR26: 25.122
AK27: rs783149 | AL27: A | AM27: C | AN27: 0.4375 | AO27: 7.42e-07 | AP27: -0.0391 | AQ27: 0.0078 | AR27: rs1011685 | AS27: C | AT27: T | AU27: 0.8746 | AV27: 0.0001091 | AW27: 0.037714 | AX27: 0.0553 | AY27: 0.001 | AZ27: 25.1284 | BC27: rs783149 | BD27: A | BE27: C | BF27: 0.4375 | BG27: 7.42e-07 | BH27: -0.0391 | BI27: 0.0078 | BJ27: rs4420638 | BK27: A | BL27: G | BM27: 0.8924 | BN27: 0.001886 | BO27: 0.13608 | BP27: 0.058771 | BQ27: 0.00075 | BR27: 25.1284
AK28: rs13005431 | AL28: T | AM28: C | AN28: 0.8766 | AO28: 8.21e-07 | AP28: 0.0612 | AQ28: 0.0118 | AR28: rs1109166 | AS28: T | AT28: C | AU28: 0.8491 | AV28: 0.6796 | AW28: -0.047598 | AX28: 0.049819 | AY28: 0.001 | AZ28: 26.8992 | BC28: rs13005431 | BD28: T | BE28: C | BF28: 0.8766 | BG28: 8.21e-07 | BH28: 0.0612 | BI28: 0.0118 | BJ28: rs6124760 | BK28: C | BL28: G | BM28: 0.9395 | BN28: 0.03377 | BO28: -0.12814 | BP28: 0.077029 | BQ28: 0.00081 | BR28: 26.8992
AK29: rs11570094 | AL29: A | AM29: C | AN29: 0.3137 | AO29: 8.42e-07 | AP29: -0.0399 | AQ29: 0.0084 | AR29: rs1129555 | AS29: G | AT29: A | AU29: 0.7756 | AV29: 0.8391 | AW29: -0.017729 | AX29: 0.043087 | AY29: 0.001 | AZ29: 22.5625 | BC29: rs11570094 | BD29: A | BE29: C | BF29: 0.3137 | BG29: 8.42e-07 | BH29: -0.0399 | BI29: 0.0084 | BJ29: rs13005431 | BK29: T | BL29: C | BM29: 0.9196 | BN29: 0.2783 | BO29: -0.0033503 | BP29: 0.063643 | BQ29: 0.00069 | BR29: 22.5625
AK30: rs174570 | AL30: T | AM30: C | AN30: 0.4201 | AO30: 1.55e-06 | AP30: -0.0396 | AQ30: 0.009 | AR30: rs651821 | AS30: T | AT30: C | AU30: 0.6477 | AV30: 1.397e-05 | AW30: -0.092721 | AX30: 0.037719 | AY30: 0.001 | AZ30: 19.3600 | BC30: rs174570 | BD30: T | BE30: C | BF30: 0.4201 | BG30: 1.55e-06 | BH30: -0.0396 | BI30: 0.009 | BJ30: rs11097127 | BK30: G | BL30: T | BM30: 0.523 | BN30: 0.5668 | BO30: 0.0084299 | BP30: 0.036041 | BQ30: 0.00076 | BR30: 19.3600
AK31: rs1547050 | AL31: T | AM31: C | AN31: 0.2552 | AO31: 1.65e-06 | AP31: -0.0822 | AQ31: 0.0171 | AR31: rs1045255 | AS31: G | AT31: C | AU31: 0.7067 | AV31: 0.001486 | AW31: 0.025382 | AX31: 0.038908 | AY31: 0.003 | AZ31: 23.1074 | BC31: rs1547050 | BD31: T | BE31: C | BF31: 0.2552 | BG31: 1.65e-06 | BH31: -0.0822 | BI31: 0.0171 | BJ31: rs2713559 | BK31: G | BL31: C | BM31: 0.9085 | BN31: 0.8625 | BO31: 0.080443 | BP31: 0.06258 | BQ31: 0.00257 | BR31: 23.1074
AK32: rs2076485 | AL32: A | AM32: G | AN32: 0.7792 | AO32: 2.62e-06 | AP32: 0.0518 | AQ32: 0.0109 | AR32: rs2240008 | AS32: C | AT32: T | AU32: 0.8672 | AV32: 0.1518 | AW32: 0.012782 | AX32: 0.05263 | AY32: 0.001 | AZ32: 22.5843 | BC32: rs2076485 | BD32: A | BE32: G | BF32: 0.7792 | BG32: 2.62e-06 | BH32: 0.0518 | BI32: 0.0109 | BJ32: rs11570094 | BK32: C | BL32: A | BM32: 0.6414 | BN32: 0.3425 | BO32: 0.037444 | BP32: 0.037208 | BQ32: 0.00092 | BR32: 22.5843
AK33: rs11608305 | AL33: C | AM33: G | AN33: 0.3076 | AO33: 2.62e-06 | AP33: 0.0407 | AQ33: 0.0085 | AY33: 0.001 | AZ33: 22.9272 | BC33: rs11608305 | BD33: C | BE33: G | BF33: 0.3076 | BG33: 2.62e-06 | BH33: 0.0407 | BI33: 0.0085 | BJ33: rs3786247 | BK33: T | BL33: G | BM33: 0.5396 | BN33: 0.3073 | BO33: -0.02504 | BP33: 0.036039 | BQ33: 0.00071 | BR33: 22.9272
AK34: rs4344042 | AL34: A | AM34: G | AN34: 0.6381 | AO34: 3.88e-06 | AP34: 0.0369 | AQ34: 0.0082 | AY34: 0.001 | AZ34: 20.2500 | BC34: rs4344042 | BD34: A | BE34: G | BF34: 0.6381 | BG34: 3.88e-06 | BH34: 0.0369 | BI34: 0.0082 | BJ34: rs10144765 | BK34: C | BL34: G | BM34: 0.6787 | BN34: 0.5298 | BO34: -0.098754 | BP34: 0.039565 | BQ34: 0.00063 | BR34: 20.2500
AK35: rs1045255 | AL35: C | AM35: G | AN35: 0.2221 | AO35: 4.11e-06 | AP35: 0.0547 | AQ35: 0.012 | AY35: 0.001 | AZ35: 20.7784 | BC35: rs1045255 | BD35: C | BE35: G | BF35: 0.2221 | BG35: 4.11e-06 | BH35: 0.0547 | BI35: 0.012 | BJ35: rs10813957 | BK35: T | BL35: G | BM35: 0.4786 | BN35: 0.01849 | BO35: 0.010891 | BP35: 0.035985 | BQ35: 0.00103 | BR35: 20.7784
AK36: rs11097127 | AL36: T | AM36: G | AN36: 0.4222 | AO36: 4.78e-06 | AP36: 0.0358 | AQ36: 0.0078 | AY36: 0.001 | AZ36: 21.0657 | BC36: rs11097127 | BD36: T | BE36: G | BF36: 0.4222 | BG36: 4.78e-06 | BH36: 0.0358 | BI36: 0.0078 | BJ36: exm-rs838880 | BK36: G | BL36: A | BM36: 0.4692 | BN36: 0.136699 | BO36: 0.0065177 | BP36: 0.03622 | BQ36: 0.00063 | BR36: 21.0657
BC37: rs8058400 | BD37: T | BE37: C | BF37: 0.852 | BG37: 5.2e-06 | BH37: 0.0493 | BI37: 0.0109 | BJ37: rs12490145 | BK37: G | BL37: A | BM37: 0.8986 | BN37: 0.992 | BO37: 0.053311 | BP37: 0.062945 | BQ37: 0.00061 | BR37: 20.4569
BC38: rs10144765 | BD38: C | BE38: G | BF38: 0.7388 | BG38: 6.31e-06 | BH38: -0.0395 | BI38: 0.0088 | BJ38: rs12422299 | BK38: T | BL38: C | BM38: 0.8354 | BN38: 0.5947 | BO38: 0.06999 | BP38: 0.048166 | BQ38: 0.00060 | BR38: 20.1479
BC39: rs12485500 | BD39: T | BE39: C | BF39: 0.1413 | BG39: 6.43e-06 | BH39: -0.1134 | BI39: 0.0249 | BJ39: rs892602 | BK39: G | BL39: C | BM39: 0.7428 | BN39: 0.9916 | BO39: -0.045061 | BP39: 0.040885 | BQ39: 0.00312 | BR39: 20.7409
BC40: rs5812915 | BD40: T | BE40: G | BF40: 0.0999 | BG40: 6.9e-06 | BH40: -0.0955 | BI40: 0.021 | BJ40: rs161353 | BK40: T | BL40: G | BM40: 0.5456 | BN40: 0.2385 | BO40: -0.036436 | BP40: 0.035758 | BQ40: 0.00164 | BR40: 20.6808
BC41: rs2360957 | BD41: A | BE41: G | BF41: 0.2309 | BG41: 1.06e-05 | BH41: -0.0461 | BI41: 0.0107 | BJ41: rs11608305 | BK41: G | BL41: C | BM41: 0.7378 | BN41: 0.01733 | BO41: 0.02897 | BP41: 0.041281 | BQ41: 0.00075 | BR41: 18.5624
BC42: rs2765545 | BD42: A | BE42: G | BF42: 0.6496 | BG42: 1.24e-05 | BH42: -0.0361 | BI42: 0.0082 | BJ42: rs10017961 | BK42: G | BL42: A | BM42: 0.5605 | BN42: 0.4241 | BO42: 0.089581 | BP42: 0.036042 | BQ42: 0.00059 | BR42: 19.3815
BC43: rs10822150 | BD43: A | BE43: G | BF43: 0.6063 | BG43: 1.31e-05 | BH43: 0.0352 | BI43: 0.008 | BJ43: rs3764261 | BK43: C | BL43: A | BM43: 0.792 | BN43: 0.736 | BO43: -0.020282 | BP43: 0.04517 | BQ43: 0.00059 | BR43: 19.3600
BC44: rs910369 | BD44: A | BE44: C | BF44: 0.3599 | BG44: 1.59e-05 | BH44: 0.0344 | BI44: 0.0079 | BJ44: rs4327870 | BK44: T | BL44: C | BM44: 0.5358 | BN44: 0.04365 | BO44: -0.012026 | BP44: 0.035906 | BQ44: 0.00055 | BR44: 18.9611
BC45: rs838880 | BD45: T | BE45: C | BF45: 0.4954 | BG45: 1.68e-05 | BH45: -0.047 | BI45: 0.0111 | BJ45: rs783149 | BK45: C | BL45: A | BM45: 0.577 | BN45: 0.4427 | BO45: -0.057793 | BP45: 0.036254 | BQ45: 0.00110 | BR45: 17.9287
BC46: rs1144789 | BD46: A | BE46: G | BF46: 0.4594 | BG46: 1.72e-05 | BH46: -0.0377 | BI46: 0.0089 | BJ46: rs174570 | BK46: C | BL46: T | BM46: 0.6128 | BN46: 0.4335 | BO46: 0.031726 | BP46: 0.03694 | BQ46: 0.00071 | BR46: 17.9433
BC47: rs17704722 | BD47: A | BE47: G | BF47: 0.1363 | BG47: 1.81e-05 | BH47: -0.0478 | BI47: 0.0112 | BJ47: rs10830179 | BK47: G | BL47: A | BM47: 0.6535 | BN47: 0.7307 | BO47: -0.058739 | BP47: 0.037582 | BQ47: 0.00054 | BR47: 18.2146
BC48: rs892602 | BD48: C | BE48: G | BF48: 0.2972 | BG48: 1.91e-05 | BH48: -0.0497 | BI48: 0.0117 | BJ48: rs7144088 | BK48: A | BL48: C | BM48: 0.5694 | BN48: 0.5519 | BO48: 0.022249 | BP48: 0.036299 | BQ48: 0.00103 | BR48: 18.0443
BC49: rs6707950 | BD49: T | BE49: C | BF49: 0.1044 | BG49: 1.96e-05 | BH49: -0.0526 | BI49: 0.0125 | BJ49: rs3760782 | BK49: C | BL49: T | BM49: 0.7597 | BN49: 0.1251 | BO49: -0.10598 | BP49: 0.042493 | BQ49: 0.00052 | BR49: 17.7073
BC50: rs9380261 | BD50: C | BE50: G | BF50: 0.3537 | BG50: 2.02e-05 | BH50: -0.0548 | BI50: 0.0128 | BJ50: rs115162711 | BK50: G | BL50: C | BM50: 0.6267 | BN50: 0.5202 | BO50: 0.045496 | BP50: 0.037184 | BQ50: 0.00137 | BR50: 18.3291
BC51: rs12671333 | BD51: T | BE51: G | BF51: 0.4731 | BG51: 2.37e-05 | BH51: -0.0327 | BI51: 0.0077 | BJ51: rs12671333 | BK51: G | BL51: T | BM51: 0.593 | BN51: 0.803 | BO51: -0.046111 | BP51: 0.036272 | BQ51: 0.00053 | BR51: 18.0349
BC52: rs10830179 | BD52: A | BE52: G | BF52: 0.3916 | BG52: 2.48e-05 | BH52: -0.039 | BI52: 0.0094 | BJ52: rs10806532 | BK52: T | BL52: A | BM52: 0.9021 | BN52: 0.7251 | BO52: 0.064285 | BP52: 0.065482 | BQ52: 0.00072 | BR52: 17.2137
BC53: rs2303662 | BD53: T | BE53: C | BF53: 0.9267 | BG53: 2.51e-05 | BH53: -0.0762 | BI53: 0.018 | BJ53: rs114043199 | BK53: A | BL53: G | BM53: 0.8267 | BN53: 0.9322 | BO53: 0.040757 | BP53: 0.047189 | BQ53: 0.00079 | BR53: 17.9211
BC54: rs10813957 | BD54: T | BE54: G | BF54: 0.5035 | BG54: 2.81e-05 | BH54: -0.0322 | BI54: 0.0078 | BJ54: rs1011685 | BK54: C | BL54: T | BM54: 0.8746 | BN54: 0.0001091 | BO54: 0.037714 | BP54: 0.0553 | BQ54: 0.00052 | BR54: 17.0421
BC55: rs9918375 | BD55: A | BE55: G | BF55: 0.2469 | BG55: 2.82e-05 | BH55: -0.0385 | BI55: 0.0091 | BJ55: rs16847733 | BK55: A | BL55: G | BM55: 0.7617 | BN55: 0.5673 | BO55: -0.012145 | BP55: 0.042134 | BQ55: 0.00055 | BR55: 17.8994
BC56: rs16847733 | BD56: A | BE56: G | BF56: 0.6709 | BG56: 3.17e-05 | BH56: 0.0452 | BI56: 0.011 | BJ56: rs1282330 | BK56: G | BL56: A | BM56: 0.68 | BN56: 0.5111 | BO56: 0.024543 | BP56: 0.038528 | BQ56: 0.00090 | BR56: 16.8846
BC57: rs493096 | BD57: T | BE57: G | BF57: 0.3555 | BG57: 3.27e-05 | BH57: -0.0626 | BI57: 0.015 | BJ57: rs1115721 | BK57: T | BL57: G | BM57: 0.7648 | BN57: 0.9288 | BO57: 0.014794 | BP57: 0.042371 | BQ57: 0.00180 | BR57: 17.4167
BC58: rs4801842 | BD58: T | BE58: C | BF58: 0.0729 | BG58: 3.3e-05 | BH58: -0.1226 | BI58: 0.0288 | BJ58: rs493096 | BK58: G | BL58: T | BM58: 0.6624 | BN58: 0.2319 | BO58: -0.05432 | BP58: 0.037873 | BQ58: 0.00203 | BR58: 18.1216
BC59: rs10017961 | BD59: A | BE59: G | BF59: 0.3408 | BG59: 3.43e-05 | BH59: -0.0532 | BI59: 0.0128 | BJ59: rs333947 | BK59: G | BL59: A | BM59: 0.7053 | BN59: 0.3696 | BO59: 0.060648 | BP59: 0.037842 | BQ59: 0.00127 | BR59: 17.2744
BC60: rs551950 | BD60: C | BE60: G | BF60: 0.501 | BG60: 3.64e-05 | BH60: -0.0466 | BI60: 0.0112 | BJ60: rs1109166 | BK60: T | BL60: C | BM60: 0.8491 | BN60: 0.6796 | BO60: -0.047598 | BP60: 0.049819 | BQ60: 0.00109 | BR60: 17.3115
BC61: rs12490145 | BD61: A | BE61: G | BF61: 0.0963 | BG61: 3.74e-05 | BH61: -0.0942 | BI61: 0.0219 | BJ61: rs2360957 | BK61: G | BL61: A | BM61: 0.7857 | BN61: 0.09083 | BO61: -0.050087 | BP61: 0.043576 | BQ61: 0.00154 | BR61: 18.5018
BC62: rs10806532 | BD62: A | BE62: T | BF62: 0.0641 | BG62: 3.77e-05 | BH62: 0.2408 | BI62: 0.0576 | BJ62: rs8058400 | BK62: T | BL62: C | BM62: 0.8032 | BN62: 0.9571 | BO62: 0.078058 | BP62: 0.046212 | BQ62: 0.00696 | BR62: 17.4770
BC63: rs11000639 | BD63: T | BE63: C | BF63: 0.7499 | BG63: 3.82e-05 | BH63: 0.0476 | BI63: 0.0116 | BJ63: rs1129555 | BK63: G | BL63: A | BM63: 0.7756 | BN63: 0.8391 | BO63: -0.017729 | BP63: 0.043087 | BQ63: 0.00085 | BR63: 16.8383
BC64: rs4327870 | BD64: T | BE64: C | BF64: 0.5832 | BG64: 3.95e-05 | BH64: 0.038 | BI64: 0.009 | BJ64: rs2303662 | BK64: T | BL64: C | BM64: 0.9006 | BN64: 0.7871 | BO64: 0.059446 | BP64: 0.058722 | BQ64: 0.00070 | BR64: 17.8272
BC65: rs2713559 | BD65: C | BE65: G | BF65: 0.0774 | BG65: 4e-05 | BH65: 0.0696 | BI65: 0.0168 | BJ65: rs651821 | BK65: T | BL65: C | BM65: 0.6477 | BN65: 1.397e-05 | BO65: -0.092721 | BP65: 0.037719 | BQ65: 0.00069 | BR65: 17.1633
BC66: rs36007 | BD66: T | BE66: C | BF66: 0.1693 | BG66: 4.02e-05 | BH66: -0.0539 | BI66: 0.014 | BJ66: rs11984871 | BK66: C | BL66: A | BM66: 0.4984 | BN66: 0.8022 | BO66: -0.0044016 | BP66: 0.036124 | BQ66: 0.00082 | BR66: 14.8225
BC67: rs13015896 | BD67: T | BE67: G | BF67: 0.5357 | BG67: 4.22e-05 | BH67: 0.0509 | BI67: 0.0125 | BJ67: rs17704722 | BK67: G | BL67: A | BM67: 0.8997 | BN67: 0.3704 | BO67: -0.00081701 | BP67: 0.059053 | BQ67: 0.00129 | BR67: 16.5812
BC68: rs333947 | BD68: A | BE68: G | BF68: 0.2826 | BG68: 4.33e-05 | BH68: -0.0372 | BI68: 0.0089 | BJ68: rs1045255 | BK68: G | BL68: C | BM68: 0.7067 | BN68: 0.001486 | BO68: 0.025382 | BP68: 0.038908 | BQ68: 0.00056 | BR68: 17.4705
BC69: rs957001 | BD69: T | BE69: C | BF69: 0.1629 | BG69: 4.46e-05 | BH69: -0.0436 | BI69: 0.0105 | BJ69: rs2240008 | BK69: C | BL69: T | BM69: 0.8672 | BN69: 0.1518 | BO69: 0.012782 | BP69: 0.05263 | BQ69: 0.00052 | BR69: 17.2423
BC70: rs10955991 | BD70: T | BE70: C | BF70: 0.2939 | BG70: 4.5e-05 | BH70: 0.0453 | BI70: 0.0108 | BJ70: rs738134 | BK70: C | BL70: G | BM70: 0.4902 | BN70: 0.1419 | BO70: 0.050782 | BP70: 0.03571 | BQ70: 0.00085 | BR70: 17.5934
BC71: rs738134 | BD71: C | BE71: G | BF71: 0.5808 | BG71: 4.55e-05 | BH71: 0.0388 | BI71: 0.0099 | BJ71: rs36007 | BK71: C | BL71: T | BM71: 0.822 | BN71: 0.9493 | BO71: 0.1131 | BP71: 0.047311 | BQ71: 0.00073 | BR71: 15.3601
BC72: rs11984871 | BD72: A | BE72: C | BF72: 0.5019 | BG72: 4.55e-05 | BH72: -0.0424 | BI72: 0.0103 | BQ72: 0.00090 | BR72: 16.9456
BC73: rs161353 | BD73: T | BE73: G | BF73: 0.5063 | BG73: 4.55e-05 | BH73: -0.0323 | BI73: 0.0078 | BQ73: 0.00052 | BR73: 17.1481
BC74: rs7144088 | BD74: A | BE74: C | BF74: 0.5111 | BG74: 4.65e-05 | BH74: -0.032 | BI74: 0.0078 | BQ74: 0.00051 | BR74: 16.8310
BC75: rs1115721 | BD75: T | BE75: G | BF75: 0.7887 | BG75: 4.67e-05 | BH75: -0.0397 | BI75: 0.0098 | BQ75: 0.00053 | BR75: 16.4108
BC76: rs13046232 | BD76: A | BE76: G | BF76: 0.9461 | BG76: 4.75e-05 | BH76: -0.1217 | BI76: 0.0302 | BQ76: 0.00151 | BR76: 16.2393
BC77: rs1282330 | BD77: A | BE77: G | BF77: 0.3599 | BG77: 4.81e-05 | BH77: -0.0413 | BI77: 0.0096 | BQ77: 0.00079 | BR77: 18.5079
BC78: rs12422299 | BD78: T | BE78: C | BF78: 0.7981 | BG78: 5e-05 | BH78: -0.0559 | BI78: 0.0135 | BQ78: 0.00101 | BR78: 17.1457

Sheet SAS_HDLC
A1: 10¯⁸ | O1: 10¯⁷ | AG1: 10¯⁶ | AY1: 10¯⁵
A2: Exposure | H2: Outcome | O2: Exposure | V2: Outcome | AC2: R^2 | AD2: F | AE2: Mean F | AF2: Median F | AG2: Exposure | AN2: Outcome | AU2: R^2 | AV2: F | AW2: Mean F | AX2: Median F | AY2: Exposure | BF2: Outcome | BM2: R^2 | BN2: F | BO2: Mean F | BP2: Median F
A3: snp | B3: a1 | C3: a2 | D3: af | E3: p | F3: b | G3: bse | H3: snp | I3: a1 | J3: a2 | K3: af | L3: p | M3: b | N3: bse | O3: snp | P3: a1 | Q3: a2 | R3: af | S3: p | T3: b | U3: bse | V3: snp | W3: a1 | X3: a2 | Y3: af | Z3: p | AA3: b | AB3: bse | AG3: snp | AH3: a1 | AI3: a2 | AJ3: af | AK3: p | AL3: b | AM3: bse | AN3: snp | AO3: a1 | AP3: a2 | AQ3: af | AR3: p | AS3: b | AT3: bse | AY3: snp | AZ3: a1 | BA3: a2 | BB3: af | BC3: p | BD3: b | BE3: bse | BF3: snp | BG3: a1 | BH3: a2 | BI3: af | BJ3: p | BK3: b | BL3: bse
A4: NA | B4: NA | C4: NA | D4: NA | E4: NA | F4: NA | G4: NA | H4: NA | I4: NA | J4: NA | K4: NA | L4: NA | M4: NA | N4: NA | O4: rs12729744 | P4: T | Q4: C | R4: 0.1322 | S4: 7.53356e-08 | T4: 0.1169 | U4: 0.02173 | V4: rs12729744 | W4: C | X4: T | Y4: 0.112794011 | Z4: 0.815569279 | AA4: 0.018631414 | AB4: 0.079878323 | AC4: 0.00314 | AD4: 28.9407 | AE4: =AVERAGE(AD4:AD16) -> 28.7768 | AF4: =MEDIAN(AD4:AD16) -> 27.3291 | AG4: rs1404061 | AH4: A | AI4: G | AJ4: 0.8171 | AK4: 1.97697e-06 | AL4: -0.09278 | AM4: 0.01951 | AN4: rs4927253 | AO4: A | AP4: C | AQ4: 0.008294756 | AR4: 0.749873374 | AS4: -0.090129309 | AT4: 0.282708651 | AU4: 0.00257 | AV4: 22.6149 | AW4: =AVERAGE(AV4:AV52) -> 22.5889 | AX4: =MEDIAN(AV4:AV52) -> 21.6299 | AY4: rs140450534 | AZ4: C | BA4: T | BB4: 0.001022 | BC4: 9.39723e-06 | BD4: 1.386 | BE4: 0.3128 | BF4: rs4927253 | BG4: A | BH4: C | BI4: 0.008294756 | BJ4: 0.749873374 | BK4: -0.090129309 | BL4: 0.282708651 | BM4: 0.00392 | BN4: 19.6333 | BO4: =AVERAGE(BN4:BN301) -> 18.3368 | BP4: =MEDIAN(BN4:BN301) -> 17.5859
O5: rs201287568 | P5: GAA | Q5: G | R5: 0.01288 | S5: 2.50035e-07 | T5: 0.4153 | U5: 0.08052 | V5: rs6984305 | W5: A | X5: T | Y5: 0.875422752 | Z5: 0.896739866 | AA5: 0.010536777 | AB5: 0.081189041 | AC5: 0.00439 | AD5: 26.6021 | AG5: rs4927253 | AH5: C | AI5: A | AJ5: 0.01549 | AK5: 4.36516e-06 | AL5: -0.278 | AM5: 0.06053 | AN5: rs7559529 | AO5: T | AP5: C | AQ5: 0.631334328 | AR5: 0.452573998 | AS5: -0.040507266 | AT5: 0.053928385 | AU5: 0.00236 | AV5: 21.0935 | AY5: rs1404061 | AZ5: A | BA5: G | BB5: 0.8171 | BC5: 1.97697e-06 | BD5: -0.09278 | BE5: 0.01951 | BF5: rs2263446 | BG5: C | BH5: T | BI5: 0.316684575 | BJ5: 0.949773669 | BK5: 0.003758122 | BL5: 0.05966125 | BM5: 0.00257 | BN5: 22.6149
O6: rs74626719 | P6: A | Q6: G | R6: 0.01515 | S6: 1.41906e-08 | T6: 0.3274 | U6: 0.05772 | V6: rs263 | W6: C | X6: T | Y6: 0.195712967 | Z6: 0.293373536 | AA6: -0.064520134 | AB6: 0.061403901 | AC6: 0.00320 | AD6: 32.1740 | AG6: rs201287568 | AH6: GAA | AI6: G | AJ6: 0.01288 | AK6: 2.50035e-07 | AL6: 0.4153 | AM6: 0.08052 | AN6: rs143759883 | AO6: C | AP6: T | AQ6: 0.026778409 | AR6: 0.124229986 | AS6: -0.256610055 | AT6: 0.166927053 | AU6: 0.00439 | AV6: 26.6021 | AY6: rs115319836 | AZ6: T | BA6: C | BB6: 0.0004346 | BC6: 3.155e-05 | BD6: -2.018 | BE6: 0.485 | BF6: rs7549874 | BG6: T | BH6: C | BI6: 0.601735822 | BJ6: 0.631311072 | BK6: -0.023981795 | BL6: 0.049974326 | BM6: 0.00354 | BN6: 17.3125
O7: rs74866059 | P7: G | Q7: A | R7: 0.0003272 | S7: 2.69153e-07 | T7: 2.63 | U7: 0.5112 | V7: rs16913649 | W7: T | X7: C | Y7: 0.108120042 | Z7: 0.535740711 | AA7: 0.05006767 | AB7: 0.080849938 | AC7: 0.00452 | AD7: 26.4685 | AG7: rs12137350 | AH7: A | AI7: G | AJ7: 0.002166 | AK7: 3.31131e-06 | AL7: 0.8664 | AM7: 0.1863 | AN7: rs78581443 | AO7: C | AP7: A | AQ7: 0.02102444 | AR7: 0.153885941 | AS7: 0.244720862 | AT7: 0.171620845 | AU7: 0.00324 | AV7: 21.6277 | AY7: rs72661532 | AZ7: C | BA7: A | BB7: 0.02881 | BC7: 3.38065e-05 | BD7: -0.2005 | BE7: 0.04835 | BF7: rs12733302 | BG7: G | BH7: A | BI7: 0.085939159 | BJ7: 0.705606185 | BK7: -0.039313321 | BL7: 0.104068567 | BM7: 0.00225 | BN7: 17.1963
O8: rs6984305 | P8: T | Q8: A | R8: 0.8849 | S8: 1.45881e-07 | T8: 0.1169 | U8: 0.02224 | V8: rs1893460 | W8: G | X8: A | Y8: 0.331058492 | Z8: 0.986368203 | AA8: 0.000889398 | AB8: 0.052054942 | AC8: 0.00278 | AD8: 27.6286 | AG8: rs5829761 | AH8: A | AI8: AC | AJ8: 0.581 | AK8: 2.56448e-06 | AL8: 0.0685 | AM8: 0.01457 | AN8: rs1544935 | AO8: T | AP8: G | AQ8: 0.126056033 | AR8: 0.229578862 | AS8: -0.089653475 | AT8: 0.074621409 | AU8: 0.00228 | AV8: 22.1036 | AY8: rs4927253 | AZ8: C | BA8: A | BB8: 0.01549 | BC8: 4.36516e-06 | BD8: -0.278 | BE8: 0.06053 | BF8: rs4296389 | BG8: C | BH8: T | BI8: 0.587977367 | BJ8: 0.266708139 | BK8: -0.055774993 | BL8: 0.05021719 | BM8: 0.00236 | BN8: 21.0935
O9: rs263 | P9: T | Q9: C | R9: 0.203 | S9: 1.03276e-07 | T9: 0.09476 | U9: 0.01781 | V9: rs60654060 | W9: T | X9: G | Y9: 0.023119846 | Z9: 0.420358564 | AA9: -0.150205948 | AB9: 0.186406146 | AC9: 0.00291 | AD9: 28.3089 | AG9: rs114930952 | AH9: A | AI9: G | AJ9: 0.04879 | AK9: 2.05589e-06 | AL9: 0.1681 | AM9: 0.03541 | AN9: rs58465125 | AO9: C | AP9: T | AQ9: 0.166057084 | AR9: 0.672888409 | AS9: -0.032888379 | AT9: 0.077899996 | AU9: 0.00262 | AV9: 22.5363 | AY9: rs2263446 | AZ9: T | BA9: C | BB9: 0.3 | BC9: 1.87932e-05 | BD9: -0.06832 | BE9: 0.01597 | BF9: rs75930666 | BG9: C | BH9: T | BI9: 0.218769913 | BJ9: 0.224091046 | BK9: 0.080139353 | BL9: 0.065919172 | BM9: 0.00196 | BN9: 18.3015
O10: rs16913649 | P10: C | Q10: T | R10: 0.1227 | S10: 3.25837e-07 | T10: 0.1109 | U10: 0.02171 | AC10: 0.00265 | AD10: 26.0942 | AG10: rs7559529 | AH10: C | AI10: T | AJ10: 0.6638 | AK10: 3.97192e-06 | AL10: -0.069 | AM10: 0.01496 | AN10: rs17715588 | AO10: C | AP10: G | AQ10: 0.077124005 | AR10: 0.99842255 | AS10: -0.000186387 | AT10: 0.09427551 | AU10: 0.00213 | AV10: 21.2733 | AY10: rs7528706 | AZ10: G | BA10: A | BB10: 0.1503 | BC10: 4.27563e-05 | BD10: -0.08421 | BE10: 0.02058 | BF10: rs989586 | BG10: A | BH10: G | BI10: 0.769170213 | BJ10: 0.926387275 | BK10: -0.005781966 | BL10: 0.062581389 | BM10: 0.00181 | BN10: 16.7431
O11: rs1893460 | P11: A | Q11: G | R11: 0.3132 | S11: 3.01995e-11 | T11: 0.1022 | U11: 0.01538 | AC11: 0.00449 | AD11: 44.1559 | AG11: rs74626719 | AH11: A | AI11: G | AJ11: 0.01515 | AK11: 1.41906e-08 | AL11: 0.3274 | AM11: 0.05772 | AN11: rs256 | AO11: C | AP11: T | AQ11: 0.187448949 | AR11: 0.262591563 | AS11: -0.070104223 | AT11: 0.062577032 | AU11: 0.00320 | AV11: 32.1740 | AY11: rs76736500 | AZ11: A | BA11: T | BB11: 0.05312 | BC11: 4.42588e-05 | BD11: 0.1375 | BE11: 0.03366 | BF11: rs58319294 | BG11: T | BH11: G | BI11: 0.272438008 | BJ11: 0.543660214 | BK11: 0.034178997 | BL11: 0.056281422 | BM11: 0.00190 | BN11: 16.6870
O12: rs11347677 | P12: A | Q12: AT | R12: 0.1992 | S12: 1.70608e-07 | T12: -0.09389 | U12: 0.01796 | AC12: 0.00281 | AD12: 27.3291 | AG12: rs56805351 | AH12: G | AI12: C | AJ12: 0.00372 | AK12: 3.91742e-06 | AL12: -0.7749 | AM12: 0.1679 | AN12: rs11018807 | AO12: C | AP12: G | AQ12: 0.126542487 | AR12: 0.568931438 | AS12: 0.042803742 | AT12: 0.075143597 | AU12: 0.00445 | AV12: 21.3005 | AY12: rs140584594 | AZ12: G | BA12: A | BB12: 0.6158 | BC12: 4.61318e-05 | BD12: 0.05894 | BE12: 0.01447 | BF12: rs216618 | BG12: T | BH12: C | BI12: 0.148669735 | BJ12: 0.034349604 | BK12: 0.159219581 | BL12: 0.075247554 | BM12: 0.00164 | BN12: 16.5914
O13: rs148201632 | P13: C | Q13: CA | R13: 0.2817 | S13: 4.09261e-07 | T13: 0.08717 | U13: 0.01721 | AC13: 0.00308 | AD13: 25.6550 | AG13: rs191996733 | AH13: A | AI13: G | AJ13: 0.01279 | AK13: 4.10204e-06 | AL13: 0.3054 | AM13: 0.0663 | AN13: rs59620302 | AO13: C | AP13: G | AQ13: 0.042742746 | AR13: 0.407305609 | AS13: -0.103587929 | AT13: 0.125008892 | AU13: 0.00236 | AV13: 21.2183 | AY13: rs75484460 | AZ13: T | BA13: C | BB13: 0.008455 | BC13: 2.2856e-05 | BD13: 0.33 | BE13: 0.07793 | BF13: rs1447536 | BG13: T | BH13: G | BI13: 0.155243993 | BJ13: 0.131192325 | BK13: 0.115880098 | BL13: 0.076771443 | BM13: 0.00183 | BN13: 17.9316
O14: rs200103565 | P14: C | Q14: A | R14: 0.01682 | S14: 3.68129e-07 | T14: -0.2992 | U14: 0.05885 | AC14: 0.00296 | AD14: 25.8482 | AG14: rs4016437 | AH14: T | AI14: G | AJ14: 0.9996 | AK14: 6.76083e-07 | AL14: 2.282 | AM14: 0.4593 | AN14: rs56314708 | AO14: C | AP14: A | AQ14: 0.21134534 | AR14: 0.927691715 | AS14: -0.005547271 | AT14: 0.061127356 | AU14: 0.00416 | AV14: 24.6853 | AY14: rs201287568 | AZ14: GAA | BA14: G | BB14: 0.01288 | BC14: 2.50035e-07 | BD14: 0.4153 | BE14: 0.08052 | BF14: rs140295086 | BG14: T | BH14: C | BI14: 0.022146938 | BJ14: 0.279661675 | BK14: 0.206442232 | BL14: 0.190959314 | BM14: 0.00439 | BN14: 26.6021
O15: rs34494692 | P15: CT | Q15: C | R15: 0.1606 | S15: 1.42889e-07 | T15: -0.1044 | U15: 0.01984 | AC15: 0.00294 | AD15: 27.6897 | AG15: rs116684387 | AH15: A | AI15: T | AJ15: 0.001642 | AK15: 4.83059e-06 | AL15: -1.078 | AM15: 0.2358 | AN15: rs59515242 | AO15: C | AP15: A | AQ15: 0.20425585 | AR15: 0.504902519 | AS15: 0.044603994 | AT15: 0.066893026 | AU15: 0.00381 | AV15: 20.9002 | AY15: rs181517947 | AZ15: A | BA15: G | BB15: 0.00446 | BC15: 2.83792e-05 | BD15: -0.4881 | BE15: 0.1166 | BF15: rs13420805 | BG15: T | BH15: C | BI15: 0.601121072 | BJ15: 0.496884338 | BK15: 0.037893685 | BL15: 0.055775206 | BM15: 0.00212 | BN15: 17.5235
O16: rs60654060 | P16: G | Q16: T | R16: 0.01447 | S16: 1.83654e-07 | T16: -0.3457 | U16: 0.06628 | AC16: 0.00341 | AD16: 27.2041 | AG16: rs59132387 | AH16: A | AI16: G | AJ16: 0.5161 | AK16: 4.10204e-06 | AL16: 0.06603 | AM16: 0.01434 | AN16: rs77697917 | AO16: C | AP16: T | AQ16: 0.014097013 | AR16: 0.512619813 | AS16: 0.132003557 | AT16: 0.201604836 | AU16: 0.00218 | AV16: 21.2024 | AY16: rs187959746 | AZ16: T | BA16: G | BB16: 0.003677 | BC16: 3.91742e-05 | BD16: 0.6078 | BE16: 0.1478 | BF16: rs7608582 | BG16: C | BH16: T | BI16: 0.014917926 | BJ16: 0.537759434 | BK16: -0.120411453 | BL16: 0.195408206 | BM16: 0.00271 | BN16: 16.9111
AG17: rs111842439 | AH17: G | AI17: A | AJ17: 0.0008368 | AK17: 3.22107e-06 | AL17: -1.363 | AM17: 0.2927 | AN17: rs8092887 | AO17: C | AP17: T | AQ17: 0.441378358 | AR17: 0.443262955 | AS17: -0.037964808 | AT17: 0.049517493 | AU17: 0.00311 | AV17: 21.6843 | AY17: rs147926109 | AZ17: A | BA17: G | BB17: 0.0009704 | BC17: 3.58096e-05 | BD17: -1.422 | BE17: 0.3442 | BF17: rs139565428 | BG17: A | BH17: G | BI17: 0.035771662 | BJ17: 0.734546714 | BK17: 0.047960377 | BL17: 0.141441137 | BM17: 0.00392 | BN17: 17.0678
AG18: rs143759883 | AH18: T | AI18: C | AJ18: 0.02686 | AK18: 3.14051e-06 | AL18: 0.2242 | AM18: 0.0481 | AN18: rs4804576 | AO18: G | AP18: T | AQ18: 0.156095555 | AR18: 0.963104941 | AS18: -0.003222523 | AT18: 0.06966473 | AU18: 0.00263 | AV18: 21.7261 | AY18: rs73088461 | AZ18: A | BA18: G | BB18: 0.0006659 | BC18: 4.21697e-05 | BD18: 1.706 | BE18: 0.4166 | BF18: rs143759883 | BG18: C | BH18: T | BI18: 0.026778409 | BJ18: 0.124229986 | BK18: -0.256610055 | BL18: 0.166927053 | BM18: 0.00387 | BN18: 16.7695
AG19: rs74905074 | AH19: G | AI19: A | AJ19: 0.002081 | AK19: 3.70681e-06 | AL19: 0.7293 | AM19: 0.1576 | AN19: rs769449 | AO19: G | AP19: A | AQ19: 0.083094205 | AR19: 0.235341143 | AS19: 0.107131282 | AT19: 0.090275702 | AU19: 0.00221 | AV19: 21.4141 | AY19: rs7549874 | AZ19: C | BA19: T | BB19: 0.6318 | BC19: 3.155e-05 | BD19: 0.06131 | BE19: 0.01473 | BF19: rs79256127 | BG19: C | BH19: T | BI19: 0.006103039 | BJ19: 0.370713307 | BK19: 0.317211848 | BL19: 0.354371994 | BM19: 0.00175 | BN19: 17.3244
AG20: rs78581443 | AH20: A | AI20: C | AJ20: 0.02108 | AK20: 2.22331e-06 | AL20: -0.246 | AM20: 0.05198 | AN20: rs60654060 | AO20: T | AP20: G | AQ20: 0.023119846 | AR20: 0.420358564 | AS20: -0.150205948 | AT20: 0.186406146 | AU20: 0.00250 | AV20: 22.3974 | AY20: rs185231421 | AZ20: G | BA20: C | BB20: 0.001769 | BC20: 3.78443e-05 | BD20: 0.778 | BE20: 0.1888 | BF20: rs62338585 | BG20: G | BH20: A | BI20: 0.014497758 | BJ20: 0.11749864 | BK20: -0.344840738 | BL20: 0.220294916 | BM20: 0.00214 | BN20: 16.9807
AG21: rs72823726 | AH21: C | AI21: T | AJ21: 0.01093 | AK21: 4.65586e-06 | AL21: 0.3626 | AM21: 0.07917 | AU21: 0.00284 | AV21: 20.9766 | AY21: rs12137350 | AZ21: A | BA21: G | BB21: 0.002166 | BC21: 3.31131e-06 | BD21: 0.8664 | BE21: 0.1863 | BF21: rs78581443 | BG21: C | BH21: A | BI21: 0.02102444 | BJ21: 0.153885941 | BK21: 0.244720862 | BL21: 0.171620845 | BM21: 0.00324 | BN21: 21.6277
AG22: rs1544935 | AH22: G | AI22: T | AJ22: 0.1321 | AK22: 2.43781e-06 | AL22: 0.1014 | AM22: 0.02151 | AU22: 0.00236 | AV22: 22.2226 | AY22: rs2039714 | AZ22: T | BA22: C | BB22: 0.9998 | BC22: 2.93089e-05 | BD22: -2.644 | BE22: 0.6327 | BF22: rs75985777 | BG22: A | BH22: G | BI22: 0.097828597 | BJ22: 0.377430177 | BK22: -0.075422651 | BL22: 0.085451091 | BM22: 0.00280 | BN22: 17.4633
AG23: rs58465125 | AH23: T | AI23: C | AJ23: 0.1873 | AK23: 3.45144e-06 | AL23: 0.08604 | AM23: 0.01853 | AU23: 0.00225 | AV23: 21.5601 | AY23: rs186906216 | AZ23: T | BA23: C | BB23: 0.001398 | BC23: 2.29615e-05 | BD23: -1.059 | BE23: 0.2502 | BF23: rs10069633 | BG23: A | BH23: G | BI23: 0.36075322 | BJ23: 0.342135288 | BK23: -0.049067005 | BL23: 0.051651944 | BM23: 0.00313 | BN23: 17.9150
AG24: rs74866059 | AH24: G | AI24: A | AJ24: 0.0003272 | AK24: 2.69153e-07 | AL24: 2.63 | AM24: 0.5112 | AU24: 0.00452 | AV24: 26.4685 | AY24: rs116213103 | AZ24: T | BA24: A | BB24: 0.009887 | BC24: 1.98609e-05 | BD24: 0.3728 | BE24: 0.08738 | BF24: rs71588051 | BG24: A | BH24: G | BI24: 0.093417723 | BJ24: 0.637277115 | BK24: 0.042691792 | BL24: 0.090542851 | BM24: 0.00272 | BN24: 18.2024
AG25: rs17715588 | AH25: G | AI25: C | AJ25: 0.08293 | AK25: 6.35331e-07 | AL25: -0.1339 | AM25: 0.02689 | AU25: 0.00273 | AV25: 24.7959 | AY25: rs12733302 | AZ25: A | BA25: G | BB25: 0.07609 | BC25: 7.36207e-06 | BD25: 0.1186 | BE25: 0.02645 | BF25: rs6881538 | BG25: T | BH25: A | BI25: 0.453401971 | BJ25: 0.24171237 | BK25: 0.060608244 | BL25: 0.051770173 | BM25: 0.00198 | BN25: 20.1056
AG26: rs256 | AH26: T | AI26: C | AJ26: 0.1838 | AK26: 3.28852e-06 | AL26: 0.08497 | AM26: 0.01827 | AU26: 0.00217 | AV26: 21.6299 | AY26: rs139839632 | AZ26: A | BA26: G | BB26: 0.003502 | BC26: 8.22243e-06 | BD26: -0.6131 | BE26: 0.1375 | BF26: rs1544935 | BG26: T | BH26: G | BI26: 0.126056033 | BJ26: 0.229578862 | BK26: -0.089653475 | BL26: 0.074621409 | BM26: 0.00262 | BN26: 19.8819
AG27: rs74526994 | AH27: A | AI27: G | AJ27: 0.000847 | AK27: 2.54097e-06 | AL27: 1.469 | AM27: 0.3123 | AU27: 0.00365 | AV27: 22.1258 | AY27: rs146189872 | AZ27: A | BA27: T | BB27: 0.004489 | BC27: 9.39723e-06 | BD27: 0.5876 | BE27: 0.1326 | BF27: rs72907699 | BG27: C | BH27: A | BI27: 0.02429972 | BJ27: 0.713617962 | BK27: 0.059464563 | BL27: 0.162028156 | BM27: 0.00309 | BN27: 19.6371
AG28: rs36116912 | AH28: G | AI28: GA | AJ28: 0.1357 | AK28: 3.36512e-06 | AL28: -0.1031 | AM28: 0.02218 | AU28: 0.00249 | AV28: 21.6070 | AY28: rs12993639 | AZ28: T | BA28: C | BB28: 0.4778 | BC28: 4.97737e-05 | BD28: 0.05839 | BE28: 0.01439 | BF28: rs6914213 | BG28: T | BH28: C | BI28: 0.417870685 | BJ28: 0.358673819 | BK28: 0.048324801 | BL28: 0.052647415 | BM28: 0.00170 | BN28: 16.4648
AG29: rs78671516 | AH29: A | AI29: T | AJ29: 0.008706 | AK29: 1.48936e-06 | AL29: -0.3975 | AM29: 0.08261 | AU29: 0.00273 | AV29: 23.1531 | AY29: rs11694597 | AZ29: A | BA29: G | BB29: 0.3061 | BC29: 2.95801e-05 | BD29: 0.06676 | BE29: 0.01598 | BF29: rs75791539 | BG29: A | BH29: G | BI29: 0.179743373 | BJ29: 0.825523072 | BK29: -0.016461663 | BL29: 0.074674029 | BM29: 0.00189 | BN29: 17.4534
AG30: rs11018807 | AH30: G | AI30: C | AJ30: 0.1419 | AK30: 3.45144e-06 | AL30: 0.09506 | AM30: 0.02048 | AU30: 0.00220 | AV30: 21.5445 | AY30: rs150311407 | AZ30: G | BA30: C | BB30: 0.001835 | BC30: 3.7325e-05 | BD30: 0.8188 | BE30: 0.1986 | BF30: rs9364727 | BG30: C | BH30: T | BI30: 0.0872394 | BJ30: 0.907905713 | BK30: -0.011574575 | BL30: 0.100056353 | BM30: 0.00246 | BN30: 16.9980
AG31: rs17097810 | AH31: A | AI31: G | AJ31: 0.001824 | AK31: 4.05509e-06 | AL31: -0.9078 | AM31: 0.197 | AU31: 0.00300 | AV31: 21.2348 | AY31: rs181821727 | AZ31: A | BA31: C | BB31: 0.002557 | BC31: 1.1885e-05 | BD31: -0.8166 | BE31: 0.1864 | BF31: rs28494068 | BG31: C | BH31: T | BI31: 0.011845603 | BJ31: 0.253582187 | BK31: 0.289104534 | BL31: 0.253224693 | BM31: 0.00340 | BN31: 19.1923
AG32: rs59620302 | AH32: G | AI32: C | AJ32: 0.0385 | AK32: 2.89068e-06 | AL32: 0.1741 | AM32: 0.03722 | AU32: 0.00224 | AV32: 21.8799 | AY32: rs7601812 | AZ32: A | BA32: G | BB32: 0.646 | BC32: 4.69894e-05 | BD32: 0.06183 | BE32: 0.01519 | BF32: rs2389858 | BG32: T | BH32: A | BI32: 0.564059415 | BJ32: 0.973135398 | BK32: 0.001863123 | BL32: 0.055324704 | BM32: 0.00175 | BN32: 16.5685
AG33: rs71049028 | AH33: G | AI33: GT | AJ33: 0.333 | AK33: 4.89779e-06 | AL33: -0.06809 | AM33: 0.0149 | AU33: 0.00206 | AV33: 20.8831 | AY33: rs138999317 | AZ33: C | BA33: G | BB33: 0.004102 | BC33: 3.58922e-05 | BD33: 0.5713 | BE33: 0.1382 | BF33: rs12537548 | BG33: T | BH33: C | BI33: 0.084828422 | BJ33: 0.47628426 | BK33: 0.060723923 | BL33: 0.085251501 | BM33: 0.00267 | BN33: 17.0888
AG34: rs148929208 | AH34: T | AI34: C | AJ34: 0.0006817 | AK34: 3.12608e-06 | AL34: -2 | AM34: 0.4289 | AU34: 0.00545 | AV34: 21.7444 | AY34: rs4296389 | AZ34: T | BA34: C | BB34: 0.5625 | BC34: 1.93642e-05 | BD34: 0.06207 | BE34: 0.01453 | BF34: rs66801056 | BG34: G | BH34: A | BI34: 0.216360272 | BJ34: 0.855753396 | BK34: 0.011474672 | BL34: 0.063123076 | BM34: 0.00190 | BN34: 18.2487
AG35: rs139906502 | AH35: T | AI35: TCAAA | AJ35: 0.001007 | AK35: 5.94292e-07 | AL35: -1.707 | AM35: 0.3419 | AU35: 0.00586 | AV35: 24.9269 | AY35: rs80273865 | AZ35: G | BA35: A | BB35: 0.008736 | BC35: 8.20352e-06 | BD35: 0.4072 | BE35: 0.09131 | BF35: rs983311 | BG35: C | BH35: T | BI35: 0.807092163 | BJ35: 0.661462634 | BK35: 0.029023202 | BL35: 0.066278955 | BM35: 0.00287 | BN35: 19.8874
AG36: rs149716235 | AH36: A | AI36: G | AJ36: 0.02663 | AK36: 1.35831e-06 | AL36: -0.223 | AM36: 0.04616 | AU36: 0.00258 | AV36: 23.3388 | AY36: rs11902796 | AZ36: G | BA36: A | BB36: 0.0002545 | BC36: 1.00925e-05 | BD36: 3.187 | BE36: 0.7218 | BF36: rs343 | BG36: C | BH36: A | BI36: 0.130714678 | BJ36: 0.319383087 | BK36: -0.075003565 | BL36: 0.075325474 | BM36: 0.00517 | BN36: 19.4953
AG37: rs181625132 | AH37: T | AI37: A | AJ37: 0.0005823 | AK37: 3.60579e-06 | AL37: 1.504 | AM37: 0.3247 | AU37: 0.00263 | AV37: 21.4551 | AY37: rs79373107 | AZ37: T | BA37: C | BB37: 0.09144 | BC37: 3.87258e-05 | BD37: 0.1039 | BE37: 0.02524 | BF37: rs10216606 | BG37: C | BH37: T | BI37: 0.154111339 | BJ37: 0.487645004 | BK37: -0.053206146 | BL37: 0.076659363 | BM37: 0.00179 | BN37: 16.9454
AG38: rs60380164 | AH38: C | AI38: T | AJ38: 0.0003262 | AK38: 3.50752e-06 | AL38: -2.822 | AM38: 0.6083 | AU38: 0.00519 | AV38: 21.5218 | AY38: rs190599962 | AZ38: G | BA38: A | BB38: 0.001353 | BC38: 3.23594e-05 | BD38: -1.503 | BE38: 0.3616 | BF38: rs11991945 | BG38: G | BH38: A | BI38: 0.084268377 | BJ38: 0.848527303 | BK38: -0.018090671 | BL38: 0.094716638 | BM38: 0.00610 | BN38: 17.2767
AG39: rs56314708 | AH39: A | AI39: C | AJ39: 0.2671 | AK39: 4.74242e-06 | AL39: -0.07386 | AM39: 0.01614 | AU39: 0.00214 | AV39: 20.9417 | AY39: rs138872510 | AZ39: T | BA39: G | BB39: 0.005096 | BC39: 8.72971e-06 | BD39: -0.4957 | BE39: 0.1115 | BF39: rs451664 | BG39: G | BH39: A | BI39: 0.880100908 | BJ39: 0.377274107 | BK39: -0.0752538 | BL39: 0.085231901 | BM39: 0.00249 | BN39: 19.7646
AG40: rs77547430 | AH40: A | AI40: T | AJ40: 0.003531 | AK40: 4.36516e-06 | AL40: 0.5676 | AM40: 0.1236 | AU40: 0.00227 | AV40: 21.0886 | AY40: rs145630184 | AZ40: A | BA40: T | BB40: 0.02527 | BC40: 1.88365e-05 | BD40: 0.2061 | BE40: 0.04818 | BF40: rs4149310 | BG40: A | BH40: T | BI40: 0.249807022 | BJ40: 0.641985012 | BK40: -0.026686443 | BL40: 0.05739943 | BM40: 0.00209 | BN40: 18.2988
AG41: rs59515242 | AH41: A | AI41: C | AJ41: 0.2219 | AK41: 4.9204e-06 | AL41: -0.08313 | AM41: 0.0182 | AU41: 0.00239 | AV41: 20.8628 | AY41: rs115977953 | AZ41: A | BA41: G | BB41: 0.002447 | BC41: 3.41979e-05 | BD41: 0.6179 | BE41: 0.1491 | BF41: rs7908907 | BG41: G | BH41: C | BI41: 0.176152522 | BJ41: 0.381964392 | BK41: -0.057157393 | BL41: 0.065376339 | BM41: 0.00186 | BN41: 17.1744
AG42: rs148201632 | AH42: C | AI42: CA | AJ42: 0.2817 | AK42: 4.09261e-07 | AL42: 0.08717 | AM42: 0.01721 | AU42: 0.00308 | AV42: 25.6550 | AY42: rs76136392 | AZ42: A | BA42: G | BB42: 0.001548 | BC42: 9.50605e-06 | BD42: 1.275 | BE42: 0.288 | BF42: rs10823348 | BG42: T | BH42: G | BI42: 0.376351202 | BJ42: 0.492043394 | BK42: 0.035420072 | BL42: 0.051552918 | BM42: 0.00503 | BN42: 19.5991
AG43: rs8082174 | AH43: C | AI43: T | AJ43: 0.1949 | AK43: 4.02717e-06 | AL43: -0.08351 | AM43: 0.01812 | AU43: 0.00219 | AV43: 21.2403 | AY43: rs75930666 | AZ43: T | BA43: C | BB43: 0.26 | BC43: 1.74582e-05 | BD43: 0.0725 | BE43: 0.01688 | BF43: rs61852880 | BG43: C | BH43: T | BI43: 0.047483892 | BJ43: 0.106971574 | BK43: 0.195743659 | BL43: 0.121432404 | BM43: 0.00202 | BN43: 18.4472
AG44: rs77697917 | AH44: T | AI44: C | AJ44: 0.01626 | AK44: 1.52055e-06 | AL44: -0.2669 | AM44: 0.05549 | AU44: 0.00228 | AV44: 23.1349 | AY44: rs989586 | AZ44: G | BA44: A | BB44: 0.8161 | BC44: 3.11889e-05 | BD44: -0.07595 | BE44: 0.01824 | BF44: rs114471193 | BG44: A | BH44: G | BI44: 0.044282115 | BJ44: 0.679729749 | BK44: 0.053655169 | BL44: 0.12996855 | BM44: 0.00173 | BN44: 17.3383
AG45: rs35124878 | AH45: T | AI45: C | AJ45: 0.006563 | AK45: 4.25598e-06 | AL45: 0.4457 | AM45: 0.09693 | AU45: 0.00259 | AV45: 21.1431 | AY45: rs58319294 | AZ45: G | BA45: T | BB45: 0.262 | BC45: 4.15911e-05 | BD45: 0.06621 | BE45: 0.01615 | BF45: rs12248757 | BG45: G | BH45: T | BI45: 0.155882175 | BJ45: 0.879513207 | BK45: 0.0104988 | BL45: 0.06925954 | BM45: 0.00170 | BN45: 16.8075
AG46: rs200103565 | AH46: C | AI46: A | AJ46: 0.01682 | AK46: 3.68129e-07 | AL46: -0.2992 | AM46: 0.05885 | AU46: 0.00296 | AV46: 25.8482 | AY46: rs80038371 | AZ46: TAC | BA46: T | BB46: 0.4143 | BC46: 2.97167e-05 | BD46: -0.06106 | BE46: 0.01462 | BF46: rs7101865 | BG46: G | BH46: A | BI46: 0.148269079 | BJ46: 0.593270498 | BK46: 0.038957358 | BL46: 0.07293983 | BM46: 0.00181 | BN46: 17.4429
AG47: rs8092887 | AH47: T | AI47: C | AJ47: 0.4317 | AK47: 4.39542e-06 | AL47: -0.06778 | AM47: 0.01476 | AU47: 0.00225 | AV47: 21.0878 | AY47: rs216618 | AZ47: C | BA47: T | BB47: 0.1423 | BC47: 2.82488e-05 | BD47: -0.08908 | BE47: 0.02128 | BF47: rs481843 | BG47: C | BH47: T | BI47: 0.114754082 | BJ47: 0.625173833 | BK47: 0.037323953 | BL47: 0.07640039 | BM47: 0.00194 | BN47: 17.5234
AG48: rs182456886 | AH48: C | AI48: T | AJ48: 0.005817 | AK48: 1.04472e-06 | AL48: 0.5857 | AM48: 0.1199 | AU48: 0.00397 | AV48: 23.8623 | AY48: rs1447536 | AZ48: G | BA48: T | BB48: 0.1559 | BC48: 2.8774e-05 | BD48: -0.08429 | BE48: 0.02015 | BF48: rs508487 | BG48: C | BH48: T | BI48: 0.133857563 | BJ48: 0.74183253 | BK48: -0.023988417 | BL48: 0.072818484 | BM48: 0.00187 | BN48: 17.4985
AG49: rs4804576 | AH49: T | AI49: G | AJ49: 0.1378 | AK49: 3.81944e-06 | AL49: -0.09468 | AM49: 0.02049 | AU49: 0.00213 | AV49: 21.3517 | AY49: rs180897707 | AZ49: T | BA49: C | BB49: 0.002542 | BC49: 7.11214e-06 | BD49: -0.6863 | BE49: 0.1528 | BF49: rs7342163 | BG49: T | BH49: C | BI49: 0.240259513 | BJ49: 0.967032045 | BK49: 0.002619338 | BL49: 0.06337471 | BM49: 0.00239 | BN49: 20.1735
AG50: rs769449 | AH50: A | AI50: G | AJ50: 0.07304 | AK50: 1.66725e-06 | AL50: -0.1307 | AM50: 0.02728 | AU50: 0.00231 | AV50: 22.9542 | AY50: rs182543859 | AZ50: G | BA50: A | BB50: 0.001436 | BC50: 3.14775e-05 | BD50: -0.9097 | BE50: 0.2185 | BF50: rs634645 | BG50: G | BH50: A | BI50: 0.434310964 | BJ50: 0.305227015 | BK50: -0.052473469 | BL50: 0.051179216 | BM50: 0.00237 | BN50: 17.3338
AG51: rs60654060 | AH51: G | AI51: T | AJ51: 0.01447 | AK51: 1.83654e-07 | AL51: -0.3457 | AM51: 0.06628 | AU51: 0.00341 | AV51: 27.2041 | AY51: rs74626719 | AZ51: A | BA51: G | BB51: 0.01515 | BC51: 1.41906e-08 | BD51: 0.3274 | BE51: 0.05772 | BF51: rs186297197 | BG51: C | BH51: T | BI51: 0.00649051 | BJ51: 0.399151692 | BK51: -0.253077283 | BL51: 0.300161433 | BM51: 0.00320 | BN51: 32.1740
AG52: rs71194397 | AH52: T | AI52: TA | AJ52: 0.5774 | AK52: 4.96592e-06 | AL52: -0.07394 | AM52: 0.01619 | AU52: 0.00267 | AV52: 20.8576 | AY52: rs111427201 | AZ52: T | BA52: G | BB52: 0.01008 | BC52: 4.33511e-05 | BD52: 0.2902 | BE52: 0.07098 | BF52: rs147250897 | BG52: C | BH52: T | BI52: 0.006537195 | BJ52: 0.077565417 | BK52: 0.630292759 | BL52: 0.357108367 | BM52: 0.00168 | BN52: 16.7156
AY53: rs141328193 | AZ53: T | BA53: C | BB53: 0.002579 | BC53: 4.58142e-05 | BD53: 0.8305 | BE53: 0.2038 | BF53: rs7326464 | BG53: T | BH53: C | BI53: 0.715131842 | BJ53: 0.62950864 | BK53: -0.03038642 | BL53: 0.062987667 | BM53: 0.00355 | BN53: 16.6062
AY54: rs140295086 | AZ54: C | BA54: T | BB54: 0.02272 | BC54: 2.1677e-05 | BD54: -0.2128 | BE54: 0.0501 | BF54: rs9564317 | BG54: T | BH54: C | BI54: 0.481096981 | BJ54: 0.126704328 | BK54: 0.086754074 | BL54: 0.056804926 | BM54: 0.00201 | BN54: 18.0413
AY55: rs79717551 | AZ55: T | BA55: G | BB55: 0.01548 | BC55: 4.4157e-05 | BD55: -0.2568 | BE55: 0.06287 | BF55: rs35077074 | BG55: T | BH55: G | BI55: 0.27302701 | BJ55: 0.82813406 | BK55: 0.012247265 | BL55: 0.056414226 | BM55: 0.00201 | BN55: 16.6841
AY56: rs72873912 | AZ56: G | BA56: A | BB56: 0.001483 | BC56: 4.52898e-05 | BD56: 1.285 | BE56: 0.315 | BF56: rs80132615 | BG56: A | BH56: G | BI56: 0.059358718 | BJ56: 0.347556869 | BK56: -0.110399417 | BL56: 0.117528869 | BM56: 0.00489 | BN56: 16.6412
AY57: rs56805351 | AZ57: G | BA57: C | BB57: 0.00372 | BC57: 3.91742e-06 | BD57: -0.7749 | BE57: 0.1679 | BF57: rs1123294 | BG57: C | BH57: G | BI57: 0.113987338 | BJ57: 0.29367411 | BK57: -0.082919248 | BL57: 0.078963514 | BM57: 0.00445 | BN57: 21.3005
AY58: rs76050337 | AZ58: A | BA58: G | BB58: 0.001242 | BC58: 1.52405e-05 | BD58: -1.063 | BE58: 0.2458 | BF58: rs16975994 | BG58: T | BH58: G | BI58: 0.137834192 | BJ58: 0.863128224 | BK58: -0.012707856 | BL58: 0.073714264 | BM58: 0.00280 | BN58: 18.7026
AY59: rs77011411 | AZ59: C | BA59: T | BB59: 0.001072 | BC59: 1.44544e-05 | BD59: 1.51 | BE59: 0.3482 | BF59: rs255052 | BG59: G | BH59: A | BI59: 0.175555769 | BJ59: 0.804844904 | BK59: 0.016518909 | BL59: 0.066856029 | BM59: 0.00488 | BN59: 18.8060
AY60: rs191996733 | AZ60: A | BA60: G | BB60: 0.01279 | BC60: 4.10204e-06 | BD60: 0.3054 | BE60: 0.0663 | BF60: rs145947882 | BG60: A | BH60: C | BI60: 0.010853718 | BJ60: 0.12434191 | BK60: 0.38807358 | BL60: 0.252520292 | BM60: 0.00236 | BN60: 21.2183
AY61: rs13420805 | AZ61: C | BA61: T | BB61: 0.6268 | BC61: 2.95801e-05 | BD61: 0.06277 | BE61: 0.01503 | BF61: rs4804575 | BG61: G | BH61: A | BI61: 0.157981946 | BJ61: 0.928544203 | BK61: -0.006252488 | BL61: 0.069722615 | BM61: 0.00184 | BN61: 17.4416
AY62: rs7608582 | AZ62: T | BA62: C | BB62: 0.01619 | BC62: 4.23643e-05 | BD62: 0.23 | BE62: 0.05619 | BF62: rs769449 | BG62: G | BH62: A | BI62: 0.083094205 | BJ62: 0.235341143 | BK62: 0.107131282 | BL62: 0.090275702 | BM62: 0.00169 | BN62: 16.7547
AY63: rs184306313 | AZ63: T | BA63: C | BB63: 0.001653 | BC63: 1.38038e-05 | BD63: 1.139 | BE63: 0.2621 | BF63: rs4431014 | BG63: C | BH63: T | BI63: 0.536634539 | BJ63: 0.72985679 | BK63: 0.018806032 | BL63: 0.054460349 | BM63: 0.00428 | BN63: 18.8848
AY64: rs188272496 | AZ64: A | BA64: G | BB64: 0.001441 | BC64: 3.76704e-05 | BD64: 1.235 | BE64: 0.2997 | BF64: rs13039201 | BG64: G | BH64: A | BI64: 0.057024807 | BJ64: 0.628644143 | BK64: -0.051524722 | BL64: 0.106536135 | BM64: 0.00439 | BN64: 16.9809
AY65: rs4016437 | AZ65: T | BA65: G | BB65: 0.9996 | BC65: 6.76083e-07 | BD65: 2.282 | BE65: 0.4593 | BF65: rs145552367 | BG65: A | BH65: T | BI65: 0.022074771 | BJ65: 0.437735504 | BK65: -0.146594249 | BL65: 0.188904556 | BM65: 0.00416 | BN65: 24.6853
AY66: rs116684387 | AZ66: A | BA66: T | BB66: 0.001642 | BC66: 4.83059e-06 | BD66: -1.078 | BE66: 0.2358 | BF66: rs2269671 | BG66: G | BH66: T | BI66: 0.093667811 | BJ66: 0.474060652 | BK66: 0.064557209 | BL66: 0.090177835 | BM66: 0.00381 | BN66: 20.9002
AY67: rs139565428 | AZ67: G | BA67: A | BB67: 0.04802 | BC67: 4.7863e-05 | BD67: 0.1375 | BE67: 0.03382 | BM67: 0.00173 | BN67: 16.5294
AY68: rs66991644 | AZ68: T | BA68: TAC | BB68: 0.4038 | BC68: 4.54988e-05 | BD68: 0.06145 | BE68: 0.01507 | BM68: 0.00182 | BN68: 16.6271
AY69: rs114006277 | AZ69: T | BA69: C | BB69: 0.001998 | BC69: 2.09411e-05 | BD69: -0.861 | BE69: 0.2024 | BM69: 0.00296 | BN69: 18.0961
AY70: rs141028782 | AZ70: G | BA70: T | BB70: 0.01289 | BC70: 2.99226e-05 | BD70: 0.3669 | BE70: 0.0879 | BM70: 0.00343 | BN70: 17.4228
AY71: rs189925831 | AZ71: A | BA71: C | BB71: 0.003925 | BC71: 1.36773e-05 | BD71: -0.5907 | BE71: 0.1358 | BM71: 0.00273 | BN71: 18.9206
AY72: rs140099631 | AZ72: G | BA72: GAGGGA | BB72: 0.06821 | BC72: 3.05492e-05 | BD72: -0.1169 | BE72: 0.02804 | BM72: 0.00174 | BN72: 17.3809
AY73: rs139825106 | AZ73: A | BA73: C | BB73: 0.001155 | BC73: 7.34514e-06 | BD73: 1.505 | BE73: 0.3357 | BM73: 0.00523 | BN73: 20.0988
AY74: rs149498918 | AZ74: A | BA74: AGAAG | BB74: 0.0002341 | BC74: 1.09648e-05 | BD74: 2.682 | BE74: 0.61 | BM74: 0.00337 | BN74: 19.3312
AY75: rs34027626 | AZ75: CA | BA75: C | BB75: 0.3991 | BC75: 4.04576e-05 | BD75: -0.06872 | BE75: 0.01674 | BM75: 0.00227 | BN75: 16.8522
AY76: rs146659855 | AZ76: T | BA76: C | BB76: 0.00188 | BC76: 3.34195e-05 | BD76: 0.8721 | BE76: 0.2102 | BM76: 0.00285 | BN76: 17.2134
AY77: rs61796583 | AZ77: T | BA77: C | BB77: 0.1071 | BC77: 4.69894e-05 | BD77: -0.09504 | BE77: 0.02335 | BM77: 0.00173 | BN77: 16.5668
AY78: rs148278310 | AZ78: T | BA78: C | BB78: 0.007963 | BC78: 3.42768e-05 | BD78: -0.3904 | BE78: 0.09422 | BM78: 0.00241 | BN78: 17.1685
AY79: rs147346019 | AZ79: T | BA79: C | BB79: 0.1454 | BC79: 2.63633e-05 | BD79: -0.08663 | BE79: 0.02061 | BM79: 0.00187 | BN79: 17.6677
AY80: rs150316836 | AZ80: A | BA80: G | BB80: 0.01075 | BC80: 4.67735e-05 | BD80: -0.3386 | BE80: 0.08318 | BM80: 0.00244 | BN80: 16.5705
AY81: rs73811591 | AZ81: G | BA81: C | BB81: 0.00318 | BC81: 4.40555e-05 | BD81: 0.5395 | BE81: 0.1321 | BM81: 0.00185 | BN81: 16.6793
AY82: rs111842439 | AZ82: G | BA82: A | BB82: 0.0008368 | BC82: 3.22107e-06 | BD82: -1.363 | BE82: 0.2927 | BM82: 0.00311 | BN82: 21.6843
AY83: rs143759883 | AZ83: T | BA83: C | BB83: 0.02686 | BC83: 3.14051e-06 | BD83: 0.2242 | BE83: 0.0481 | BM83: 0.00263 | BN83: 21.7261
AY84: rs115188613 | AZ84: G | BA84: A | BB84: 0.01384 | BC84: 4.96592e-05 | BD84: -0.3031 | BE84: 0.07471 | BM84: 0.00251 | BN84: 16.4594
AY85: rs79256127 | AZ85: T | BA85: C | BB85: 0.006178 | BC85: 2.36048e-05 | BD85: 0.381 | BE85: 0.09011 | BM85: 0.00178 | BN85: 17.8774
AY86: rs139744703 | AZ86: T | BA86: C | BB86: 0.001379 | BC86: 3.37287e-05 | BD86: -1.092 | BE86: 0.2633 | BM86: 0.00328 | BN86: 17.2006
AY87: rs11947785 | AZ87: A | BA87: G | BB87: 0.002514 | BC87: 1.15345e-05 | BD87: -0.7894 | BE87: 0.18 | BM87: 0.00313 | BN87: 19.2331
AY88: rs6830971 | AZ88: G | BA88: A | BB88: 0.3321 | BC88: 1.6293e-05 | BD88: -0.06498 | BE88: 0.01508 | BM88: 0.00187 | BN88: 18.5676
AY89: rs1433646 | AZ89: T | BA89: A | BB89: 0.2588 | BC89: 3.56451e-05 | BD89: 0.07772 | BE89: 0.0188 | BM89: 0.00232 | BN89: 17.0903
AY90: rs115336242 | AZ90: C | BA90: A | BB90: 0.00126 | BC90: 3.76704e-05 | BD90: 1.006 | BE90: 0.2441 | BM90: 0.00255 | BN90: 16.9848
AY91: rs66640412 | AZ91: GT | BA91: G | BB91: 0.8638 | BC91: 3.41193e-05 | BD91: -0.09986 | BE91: 0.0241 | BM91: 0.00235 | BN91: 17.1692
AY92: rs116475599 | AZ92: C | BA92: T | BB92: 0.003661 | BC92: 2.84446e-05 | BD92: 0.4913 | BE92: 0.1174 | BM92: 0.00176 | BN92: 17.5129
AY93: rs192759074 | AZ93: T | BA93: A | BB93: 0.001026 | BC93: 1.3213e-05 | BD93: -1.212 | BE93: 0.2781 | BM93: 0.00301 | BN93: 18.9934
AY94: rs139221591 | AZ94: G | BA94: A | BB94: 0.001711 | BC94: 3.2961e-05 | BD94: -0.9086 | BE94: 0.2188 | BM94: 0.00282 | BN94: 17.2445
AY95: rs138009056 | AZ95: T | BA95: G | BB95: 0.01114 | BC95: 4.67735e-05 | BD95: -0.2851 | BE95: 0.07004 | BM95: 0.00179 | BN95: 16.5692
AY96: rs143956868 | AZ96: T | BA96: C | BB96: 0.003247 | BC96: 3.13329e-05 | BD96: 0.6977 | BE96: 0.1676 | BM96: 0.00315 | BN96: 17.3296
AY97: rs62338585 | AZ97: A | BA97: G | BB97: 0.01165 | BC97: 2.82488e-05 | BD97: -0.2854 | BE97: 0.06816 | BM97: 0.00188 | BN97: 17.5327
AY98: rs142665397 | AZ98: C | BA98: T | BB98: 0.003577 | BC98: 1.41254e-05 | BD98: 0.5539 | BE98: 0.1276 | BM98: 0.00219 | BN98: 18.8435
AY99: rs320606 | AZ99: C | BA99: T | BB99: 0.5065 | BC99: 1.22744e-05 | BD99: -0.06451 | BE99: 0.01475 | BM99: 0.00208 | BN99: 19.1280
AY100: rs140015277 | AZ100: A | BA100: G | BB100: 0.001249 | BC100: 6.88652e-06 | BD100: 1.473 | BE100: 0.3275 | BM100: 0.00541 | BN100: 20.2294
AY101: rs2053696 | AZ101: A | BA101: G | BB101: 0.003979 | BC101: 6.5013e-06 | BD101: -0.5912 | BE101: 0.1311 | BM101: 0.00277 | BN101: 20.3359
AY102: rs76187335 | AZ102: G | BA102: A | BB102: 0.02147 | BC102: 9.35406e-06 | BD102: 0.2361 | BE102: 0.05327 | BM102: 0.00234 | BN102: 19.6438
AY103: rs473122 | AZ103: A | BA103: T | BB103: 0.1998 | BC103: 9.59401e-06 | BD103: -0.08535 | BE103: 0.01928 | BM103: 0.00233 | BN103: 19.5972
AY104: rs6898218 | AZ104: T | BA104: C | BB104: 0.9856 | BC104: 1.30017e-05 | BD104: -0.3155 | BE104: 0.07235 | BM104: 0.00283 | BN104: 19.0161
AY105: rs74905074 | AZ105: G | BA105: A | BB105: 0.002081 | BC105: 3.70681e-06 | BD105: 0.7293 | BE105: 0.1576 | BM105: 0.00221 | BN105: 21.4141
AY106: rs78581443 | AZ106: A | BA106: C | BB106: 0.02108 | BC106: 2.22331e-06 | BD106: -0.246 | BE106: 0.05198 | BM106: 0.00250 | BN106: 22.3974
AY107: rs75985777 | AZ107: G | BA107: A | BB107: 0.07562 | BC107: 1.32434e-05 | BD107: 0.1187 | BE107: 0.02726 | BM107: 0.00197 | BN107: 18.9605
AY108: rs10069633 | AZ108: G | BA108: A | BB108: 0.369 | BC108: 1.53815e-05 | BD108: 0.06482 | BE108: 0.01499 | BM108: 0.00196 | BN108: 18.6988
AY109: rs141676520 | AZ109: T | BA109: C | BB109: 0.004609 | BC109: 2.8774e-05 | BD109: -0.4846 | BE109: 0.1158 | BM109: 0.00215 | BN109: 17.5126
AY110: rs71588051 | AZ110: G | BA110: A | BB110: 0.1055 | BC110: 3.40408e-05 | BD110: -0.09879 | BE110: 0.02384 | BM110: 0.00184 | BN110: 17.1717
AY111: rs6881538 | AZ111: A | BA111: T | BB111: 0.5086 | BC111: 4.43609e-05 | BD111: -0.05833 | BE111: 0.01428 | BM111: 0.00170 | BN111: 16.6851
AY112: rs140654263 | AZ112: C | BA112: G | BB112: 0.00352 | BC112: 4.08319e-05 | BD112: 0.8575 | BE112: 0.209 | BM112: 0.00516 | BN112: 16.8335
AY113: rs72823726 | AZ113: C | BA113: T | BB113: 0.01093 | BC113: 4.65586e-06 | BD113: 0.3626 | BE113: 0.07917 | BM113: 0.00284 | BN113: 20.9766
AY114: rs10600595 | AZ114: T | BA114: TAAA | BB114: 0.000379 | BC114: 4.42588e-05 | BD114: -3.636 | BE114: 0.8902 | BM114: 0.01002 | BN114: 16.6829
AY115: rs117266214 | AZ115: A | BA115: G | BB115: 0.03518 | BC115: 2.88403e-05 | BD115: 0.1617 | BE115: 0.03865 | BM115: 0.00177 | BN115: 17.5033
AY116: rs10458179 | AZ116: G | BA116: A | BB116: 0.0007154 | BC116: 1.21339e-05 | BD116: -1.162 | BE116: 0.2656 | BM116: 0.00193 | BN116: 19.1406
AY117: rs72823629 | AZ117: C | BA117: T | BB117: 0.00743 | BC117: 2.77971e-05 | BD117: -0.374 | BE117: 0.08923 | BM117: 0.00206 | BN117: 17.5680
AY118: rs1544935 | AZ118: G | BA118: T | BB118: 0.1321 | BC118: 2.43781e-06 | BD118: 0.1014 | BE118: 0.02151 | BM118: 0.00236 | BN118: 22.2226
AY119: rs72907699 | AZ119: A | BA119: C | BB119: 0.03076 | BC119: 3.99945e-05 | BD119: -0.1676 | BE119: 0.04081 | BM119: 0.00167 | BN119: 16.8661
AY120: rs147278640 | AZ120: C | BA120: T | BB120: 0.004231 | BC120: 1.55955e-05 | BD120: 0.5316 | BE120: 0.1231 | BM120: 0.00238 | BN120: 18.6489
AY121: rs117906278 | AZ121: T | BA121: C | BB121: 0.003113 | BC121: 3.79315e-05 | BD121: -0.5798 | BE121: 0.1408 | BM121: 0.00209 | BN121: 16.9571
AY122: rs6914213 | AZ122: C | BA122: T | BB122: 0.4565 | BC122: 3.64754e-05 | BD122: -0.06098 | BE122: 0.01477 | BM122: 0.00185 | BN122: 17.0457
AY123: rs187132960 | AZ123: C | BA123: T | BB123: 0.0008263 | BC123: 4.62381e-05 | BD123: -1.585 | BE123: 0.389 | BM123: 0.00415 | BN123: 16.6020
AY124: rs75791539 | AZ124: G | BA124: A | BB124: 0.1976 | BC124: 7.11214e-06 | BD124: 0.08103 | BE124: 0.01805 | BM124: 0.00208 | BN124: 20.1529
AY125: rs116768381 | AZ125: T | BA125: A | BB125: 0.00203 | BC125: 2.30144e-05 | BD125: 0.9326 | BE125: 0.2203 | BM125: 0.00352 | BN125: 17.9210
AY126: rs182411838 | AZ126: A | BA126: G | BB126: 0.004339 | BC126: 4.90908e-05 | BD126: -0.4954 | BE126: 0.122 | BM126: 0.00212 | BN126: 16.4889
AY127: rs147434099 | AZ127: T | BA127: A | BB127: 0.001544 | BC127: 9.4189e-06 | BD127: 1.134 | BE127: 0.2559 | BM127: 0.00396 | BN127: 19.6375
AY128: rs116134251 | AZ128: A | BA128: G | BB128: 0.000369 | BC128: 4.1115e-05 | BD128: 2.174 | BE128: 0.5301 | BM128: 0.00349 | BN128: 16.8191
AY129: rs57842834 | AZ129: GT | BA129: G | BB129: 0.1862 | BC129: 4.12098e-05 | BD129: 0.07894 | BE129: 0.01925 | BM129: 0.00189 | BN129: 16.8164
AY130: rs9364727 | AZ130: T | BA130: C | BB130: 0.1101 | BC130: 3.68978e-05 | BD130: 0.09875 | BE130: 0.02393 | BM130: 0.00191 | BN130: 17.0290
AY131: rs2981985 | AZ131: G | BA131: A | BB131: 0.9694 | BC131: 1.36144e-05 | BD131: -0.1858 | BE131: 0.04272 | BM131: 0.00205 | BN131: 18.9160
AY132: rs28494068 | AZ132: T | BA132: C | BB132: 0.01582 | BC132: 4.2658e-05 | BD132: -0.2317 | BE132: 0.05661 | BM132: 0.00167 | BN132: 16.7520
AY133: rs2389858 | AZ133: A | BA133: T | BB133: 0.5966 | BC133: 3.11172e-05 | BD133: -0.06049 | BE133: 0.01452 | BM133: 0.00176 | BN133: 17.3554
AY134: rs1548578 | AZ134: A | BA134: G | BB134: 0.002274 | BC134: 1.36773e-05 | BD134: -0.8873 | BE134: 0.204 | BM134: 0.00357 | BN134: 18.9182
AY135: rs192699497 | AZ135: T | BA135: C | BB135: 0.006579 | BC135: 4.81948e-05 | BD135: 0.3928 | BE135: 0.09666 | BM135: 0.00202 | BN135: 16.5139
AY136: rs12537548 | AZ136: C | BA136: T | BB136: 0.1011 | BC136: 4.23643e-05 | BD136: -0.09731 | BE136: 0.02377 | BM136: 0.00172 | BN136: 16.7593
AY137: rs34872540 | AZ137: G | BA137: A | BB137: 0.1809 | BC137: 4.85289e-05 | BD137: -0.07842 | BE137: 0.0193 | BM137: 0.00182 | BN137: 16.5097
AY138: rs74866059 | AZ138: G | BA138: A | BB138: 0.0003272 | BC138: 2.69153e-07 | BD138: 2.63 | BE138: 0.5112 | BM138: 0.00452 | BN138: 26.4685
AY139: rs190529166 | AZ139: G | BA139: A | BB139: 0.005653 | BC139: 4.00867e-05 | BD139: 0.5855 | BE139: 0.1426 | BM139: 0.00385 | BN139: 16.8583
AY140: rs56408225 | AZ140: C | BA140: T | BB140: 0.0004374 | BC140: 3.53183e-05 | BD140: 2.349 | BE140: 0.5679 | BM140: 0.00482 | BN140: 17.1089
AY141: rs61370040 | AZ141: G | BA141: GC | BB141: 0.003124 | BC141: 6.44169e-06 | BD141: 0.794 | BE141: 0.176 | BM141: 0.00393 | BN141: 20.3524
AY142: rs141195508 | AZ142: T | BA142: C | BB142: 0.001366 | BC142: 1.8578e-05 | BD142: 0.8254 | BE142: 0.1928 | BM142: 0.00186 | BN142: 18.3280
AY143: rs1118316 | AZ143: A | BA143: C | BB143: 0.0003201 | BC143: 2.11836e-05 | BD143: -1.898 | BE143: 0.4463 | BM143: 0.00231 | BN143: 18.0858
AY144: rs146316034 | AZ144: C | BA144: A | BB144: 0.003002 | BC144: 2.87078e-05 | BD144: -0.7636 | BE144: 0.1825 | BM144: 0.00349 | BN144: 17.5068
AY145: rs118033756 | AZ145: A | BA145: G | BB145: 0.001626 | BC145: 9.95405e-06 | BD145: -0.7794 | BE145: 0.1764 | BM145: 0.00197 | BN145: 19.5220
AY146: rs58052853 | AZ146: T | BA146: C | BB146: 0.0007656 | BC146: 4.53942e-05 | BD146: -1.425 | BE146: 0.3493 | BM146: 0.00311 | BN146: 16.6430
AY147: rs73519504 | AZ147: A | BA147: G | BB147: 0.0001711 | BC147: 6.54636e-06 | BD147: 4.064 | BE147: 0.9017 | BM147: 0.00565 | BN147: 20.3134
AY148: rs66801056 | AZ148: A | BA148: G | BB148: 0.1965 | BC148: 2.24905e-05 | BD148: 0.0777 | BE148: 0.01833 | BM148: 0.00191 | BN148: 17.9687
AY149: rs186948197 | AZ149: C | BA149: T | BB149: 0.004254 | BC149: 3.85478e-05 | BD149: 0.5807 | BE149: 0.1411 | BM149: 0.00286 | BN149: 16.9375
AY150: rs58753042 | AZ150: T | BA150: C | BB150: 0.0009378 | BC150: 1.52757e-05 | BD150: -1.559 | BE150: 0.3605 | BM150: 0.00455 | BN150: 18.7017
AY151: rs10097574 | AZ151: T | BA151: G | BB151: 0.006005 | BC151: 4.97737e-05 | BD151: 0.3879 | BE151: 0.09563 | BM151: 0.00180 | BN151: 16.4532
AY152: rs983311 | AZ152: T | BA152: C | BB152: 0.7977 | BC152: 1.48594e-05 | BD152: 0.07777 | BE152: 0.01796 | BM152: 0.00195 | BN152: 18.7504
AY153: rs201662924 | AZ153: A | BA153: AT | BB153: 0.0004004 | BC153: 1.93197e-05 | BD153: 2.781 | BE153: 0.6509 | BM153: 0.00619 | BN153: 18.2546
AY154: rs2634454 | AZ154: T | BA154: G | BB154: 0.9997 | BC154: 3.48337e-05 | BD154: 3.467 | BE154: 0.8375 | BM154: 0.00721 | BN154: 17.1371
AY155: rs343 | AZ155: A | BA155: C | BB155: 0.1334 | BC155: 3.98107e-05 | BD155: 0.0869 | BE155: 0.02115 | BM155: 0.00175 | BN155: 16.8818
AY156: rs199946099 | AZ156: T | BA156: A | BB156: 0.3065 | BC156: 3.66438e-05 | BD156: 0.06556 | BE156: 0.01588 | BM156: 0.00183 | BN156: 17.0442
AY157: rs35188512 | AZ157: T | BA157: C | BB157: 0.000794 | BC157: 2.8119e-05 | BD157: -1.169 | BE157: 0.2792 | BM157: 0.00217 | BN157: 17.5307
AY158: rs74526994 | AZ158: A | BA158: G | BB158: 0.000847 | BC158: 2.54097e-06 | BD158: 1.469 | BE158: 0.3123 | BM158: 0.00365 | BN158: 22.1258
AY159: rs139290812 | AZ159: C | BA159: T | BB159: 0.0006968 | BC159: 3.06902e-05 | BD159: -1.71 | BE159: 0.4102 | BM159: 0.00407 | BN159: 17.3780
AY160: rs10216606 | AZ160: T | BA160: C | BB160: 0.1979 | BC160: 1.46893e-05 | BD160: -0.07963 | BE160: 0.01838 | BM160: 0.00201 | BN160: 18.7699
AY161: rs145838774 | AZ161: A | BA161: G | BB161: 0.003848 | BC161: 9.7499e-06 | BD161: 0.6261 | BE161: 0.1416 | BM161: 0.00301 | BN161: 19.5506
AY162: rs145521803 | AZ162: G | BA162: C | BB162: 0.003421 | BC162: 2.10863e-05 | BD162: -0.5416 | BE162: 0.1273 | BM162: 0.00200 | BN162: 18.1009
AY163: rs11991945 | AZ163: A | BA163: G | BB163: 0.1006 | BC163: 3.38065e-05 | BD163: -0.09787 | BE163: 0.0236 | BM163: 0.00173 | BN163: 17.1979
AY164: rs10111675 | AZ164: C | BA164: A | BB164: 0.233 | BC164: 4.44631e-05 | BD164: 0.06824 | BE164: 0.01671 | BM164: 0.00166 | BN164: 16.6773
AY165: rs112548907 | AZ165: T | BA165: C | BB165: 0.005528 | BC165: 4.0738e-05 | BD165: -0.3898 | BE165: 0.095 | BM165: 0.00167 | BN165: 16.8359
AY166: rs114571419 | AZ166: T | BA166: C | BB166: 0.0004808 | BC166: 1.39637e-05 | BD166: 2.245 | BE166: 0.5168 | BM166: 0.00484 | BN166: 18.8707
AY167: rs73388936 | AZ167: T | BA167: G | BB167: 0.0002785 | BC167: 2.7227e-05 | BD167: 3.479 | BE167: 0.8292 | BM167: 0.00674 | BN167: 17.6031
AY168: rs451664 | AZ168: A | BA168: G | BB168: 0.9001 | BC168: 4.74242e-05 | BD168: 0.09767 | BE168: 0.02401 | BM168: 0.00172 | BN168: 16.5477
AY169: rs142990912 | AZ169: G | BA169: A | BB169: 0.00329 | BC169: 9.90832e-06 | BD169: 0.5857 | BE169: 0.1325 | BM169: 0.00225 | BN169: 19.5397
AY170: rs192268296 | AZ170: G | BA170: A | BB170: 0.001142 | BC170: 8.74984e-06 | BD170: 1.099 | BE170: 0.2473 | BM170: 0.00276 | BN170: 19.7491
AY171: rs182871749 | AZ171: A | BA171: G | BB171: 0.002141 | BC171: 4.51856e-05 | BD171: -0.7527 | BE171: 0.1845 | BM171: 0.00242 | BN171: 16.6437
AY172: rs144602301 | AZ172: C | BA172: T | BB172: 0.000808 | BC172: 2.79254e-05 | BD172: -1.735 | BE172: 0.4142 | BM172: 0.00486 | BN172: 17.5460
AY173: rs144242422 | AZ173: T | BA173: C | BB173: 0.02211 | BC173: 2.26986e-05 | BD173: 0.2461 | BE173: 0.05808 | BM173: 0.00262 | BN173: 17.9544
AY174: rs182698300 | AZ174: C | BA174: T | BB174: 0.006472 | BC174: 2.0893e-05 | BD174: 0.395 | BE174: 0.09283 | BM174: 0.00201 | BN174: 18.1058
AY175: rs331376 | AZ175: A | BA175: G | BB175: 0.997 | BC175: 9.72747e-06 | BD175: 0.7388 | BE175: 0.167 | BM175: 0.00327 | BN175: 19.5714
AY176: rs4149310 | AZ176: T | BA176: A | BB176: 0.2097 | BC176: 2.80543e-05 | BD176: 0.07224 | BE176: 0.01725 | BM176: 0.00173 | BN176: 17.5379
AY177: rs138100010 | AZ177: C | BA177: A | BB177: 0.001812 | BC177: 2.0797e-05 | BD177: 1.09 | BE177: 0.2562 | BM177: 0.00430 | BN177: 18.1007
AY178: rs151088288 | AZ178: A | BA178: C | BB178: 0.001257 | BC178: 7.01455e-06 | BD178: 1.142 | BE178: 0.2541 | BM178: 0.00327 | BN178: 20.1987
AY179: rs149483991 | AZ179: A | BA179: G | BB179: 0.01972 | BC179: 9.57194e-06 | BD179: -0.2799 | BE179: 0.06322 | BM179: 0.00303 | BN179: 19.6018
AY180: rs117571367 | AZ180: G | BA180: C | BB180: 0.003417 | BC180: 4.54988e-05 | BD180: -0.5537 | BE180: 0.1358 | BM180: 0.00209 | BN180: 16.6245
AY181: rs7908907 | AZ181: C | BA181: G | BB181: 0.2108 | BC181: 1.63682e-05 | BD181: 0.074 | BE181: 0.01717 | BM181: 0.00182 | BN181: 18.5747
AY182: rs143766105 | AZ182: G | BA182: A | BB182: 0.002825 | BC182: 7.62079e-06 | BD182: 1.125 | BE182: 0.2513 | BM182: 0.00713 | BN182: 20.0410
AY183: rs10823348 | AZ183: G | BA183: T | BB183: 0.4241 | BC183: 4.2462e-05 | BD183: 0.05844 | BE183: 0.01428 | BM183: 0.00167 | BN183: 16.7480
AY184: rs61852880 | AZ184: T | BA184: C | BB184: 0.04833 | BC184: 4.85289e-05 | BD184: -0.1343 | BE184: 0.03306 | BM184: 0.00166 | BN184: 16.5024
AY185: rs12360477 | AZ185: C | BA185: T | BB185: 0.005816 | BC185: 3.21366e-05 | BD185: -0.4708 | BE185: 0.1132 | BM185: 0.00256 | BN185: 17.2974
AY186: rs182367405 | AZ186: A | BA186: C | BB186: 0.001241 | BC186: 4.22669e-05 | BD186: 1.227 | BE186: 0.2998 | BM186: 0.00373 | BN186: 16.7504
AY187: rs148718945 | AZ187: A | BA187: C | BB187: 0.002525 | BC187: 2.55859e-05 | BD187: 0.6292 | BE187: 0.1495 | BM187: 0.00199 | BN187: 17.7131
AY188: rs114471193 | AZ188: G | BA188: A | BB188: 0.04233 | BC188: 2.60016e-05 | BD188: -0.1586 | BE188: 0.0377 | BM188: 0.00204 | BN188: 17.6980
AY189: rs12248757 | AZ189: T | BA189: G | BB189: 0.1661 | BC189: 1.11686e-05 | BD189: 0.08466 | BE189: 0.01927 | BM189: 0.00199 | BN189: 19.3016
AY190: rs5790467 | AZ190: CAG | BA190: C | BB190: 0.9967 | BC190: 1.55597e-05 | BD190: 0.7154 | BE190: 0.1656 | BM190: 0.00337 | BN190: 18.6628
AY191: rs78671516 | AZ191: A | BA191: T | BB191: 0.008706 | BC191: 1.48936e-06 | BD191: -0.3975 | BE191: 0.08261 | BM191: 0.00273 | BN191: 23.1531
AY192: rs12803858 | AZ192: C | BA192: G | BB192: 0.01321 | BC192: 3.26588e-05 | BD192: 0.2627 | BE192: 0.06324 | BM192: 0.00180 | BN192: 17.2559
AY193: rs10897482 | AZ193: T | BA193: C | BB193: 0.5743 | BC193: 3.78443e-05 | BD193: -0.06046 | BE193: 0.01468 | BM193: 0.00179 | BN193: 16.9623
AY194: rs76415534 | AZ194: T | BA194: C | BB194: 0.0005285 | BC194: 4.75335e-05 | BD194: 2.386 | BE194: 0.5867 | BM194: 0.00601 | BN194: 16.5390
AY195: rs11828455 | AZ195: A | BA195: G | BB195: 0.0002558 | BC195: 4.35512e-05 | BD195: -3.91 | BE195: 0.9565 | BM195: 0.00782 | BN195: 16.7103
AY196: rs7101865 | AZ196: A | BA196: G | BB196: 0.1741 | BC196: 2.91743e-05 | BD196: 0.07969 | BE196: 0.01906 | BM196: 0.00183 | BN196: 17.4808
AY197: rs118063522 | AZ197: T | BA197: C | BB197: 0.007253 | BC197: 4.21697e-05 | BD197: -0.4144 | BE197: 0.1012 | BM197: 0.00247 | BN197: 16.7679
AY198: rs17097810 | AZ198: A | BA198: G | BB198: 0.001824 | BC198: 4.05509e-06 | BD198: -0.9078 | BE198: 0.197 | BM198: 0.00300 | BN198: 21.2348
AY199: rs145351766 | AZ199: C | BA199: CAGAGT | BB199: 0.009431 | BC199: 3.91742e-05 | BD199: 0.3595 | BE199: 0.08742 | BM199: 0.00241 | BN199: 16.9113
AY200: rs141846808 | AZ200: T | BA200: A | BB200: 0.001155 | BC200: 5.52077e-06 | BD200: -1.406 | BE200: 0.3093 | BM200: 0.00456 | BN200: 20.6638
... 101 more rows

Sheet EUR_HDLC
A1: 10¯⁸ | S1: 10¯⁷ | AK1: 10¯⁶ | BC1: 10¯⁵
A2: Exposure | H2: Outcome | O2: R^2 | P2: F | Q2: Mean F | R2: Median F | S2: Exposure | Z2: Outcome | AG2: R^2 | AH2: F | AI2: Mean F | AJ2: Median F | AK2: Exposure | AR2: Outcome | AY2: R^2 | AZ2: F | BA2: Mean F | BB2: Median F | BC2: Exposure | BJ2: Outcome | BQ2: R^2 | BR2: F | BS2: Mean F | BT2: Median F
A3: snp | B3: a1 | C3: a2 | D3: af | E3: p | F3: b | G3: bse | H3: snp | I3: a1 | J3: a2 | K3: af | L3: p | M3: b | N3: bse | S3: snp | T3: a1 | U3: a2 | V3: af | W3: p | X3: b | Y3: bse | Z3: snp | AA3: a1 | AB3: a2 | AC3: af | AD3: p | AE3: b | AF3: bse | AK3: snp | AL3: a1 | AM3: a2 | AN3: af | AO3: p | AP3: b | AQ3: bse | AR3: snp | AS3: a1 | AT3: a2 | AU3: af | AV3: p | AW3: b | AX3: bse | BC3: snp | BD3: a1 | BE3: a2 | BF3: af | BG3: p | BH3: b | BI3: bse | BJ3: snp | BK3: a1 | BL3: a2 | BM3: af | BN3: p | BO3: b | BP3: bse
A4: rs13303368 | B4: G | C4: C | D4: 0.409 | E4: 4.22e-13 | F4: 0.0110648 | G4: 0.00152652 | H4: rs2377037 | I4: A | J4: C | K4: 0.22243 | L4: 0.191699 | M4: 0.020443 | N4: 0.0156532 | O4: 0.00006 | P4: 52.5390 | Q4: =AVERAGE(P4:P866) -> 152.3349 | R4: =MEDIAN(P4:P866) -> 49.1038 | S4: rs13303368 | T4: G | U4: C | V4: 0.409 | W4: 4.22e-13 | X4: 0.0110648 | Y4: 0.00152652 | Z4: rs2377037 | AA4: A | AB4: C | AC4: 0.22243 | AD4: 0.191699 | AE4: 0.020443 | AF4: 0.0156532 | AG4: 0.00006 | AH4: 52.5390 | AI4: =AVERAGE(AH4:AH1080) -> 127.4988 | AJ4: =MEDIAN(AH4:AH1080) -> 41.1055 | AK4: rs13303368 | AL4: G | AM4: C | AN4: 0.409 | AO4: 4.22e-13 | AP4: 0.0110648 | AQ4: 0.00152652 | AR4: rs2377037 | AS4: A | AT4: C | AU4: 0.22243 | AV4: 0.191699 | AW4: 0.020443 | AX4: 0.0156532 | AY4: 0.00006 | AZ4: 52.5390 | BA4: =AVERAGE(AZ4:AZ1529) -> 96.7007 | BB4: =MEDIAN(AZ4:AZ1529) -> 32.4080 | BC4: rs13303368 | BD4: G | BE4: C | BF4: 0.409 | BG4: 4.22e-13 | BH4: 0.0110648 | BI4: 0.00152652 | BJ4: rs2377037 | BK4: A | BL4: C | BM4: 0.22243 | BN4: 0.191699 | BO4: 0.020443 | BP4: 0.0156532 | BQ4: 0.00006 | BR4: 52.5390 | BS4: =AVERAGE(BR4:BR2494) -> 66.3228 | BT4: =MEDIAN(BR4:BR2494) -> 23.2033
A5: rs2377037 | B5: A | C5: C | D5: 0.27 | E5: 5.74e-09 | F5: 0.00975633 | G5: 0.00167516 | H5: rs55775305 | I5: C | J5: G | K5: 0.8511 | L5: 0.119251 | M5: 0.0279161 | N5: 0.0179183 | O5: 0.00004 | P5: 33.9204 | S5: rs2377037 | T5: A | U5: C | V5: 0.27 | W5: 5.74e-09 | X5: 0.00975633 | Y5: 0.00167516 | Z5: rs55775305 | AA5: C | AB5: G | AC5: 0.8511 | AD5: 0.119251 | AE5: 0.0279161 | AF5: 0.0179183 | AG5: 0.00004 | AH5: 33.9204 | AK5: rs2377037 | AL5: A | AM5: C | AN5: 0.27 | AO5: 5.74e-09 | AP5: 0.00975633 | AQ5: 0.00167516 | AR5: rs55775305 | AS5: C | AT5: G | AU5: 0.8511 | AV5: 0.119251 | AW5: 0.0279161 | AX5: 0.0179183 | AY5: 0.00004 | AZ5: 33.9204 | BC5: rs2377037 | BD5: A | BE5: C | BF5: 0.27 | BG5: 5.74e-09 | BH5: 0.00975633 | BI5: 0.00167516 | BJ5: rs55775305 | BK5: C | BL5: G | BM5: 0.8511 | BN5: 0.119251 | BO5: 0.0279161 | BP5: 0.0179183 | BQ5: 0.00004 | BR5: 33.9204
A6: rs55775305 | B6: G | C6: C | D6: 0.17 | E6: 1.31e-11 | F6: -0.0126192 | G6: 0.00186465 | H6: rs6691831 | I6: A | J6: G | K6: 0.73265 | L6: 0.639155 | M6: 0.00624687 | N6: 0.0133161 | O6: 0.00004 | P6: 45.8004 | S6: rs55775305 | T6: G | U6: C | V6: 0.17 | W6: 1.31e-11 | X6: -0.0126192 | Y6: 0.00186465 | Z6: rs35724443 | AA6: C | AB6: T | AC6: 0.189 | AD6: 0.672814 | AE6: 0.00689608 | AF6: 0.0163169 | AG6: 0.00004 | AH6: 45.8004 | AK6: rs55775305 | AL6: G | AM6: C | AN6: 0.17 | AO6: 1.31e-11 | AP6: -0.0126192 | AQ6: 0.00186465 | AR6: rs35724443 | AS6: C | AT6: T | AU6: 0.189 | AV6: 0.672814 | AW6: 0.00689608 | AX6: 0.0163169 | AY6: 0.00004 | AZ6: 45.8004 | BC6: rs55775305 | BD6: G | BE6: C | BF6: 0.17 | BG6: 1.31e-11 | BH6: -0.0126192 | BI6: 0.00186465 | BJ6: rs12126476 | BK6: T | BL6: G | BM6: 0.14533 | BN6: 0.629354 | BO6: 0.0079204 | BP6: 0.0164034 | BQ6: 0.00004 | BR6: 45.8004
A7: rs6691831 | B7: G | C7: A | D7: 0.256 | E7: 4.34e-09 | F7: 0.00960729 | G7: 0.0016365 | H7: rs589942 | I7: G | J7: C | K7: 0.31184 | L7: 0.810902 | M7: 0.00308737 | N7: 0.0129121 | O7: 0.00004 | P7: 34.4643 | S7: rs35724443 | T7: C | U7: T | V7: 0.203 | W7: 1.27e-07 | X7: -0.00923875 | Y7: 0.00174857 | Z7: rs6691831 | AA7: A | AB7: G | AC7: 0.73265 | AD7: 0.639155 | AE7: 0.00624687 | AF7: 0.0133161 | AG7: 0.00003 | AH7: 27.9165 | AK7: rs35724443 | AL7: C | AM7: T | AN7: 0.203 | AO7: 1.27e-07 | AP7: -0.00923875 | AQ7: 0.00174857 | AR7: rs228682 | AS7: T | AT7: C | AU7: 0.60819 | AV7: 0.267369 | AW7: 0.0135036 | AX7: 0.0121763 | AY7: 0.00003 | AZ7: 27.9165 | BC7: rs12126476 | BD7: T | BE7: G | BF7: 0.132 | BG7: 4.96e-05 | BH7: -0.00822639 | BI7: 0.00202744 | BJ7: rs35724443 | BK7: C | BL7: T | BM7: 0.189 | BN7: 0.672814 | BO7: 0.00689608 | BP7: 0.0163169 | BQ7: 0.00002 | BR7: 16.4635
A8: rs589942 | B8: G | C8: C | D8: 0.328 | E8: 1.01e-12 | F8: -0.0104402 | G8: 0.00146455 | H8: rs11587362 | I8: T | J8: C | K8: 0.39606 | L8: 0.00863 | M8: 0.0324029 | N8: 0.012335 | O8: 0.00005 | P8: 50.8170 | S8: rs6691831 | T8: G | U8: A | V8: 0.256 | W8: 4.34e-09 | X8: 0.00960729 | Y8: 0.0016365 | Z8: rs3007727 | AA8: A | AB8: G | AC8: 0.20137 | AD8: 0.612025 | AE8: 0.0075453 | AF8: 0.0148742 | AG8: 0.00004 | AH8: 34.4643 | AK8: rs228682 | AL8: C | AM8: T | AN8: 0.398 | AO8: 2.69e-06 | AP8: -0.00662156 | AQ8: 0.00141085 | AR8: rs79412885 | AS8: A | AT8: G | AU8: 0.06309 | AV8: 0.529412 | AW8: 0.017673 | AX8: 0.0281037 | AY8: 0.00002 | AZ8: 22.0272 | BC8: rs544005713 | BD8: T | BE8: C | BF8: 6.41e-05 | BG8: 2.53e-05 | BH8: -0.771903 | BI8: 0.183257 | BJ8: rs228682 | BK8: T | BL8: C | BM8: 0.60819 | BN8: 0.267369 | BO8: 0.0135036 | BP8: 0.0121763 | BQ8: 0.00008 | BR8: 17.7421
A9: rs11587362 | B9: T | C9: C | D9: 0.365 | E9: 1.77e-10 | F9: 0.00925792 | G9: 0.00145104 | H9: rs10753556 | I9: G | J9: A | K9: 0.82703 | L9: 0.138794 | M9: 0.024194 | N9: 0.0163457 | O9: 0.00004 | P9: 40.7069 | S9: rs148729807 | T9: G | U9: T | V9: 0.0062 | W9: 1.54e-07 | X9: 0.050075 | Y9: 0.0095429 | Z9: rs589942 | AA9: G | AB9: C | AC9: 0.31184 | AD9: 0.810902 | AE9: 0.00308737 | AF9: 0.0129121 | AG9: 0.00003 | AH9: 27.5348 | AK9: rs79412885 | AL9: A | AM9: G | AN9: 0.0683 | AO9: 1.59e-06 | AP9: -0.0135319 | AQ9: 0.00281958 | AR9: rs114968182 | AS9: T | AT9: A | AU9: 0.86741 | AV9: 0.26212 | AW9: 0.0205296 | AX9: 0.0183078 | AY9: 0.00002 | AZ9: 23.0329 | BC9: rs35724443 | BD9: C | BE9: T | BF9: 0.203 | BG9: 1.27e-07 | BH9: -0.00923875 | BI9: 0.00174857 | BJ9: rs1763839 | BK9: A | BL9: G | BM9: 0.31287 | BN9: 0.217451 | BO9: 0.0158408 | BP9: 0.01284 | BQ9: 0.00003 | BR9: 27.9165
A10: rs10753556 | B10: A | C10: G | D10: 0.126 | E10: 3.92e-21 | F10: -0.019612 | G10: 0.0020787 | H10: rs55794721 | I10: G | J10: A | K10: 0.65124 | L10: 0.054953 | M10: 0.0375101 | N10: 0.0195341 | O10: 0.00008 | P10: 89.0144 | S10: rs3007727 | T10: A | U10: G | V10: 0.171 | W10: 3.85e-07 | X10: 0.00931881 | Y10: 0.0018357 | Z10: rs11587362 | AA10: T | AB10: C | AC10: 0.39606 | AD10: 0.00863 | AE10: 0.0324029 | AF10: 0.012335 | AG10: 0.00002 | AH10: 25.7702 | AK10: rs114968182 | AL10: A | AM10: T | AN10: 0.12 | AO10: 8.9e-07 | AP10: 0.0109593 | AQ10: 0.00223002 | AR10: rs6691831 | AS10: A | AT10: G | AU10: 0.73265 | AV10: 0.639155 | AW10: 0.00624687 | AX10: 0.0133161 | AY10: 0.00003 | AZ10: 24.1517 | BC10: rs228682 | BD10: C | BE10: T | BF10: 0.398 | BG10: 2.69e-06 | BH10: -0.00662156 | BI10: 0.00141085 | BJ10: rs79412885 | BK10: A | BL10: G | BM10: 0.06309 | BN10: 0.529412 | BO10: 0.017673 | BP10: 0.0281037 | BQ10: 0.00002 | BR10: 22.0272
A11: rs55794721 | B11: A | C11: G | D11: 0.388 | E11: 4.78e-08 | F11: 0.00834647 | G11: 0.0015289 | H11: rs113565903 | I11: T | J11: C | K11: 0.02598 | L11: 0.641546 | M11: 0.020039 | N11: 0.04305 | O11: 0.00003 | P11: 29.8021 | S11: rs589942 | T11: G | U11: C | V11: 0.328 | W11: 1.01e-12 | X11: -0.0104402 | Y11: 0.00146455 | Z11: rs10753556 | AA11: G | AB11: A | AC11: 0.82703 | AD11: 0.138794 | AE11: 0.024194 | AF11: 0.0163457 | AG11: 0.00005 | AH11: 50.8170 | AK11: rs6691831 | AL11: G | AM11: A | AN11: 0.256 | AO11: 4.34e-09 | AP11: 0.00960729 | AQ11: 0.0016365 | AR11: rs78097221 | AS11: A | AT11: C | AU11: 0.0554 | AV11: 0.443931 | AW11: 0.0192311 | AX11: 0.0251173 | AY11: 0.00004 | AZ11: 34.4643 | BC11: rs1763839 | BD11: A | BE11: G | BF11: 0.333 | BG11: 3.18e-05 | BH11: -0.00616601 | BI11: 0.00148204 | BJ11: rs114968182 | BK11: T | BL11: A | BM11: 0.86741 | BN11: 0.26212 | BO11: 0.0205296 | BP11: 0.0183078 | BQ11: 0.00002 | BR11: 17.3097
A12: rs113565903 | B12: T | C12: C | D12: 0.0258 | E12: 1.68e-11 | F12: -0.0299313 | G12: 0.00444655 | H12: rs75460349 | I12: C | J12: A | K12: 0.02356 | L12: 0.180479 | M12: 0.0559477 | N12: 0.0417804 | O12: 0.00005 | P12: 45.3111 | S12: rs11587362 | T12: T | U12: C | V12: 0.365 | W12: 1.77e-10 | X12: 0.00925792 | Y12: 0.00145104 | Z12: rs55794721 | AA12: G | AB12: A | AC12: 0.65124 | AD12: 0.054953 | AE12: 0.0375101 | AF12: 0.0195341 | AG12: 0.00004 | AH12: 40.7069 | AK12: rs78097221 | AL12: A | AM12: C | AN12: 0.0495 | AO12: 1.6e-06 | AP12: 0.0153972 | AQ12: 0.00320886 | AR12: rs2104038 | AS12: A | AT12: G | AU12: 0.7301 | AV12: 0.33656 | AW12: 0.0128688 | AX12: 0.0133882 | AY12: 0.00002 | AZ12: 23.0241 | BC12: rs79412885 | BD12: A | BE12: G | BF12: 0.0683 | BG12: 1.59e-06 | BH12: -0.0135319 | BI12: 0.00281958 | BJ12: rs6691831 | BK12: A | BL12: G | BM12: 0.73265 | BN12: 0.639155 | BO12: 0.00624687 | BP12: 0.0133161 | BQ12: 0.00002 | BR12: 23.0329
A13: rs75460349 | B13: C | C13: A | D13: 0.0237 | E13: 4.17e-84 | F13: -0.0872946 | G13: 0.0044924 | H13: rs41309280 | I13: T | J13: C | K13: 0.0353 | L13: 0.403642 | M13: 0.030412 | N13: 0.036428 | O13: 0.00035 | P13: 377.5878 | S13: rs10753556 | T13: A | U13: G | V13: 0.126 | W13: 3.92e-21 | X13: -0.019612 | Y13: 0.0020787 | Z13: rs113565903 | AA13: T | AB13: C | AC13: 0.02598 | AD13: 0.641546 | AE13: 0.020039 | AF13: 0.04305 | AG13: 0.00008 | AH13: 89.0144 | AK13: rs148729807 | AL13: G | AM13: T | AN13: 0.0062 | AO13: 1.54e-07 | AP13: 0.050075 | AQ13: 0.0095429 | AR13: rs3007727 | AS13: A | AT13: G | AU13: 0.20137 | AV13: 0.612025 | AW13: 0.0075453 | AX13: 0.0148742 | AY13: 0.00003 | AZ13: 27.5348 | BC13: rs114968182 | BD13: A | BE13: T | BF13: 0.12 | BG13: 8.9e-07 | BH13: 0.0109593 | BI13: 0.00223002 | BJ13: rs78097221 | BK13: A | BL13: C | BM13: 0.0554 | BN13: 0.443931 | BO13: 0.0192311 | BP13: 0.0251173 | BQ13: 0.00003 | BR13: 24.1517
A14: rs41309280 | B14: T | C14: C | D14: 0.0369 | E14: 1.41e-15 | F14: -0.0301971 | G14: 0.00378208 | H14: rs546355 | I14: T | J14: C | K14: 0.68148 | L14: 0.688016 | M14: 0.00502058 | N14: 0.0124937 | O14: 0.00006 | P14: 63.7484 | S14: rs202171183 | T14: G | U14: A | V14: 0.00248 | W14: 1.26e-07 | X14: 0.0840048 | Y14: 0.0158971 | Z14: rs75460349 | AA14: C | AB14: A | AC14: 0.02356 | AD14: 0.180479 | AE14: 0.0559477 | AF14: 0.0417804 | AG14: 0.00003 | AH14: 27.9237 | AK14: rs2104038 | AL14: G | AM14: A | AN14: 0.275 | AO14: 3.25e-06 | AP14: -0.00722548 | AQ14: 0.00155251 | AR14: rs589942 | AS14: G | AT14: C | AU14: 0.31184 | AV14: 0.810902 | AW14: 0.00308737 | AX14: 0.0129121 | AY14: 0.00002 | AZ14: 21.6603 | BC14: rs6691831 | BD14: G | BE14: A | BF14: 0.256 | BG14: 4.34e-09 | BH14: 0.00960729 | BI14: 0.0016365 | BJ14: rs2104038 | BK14: A | BL14: G | BM14: 0.7301 | BN14: 0.33656 | BO14: 0.0128688 | BP14: 0.0133882 | BQ14: 0.00004 | BR14: 34.4643
A15: rs546355 | B15: C | C15: T | D15: 0.312 | E15: 8.77e-18 | F15: -0.0127904 | G15: 0.00148915 | H15: rs74886915 | I15: C | J15: CAT | K15: 0.07664 | L15: 0.799618 | M15: 0.00545339 | N15: 0.0214529 | O15: 0.00007 | P15: 73.7720 | S15: rs55794721 | T15: A | U15: G | V15: 0.388 | W15: 4.78e-08 | X15: 0.00834647 | Y15: 0.0015289 | Z15: rs41309280 | AA15: T | AB15: C | AC15: 0.0353 | AD15: 0.403642 | AE15: 0.030412 | AF15: 0.036428 | AG15: 0.00003 | AH15: 29.8021 | AK15: rs3007727 | AL15: A | AM15: G | AN15: 0.171 | AO15: 3.85e-07 | AP15: 0.00931881 | AQ15: 0.0018357 | AR15: rs11587362 | AS15: T | AT15: C | AU15: 0.39606 | AV15: 0.00863 | AW15: 0.0324029 | AX15: 0.012335 | AY15: 0.00002 | AZ15: 25.7702 | BC15: rs78097221 | BD15: A | BE15: C | BF15: 0.0495 | BG15: 1.6e-06 | BH15: 0.0153972 | BI15: 0.00320886 | BJ15: rs3007727 | BK15: A | BL15: G | BM15: 0.20137 | BN15: 0.612025 | BO15: 0.0075453 | BP15: 0.0148742 | BQ15: 0.00002 | BR15: 23.0241
A16: rs59091385 | B16: C | C16: CAT | D16: 0.0692 | E16: 3.12e-09 | F16: -0.0180387 | G16: 0.00304455 | H16: rs4660446 | I16: C | J16: T | K16: 0.59705 | L16: 0.515774 | M16: 0.00833878 | N16: 0.0128256 | O16: 0.00004 | P16: 35.1046 | S16: rs113565903 | T16: T | U16: C | V16: 0.0258 | W16: 1.68e-11 | X16: -0.0299313 | Y16: 0.00444655 | Z16: rs546355 | AA16: T | AB16: C | AC16: 0.68148 | AD16: 0.688016 | AE16: 0.00502058 | AF16: 0.0124937 | AG16: 0.00005 | AH16: 45.3111 | AK16: rs529140485 | AL16: T | AM16: C | AN16: 0.000958 | AO16: 8.26e-07 | AP16: -0.306524 | AQ16: 0.0621869 | AR16: rs10753556 | AS16: G | AT16: A | AU16: 0.82703 | AV16: 0.138794 | AW16: 0.024194 | AX16: 0.0163457 | AY16: 0.00018 | AZ16: 24.2958 | BC16: rs148729807 | BD16: G | BE16: T | BF16: 0.0062 | BG16: 1.54e-07 | BH16: 0.050075 | BI16: 0.0095429 | BJ16: rs589942 | BK16: G | BL16: C | BM16: 0.31184 | BN16: 0.810902 | BO16: 0.00308737 | BP16: 0.0129121 | BQ16: 0.00003 | BR16: 27.5348
A17: rs4660446 | B17: T | C17: C | D17: 0.344 | E17: 3e-16 | F17: 0.0123102 | G17: 0.00150611 | H17: rs3768321 | I17: T | J17: G | K17: 0.17563 | L17: 0.028196 | M17: 0.0352595 | N17: 0.0160572 | O17: 0.00007 | P17: 66.8062 | S17: rs75460349 | T17: C | U17: A | V17: 0.0237 | W17: 4.17e-84 | X17: -0.0872946 | Y17: 0.0044924 | Z17: rs74886915 | AA17: C | AB17: CAT | AC17: 0.07664 | AD17: 0.799618 | AE17: 0.00545339 | AF17: 0.0214529 | AG17: 0.00035 | AH17: 377.5878 | AK17: rs589942 | AL17: G | AM17: C | AN17: 0.328 | AO17: 1.01e-12 | AP17: -0.0104402 | AQ17: 0.00146455 | AR17: rs55794721 | AS17: G | AT17: A | AU17: 0.65124 | AV17: 0.054953 | AW17: 0.0375101 | AX17: 0.0195341 | AY17: 0.00005 | AZ17: 50.8170 | BC17: rs545848433 | BD17: A | BE17: G | BF17: 0.00112 | BG17: 4.96e-05 | BH17: -0.111108 | BI17: 0.0273824 | BJ17: rs11587362 | BK17: T | BL17: C | BM17: 0.39606 | BN17: 0.00863 | BO17: 0.0324029 | BP17: 0.012335 | BQ17: 0.00003 | BR17: 16.4645
A18: rs3768321 | B18: T | C18: G | D18: 0.193 | E18: 3.83e-138 | F18: -0.0443841 | G18: 0.00177404 | H18: rs12145217 | I18: T | J18: A | K18: 0.43545 | L18: 0.032165 | M18: 0.0254491 | N18: 0.0118734 | O18: 0.00061 | P18: 625.9332 | S18: rs41309280 | T18: T | U18: C | V18: 0.0369 | W18: 1.41e-15 | X18: -0.0301971 | Y18: 0.00378208 | Z18: rs4660446 | AA18: C | AB18: T | AC18: 0.59705 | AD18: 0.515774 | AE18: 0.00833878 | AF18: 0.0128256 | AG18: 0.00006 | AH18: 63.7484 | AK18: rs11587362 | AL18: T | AM18: C | AN18: 0.365 | AO18: 1.77e-10 | AP18: 0.00925792 | AQ18: 0.00145104 | AR18: rs113565903 | AS18: T | AT18: C | AU18: 0.02598 | AV18: 0.641546 | AW18: 0.020039 | AX18: 0.04305 | AY18: 0.00004 | AZ18: 40.7069 | BC18: rs2104038 | BD18: G | BE18: A | BF18: 0.275 | BG18: 3.25e-06 | BH18: -0.00722548 | BI18: 0.00155251 | BJ18: rs10753556 | BK18: G | BL18: A | BM18: 0.82703 | BN18: 0.138794 | BO18: 0.024194 | BP18: 0.0163457 | BQ18: 0.00002 | BR18: 21.6603
A19: rs12145217 | B19: T | C19: A | D19: 0.453 | E19: 3.68e-09 | F19: -0.00813822 | G19: 0.00137988 | H19: rs9437006 | I19: T | J19: C | K19: 0.1209 | L19: 2.92e-08 | M19: 0.101753 | N19: 0.0183367 | O19: 0.00003 | P19: 34.7837 | S19: rs546355 | T19: C | U19: T | V19: 0.312 | W19: 8.77e-18 | X19: -0.0127904 | Y19: 0.00148915 | Z19: rs3768321 | AA19: T | AB19: G | AC19: 0.17563 | AD19: 0.028196 | AE19: 0.0352595 | AF19: 0.0160572 | AG19: 0.00007 | AH19: 73.7720 | AK19: rs10753556 | AL19: A | AM19: G | AN19: 0.126 | AO19: 3.92e-21 | AP19: -0.019612 | AQ19: 0.0020787 | AR19: rs75460349 | AS19: C | AT19: A | AU19: 0.02356 | AV19: 0.180479 | AW19: 0.0559477 | AX19: 0.0417804 | AY19: 0.00008 | AZ19: 89.0144 | BC19: rs542508589 | BD19: T | BE19: G | BF19: 0.00415 | BG19: 2.7e-05 | BH19: 0.0785234 | BI19: 0.0187078 | BJ19: rs55794721 | BK19: G | BL19: A | BM19: 0.65124 | BN19: 0.054953 | BO19: 0.0375101 | BP19: 0.0195341 | BQ19: 0.00005 | BR19: 17.6178
A20: rs9437006 | B20: T | C20: C | D20: 0.126 | E20: 2.22e-12 | F20: -0.0146193 | G20: 0.00208251 | H20: rs142629567 | I20: G | J20: C | K20: 0.06631 | L20: 0.571628 | M20: 0.0139076 | N20: 0.0245835 | O20: 0.00005 | P20: 49.2809 | S20: rs59091385 | T20: C | U20: CAT | V20: 0.0692 | W20: 3.12e-09 | X20: -0.0180387 | Y20: 0.00304455 | Z20: rs12145217 | AA20: T | AB20: A | AC20: 0.43545 | AD20: 0.032165 | AE20: 0.0254491 | AF20: 0.0118734 | AG20: 0.00004 | AH20: 35.1046 | AK20: rs202171183 | AL20: G | AM20: A | AN20: 0.00248 | AO20: 1.26e-07 | AP20: 0.0840048 | AQ20: 0.0158971 | AR20: rs41309280 | AS20: T | AT20: C | AU20: 0.0353 | AV20: 0.403642 | AW20: 0.030412 | AX20: 0.036428 | AY20: 0.00003 | AZ20: 27.9237 | BC20: rs536225740 | BD20: G | BE20: A | BF20: 0.0002 | BG20: 1.96e-05 | BH20: -0.483677 | BI20: 0.11328 | BJ20: rs113565903 | BK20: T | BL20: C | BM20: 0.02598 | BN20: 0.641546 | BO20: 0.020039 | BP20: 0.04305 | BQ20: 0.00009 | BR20: 18.2307
A21: rs142629567 | B21: G | C21: C | D21: 0.0764 | E21: 4.14e-10 | F21: 0.0161708 | G21: 0.00258796 | H21: rs12140153 | I21: G | J21: T | K21: 0.90573 | L21: 0.231172 | M21: 0.0297484 | N21: 0.0248432 | O21: 0.00004 | P21: 39.0434 | S21: rs4660446 | T21: T | U21: C | V21: 0.344 | W21: 3e-16 | X21: 0.0123102 | Y21: 0.00150611 | Z21: rs7520981 | AA21: C | AB21: T | AC21: 0.35499 | AD21: 0.022818 | AE21: 0.0297339 | AF21: 0.0130564 | AG21: 0.00007 | AH21: 66.8062 | AK21: rs55794721 | AL21: A | AM21: G | AN21: 0.388 | AO21: 4.78e-08 | AP21: 0.00834647 | AQ21: 0.0015289 | AR21: rs546355 | AS21: T | AT21: C | AU21: 0.68148 | AV21: 0.688016 | AW21: 0.00502058 | AX21: 0.0124937 | AY21: 0.00003 | AZ21: 29.8021 | BC21: rs3007727 | BD21: A | BE21: G | BF21: 0.171 | BG21: 3.85e-07 | BH21: 0.00931881 | BI21: 0.0018357 | BJ21: rs75460349 | BK21: C | BL21: A | BM21: 0.02356 | BN21: 0.180479 | BO21: 0.0559477 | BP21: 0.0417804 | BQ21: 0.00002 | BR21: 25.7702
A22: rs12140153 | B22: T | C22: G | D22: 0.0914 | E22: 1.2e-14 | F22: 0.019101 | G22: 0.00247539 | H22: rs1168124 | I22: T | J22: C | K22: 0.6353 | L22: 0.184334 | M22: 0.0163457 | N22: 0.0123206 | O22: 0.00006 | P22: 59.5422 | S22: rs3768321 | T22: T | U22: G | V22: 0.193 | W22: 3.83e-138 | X22: -0.0443841 | Y22: 0.00177404 | Z22: rs9437006 | AA22: T | AB22: C | AC22: 0.1209 | AD22: 2.92e-08 | AE22: 0.101753 | AF22: 0.0183367 | AG22: 0.00061 | AH22: 625.9332 | AK22: rs113565903 | AL22: T | AM22: C | AN22: 0.0258 | AO22: 1.68e-11 | AP22: -0.0299313 | AQ22: 0.00444655 | AR22: rs74886915 | AS22: C | AT22: CAT | AU22: 0.07664 | AV22: 0.799618 | AW22: 0.00545339 | AX22: 0.0214529 | AY22: 0.00005 | AZ22: 45.3111 | BC22: rs529140485 | BD22: T | BE22: C | BF22: 0.000958 | BG22: 8.26e-07 | BH22: -0.306524 | BI22: 0.0621869 | BJ22: rs41309280 | BK22: T | BL22: C | BM22: 0.0353 | BN22: 0.403642 | BO22: 0.030412 | BP22: 0.036428 | BQ22: 0.00018 | BR22: 24.2958
A23: rs1168124 | B23: C | C23: T | D23: 0.337 | E23: 1.46e-16 | F23: -0.0122399 | G23: 0.00148193 | H23: rs6663226 | I23: A | J23: T | K23: 0.63112 | L23: 0.877672 | M23: 0.00191878 | N23: 0.0125082 | O23: 0.00007 | P23: 68.2182 | S23: rs12145217 | T23: T | U23: A | V23: 0.453 | W23: 3.68e-09 | X23: -0.00813822 | Y23: 0.00137988 | Z23: rs142629567 | AA23: G | AB23: C | AC23: 0.06631 | AD23: 0.571628 | AE23: 0.0139076 | AF23: 0.0245835 | AG23: 0.00003 | AH23: 34.7837 | AK23: rs75460349 | AL23: C | AM23: A | AN23: 0.0237 | AO23: 4.17e-84 | AP23: -0.0872946 | AQ23: 0.0044924 | AR23: rs114098493 | AS23: C | AT23: T | AU23: 0.02944 | AV23: 0.768061 | AW23: 0.0122341 | AX23: 0.0415063 | AY23: 0.00035 | AZ23: 377.5878 | BC23: rs589942 | BD23: G | BE23: C | BF23: 0.328 | BG23: 1.01e-12 | BH23: -0.0104402 | BI23: 0.00146455 | BJ23: rs546355 | BK23: T | BL23: C | BM23: 0.68148 | BN23: 0.688016 | BO23: 0.00502058 | BP23: 0.0124937 | BQ23: 0.00005 | BR23: 50.8170
A24: rs6663226 | B24: T | C24: A | D24: 0.36 | E24: 3.12e-13 | F24: 0.010488 | G24: 0.0014389 | H24: rs650194 | I24: A | J24: G | K24: 0.34581 | L24: 0.159583 | M24: 0.0173556 | N24: 0.012335 | O24: 0.00005 | P24: 53.1281 | S24: rs7520981 | T24: C | U24: T | V24: 0.378 | W24: 1.4e-07 | X24: -0.0079013 | Y24: 0.0015007 | Z24: rs12140153 | AA24: G | AB24: T | AC24: 0.90573 | AD24: 0.231172 | AE24: 0.0297484 | AF24: 0.0248432 | AG24: 0.00003 | AH24: 27.7210 | AK24: rs41309280 | AL24: T | AM24: C | AN24: 0.0369 | AO24: 1.41e-15 | AP24: -0.0301971 | AQ24: 0.00378208 | AR24: rs4660446 | AS24: C | AT24: T | AU24: 0.59705 | AV24: 0.515774 | AW24: 0.00833878 | AX24: 0.0128256 | AY24: 0.00006 | AZ24: 63.7484 | BC24: rs11587362 | BD24: T | BE24: C | BF24: 0.365 | BG24: 1.77e-10 | BH24: 0.00925792 | BI24: 0.00145104 | BJ24: rs144619003 | BK24: G | BL24: A | BM24: 0.97944 | BN24: 0.573658 | BO24: 0.0279017 | BP24: 0.049571 | BQ24: 0.00004 | BR24: 40.7069
A25: rs650194 | B25: A | C25: G | D25: 0.338 | E25: 8.24e-15 | F25: -0.0114281 | G25: 0.00147198 | H25: rs2613496 | I25: C | J25: T | K25: 0.81102 | L25: 0.002284 | M25: 0.0502346 | N25: 0.0164612 | O25: 0.00006 | P25: 60.2760 | S25: rs9437006 | T25: T | U25: C | V25: 0.126 | W25: 2.22e-12 | X25: -0.0146193 | Y25: 0.00208251 | Z25: rs1168124 | AA25: T | AB25: C | AC25: 0.6353 | AD25: 0.184334 | AE25: 0.0163457 | AF25: 0.0123206 | AG25: 0.00005 | AH25: 49.2809 | AK25: rs546355 | AL25: C | AM25: T | AN25: 0.312 | AO25: 8.77e-18 | AP25: -0.0127904 | AQ25: 0.00148915 | AR25: rs3768321 | AS25: T | AT25: G | AU25: 0.17563 | AV25: 0.028196 | AW25: 0.0352595 | AX25: 0.0160572 | AY25: 0.00007 | AZ25: 73.7720 | BC25: rs10753556 | BD25: A | BE25: G | BF25: 0.126 | BG25: 3.92e-21 | BH25: -0.019612 | BI25: 0.0020787 | BJ25: rs74886915 | BK25: C | BL25: CAT | BM25: 0.07664 | BN25: 0.799618 | BO25: 0.00545339 | BP25: 0.0214529 | BQ25: 0.00008 | BR25: 89.0144
A26: rs2613496 | B26: T | C26: C | D26: 0.184 | E26: 3.52e-15 | F26: 0.0141294 | G26: 0.0017951 | H26: rs17413959 | I26: A | J26: G | K26: 0.86369 | L26: 0.895471 | M26: 0.00236602 | N26: 0.0179616 | O26: 0.00006 | P26: 61.9541 | S26: rs142629567 | T26: G | U26: C | V26: 0.0764 | W26: 4.14e-10 | X26: 0.0161708 | Y26: 0.00258796 | Z26: rs6663226 | AA26: A | AB26: T | AC26: 0.63112 | AD26: 0.877672 | AE26: 0.00191878 | AF26: 0.0125082 | AG26: 0.00004 | AH26: 39.0434 | AK26: rs59091385 | AL26: C | AM26: CAT | AN26: 0.0692 | AO26: 3.12e-09 | AP26: -0.0180387 | AQ26: 0.00304455 | AR26: rs12145217 | AS26: T | AT26: A | AU26: 0.43545 | AV26: 0.032165 | AW26: 0.0254491 | AX26: 0.0118734 | AY26: 0.00004 | AZ26: 35.1046 | BC26: rs202171183 | BD26: G | BE26: A | BF26: 0.00248 | BG26: 1.26e-07 | BH26: 0.0840048 | BI26: 0.0158971 | BJ26: rs360511 | BK26: G | BL26: A | BM26: 0.93219 | BN26: 0.559582 | BO26: 0.0159995 | BP26: 0.0274256 | BQ26: 0.00003 | BR26: 27.9237
A27: rs17413959 | B27: G | C27: A | D27: 0.141 | E27: 1.25e-08 | F27: -0.0114942 | G27: 0.00201905 | H27: rs11161570 | I27: T | J27: C | K27: 0.48893 | L27: 0.524989 | M27: 0.00741545 | N27: 0.0116714 | O27: 0.00003 | P27: 32.4088 | S27: rs12140153 | T27: T | U27: G | V27: 0.0914 | W27: 1.2e-14 | X27: 0.019101 | Y27: 0.00247539 | Z27: rs650194 | AA27: A | AB27: G | AC27: 0.34581 | AD27: 0.159583 | AE27: 0.0173556 | AF27: 0.012335 | AG27: 0.00006 | AH27: 59.5422 | AK27: rs114098493 | AL27: C | AM27: T | AN27: 0.0292 | AO27: 5.49e-07 | AP27: 0.0221848 | AQ27: 0.00442971 | AR27: rs7520981 | AS27: C | AT27: T | AU27: 0.35499 | AV27: 0.022818 | AW27: 0.0297339 | AX27: 0.0130564 | AY27: 0.00003 | AZ27: 25.0819 | BC27: rs55794721 | BD27: A | BE27: G | BF27: 0.388 | BG27: 4.78e-08 | BH27: 0.00834647 | BI27: 0.0015289 | BJ27: rs1108928 | BK27: C | BL27: G | BM27: 0.4861 | BN27: 0.342773 | BO27: 0.0112674 | BP27: 0.0118734 | BQ27: 0.00003 | BR27: 29.8021
A28: rs11161570 | B28: T | C28: C | D28: 0.499 | E28: 5.88e-11 | F28: 0.0090078 | G28: 0.00137593 | H28: rs12089815 | I28: G | J28: A | K28: 0.4558 | L28: 0.05177 | M28: 0.0231841 | N28: 0.0119167 | O28: 0.00004 | P28: 42.8593 | S28: rs1168124 | T28: C | U28: T | V28: 0.337 | W28: 1.46e-16 | X28: -0.0122399 | Y28: 0.00148193 | Z28: rs12142367 | AA28: G | AB28: C | AC28: 0.101 | AD28: 0.236556 | AE28: 0.0241074 | AF28: 0.0203709 | AG28: 0.00007 | AH28: 68.2182 | AK28: rs4660446 | AL28: T | AM28: C | AN28: 0.344 | AO28: 3e-16 | AP28: 0.0123102 | AQ28: 0.00150611 | AR28: rs61771075 | AS28: C | AT28: A | AU28: 0.86492 | AV28: 0.434853 | AW28: 0.0144558 | AX28: 0.0185098 | AY28: 0.00007 | AZ28: 66.8062 | BC28: rs113565903 | BD28: T | BE28: C | BF28: 0.0258 | BG28: 1.68e-11 | BH28: -0.0299313 | BI28: 0.00444655 | BJ28: rs114098493 | BK28: C | BL28: T | BM28: 0.02944 | BN28: 0.768061 | BO28: 0.0122341 | BP28: 0.0415063 | BQ28: 0.00005 | BR28: 45.3111
A29: rs138805281 | B29: A | C29: T | D29: 0.0137 | E29: 3.88e-09 | F29: -0.0370068 | G29: 0.0062839 | H29: rs4847419 | I29: A | J29: T | K29: 0.61848 | L29: 0.918411 | M29: 0.00124072 | N29: 0.0121186 | O29: 0.00004 | P29: 34.6820 | S29: rs6663226 | T29: T | U29: A | V29: 0.36 | W29: 3.12e-13 | X29: 0.010488 | Y29: 0.0014389 | Z29: rs2613496 | AA29: C | AB29: T | AC29: 0.81102 | AD29: 0.002284 | AE29: 0.0502346 | AF29: 0.0164612 | AG29: 0.00005 | AH29: 53.1281 | AK29: rs3768321 | AL29: T | AM29: G | AN29: 0.193 | AO29: 3.83e-138 | AP29: -0.0443841 | AQ29: 0.00177404 | AR29: rs12410307 | AS29: A | AT29: G | AU29: 0.08438 | AV29: 0.35304 | AW29: 0.0208037 | AX29: 0.0224051 | AY29: 0.00061 | AZ29: 625.9332 | BC29: rs75460349 | BD29: C | BE29: A | BF29: 0.0237 | BG29: 4.17e-84 | BH29: -0.0872946 | BI29: 0.0044924 | BJ29: rs4660446 | BK29: C | BL29: T | BM29: 0.59705 | BN29: 0.515774 | BO29: 0.00833878 | BP29: 0.0128256 | BQ29: 0.00035 | BR29: 377.5878
A30: rs12089815 | B30: G | C30: A | D30: 0.463 | E30: 2.81e-08 | F30: -0.0077441 | G30: 0.00139468 | H30: rs113329442 | I30: G | J30: A | K30: 0.32826 | L30: 0.092915 | M30: 0.0211499 | N30: 0.0125803 | O30: 0.00003 | P30: 30.8314 | S30: rs650194 | T30: A | U30: G | V30: 0.338 | W30: 8.24e-15 | X30: -0.0114281 | Y30: 0.00147198 | Z30: rs17413959 | AA30: A | AB30: G | AC30: 0.86369 | AD30: 0.895471 | AE30: 0.00236602 | AF30: 0.0179616 | AG30: 0.00006 | AH30: 60.2760 | AK30: rs566583281 | AL30: T | AM30: C | AN30: 0.000941 | AO30: 2.06e-06 | AP30: -0.155743 | AQ30: 0.0328059 | AR30: rs79010065 | AS30: A | AT30: C | AU30: 0.95363 | AV30: 0.036507 | AW30: 0.0626562 | AX30: 0.0299503 | AY30: 0.00005 | AZ30: 22.5379 | BC30: rs41309280 | BD30: T | BE30: C | BF30: 0.0369 | BG30: 1.41e-15 | BH30: -0.0301971 | BI30: 0.00378208 | BJ30: rs3768321 | BK30: T | BL30: G | BM30: 0.17563 | BN30: 0.028196 | BO30: 0.0352595 | BP30: 0.0160572 | BQ30: 0.00006 | BR30: 63.7484
A31: rs4847419 | B31: T | C31: A | D31: 0.362 | E31: 1.7e-71 | F31: 0.0258976 | G31: 0.00144843 | H31: rs111751551 | I31: G | J31: A | K31: 0.98947 | L31: 0.000468 | M31: 0.213735 | N31: 0.0610693 | O31: 0.00031 | P31: 319.6863 | S31: rs12142367 | T31: G | U31: C | V31: 0.104 | W31: 2.55e-07 | X31: -0.0118339 | Y31: 0.0022962 | Z31: rs11161570 | AA31: T | AB31: C | AC31: 0.48893 | AD31: 0.524989 | AE31: 0.00741545 | AF31: 0.0116714 | AG31: 0.00003 | AH31: 26.5605 | AK31: rs12145217 | AL31: T | AM31: A | AN31: 0.453 | AO31: 3.68e-09 | AP31: -0.00813822 | AQ31: 0.00137988 | AR31: rs385111 | AS31: G | AT31: A | AU31: 0.62272 | AV31: 0.252351 | AW31: 0.0146289 | AX31: 0.0127823 | AY31: 0.00003 | AZ31: 34.7837 | BC31: rs546355 | BD31: C | BE31: T | BF31: 0.312 | BG31: 8.77e-18 | BH31: -0.0127904 | BI31: 0.00148915 | BJ31: rs55669129 | BK31: G | BL31: A | BM31: 0.39218 | BN31: 0.896362 | BO31: 0.00158696 | BP31: 0.0121331 | BQ31: 0.00007 | BR31: 73.7720
A32: rs113329442 | B32: G | C32: A | D32: 0.329 | E32: 6.88e-10 | F32: -0.00917482 | G32: 0.00148731 | H32: rs646776 | I32: T | J32: C | K32: 0.78036 | L32: 1.09e-23 | M32: 0.158206 | N32: 0.0157542 | O32: 0.00004 | P32: 38.0533 | S32: rs2613496 | T32: T | U32: C | V32: 0.184 | W32: 3.52e-15 | X32: 0.0141294 | Y32: 0.0017951 | Z32: rs184603761 | AA32: A | AB32: G | AC32: 0.00689 | AD32: 0.307398 | AE32: 0.0962133 | AF32: 0.0942657 | AG32: 0.00006 | AH32: 61.9541 | AK32: rs7520981 | AL32: C | AM32: T | AN32: 0.378 | AO32: 1.4e-07 | AP32: -0.0079013 | AQ32: 0.0015007 | AR32: rs213479 | AS32: G | AT32: T | AU32: 0.53644 | AV32: 0.561993 | AW32: 0.00702592 | AX32: 0.0121042 | AY32: 0.00003 | AZ32: 27.7210 | BC32: rs144619003 | BD32: A | BE32: G | BF32: 0.0168 | BG32: 9.94e-06 | BH32: -0.0250825 | BI32: 0.00567675 | BJ32: rs12145217 | BK32: T | BL32: A | BM32: 0.43545 | BN32: 0.032165 | BO32: 0.0254491 | BP32: 0.0118734 | BQ32: 0.00002 | BR32: 19.5228
A33: rs111751551 | B33: A | C33: G | D33: 0.0101 | E33: 1.75e-09 | F33: 0.0417235 | G33: 0.00693109 | H33: rs333947 | I33: A | J33: G | K33: 0.16357 | L33: 0.928358 | M33: 0.00139941 | N33: 0.0155234 | O33: 0.00003 | P33: 36.2375 | S33: rs17413959 | T33: G | U33: A | V33: 0.141 | W33: 1.25e-08 | X33: -0.0114942 | Y33: 0.00201905 | Z33: rs12089815 | AA33: G | AB33: A | AC33: 0.4558 | AD33: 0.05177 | AE33: 0.0231841 | AF33: 0.0119167 | AG33: 0.00003 | AH33: 32.4088 | AK33: rs61771075 | AL33: A | AM33: C | AN33: 0.15 | AO33: 1.11e-06 | AP33: 0.00946781 | AQ33: 0.00194371 | AR33: rs9437006 | AS33: T | AT33: C | AU33: 0.1209 | AV33: 2.92e-08 | AW33: 0.101753 | AX33: 0.0183367 | AY33: 0.00002 | AZ33: 23.7266 | BC33: rs1011720506 | BD33: C | BE33: G | BF33: 5.77e-05 | BG33: 2.76e-05 | BH33: -0.817808 | BI33: 0.195058 | BJ33: rs7520981 | BK33: C | BL33: T | BM33: 0.35499 | BN33: 0.022818 | BO33: 0.0297339 | BP33: 0.0130564 | BQ33: 0.00008 | BR33: 17.5782
A34: rs646776 | B34: C | C34: T | D34: 0.22 | E34: 5.71e-98 | F34: 0.0346789 | G34: 0.00165086 | H34: rs12033257 | I34: G | J34: A | K34: 0.39285 | L34: 0.684535 | M34: 0.00504943 | N34: 0.0124505 | O34: 0.00041 | P34: 441.2758 | S34: rs11161570 | T34: T | U34: C | V34: 0.499 | W34: 5.88e-11 | X34: 0.0090078 | Y34: 0.00137593 | Z34: rs4847419 | AA34: A | AB34: T | AC34: 0.61848 | AD34: 0.918411 | AE34: 0.00124072 | AF34: 0.0121186 | AG34: 0.00004 | AH34: 42.8593 | AK34: rs12410307 | AL34: A | AM34: G | AN34: 0.0904 | AO34: 1.63e-06 | AP34: 0.0115193 | AQ34: 0.00240255 | AR34: rs548897 | AS34: G | AT34: A | AU34: 0.57841 | AV34: 0.283421 | AW34: 0.0129121 | AX34: 0.0120465 | AY34: 0.00002 | AZ34: 22.9883 | BC34: rs59091385 | BD34: C | BE34: CAT | BF34: 0.0692 | BG34: 3.12e-09 | BH34: -0.0180387 | BI34: 0.00304455 | BJ34: rs61771075 | BK34: C | BL34: A | BM34: 0.86492 | BN34: 0.434853 | BO34: 0.0144558 | BP34: 0.0185098 | BQ34: 0.00004 | BR34: 35.1046
A35: rs333947 | B35: A | C35: G | D35: 0.15 | E35: 7.3e-42 | F35: -0.0267442 | G35: 0.00197286 | H35: rs72692851 | I35: C | J35: G | K35: 0.92013 | L35: 0.449325 | M35: 0.0183222 | N35: 0.0242228 | O35: 0.00018 | P35: 183.7666 | S35: rs184603761 | T35: A | U35: G | V35: 0.00473 | W35: 4.71e-07 | X35: -0.0578823 | Y35: 0.01149 | Z35: rs355364 | AA35: G | AB35: A | AC35: 0.64046 | AD35: 0.435108 | AE35: 0.00947851 | AF35: 0.0121475 | AG35: 0.00003 | AH35: 25.3777 | AK35: rs191681275 | AL35: T | AM35: G | AN35: 0.000801 | AO35: 2.5e-06 | AP35: -0.182951 | AQ35: 0.0388565 | AR35: rs12041278 | AS35: T | AT35: A | AU35: 0.19974 | AV35: 0.001373 | AW35: 0.0469164 | AX35: 0.0146578 | AY35: 0.00005 | AZ35: 22.1688 | BC35: rs774120561 | BD35: A | BE35: G | BF35: 0.000466 | BG35: 3.49e-05 | BH35: -0.208152 | BI35: 0.0502947 | BJ35: rs141087325 | BK35: TTATTAAA | BL35: T | BM35: 0.65646 | BN35: 0.243411 | BO35: 0.0151772 | BP35: 0.0130131 | BQ35: 0.00004 | BR35: 17.1284
A36: rs12033257 | B36: G | C36: A | D36: 0.382 | E36: 3.26e-09 | F36: 0.00862025 | G36: 0.00145669 | H36: rs267738 | I36: G | J36: T | K36: 0.19219 | L36: 0.104343 | M36: 0.0248576 | N36: 0.015307 | O36: 0.00004 | P36: 35.0191 | S36: rs138805281 | T36: A | U36: T | V36: 0.0137 | W36: 3.88e-09 | X36: -0.0370068 | Y36: 0.0062839 | Z36: rs113329442 | AA36: G | AB36: A | AC36: 0.32826 | AD36: 0.092915 | AE36: 0.0211499 | AF36: 0.0125803 | AG36: 0.00004 | AH36: 34.6820 | AK36: rs79010065 | AL36: C | AM36: A | AN36: 0.0523 | AO36: 1.07e-06 | AP36: 0.0153151 | AQ36: 0.00313977 | AR36: rs142629567 | AS36: G | AT36: C | AU36: 0.06631 | AV36: 0.571628 | AW36: 0.0139076 | AX36: 0.0245835 | AY36: 0.00002 | AZ36: 23.7927 | BC36: rs360511 | BD36: A | BE36: G | BF36: 0.038 | BG36: 1.68e-05 | BH36: -0.0159208 | BI36: 0.00369926 | BJ36: rs12410307 | BK36: A | BL36: G | BM36: 0.08438 | BN36: 0.35304 | BO36: 0.0208037 | BP36: 0.0224051 | BQ36: 0.00002 | BR36: 18.5225
A37: rs186147970 | B37: C | C37: T | D37: 0.00451 | E37: 1.78e-12 | F37: 0.0922309 | G37: 0.0130806 | H37: rs11264224 | I37: A | J37: C | K37: 0.82098 | L37: 0.003668 | M37: 0.0468876 | N37: 0.0161293 | O37: 0.00008 | P37: 49.7162 | S37: rs12089815 | T37: G | U37: A | V37: 0.463 | W37: 2.81e-08 | X37: -0.0077441 | Y37: 0.00139468 | Z37: rs111751551 | AA37: G | AB37: A | AC37: 0.98947 | AD37: 0.000468 | AE37: 0.213735 | AF37: 0.0610693 | AG37: 0.00003 | AH37: 30.8314 | AK37: rs385111 | AL37: A | AM37: G | AN37: 0.386 | AO37: 3.25e-06 | AP37: 0.006764 | AQ37: 0.00145332 | AR37: rs12140153 | AS37: G | AT37: T | AU37: 0.90573 | AV37: 0.231172 | AW37: 0.0297484 | AX37: 0.0248432 | AY37: 0.00002 | AZ37: 21.6613 | BC37: rs1108928 | BD37: C | BE37: G | BF37: 0.478 | BG37: 1.19e-05 | BH37: -0.00616442 | BI37: 0.00140762 | BJ37: rs61781007 | BK37: G | BL37: A | BM37: 0.95778 | BN37: 0.739397 | BO37: 0.0111088 | BP37: 0.033384 | BQ37: 0.00002 | BR37: 19.1785
A38: rs190675279 | B38: G | C38: A | D38: 0.00548 | E38: 6e-10 | F38: 0.111992 | G38: 0.0180913 | H38: rs61813324 | I38: T | J38: C | K38: 0.12932 | L38: 0.150127 | M38: 0.0295608 | N38: 0.020544 | O38: 0.00014 | P38: 38.3208 | S38: rs4847419 | T38: T | U38: A | V38: 0.362 | W38: 1.7e-71 | X38: 0.0258976 | Y38: 0.00144843 | Z38: rs646776 | AA38: T | AB38: C | AC38: 0.78036 | AD38: 1.09e-23 | AE38: 0.158206 | AF38: 0.0157542 | AG38: 0.00031 | AH38: 319.6863 | AK38: rs213479 | AL38: T | AM38: G | AN38: 0.468 | AO38: 1.88e-06 | AP38: 0.00727091 | AQ38: 0.00152573 | AR38: rs1168124 | AS38: T | AT38: C | AU38: 0.6353 | AV38: 0.184334 | AW38: 0.0163457 | AX38: 0.0123206 | AY38: 0.00003 | AZ38: 22.7103 | BC38: rs535348007 | BD38: G | BE38: A | BF38: 0.000888 | BG38: 4.16e-05 | BH38: 0.17899 | BI38: 0.0436746 | BJ38: rs79010065 | BK38: A | BL38: C | BM38: 0.95363 | BN38: 0.036507 | BO38: 0.0626562 | BP38: 0.0299503 | BQ38: 0.00006 | BR38: 16.7958
A39: rs181473381 | B39: A | C39: C | D39: 0.00404 | E39: 8.16e-27 | F39: 0.140501 | G39: 0.0131059 | H39: rs3806415 | I39: T | J39: C | K39: 0.31354 | L39: 0.576312 | M39: 0.00725676 | N39: 0.0129698 | O39: 0.00016 | P39: 114.9278 | S39: rs355364 | T39: A | U39: G | V39: 0.348 | W39: 1.03e-07 | X39: 0.00769742 | Y39: 0.00144628 | Z39: rs333947 | AA39: A | AB39: G | AC39: 0.16357 | AD39: 0.928358 | AE39: 0.00139941 | AF39: 0.0155234 | AG39: 0.00003 | AH39: 28.3260 | AK39: rs9437006 | AL39: T | AM39: C | AN39: 0.126 | AO39: 2.22e-12 | AP39: -0.0146193 | AQ39: 0.00208251 | AR39: rs72673360 | AS39: A | AT39: G | AU39: 0.02224 | AV39: 0.359067 | AW39: 0.0427182 | AX39: 0.0465702 | AY39: 0.00005 | AZ39: 49.2809 | BC39: rs114098493 | BD39: C | BE39: T | BF39: 0.0292 | BG39: 5.49e-07 | BH39: 0.0221848 | BI39: 0.00442971 | BJ39: rs385111 | BK39: G | BL39: A | BM39: 0.62272 | BN39: 0.252351 | BO39: 0.0146289 | BP39: 0.0127823 | BQ39: 0.00003 | BR39: 25.0819
A40: rs138030384 | B40: C | C40: T | D40: 0.00304 | E40: 6.52e-09 | F40: 0.117365 | G40: 0.0202257 | H40: rs4656984 | I40: T | J40: C | K40: 0.37032 | L40: 0.483326 | M40: 0.00913226 | N40: 0.0130131 | O40: 0.00008 | P40: 33.6721 | S40: rs113329442 | T40: G | U40: A | V40: 0.329 | W40: 6.88e-10 | X40: -0.00917482 | Y40: 0.00148731 | Z40: rs12033257 | AA40: G | AB40: A | AC40: 0.39285 | AD40: 0.684535 | AE40: 0.00504943 | AF40: 0.0124505 | AG40: 0.00004 | AH40: 38.0533 | AK40: rs548897 | AL40: A | AM40: G | AN40: 0.452 | AO40: 6.45e-07 | AP40: 0.0069393 | AQ40: 0.00139424 | AR40: rs6663226 | AS40: A | AT40: T | AU40: 0.63112 | AV40: 0.877672 | AW40: 0.00191878 | AX40: 0.0125082 | AY40: 0.00002 | AZ40: 24.7717 | BC40: rs529846096 | BD40: C | BE40: T | BF40: 0.000233 | BG40: 6.56e-06 | BH40: -0.646551 | BI40: 0.143435 | BJ40: rs213479 | BK40: G | BL40: T | BM40: 0.53644 | BN40: 0.561993 | BO40: 0.00702592 | BP40: 0.0121042 | BQ40: 0.00019 | BR40: 20.3187
A41: rs72692851 | B41: G | C41: C | D41: 0.0879 | E41: 6.09e-24 | F41: 0.0248324 | G41: 0.002461 | H41: rs1771582 | I41: G | J41: T | K41: 0.54156 | L41: 0.07628 | M41: 0.0260695 | N41: 0.0147011 | O41: 0.00010 | P41: 101.8156 | S41: rs111751551 | T41: A | U41: G | V41: 0.0101 | W41: 1.75e-09 | X41: 0.0417235 | Y41: 0.00693109 | Z41: rs72692851 | AA41: C | AB41: G | AC41: 0.92013 | AD41: 0.449325 | AE41: 0.0183222 | AF41: 0.0242228 | AG41: 0.00003 | AH41: 36.2375 | AK41: rs12041278 | AL41: T | AM41: A | AN41: 0.2 | AO41: 5.46e-07 | AP41: -0.00867174 | AQ41: 0.00173112 | AR41: rs185702345 | AS41: A | AT41: T | AU41: 0.97269 | AV41: 0.460233 | AW41: 0.0279017 | AX41: 0.0377698 | AY41: 0.00002 | AZ41: 25.0933 | BC41: rs750337428 | BD41: A | BE41: G | BF41: 0.000306 | BG41: 4.66e-05 | BH41: 0.421616 | BI41: 0.103545 | BJ41: rs11591147 | BK41: G | BL41: T | BM41: 0.98355 | BN41: 2.84e-10 | BO41: 0.318691 | BP41: 0.0504943 | BQ41: 0.00011 | BR41: 16.5797
A42: rs267738 | B42: G | C42: T | D42: 0.213 | E42: 3.46e-40 | F42: 0.0223838 | G42: 0.00168682 | H42: rs6425364 | I42: G | J42: T | K42: 0.71058 | L42: 0.812216 | M42: 0.0031595 | N42: 0.0133161 | O42: 0.00017 | P42: 176.0882 | S42: rs646776 | T42: C | U42: T | V42: 0.22 | W42: 5.71e-98 | X42: 0.0346789 | Y42: 0.00165086 | Z42: rs267738 | AA42: G | AB42: T | AC42: 0.19219 | AD42: 0.104343 | AE42: 0.0248576 | AF42: 0.015307 | AG42: 0.00041 | AH42: 441.2758 | AK42: rs142629567 | AL42: G | AM42: C | AN42: 0.0764 | AO42: 4.14e-10 | AP42: 0.0161708 | AQ42: 0.00258796 | AR42: rs650194 | AS42: A | AT42: G | AU42: 0.34581 | AV42: 0.159583 | AW42: 0.0173556 | AX42: 0.012335 | AY42: 0.00004 | AZ42: 39.0434 | BC42: rs4660446 | BD42: T | BE42: C | BF42: 0.344 | BG42: 3e-16 | BH42: 0.0123102 | BI42: 0.00150611 | BJ42: rs9437006 | BK42: T | BL42: C | BM42: 0.1209 | BN42: 2.92e-08 | BO42: 0.101753 | BP42: 0.0183367 | BQ42: 0.00007 | BR42: 66.8062
A43: rs11264224 | B43: C | C43: A | D43: 0.165 | E43: 3.88e-11 | F43: 0.0127621 | G43: 0.00193111 | H43: rs9425299 | I43: C | J43: T | K43: 0.44326 | L43: 0.034638 | M43: 0.025276 | N43: 0.0119599 | O43: 0.00004 | P43: 43.6747 | S43: rs333947 | T43: A | U43: G | V43: 0.15 | W43: 7.3e-42 | X43: -0.0267442 | Y43: 0.00197286 | Z43: rs34834099 | AA43: C | AB43: T | AC43: 0.93713 | AD43: 0.198532 | AE43: 0.0340909 | AF43: 0.0265167 | AG43: 0.00018 | AH43: 183.7666 | AK43: rs12140153 | AL43: T | AM43: G | AN43: 0.0914 | AO43: 1.2e-14 | AP43: 0.019101 | AQ43: 0.00247539 | AR43: rs12142367 | AS43: G | AT43: C | AU43: 0.101 | AV43: 0.236556 | AW43: 0.0241074 | AX43: 0.0203709 | AY43: 0.00006 | AZ43: 59.5422 | BC43: rs3768321 | BD43: T | BE43: G | BF43: 0.193 | BG43: 3.83e-138 | BH43: -0.0443841 | BI43: 0.00177404 | BJ43: rs548897 | BK43: G | BL43: A | BM43: 0.57841 | BN43: 0.283421 | BO43: 0.0129121 | BP43: 0.0120465 | BQ43: 0.00061 | BR43: 625.9332
A44: rs61813324 | B44: T | C44: C | D44: 0.129 | E44: 1.05e-09 | F44: -0.0127338 | G44: 0.00208696 | H44: rs9425779 | I44: C | J44: A | K44: 0.12393 | L44: 0.394406 | M44: 0.0147443 | N44: 0.0173123 | O44: 0.00004 | P44: 37.2296 | S44: rs12033257 | T44: G | U44: A | V44: 0.382 | W44: 3.26e-09 | X44: 0.00862025 | Y44: 0.00145669 | Z44: rs11264224 | AA44: A | AB44: C | AC44: 0.82098 | AD44: 0.003668 | AE44: 0.0468876 | AF44: 0.0161293 | AG44: 0.00004 | AH44: 35.0191 | AK44: rs1168124 | AL44: C | AM44: T | AN44: 0.337 | AO44: 1.46e-16 | AP44: -0.0122399 | AQ44: 0.00148193 | AR44: rs2613496 | AS44: C | AT44: T | AU44: 0.81102 | AV44: 0.002284 | AW44: 0.0502346 | AX44: 0.0164612 | AY44: 0.00007 | AZ44: 68.2182 | BC44: rs180716046 | BD44: C | BE44: T | BF44: 0.00902 | BG44: 4.96e-05 | BH44: 0.0312287 | BI44: 0.00769664 | BJ44: rs17472345 | BK44: C | BL44: A | BM44: 0.78801 | BN44: 0.248431 | BO44: 0.0167064 | BP44: 0.0144702 | BQ44: 0.00002 | BR44: 16.4629
A45: rs3806415 | B45: T | C45: C | D45: 0.325 | E45: 1.76e-14 | F45: 0.011271 | G45: 0.00147006 | H45: rs10218528 | I45: A | J45: T | K45: 0.3891 | L45: 0.537831 | M45: 0.00755972 | N45: 0.0122773 | O45: 0.00006 | P45: 58.7834 | S45: rs186147970 | T45: C | U45: T | V45: 0.00451 | W45: 1.78e-12 | X45: 0.0922309 | Y45: 0.0130806 | Z45: rs151026328 | AA45: G | AB45: A | AC45: 0.97322 | AD45: 0.8965 | AE45: 0.00611703 | AF45: 0.0469886 | AG45: 0.00008 | AH45: 49.7162 | AK45: rs574313788 | AL45: C | AM45: A | AN45: 0.000319 | AO45: 6.38e-07 | AP45: -0.301306 | AQ45: 0.0605096 | AR45: rs17413959 | AS45: A | AT45: G | AU45: 0.86369 | AV45: 0.895471 | AW45: 0.00236602 | AX45: 0.0179616 | AY45: 0.00006 | AZ45: 24.7952 | BC45: rs55669129 | BD45: G | BE45: A | BF45: 0.383 | BG45: 8.19e-06 | BH45: -0.00633019 | BI45: 0.00141929 | BJ45: rs12041278 | BK45: T | BL45: A | BM45: 0.19974 | BN45: 0.001373 | BO45: 0.0469164 | BP45: 0.0146578 | BQ45: 0.00002 | BR45: 19.8926
A46: rs4656984 | B46: T | C46: C | D46: 0.39 | E46: 1.17e-12 | F46: -0.0103285 | G46: 0.00145299 | H46: rs478788 | I46: C | J46: T | K46: 0.22391 | L46: 0.236048 | M46: 0.0166631 | N46: 0.0140663 | O46: 0.00005 | P46: 50.5300 | S46: rs190675279 | T46: G | U46: A | V46: 0.00548 | W46: 6e-10 | X46: 0.111992 | Y46: 0.0180913 | Z46: rs61813324 | AA46: T | AB46: C | AC46: 0.12932 | AD46: 0.150127 | AE46: 0.0295608 | AF46: 0.020544 | AG46: 0.00014 | AH46: 38.3208 | AK46: rs72673360 | AL46: A | AM46: G | AN46: 0.0236 | AO46: 9.6e-07 | AP46: -0.0227043 | AQ46: 0.00463377 | AR46: rs1966210 | AS46: T | AT46: C | AU46: 0.41845 | AV46: 0.386774 | AW46: 0.0106038 | AX46: 0.0122485 | AY46: 0.00002 | AZ46: 24.0075 | BC46: rs566583281 | BD46: T | BE46: C | BF46: 0.000941 | BG46: 2.06e-06 | BH46: -0.155743 | BI46: 0.0328059 | BJ46: rs35672063 | BK46: G | BL46: A | BM46: 0.10688 | BN46: 0.447447 | BO46: 0.013821 | BP46: 0.0181924 | BQ46: 0.00005 | BR46: 22.5379
A47: rs1771582 | B47: T | C47: G | D47: 0.435 | E47: 1.67e-11 | F47: -0.0111108 | G47: 0.00165046 | H47: rs10913570 | I47: C | J47: A | K47: 0.51367 | L47: 0.015321 | M47: 0.0281903 | N47: 0.0116281 | O47: 0.00006 | P47: 45.3190 | S47: rs879970538 | T47: A | U47: C | V47: 0.0133 | W47: 1.88e-07 | X47: 0.125467 | Y47: 0.0240804 | Z47: rs3806415 | AA47: T | AB47: C | AC47: 0.31354 | AD47: 0.576312 | AE47: 0.00725676 | AF47: 0.0129698 | AG47: 0.00041 | AH47: 27.1476 | AK47: rs6663226 | AL47: T | AM47: A | AN47: 0.36 | AO47: 3.12e-13 | AP47: 0.010488 | AQ47: 0.0014389 | AR47: rs11161570 | AS47: T | AT47: C | AU47: 0.48893 | AV47: 0.524989 | AW47: 0.00741545 | AX47: 0.0116714 | AY47: 0.00005 | AZ47: 53.1281 | BC47: rs12145217 | BD47: T | BE47: A | BF47: 0.453 | BG47: 3.68e-09 | BH47: -0.00813822 | BI47: 0.00137988 | BJ47: rs142629567 | BK47: G | BL47: C | BM47: 0.06631 | BN47: 0.571628 | BO47: 0.0139076 | BP47: 0.0245835 | BQ47: 0.00003 | BR47: 34.7837
A48: rs6425364 | B48: T | C48: G | D48: 0.299 | E48: 1.03e-09 | F48: -0.00922715 | G48: 0.00151141 | H48: rs1689797 | I48: A | J48: C | K48: 0.32423 | L48: 0.68886 | M48: 0.00499172 | N48: 0.0124649 | O48: 0.00004 | P48: 37.2710 | S48: rs181473381 | T48: A | U48: C | V48: 0.00404 | W48: 8.16e-27 | X48: 0.140501 | Y48: 0.0131059 | Z48: rs4656984 | AA48: T | AB48: C | AC48: 0.37032 | AD48: 0.483326 | AE48: 0.00913226 | AF48: 0.0130131 | AG48: 0.00016 | AH48: 114.9278 | AK48: rs185702345 | AL48: T | AM48: A | AN48: 0.0265 | AO48: 1.12e-06 | AP48: 0.0209983 | AQ48: 0.00431255 | AR48: rs184603761 | AS48: A | AT48: G | AU48: 0.00689 | AV48: 0.307398 | AW48: 0.0962133 | AX48: 0.0942657 | AY48: 0.00002 | AZ48: 23.7083 | BC48: rs7520981 | BD48: C | BE48: T | BF48: 0.378 | BG48: 1.4e-07 | BH48: -0.0079013 | BI48: 0.0015007 | BJ48: rs12140153 | BK48: G | BL48: T | BM48: 0.90573 | BN48: 0.231172 | BO48: 0.0297484 | BP48: 0.0248432 | BQ48: 0.00003 | BR48: 27.7210
A49: rs9425299 | B49: C | C49: T | D49: 0.43 | E49: 3.45e-17 | F49: -0.0117647 | G49: 0.00139555 | H49: rs116464992 | I49: T | J49: C | K49: 0.01821 | L49: 0.443698 | M49: 0.0454016 | N49: 0.0592659 | O49: 0.00007 | P49: 71.0675 | S49: rs138030384 | T49: C | U49: T | V49: 0.00304 | W49: 6.52e-09 | X49: 0.117365 | Y49: 0.0202257 | Z49: rs1771582 | AA49: G | AB49: T | AC49: 0.54156 | AD49: 0.07628 | AE49: 0.0260695 | AF49: 0.0147011 | AG49: 0.00008 | AH49: 33.6721 | AK49: rs650194 | AL49: A | AM49: G | AN49: 0.338 | AO49: 8.24e-15 | AP49: -0.0114281 | AQ49: 0.00147198 | AR49: rs12089815 | AS49: G | AT49: A | AU49: 0.4558 | AV49: 0.05177 | AW49: 0.0231841 | AX49: 0.0119167 | AY49: 0.00006 | AZ49: 60.2760 | BC49: rs61771075 | BD49: A | BE49: C | BF49: 0.15 | BG49: 1.11e-06 | BH49: 0.00946781 | BI49: 0.00194371 | BJ49: rs1168124 | BK49: T | BL49: C | BM49: 0.6353 | BN49: 0.184334 | BO49: 0.0163457 | BP49: 0.0123206 | BQ49: 0.00002 | BR49: 23.7266
A50: rs9425779 | B50: C | C50: A | D50: 0.112 | E50: 2.17e-08 | F50: -0.0123823 | G50: 0.00221211 | H50: rs17849502 | I50: T | J50: G | K50: 0.05127 | L50: 0.008841 | M50: 0.0709517 | N50: 0.0270938 | O50: 0.00003 | P50: 31.3321 | S50: rs72692851 | T50: G | U50: C | V50: 0.0879 | W50: 6.09e-24 | X50: 0.0248324 | Y50: 0.002461 | Z50: rs6425364 | AA50: G | AB50: T | AC50: 0.71058 | AD50: 0.812216 | AE50: 0.0031595 | AF50: 0.0133161 | AG50: 0.00010 | AH50: 101.8156 | AK50: rs12142367 | AL50: G | AM50: C | AN50: 0.104 | AO50: 2.55e-07 | AP50: -0.0118339 | AQ50: 0.0022962 | AR50: rs17881268 | AS50: G | AT50: A | AU50: 0.97163 | AV50: 0.364594 | AW50: 0.0357211 | AX50: 0.0394 | AY50: 0.00003 | AZ50: 26.5605 | BC50: rs141087325 | BD50: T | BE50: TTATTAAA | BF50: 0.369 | BG50: 2.29e-05 | BH50: 0.0069604 | BI50: 0.00164384 | BJ50: rs72673360 | BK50: A | BL50: G | BM50: 0.02224 | BN50: 0.359067 | BO50: 0.0427182 | BP50: 0.0465702 | BQ50: 0.00002 | BR50: 17.9287
A51: rs10218528 | B51: A | C51: T | D51: 0.385 | E51: 1.68e-09 | F51: -0.00887135 | G51: 0.00147212 | H51: rs10911505 | I51: C | J51: T | K51: 0.35659 | L51: 0.744215 | M51: 0.00401069 | N51: 0.0122773 | O51: 0.00004 | P51: 36.3156 | S51: rs267738 | T51: G | U51: T | V51: 0.213 | W51: 3.46e-40 | X51: 0.0223838 | Y51: 0.00168682 | Z51: rs9425299 | AA51: C | AB51: T | AC51: 0.44326 | AD51: 0.034638 | AE51: 0.025276 | AF51: 0.0119599 | AG51: 0.00017 | AH51: 176.0882 | AK51: rs2613496 | AL51: T | AM51: C | AN51: 0.184 | AO51: 3.52e-15 | AP51: 0.0141294 | AQ51: 0.0017951 | AR51: rs140071297 | AS51: A | AT51: G | AU51: 0.01596 | AV51: 0.07504 | AW51: 0.0909619 | AX51: 0.0511003 | AY51: 0.00006 | AZ51: 61.9541 | BC51: rs548522904 | BD51: C | BE51: CAAAA | BF51: 0.393 | BG51: 9.16e-06 | BH51: -0.00778153 | BI51: 0.00175414 | BJ51: rs6663226 | BK51: A | BL51: T | BM51: 0.63112 | BN51: 0.877672 | BO51: 0.00191878 | BP51: 0.0125082 | BQ51: 0.00003 | BR51: 19.6789
A52: rs478788 | B52: C | C52: T | D52: 0.226 | E52: 7.66e-11 | F52: -0.0106953 | G52: 0.00164364 | H52: rs2298883 | I52: A | J52: G | K52: 0.8194 | L52: 0.28552 | M52: 0.0161005 | N52: 0.0150762 | O52: 0.00004 | P52: 42.3421 | S52: rs34834099 | T52: T | U52: C | V52: 0.0638 | W52: 8.9e-08 | X52: 0.0152063 | Y52: 0.00284345 | Z52: rs9425779 | AA52: C | AB52: A | AC52: 0.12393 | AD52: 0.394406 | AE52: 0.0147443 | AF52: 0.0173123 | AG52: 0.00003 | AH52: 28.5993 | AK52: rs17413959 | AL52: G | AM52: A | AN52: 0.141 | AO52: 1.25e-08 | AP52: -0.0114942 | AQ52: 0.00201905 | AR52: rs4847419 | AS52: A | AT52: T | AU52: 0.61848 | AV52: 0.918411 | AW52: 0.00124072 | AX52: 0.0121186 | AY52: 0.00003 | AZ52: 32.4088 | BC52: rs12410307 | BD52: A | BE52: G | BF52: 0.0904 | BG52: 1.63e-06 | BH52: 0.0115193 | BI52: 0.00240255 | BJ52: rs185702345 | BK52: A | BL52: T | BM52: 0.97269 | BN52: 0.460233 | BO52: 0.0279017 | BP52: 0.0377698 | BQ52: 0.00002 | BR52: 22.9883
A53: rs10913570 | B53: A | C53: C | D53: 0.481 | E53: 1.53e-39 | F53: 0.0181662 | G53: 0.00138062 | H53: rs6675366 | I53: C | J53: T | K53: 0.06072 | L53: 0.14466 | M53: 0.0345381 | N53: 0.0236891 | O53: 0.00016 | P53: 173.1330 | S53: rs563247839 | T53: T | U53: C | V53: 0.000289 | W53: 1.72e-07 | X53: 0.477952 | Y53: 0.0914305 | Z53: rs10218528 | AA53: A | AB53: T | AC53: 0.3891 | AD53: 0.537831 | AE53: 0.00755972 | AF53: 0.0122773 | AG53: 0.00013 | AH53: 27.3266 | AK53: rs1966210 | AL53: T | AM53: C | AN53: 0.416 | AO53: 1.52e-06 | AP53: -0.0067301 | AQ53: 0.00139944 | AR53: rs11165579 | AS53: A | AT53: G | AU53: 0.68333 | AV53: 0.771755 | AW53: 0.00363559 | AX53: 0.0125659 | AY53: 0.00002 | AZ53: 23.1278 | BC53: rs191681275 | BD53: T | BE53: G | BF53: 0.000801 | BG53: 2.5e-06 | BH53: -0.182951 | BI53: 0.0388565 | BJ53: rs650194 | BK53: A | BL53: G | BM53: 0.34581 | BN53: 0.159583 | BO53: 0.0173556 | BP53: 0.012335 | BQ53: 0.00005 | BR53: 22.1688
A54: rs1689797 | B54: A | C54: C | D54: 0.326 | E54: 2.59e-70 | F54: -0.0260934 | G54: 0.00147195 | H54: rs2821388 | I54: G | J54: A | K54: 0.2708 | L54: 0.498037 | M54: 0.00903127 | N54: 0.0133305 | O54: 0.00030 | P54: 314.2500 | S54: rs11264224 | T54: C | U54: A | V54: 0.165 | W54: 3.88e-11 | X54: 0.0127621 | Y54: 0.00193111 | Z54: rs478788 | AA54: C | AB54: T | AC54: 0.22391 | AD54: 0.236048 | AE54: 0.0166631 | AF54: 0.0140663 | AG54: 0.00004 | AH54: 43.6747 | AK54: rs11161570 | AL54: T | AM54: C | AN54: 0.499 | AO54: 5.88e-11 | AP54: 0.0090078 | AQ54: 0.00137593 | AR54: rs355364 | AS54: G | AT54: A | AU54: 0.64046 | AV54: 0.435108 | AW54: 0.00947851 | AX54: 0.0121475 | AY54: 0.00004 | AZ54: 42.8593 | BC54: rs192548124 | BD54: A | BE54: G | BF54: 0.000107 | BG54: 3.37e-05 | BH54: -0.505719 | BI54: 0.121949 | BJ54: rs12142367 | BK54: G | BL54: C | BM54: 0.101 | BN54: 0.236556 | BO54: 0.0241074 | BP54: 0.0203709 | BQ54: 0.00005 | BR54: 17.1974
A55: rs116464992 | B55: T | C55: C | D55: 0.0185 | E55: 2.44e-08 | F55: -0.0316987 | G55: 0.0056835 | H55: rs7532633 | I55: C | J55: T | K55: 0.44454 | L55: 0.475516 | M55: 0.00855518 | N55: 0.0119888 | O55: 0.00004 | P55: 31.1065 | S55: rs151026328 | T55: A | U55: G | V55: 0.0282 | W55: 9.13e-08 | X55: -0.0235203 | Y55: 0.00440195 | Z55: rs10913570 | AA55: C | AB55: A | AC55: 0.51367 | AD55: 0.015321 | AE55: 0.0281903 | AF55: 0.0116281 | AG55: 0.00003 | AH55: 28.5493 | AK55: rs184603761 | AL55: A | AM55: G | AN55: 0.00473 | AO55: 4.71e-07 | AP55: -0.0578823 | AQ55: 0.01149 | AR55: rs3900628 | AS55: A | AT55: C | AU55: 0.36552 | AV55: 0.772268 | AW55: 0.00363559 | AX55: 0.0125659 | AY55: 0.00003 | AZ55: 25.3777 | BC55: rs764532765 | BD55: G | BE55: C | BF55: 9.97e-05 | BG55: 7.2e-06 | BH55: -0.630027 | BI55: 0.140391 | BJ55: rs2613496 | BK55: C | BL55: T | BM55: 0.81102 | BN55: 0.002284 | BO55: 0.0502346 | BP55: 0.0164612 | BQ55: 0.00008 | BR55: 20.1391
A56: rs17849502 | B56: T | C56: G | D56: 0.0476 | E56: 3.43e-08 | F56: -0.0178945 | G56: 0.00324307 | H56: rs13303359 | I56: A | J56: C | K56: 0.49059 | L56: 0.846459 | M56: 0.00292867 | N56: 0.0151483 | O56: 0.00003 | P56: 30.4457 | S56: rs61813324 | T56: T | U56: C | V56: 0.129 | W56: 1.05e-09 | X56: -0.0127338 | Y56: 0.00208696 | Z56: rs1689797 | AA56: A | AB56: C | AC56: 0.32423 | AD56: 0.68886 | AE56: 0.00499172 | AF56: 0.0124649 | AG56: 0.00004 | AH56: 37.2296 | AK56: rs138805281 | AL56: A | AM56: T | AN56: 0.0137 | AO56: 3.88e-09 | AP56: -0.0370068 | AQ56: 0.0062839 | AR56: rs113329442 | AS56: G | AT56: A | AU56: 0.32826 | AV56: 0.092915 | AW56: 0.0211499 | AX56: 0.0125803 | AY56: 0.00004 | AZ56: 34.6820 | BC56: rs61781007 | BD56: A | BE56: G | BF56: 0.0458 | BG56: 1.42e-05 | BH56: -0.0149351 | BI56: 0.00344061 | BJ56: rs12126361 | BK56: A | BL56: G | BM56: 0.09447 | BN56: 0.632603 | BO56: 0.0100412 | BP56: 0.0210201 | BQ56: 0.00002 | BR56: 18.8428
A57: rs10911505 | B57: C | C57: T | D57: 0.359 | E57: 1.02e-09 | F57: -0.00881276 | G57: 0.00144326 | H57: rs3862948 | I57: A | J57: C | K57: 0.25073 | L57: 0.009528 | M57: 0.0342352 | N57: 0.0132007 | O57: 0.00004 | P57: 37.2851 | S57: rs3806415 | T57: T | U57: C | V57: 0.325 | W57: 1.76e-14 | X57: 0.011271 | Y57: 0.00147006 | Z57: rs116464992 | AA57: T | AB57: C | AC57: 0.01821 | AD57: 0.443698 | AE57: 0.0454016 | AF57: 0.0592659 | AG57: 0.00006 | AH57: 58.7834 | AK57: rs12089815 | AL57: G | AM57: A | AN57: 0.463 | AO57: 2.81e-08 | AP57: -0.0077441 | AQ57: 0.00139468 | AR57: rs78696806 | AS57: C | AT57: T | AU57: 0.95218 | AV57: 0.988951 | AW57: 0.000403955 | AX57: 0.0295464 | AY57: 0.00003 | AZ57: 30.8314 | BC57: rs79010065 | BD57: C | BE57: A | BF57: 0.0523 | BG57: 1.07e-06 | BH57: 0.0153151 | BI57: 0.00313977 | BJ57: rs17413959 | BK57: A | BL57: G | BM57: 0.86369 | BN57: 0.895471 | BO57: 0.00236602 | BP57: 0.0179616 | BQ57: 0.00002 | BR57: 23.7927
A58: rs2298883 | B58: G | C58: A | D58: 0.16 | E58: 6.56e-10 | F58: 0.0118258 | G58: 0.00191467 | H58: rs3747973 | I58: A | J58: G | K58: 0.40421 | L58: 0.10034 | M58: 0.0191157 | N58: 0.0116281 | O58: 0.00004 | P58: 38.1481 | S58: rs4656984 | T58: T | U58: C | V58: 0.39 | W58: 1.17e-12 | X58: -0.0103285 | Y58: 0.00145299 | Z58: rs17849502 | AA58: T | AB58: G | AC58: 0.05127 | AD58: 0.008841 | AE58: 0.0709517 | AF58: 0.0270938 | AG58: 0.00005 | AH58: 50.5300 | AK58: rs17881268 | AL58: A | AM58: G | AN58: 0.0266 | AO58: 1.26e-06 | AP58: 0.0215826 | AQ58: 0.00445352 | AR58: rs111751551 | AS58: G | AT58: A | AU58: 0.98947 | AV58: 0.000468 | AW58: 0.213735 | AX58: 0.0610693 | AY58: 0.00002 | AZ58: 23.4855 | BC58: rs385111 | BD58: A | BE58: G | BF58: 0.386 | BG58: 3.25e-06 | BH58: 0.006764 | BI58: 0.00145332 | BJ58: rs1966210 | BK58: T | BL58: C | BM58: 0.41845 | BN58: 0.386774 | BO58: 0.0106038 | BP58: 0.0122485 | BQ58: 0.00002 | BR58: 21.6613
A59: rs6675366 | B59: C | C59: T | D59: 0.0401 | E59: 8.03e-10 | F59: -0.0218051 | G59: 0.00354887 | H59: rs9242 | I59: C | J59: T | K59: 0.49458 | L59: 0.242061 | M59: 0.0137922 | N59: 0.0117868 | O59: 0.00004 | P59: 37.7517 | S59: rs1771582 | T59: T | U59: G | V59: 0.435 | W59: 1.67e-11 | X59: -0.0111108 | Y59: 0.00165046 | Z59: rs10911505 | AA59: C | AB59: T | AC59: 0.35659 | AD59: 0.744215 | AE59: 0.00401069 | AF59: 0.0122773 | AG59: 0.00006 | AH59: 45.3190 | AK59: rs140071297 | AL59: A | AM59: G | AN59: 0.0139 | AO59: 6.88e-07 | AP59: 0.0316293 | AQ59: 0.00637073 | AR59: rs646776 | AS59: T | AT59: C | AU59: 0.78036 | AV59: 1.09e-23 | AW59: 0.158206 | AX59: 0.0157542 | AY59: 0.00003 | AZ59: 24.6491 | BC59: rs182294946 | BD59: T | BE59: C | BF59: 0.00102 | BG59: 2.47e-05 | BH59: 0.281141 | BI59: 0.0666582 | BJ59: rs11161570 | BK59: T | BL59: C | BM59: 0.48893 | BN59: 0.524989 | BO59: 0.00741545 | BP59: 0.0116714 | BQ59: 0.00016 | BR59: 17.7886
A60: rs2821388 | B60: G | C60: A | D60: 0.261 | E60: 2.16e-09 | F60: -0.00932099 | G60: 0.0015574 | H60: rs12034991 | I60: G | J60: A | K60: 0.34281 | L60: 0.003707 | M60: 0.0361395 | N60: 0.0124505 | O60: 0.00003 | P60: 35.8198 | S60: rs6425364 | T60: T | U60: G | V60: 0.299 | W60: 1.03e-09 | X60: -0.00922715 | Y60: 0.00151141 | Z60: rs2298883 | AA60: A | AB60: G | AC60: 0.8194 | AD60: 0.28552 | AE60: 0.0161005 | AF60: 0.0150762 | AG60: 0.00004 | AH60: 37.2710 | AK60: rs4847419 | AL60: T | AM60: A | AN60: 0.362 | AO60: 1.7e-71 | AP60: 0.0258976 | AQ60: 0.00144843 | AR60: rs333947 | AS60: A | AT60: G | AU60: 0.16357 | AV60: 0.928358 | AW60: 0.00139941 | AX60: 0.0155234 | AY60: 0.00031 | AZ60: 319.6863 | BC60: rs213479 | BD60: T | BE60: G | BF60: 0.468 | BG60: 1.88e-06 | BH60: 0.00727091 | BI60: 0.00152573 | BJ60: rs184603761 | BK60: A | BL60: G | BM60: 0.00689 | BN60: 0.307398 | BO60: 0.0962133 | BP60: 0.0942657 | BQ60: 0.00003 | BR60: 22.7103
A61: rs142403729 | B61: T | C61: TACAC | D61: 0.142 | E61: 2.52e-08 | F61: 0.0145383 | G61: 0.00260921 | H61: rs12023488 | I61: C | J61: T | K61: 0.6371 | L61: 0.674463 | M61: 0.00512157 | N61: 0.0122052 | O61: 0.00005 | P61: 31.0463 | S61: rs9425299 | T61: C | U61: T | V61: 0.43 | W61: 3.45e-17 | X61: -0.0117647 | Y61: 0.00139555 | Z61: rs6675366 | AA61: C | AB61: T | AC61: 0.06072 | AD61: 0.14466 | AE61: 0.0345381 | AF61: 0.0236891 | AG61: 0.00007 | AH61: 71.0675 | AK61: rs11165579 | AL61: G | AM61: A | AN61: 0.3 | AO61: 1.03e-06 | AP61: -0.00737317 | AQ61: 0.00150899 | AR61: rs12033257 | AS61: G | AT61: A | AU61: 0.39285 | AV61: 0.684535 | AW61: 0.00504943 | AX61: 0.0124505 | AY61: 0.00002 | AZ61: 23.8746 | BC61: rs11591147 | BD61: T | BE61: G | BF61: 0.0162 | BG61: 8.76e-06 | BH61: 0.0240675 | BI61: 0.0054136 | BJ61: rs186942696 | BK61: T | BL61: C | BM61: 0.01634 | BN61: 0.359005 | BO61: 0.0476522 | BP61: 0.0519514 | BQ61: 0.00002 | BR61: 19.7647
A62: rs7532633 | B62: C | C62: T | D62: 0.463 | E62: 8.99e-12 | F62: 0.00954592 | G62: 0.00139931 | H62: rs59770119 | I62: A | J62: G | K62: 0.54704 | L62: 0.050515 | M62: 0.0237035 | N62: 0.0121186 | O62: 0.00005 | P62: 46.5380 | S62: rs9425779 | T62: C | U62: A | V62: 0.112 | W62: 2.17e-08 | X62: -0.0123823 | Y62: 0.00221211 | Z62: rs2821388 | AA62: G | AB62: A | AC62: 0.2708 | AD62: 0.498037 | AE62: 0.00903127 | AF62: 0.0133305 | AG62: 0.00003 | AH62: 31.3321 | AK62: rs355364 | AL62: A | AM62: G | AN62: 0.348 | AO62: 1.03e-07 | AP62: 0.00769742 | AQ62: 0.00144628 | AR62: rs1707113 | AS62: A | AT62: G | AU62: 0.62189 | AV62: 0.022445 | AW62: 0.0274401 | AX62: 0.0120176 | AY62: 0.00003 | AZ62: 28.3260 | BC62: rs9437006 | BD62: T | BE62: C | BF62: 0.126 | BG62: 2.22e-12 | BH62: -0.0146193 | BI62: 0.00208251 | BJ62: rs12089815 | BK62: G | BL62: A | BM62: 0.4558 | BN62: 0.05177 | BO62: 0.0231841 | BP62: 0.0119167 | BQ62: 0.00005 | BR62: 49.2809
A63: rs13303359 | B63: A | C63: C | D63: 0.478 | E63: 5.11e-15 | F63: -0.0118279 | G63: 0.00151169 | H63: rs2642438 | I63: G | J63: A | K63: 0.70795 | L63: 0.943717 | M63: 0.00157254 | N63: 0.0222319 | O63: 0.00007 | P63: 61.2195 | S63: rs10218528 | T63: A | U63: T | V63: 0.385 | W63: 1.68e-09 | X63: -0.00887135 | Y63: 0.00147212 | Z63: rs7532633 | AA63: C | AB63: T | AC63: 0.44454 | AD63: 0.475516 | AE63: 0.00855518 | AF63: 0.0119888 | AG63: 0.00004 | AH63: 36.3156 | AK63: rs3900628 | AL63: A | AM63: C | AN63: 0.388 | AO63: 5.4e-07 | AP63: 0.00722768 | AQ63: 0.00144218 | AR63: rs72692851 | AS63: C | AT63: G | AU63: 0.92013 | AV63: 0.449325 | AW63: 0.0183222 | AX63: 0.0242228 | AY63: 0.00002 | AZ63: 25.1165 | BC63: rs548897 | BD63: A | BE63: G | BF63: 0.452 | BG63: 6.45e-07 | BH63: 0.0069393 | BI63: 0.00139424 | BJ63: rs17881268 | BK63: G | BL63: A | BM63: 0.97163 | BN63: 0.364594 | BO63: 0.0357211 | BP63: 0.0394 | BQ63: 0.00002 | BR63: 24.7717
A64: rs3862948 | B64: A | C64: C | D64: 0.234 | E64: 2.49e-14 | F64: -0.012452 | G64: 0.00163363 | H64: rs35806535 | I64: C | J64: T | K64: 0.78785 | L64: 1.28e-06 | M64: 0.072885 | N64: 0.0150329 | O64: 0.00006 | P64: 58.0993 | S64: rs478788 | T64: C | U64: T | V64: 0.226 | W64: 7.66e-11 | X64: -0.0106953 | Y64: 0.00164364 | Z64: rs13303359 | AA64: A | AB64: C | AC64: 0.49059 | AD64: 0.846459 | AE64: 0.00292867 | AF64: 0.0151483 | AG64: 0.00004 | AH64: 42.3421 | AK64: rs113329442 | AL64: G | AM64: A | AN64: 0.329 | AO64: 6.88e-10 | AP64: -0.00917482 | AQ64: 0.00148731 | AR64: rs267738 | AS64: G | AT64: T | AU64: 0.19219 | AV64: 0.104343 | AW64: 0.0248576 | AX64: 0.015307 | AY64: 0.00004 | AZ64: 38.0533 | BC64: rs17472345 | BD64: A | BE64: C | BF64: 0.226 | BG64: 2.53e-05 | BH64: -0.00694902 | BI64: 0.00164968 | BJ64: rs140071297 | BK64: A | BL64: G | BM64: 0.01596 | BN64: 0.07504 | BO64: 0.0909619 | BP64: 0.0511003 | BQ64: 0.00002 | BR64: 17.7438
A65: rs3747973 | B65: A | C65: G | D65: 0.412 | E65: 2.66e-28 | F65: -0.0156362 | G65: 0.00141729 | H65: rs56105022 | I65: A | J65: G | K65: 0.0361 | L65: 0.732517 | M65: 0.0119311 | N65: 0.0348844 | O65: 0.00012 | P65: 121.7152 | S65: rs10913570 | T65: A | U65: C | V65: 0.481 | W65: 1.53e-39 | X65: 0.0181662 | Y65: 0.00138062 | Z65: rs3862948 | AA65: A | AB65: C | AC65: 0.25073 | AD65: 0.009528 | AE65: 0.0342352 | AF65: 0.0132007 | AG65: 0.00016 | AH65: 173.1330 | AK65: rs78696806 | AL65: T | AM65: C | AN65: 0.0457 | AO65: 8.78e-07 | AP65: 0.0167068 | AQ65: 0.00339766 | AR65: rs34834099 | AS65: C | AT65: T | AU65: 0.93713 | AV65: 0.198532 | AW65: 0.0340909 | AX65: 0.0265167 | AY65: 0.00002 | AZ65: 24.1784 | BC65: rs12041278 | BD65: T | BE65: A | BF65: 0.2 | BG65: 5.46e-07 | BH65: -0.00867174 | BI65: 0.00173112 | BJ65: rs4847419 | BK65: A | BL65: T | BM65: 0.61848 | BN65: 0.918411 | BO65: 0.00124072 | BP65: 0.0121186 | BQ65: 0.00002 | BR65: 25.0933
A66: rs9242 | B66: C | C66: T | D66: 0.482 | E66: 4.84e-10 | F66: -0.00878836 | G66: 0.001412 | H66: rs7553823 | I66: A | J66: T | K66: 0.04658 | L66: 0.36426 | M66: 0.0262859 | N66: 0.0289693 | O66: 0.00004 | P66: 38.7388 | S66: rs1689797 | T66: A | U66: C | V66: 0.326 | W66: 2.59e-70 | X66: -0.0260934 | Y66: 0.00147195 | Z66: rs3747973 | AA66: A | AB66: G | AC66: 0.40421 | AD66: 0.10034 | AE66: 0.0191157 | AF66: 0.0116281 | AG66: 0.00030 | AH66: 314.2500 | AK66: rs111751551 | AL66: A | AM66: G | AN66: 0.0101 | AO66: 1.75e-09 | AP66: 0.0417235 | AQ66: 0.00693109 | AR66: rs11264224 | AS66: A | AT66: C | AU66: 0.82098 | AV66: 0.003668 | AW66: 0.0468876 | AX66: 0.0161293 | AY66: 0.00003 | AZ66: 36.2375 | BC66: rs35672063 | BD66: G | BE66: A | BF66: 0.0895 | BG66: 7.84e-06 | BH66: -0.010769 | BI66: 0.00240937 | BJ66: rs11165579 | BK66: A | BL66: G | BM66: 0.68333 | BN66: 0.771755 | BO66: 0.00363559 | BP66: 0.0125659 | BQ66: 0.00002 | BR66: 19.9776
A67: rs12034991 | B67: G | C67: A | D67: 0.355 | E67: 1.11e-10 | F67: -0.00945065 | G67: 0.00146489 | H67: rs10127775 | I67: A | J67: T | K67: 0.43538 | L67: 0.005515 | M67: 0.033485 | N67: 0.0120609 | O67: 0.00004 | P67: 41.6211 | S67: rs116464992 | T67: T | U67: C | V67: 0.0185 | W67: 2.44e-08 | X67: -0.0316987 | Y67: 0.0056835 | Z67: rs9242 | AA67: C | AB67: T | AC67: 0.49458 | AD67: 0.242061 | AE67: 0.0137922 | AF67: 0.0117868 | AG67: 0.00004 | AH67: 31.1065 | AK67: rs646776 | AL67: C | AM67: T | AN67: 0.22 | AO67: 5.71e-98 | AP67: 0.0346789 | AQ67: 0.00165086 | AR67: rs151026328 | AS67: G | AT67: A | AU67: 0.97322 | AV67: 0.8965 | AW67: 0.00611703 | AX67: 0.0469886 | AY67: 0.00041 | AZ67: 441.2758 | BC67: rs142629567 | BD67: G | BE67: C | BF67: 0.0764 | BG67: 4.14e-10 | BH67: 0.0161708 | BI67: 0.00258796 | BJ67: rs355364 | BK67: G | BL67: A | BM67: 0.64046 | BN67: 0.435108 | BO67: 0.00947851 | BP67: 0.0121475 | BQ67: 0.00004 | BR67: 39.0434
A68: rs12023488 | B68: T | C68: C | D68: 0.376 | E68: 7.19e-12 | F68: 0.00977536 | G68: 0.00142625 | H68: rs145957520 | I68: C | J68: CAT | K68: 0.04516 | L68: 0.650316 | M68: 0.0147588 | N68: 0.0325616 | O68: 0.00004 | P68: 46.9758 | S68: rs17849502 | T68: T | U68: G | V68: 0.0476 | W68: 3.43e-08 | X68: -0.0178945 | Y68: 0.00324307 | Z68: rs12034991 | AA68: G | AB68: A | AC68: 0.34281 | AD68: 0.003707 | AE68: 0.0361395 | AF68: 0.0124505 | AG68: 0.00003 | AH68: 30.4457 | AK68: rs333947 | AL68: A | AM68: G | AN68: 0.15 | AO68: 7.3e-42 | AP68: -0.0267442 | AQ68: 0.00197286 | AR68: rs61813324 | AS68: T | AT68: C | AU68: 0.12932 | AV68: 0.150127 | AW68: 0.0295608 | AX68: 0.020544 | AY68: 0.00018 | AZ68: 183.7666 | BC68: rs12140153 | BD68: T | BE68: G | BF68: 0.0914 | BG68: 1.2e-14 | BH68: 0.019101 | BI68: 0.00247539 | BJ68: rs3900628 | BK68: A | BL68: C | BM68: 0.36552 | BN68: 0.772268 | BO68: 0.00363559 | BP68: 0.0125659 | BQ68: 0.00006 | BR68: 59.5422
A69: rs59770119 | B69: G | C69: A | D69: 0.423 | E69: 6.36e-33 | F69: 0.0168521 | G69: 0.00141002 | H69: rs553427 | I69: T | J69: C | K69: 0.5444 | L69: 0.015554 | M69: 0.0287529 | N69: 0.0118878 | O69: 0.00014 | P69: 142.8425 | S69: rs10911505 | T69: C | U69: T | V69: 0.359 | W69: 1.02e-09 | X69: -0.00881276 | Y69: 0.00144326 | Z69: rs12023488 | AA69: C | AB69: T | AC69: 0.6371 | AD69: 0.674463 | AE69: 0.00512157 | AF69: 0.0122052 | AG69: 0.00004 | AH69: 37.2851 | AK69: rs781310068 | AL69: T | AM69: G | AN69: 0.000304 | AO69: 4.65e-06 | AP69: 0.286498 | AQ69: 0.0625562 | AR69: rs3806415 | AS69: T | AT69: C | AU69: 0.31354 | AV69: 0.576312 | AW69: 0.00725676 | AX69: 0.0129698 | AY69: 0.00005 | AZ69: 20.9750 | BC69: rs1168124 | BD69: C | BE69: T | BF69: 0.337 | BG69: 1.46e-16 | BH69: -0.0122399 | BI69: 0.00148193 | BJ69: rs113329442 | BK69: G | BL69: A | BM69: 0.32826 | BN69: 0.092915 | BO69: 0.0211499 | BP69: 0.0125803 | BQ69: 0.00007 | BR69: 68.2182
A70: rs2642438 | B70: A | C70: G | D70: 0.294 | E70: 7.11e-72 | F70: -0.0271768 | G70: 0.00151587 | H70: rs4006430 | I70: C | J70: G | K70: 0.23264 | L70: 0.227384 | M70: 0.0172402 | N70: 0.0142827 | O70: 0.00031 | P70: 321.4199 | S70: rs2298883 | T70: G | U70: A | V70: 0.16 | W70: 6.56e-10 | X70: 0.0118258 | Y70: 0.00191467 | Z70: rs4528088 | AA70: A | AB70: G | AC70: 0.46546 | AD70: 0.669155 | AE70: 0.00506386 | AF70: 0.0118445 | AG70: 0.00004 | AH70: 38.1481 | AK70: rs12033257 | AL70: G | AM70: A | AN70: 0.382 | AO70: 3.26e-09 | AP70: 0.00862025 | AQ70: 0.00145669 | AR70: rs4656984 | AS70: T | AT70: C | AU70: 0.37032 | AV70: 0.483326 | AW70: 0.00913226 | AX70: 0.0130131 | AY70: 0.00004 | AZ70: 35.0191 | BC70: rs574313788 | BD70: C | BE70: A | BF70: 0.000319 | BG70: 6.38e-07 | BH70: -0.301306 | BI70: 0.0605096 | BJ70: rs78696806 | BK70: C | BL70: T | BM70: 0.95218 | BN70: 0.988951 | BO70: 0.000403955 | BP70: 0.0295464 | BQ70: 0.00006 | BR70: 24.7952
A71: rs35806535 | B71: T | C71: C | D71: 0.191 | E71: 2.99e-08 | F71: 0.00982919 | G71: 0.00177355 | H71: rs17713729 | I71: A | J71: C | K71: 0.66198 | L71: 0.058474 | M71: 0.0234149 | N71: 0.0123783 | O71: 0.00003 | P71: 30.7149 | S71: rs6675366 | T71: C | U71: T | V71: 0.0401 | W71: 8.03e-10 | X71: -0.0218051 | Y71: 0.00354887 | Z71: rs59770119 | AA71: A | AB71: G | AC71: 0.54704 | AD71: 0.050515 | AE71: 0.0237035 | AF71: 0.0121186 | AG71: 0.00004 | AH71: 37.7517 | AK71: rs182765782 | AL71: T | AM71: C | AN71: 0.00118 | AO71: 1.28e-06 | AP71: -0.139941 | AQ71: 0.0288948 | AR71: rs1771582 | AS71: G | AT71: T | AU71: 0.54156 | AV71: 0.07628 | AW71: 0.0260695 | AX71: 0.0147011 | AY71: 0.00005 | AZ71: 23.4558 | BC71: rs72673360 | BD71: A | BE71: G | BF71: 0.0236 | BG71: 9.6e-07 | BH71: -0.0227043 | BI71: 0.00463377 | BJ71: rs111751551 | BK71: G | BL71: A | BM71: 0.98947 | BN71: 0.000468 | BO71: 0.213735 | BP71: 0.0610693 | BQ71: 0.00002 | BR71: 24.0075
A72: rs56105022 | B72: A | C72: G | D72: 0.0348 | E72: 2.09e-14 | F72: -0.030072 | G72: 0.00393367 | H72: rs6542680 | I72: C | J72: T | K72: 0.22902 | L72: 0.005413 | M72: 0.0413332 | N72: 0.0148598 | O72: 0.00006 | P72: 58.4425 | S72: rs2821388 | T72: G | U72: A | V72: 0.261 | W72: 2.16e-09 | X72: -0.00932099 | Y72: 0.0015574 | Z72: rs2642438 | AA72: G | AB72: A | AC72: 0.70795 | AD72: 0.943717 | AE72: 0.00157254 | AF72: 0.0222319 | AG72: 0.00003 | AH72: 35.8198 | AK72: rs1707113 | AL72: G | AM72: A | AN72: 0.368 | AO72: 3.88e-06 | AP72: 0.00664416 | AQ72: 0.00143891 | AR72: rs2279469 | AS72: C | AT72: G | AU72: 0.50219 | AV72: 0.722811 | AW72: 0.00414053 | AX72: 0.0116858 | AY72: 0.00002 | AZ72: 21.3213 | BC72: rs6663226 | BD72: T | BE72: A | BF72: 0.36 | BG72: 3.12e-13 | BH72: 0.010488 | BI72: 0.0014389 | BJ72: rs646776 | BK72: T | BL72: C | BM72: 0.78036 | BN72: 1.09e-23 | BO72: 0.158206 | BP72: 0.0157542 | BQ72: 0.00005 | BR72: 53.1281
A73: rs7553823 | B73: A | C73: T | D73: 0.0435 | E73: 2.95e-10 | F73: -0.0211654 | G73: 0.0033588 | H73: rs2358040 | I73: G | J73: T | K73: 0.49297 | L73: 0.786483 | M73: 0.00317393 | N73: 0.0117003 | O73: 0.00004 | P73: 39.7086 | S73: rs142403729 | T73: T | U73: TACAC | V73: 0.142 | W73: 2.52e-08 | X73: 0.0145383 | Y73: 0.00260921 | Z73: rs115054770 | AA73: A | AB73: C | AC73: 0.02062 | AD73: 0.251344 | AE73: 0.0511435 | AF73: 0.0445937 | AG73: 0.00005 | AH73: 31.0463 | AK73: rs186147970 | AL73: C | AM73: T | AN73: 0.00451 | AO73: 1.78e-12 | AP73: 0.0922309 | AQ73: 0.0130806 | AR73: rs2205846 | AS73: G | AT73: A | AU73: 0.6911 | AV73: 0.621721 | AW73: 0.006319 | AX73: 0.0128256 | AY73: 0.00008 | AZ73: 49.7162 | BC73: rs10585581 | BD73: GAA | BE73: G | BF73: 0.376 | BG73: 1.42e-05 | BH73: -0.00705276 | BI73: 0.0016248 | BJ73: rs333947 | BK73: A | BL73: G | BM73: 0.16357 | BN73: 0.928358 | BO73: 0.00139941 | BP73: 0.0155234 | BQ73: 0.00002 | BR73: 18.8416
A74: rs6690181 | B74: C | C74: T | D74: 0.387 | E74: 6.82e-09 | F74: 0.00938577 | G74: 0.00161955 | H74: rs1107850 | I74: A | J74: G | K74: 0.47885 | L74: 0.547203 | M74: 0.00704035 | N74: 0.0117003 | O74: 0.00004 | P74: 33.5854 | S74: rs7532633 | T74: C | U74: T | V74: 0.463 | W74: 8.99e-12 | X74: 0.00954592 | Y74: 0.00139931 | Z74: rs35806535 | AA74: C | AB74: T | AC74: 0.78785 | AD74: 1.28e-06 | AE74: 0.072885 | AF74: 0.0150329 | AG74: 0.00005 | AH74: 46.5380 | AK74: rs190675279 | AL74: G | AM74: A | AN74: 0.00548 | AO74: 6e-10 | AP74: 0.111992 | AQ74: 0.0180913 | AR74: rs6425364 | AS74: G | AT74: T | AU74: 0.71058 | AV74: 0.812216 | AW74: 0.0031595 | AX74: 0.0133161 | AY74: 0.00014 | AZ74: 38.3208 | BC74: rs185702345 | BD74: T | BE74: A | BF74: 0.0265 | BG74: 1.12e-06 | BH74: 0.0209983 | BI74: 0.00431255 | BJ74: rs79082053 | BK74: A | BL74: G | BM74: 0.04023 | BN74: 0.411292 | BO74: 0.0238045 | BP74: 0.0289693 | BQ74: 0.00002 | BR74: 23.7083
A75: rs10127775 | B75: A | C75: T | D75: 0.4 | E75: 6.73e-291 | F75: -0.0511741 | G75: 0.00140393 | H75: rs676210 | I75: A | J75: G | K75: 0.24422 | L75: 0.66317 | M75: 0.00592948 | N75: 0.013619 | O75: 0.00126 | P75: 1328.6467 | S75: rs13303359 | T75: A | U75: C | V75: 0.478 | W75: 5.11e-15 | X75: -0.0118279 | Y75: 0.00151169 | Z75: rs56105022 | AA75: A | AB75: G | AC75: 0.0361 | AD75: 0.732517 | AE75: 0.0119311 | AF75: 0.0348844 | AG75: 0.00007 | AH75: 61.2195 | AK75: rs879970538 | AL75: A | AM75: C | AN75: 0.0133 | AO75: 1.88e-07 | AP75: 0.125467 | AQ75: 0.0240804 | AR75: rs9425299 | AS75: C | AT75: T | AU75: 0.44326 | AV75: 0.034638 | AW75: 0.025276 | AX75: 0.0119599 | AY75: 0.00041 | AZ75: 27.1476 | BC75: rs770558960 | BD75: T | BE75: C | BF75: 7.86e-05 | BG75: 3.05e-05 | BH75: 0.74778 | BI75: 0.17934 | BJ75: rs12033257 | BK75: G | BL75: A | BM75: 0.39285 | BN75: 0.684535 | BO75: 0.00504943 | BP75: 0.0124505 | BQ75: 0.00009 | BR75: 17.3857
A76: rs145957520 | B76: C | C76: CAT | D76: 0.044 | E76: 1.04e-11 | F76: -0.0256918 | G76: 0.00377755 | H76: rs1056074 | I76: C | J76: T | K76: 0.17516 | L76: 0.286922 | M76: 0.0165044 | N76: 0.015509 | O76: 0.00006 | P76: 46.2561 | S76: rs3862948 | T76: A | U76: C | V76: 0.234 | W76: 2.49e-14 | X76: -0.012452 | Y76: 0.00163363 | Z76: rs7553823 | AA76: A | AB76: T | AC76: 0.04658 | AD76: 0.36426 | AE76: 0.0262859 | AF76: 0.0289693 | AG76: 0.00006 | AH76: 58.0993 | AK76: rs587607578 | AL76: C | AM76: G | AN76: 0.00668 | AO76: 1.03e-06 | AP76: 0.129904 | AQ76: 0.0265907 | AR76: rs9425779 | AS76: C | AT76: A | AU76: 0.12393 | AV76: 0.394406 | AW76: 0.0147443 | AX76: 0.0173123 | AY76: 0.00022 | AZ76: 23.8663 | BC76: rs561307533 | BD76: A | BE76: G | BF76: 0.000327 | BG76: 3.58e-05 | BH76: -0.210671 | BI76: 0.0509729 | BJ76: rs1707113 | BK76: A | BL76: G | BM76: 0.62189 | BN76: 0.022445 | BO76: 0.0274401 | BP76: 0.0120176 | BQ76: 0.00003 | BR76: 17.0817
A77: rs553427 | B77: C | C77: T | D77: 0.473 | E77: 1.14e-34 | F77: -0.0171565 | G77: 0.00139696 | H77: rs13432533 | I77: A | J77: G | K77: 0.52569 | L77: 0.000134 | M77: 0.0459643 | N77: 0.0120321 | O77: 0.00015 | P77: 150.8306 | S77: rs3747973 | T77: A | U77: G | V77: 0.412 | W77: 2.66e-28 | X77: -0.0156362 | Y77: 0.00141729 | Z77: rs10127775 | AA77: A | AB77: T | AC77: 0.43538 | AD77: 0.005515 | AE77: 0.033485 | AF77: 0.0120609 | AG77: 0.00012 | AH77: 121.7152 | AK77: rs181473381 | AL77: A | AM77: C | AN77: 0.00404 | AO77: 8.16e-27 | AP77: 0.140501 | AQ77: 0.0131059 | AR77: rs10218528 | AS77: A | AT77: T | AU77: 0.3891 | AV77: 0.537831 | AW77: 0.00755972 | AX77: 0.0122773 | AY77: 0.00016 | AZ77: 114.9278 | BC77: rs650194 | BD77: A | BE77: G | BF77: 0.338 | BG77: 8.24e-15 | BH77: -0.0114281 | BI77: 0.00147198 | BJ77: rs72692851 | BK77: C | BL77: G | BM77: 0.92013 | BN77: 0.449325 | BO77: 0.0183222 | BP77: 0.0242228 | BQ77: 0.00006 | BR77: 60.2760
A78: rs4006430 | B78: C | C78: G | D78: 0.23 | E78: 2.24e-09 | F78: -0.00995599 | G78: 0.00166507 | H78: rs13389106 | I78: G | J78: T | K78: 0.18806 | L78: 0.694639 | M78: 0.00618916 | N78: 0.0157687 | O78: 0.00004 | P78: 35.7523 | S78: rs9242 | T78: C | U78: T | V78: 0.482 | W78: 4.84e-10 | X78: -0.00878836 | Y78: 0.001412 | Z78: rs145957520 | AA78: C | AB78: CAT | AC78: 0.04516 | AD78: 0.650316 | AE78: 0.0147588 | AF78: 0.0325616 | AG78: 0.00004 | AH78: 38.7388 | AK78: rs185520438 | AL78: C | AM78: A | AN78: 0.00223 | AO78: 1.29e-06 | AP78: 0.133896 | AQ78: 0.0276607 | AR78: rs12041149 | AS78: T | AT78: A | AU78: 0.27455 | AV78: 0.259954 | AW78: 0.0153214 | AX78: 0.0136046 | AY78: 0.00008 | AZ78: 23.4320 | BC78: rs12142367 | BD78: G | BE78: C | BF78: 0.104 | BG78: 2.55e-07 | BH78: -0.0118339 | BI78: 0.0022962 | BJ78: rs267738 | BK78: G | BL78: T | BM78: 0.19219 | BN78: 0.104343 | BO78: 0.0248576 | BP78: 0.015307 | BQ78: 0.00003 | BR78: 26.5605
A79: rs17713729 | B79: C | C79: A | D79: 0.352 | E79: 7.84e-28 | F79: 0.0157694 | G79: 0.0014421 | H79: rs72790679 | I79: A | J79: G | K79: 0.017 | L79: 0.607344 | M79: 0.0278007 | N79: 0.0540866 | O79: 0.00011 | P79: 119.5748 | S79: rs12034991 | T79: G | U79: A | V79: 0.355 | W79: 1.11e-10 | X79: -0.00945065 | Y79: 0.00146489 | Z79: rs553427 | AA79: T | AB79: C | AC79: 0.5444 | AD79: 0.015554 | AE79: 0.0287529 | AF79: 0.0118878 | AG79: 0.00004 | AH79: 41.6211 | AK79: rs138030384 | AL79: C | AM79: T | AN79: 0.00304 | AO79: 6.52e-09 | AP79: 0.117365 | AQ79: 0.0202257 | AR79: rs478788 | AS79: C | AT79: T | AU79: 0.22391 | AV79: 0.236048 | AW79: 0.0166631 | AX79: 0.0140663 | AY79: 0.00008 | AZ79: 33.6721 | BC79: rs2613496 | BD79: T | BE79: C | BF79: 0.184 | BG79: 3.52e-15 | BH79: 0.0141294 | BI79: 0.0017951 | BJ79: rs34834099 | BK79: C | BL79: T | BM79: 0.93713 | BN79: 0.198532 | BO79: 0.0340909 | BP79: 0.0265167 | BQ79: 0.00006 | BR79: 61.9541
A80: rs6542680 | B80: C | C80: T | D80: 0.192 | E80: 2.24e-37 | F80: 0.0226427 | G80: 0.00177231 | H80: rs62136301 | I80: A | J80: G | K80: 0.82012 | L80: 0.837629 | M80: 0.00324606 | N80: 0.0158264 | O80: 0.00016 | P80: 163.2214 | S80: rs12023488 | T80: T | U80: C | V80: 0.376 | W80: 7.19e-12 | X80: 0.00977536 | Y80: 0.00142625 | Z80: rs4006430 | AA80: C | AB80: G | AC80: 0.23264 | AD80: 0.227384 | AE80: 0.0172402 | AF80: 0.0142827 | AG80: 0.00004 | AH80: 46.9758 | AK80: NA | AL80: C | AM80: G | AN80: 0.000391 | AO80: 6.2e-07 | AP80: 0.379057 | AQ80: 0.0760394 | AR80: rs10913570 | AS80: C | AT80: A | AU80: 0.51367 | AV80: 0.015321 | AW80: 0.0281903 | AX80: 0.0116281 | AY80: 0.00011 | AZ80: 24.8503 | BC80: rs114531750 | BD80: G | BE80: A | BF80: 0.000306 | BG80: 2.19e-05 | BH80: -0.297647 | BI80: 0.0701195 | BJ80: rs11264224 | BK80: A | BL80: C | BM80: 0.82098 | BN80: 0.003668 | BO80: 0.0468876 | BP80: 0.0161293 | BQ80: 0.00005 | BR80: 18.0188
A81: rs2358040 | B81: G | C81: T | D81: 0.487 | E81: 7.51e-09 | F81: -0.00795727 | G81: 0.00137689 | H81: rs12478677 | I81: C | J81: T | K81: 0.54707 | L81: 0.362746 | M81: 0.0108923 | N81: 0.0119599 | O81: 0.00003 | P81: 33.3987 | S81: rs4528088 | T81: A | U81: G | V81: 0.45 | W81: 4.29e-07 | X81: 0.00708345 | Y81: 0.00140111 | Z81: rs12037424 | AA81: C | AB81: T | AC81: 0.28677 | AD81: 0.306078 | AE81: 0.0132295 | AF81: 0.0129265 | AG81: 0.00002 | AH81: 25.5591 | AK81: rs72692851 | AL81: G | AM81: C | AN81: 0.0879 | AO81: 6.09e-24 | AP81: 0.0248324 | AQ81: 0.002461 | AR81: rs3845412 | AS81: T | AT81: C | AU81: 0.58462 | AV81: 0.29686 | AW81: 0.0125226 | AX81: 0.0120032 | AY81: 0.00010 | AZ81: 101.8156 | BC81: rs572373732 | BD81: T | BE81: C | BF81: 0.000695 | BG81: 5.34e-06 | BH81: 0.309969 | BI81: 0.0681122 | BJ81: rs151026328 | BK81: G | BL81: A | BM81: 0.97322 | BN81: 0.8965 | BO81: 0.00611703 | BP81: 0.0469886 | BQ81: 0.00013 | BR81: 20.7103
A82: rs1107850 | B82: A | C82: G | D82: 0.485 | E82: 8.96e-22 | F82: -0.0132386 | G82: 0.00138071 | H82: rs12998038 | I82: C | J82: T | K82: 0.76328 | L82: 0.891463 | M82: 0.00199092 | N82: 0.0145712 | O82: 0.00009 | P82: 91.9346 | S82: rs59770119 | T82: G | U82: A | V82: 0.423 | W82: 6.36e-33 | X82: 0.0168521 | Y82: 0.00141002 | Z82: rs17713729 | AA82: A | AB82: C | AC82: 0.66198 | AD82: 0.058474 | AE82: 0.0234149 | AF82: 0.0123783 | AG82: 0.00014 | AH82: 142.8425 | AK82: rs267738 | AL82: G | AM82: T | AN82: 0.213 | AO82: 3.46e-40 | AP82: 0.0223838 | AQ82: 0.00168682 | AR82: rs1689797 | AS82: A | AT82: C | AU82: 0.32423 | AV82: 0.68886 | AW82: 0.00499172 | AX82: 0.0124649 | AY82: 0.00017 | AZ82: 176.0882 | BC82: rs12126361 | BD82: A | BE82: G | BF82: 0.0961 | BG82: 4.61e-05 | BH82: 0.00952443 | BI82: 0.00233739 | BJ82: rs61813324 | BK82: T | BL82: C | BM82: 0.12932 | BN82: 0.150127 | BO82: 0.0295608 | BP82: 0.020544 | BQ82: 0.00002 | BR82: 16.6041
A83: rs676210 | B83: A | C83: G | D83: 0.214 | E83: 2e-286 | F83: 0.0604574 | G83: 0.00167161 | H83: rs79154515 | I83: A | J83: G | K83: 0.10856 | L83: 0.51617 | M83: 0.0130708 | N83: 0.0201256 | O83: 0.00123 | P83: 1308.0641 | S83: rs2642438 | T83: A | U83: G | V83: 0.294 | W83: 7.11e-72 | X83: -0.0271768 | Y83: 0.00151587 | Z83: rs6542680 | AA83: C | AB83: T | AC83: 0.22902 | AD83: 0.005413 | AE83: 0.0413332 | AF83: 0.0148598 | AG83: 0.00031 | AH83: 321.4199 | AK83: rs34834099 | AL83: T | AM83: C | AN83: 0.0638 | AO83: 8.9e-08 | AP83: 0.0152063 | AQ83: 0.00284345 | AR83: rs116464992 | AS83: T | AT83: C | AU83: 0.01821 | AV83: 0.443698 | AW83: 0.0454016 | AX83: 0.0592659 | AY83: 0.00003 | AZ83: 28.5993 | BC83: rs372492515 | BD83: T | BE83: C | BF83: 0.000425 | BG83: 2.95e-05 | BH83: -0.204161 | BI83: 0.0488746 | BJ83: rs3806415 | BK83: T | BL83: C | BM83: 0.31354 | BN83: 0.576312 | BO83: 0.00725676 | BP83: 0.0129698 | BQ83: 0.00004 | BR83: 17.4493
A84: rs184344489 | B84: A | C84: G | D84: 0.00246 | E84: 3.11e-11 | F84: 0.119011 | G84: 0.0179205 | H84: rs17326656 | I84: T | J84: G | K84: 0.21718 | L84: 0.224502 | M84: 0.0178029 | N84: 0.0146578 | O84: 0.00007 | P84: 44.1036 | S84: rs115054770 | T84: A | U84: C | V84: 0.0182 | W84: 1.38e-07 | X84: -0.0275115 | Y84: 0.00522222 | Z84: rs2358040 | AA84: G | AB84: T | AC84: 0.49297 | AD84: 0.786483 | AE84: 0.00317393 | AF84: 0.0117003 | AG84: 0.00003 | AH84: 27.7535 | AK84: rs563247839 | AL84: T | AM84: C | AN84: 0.000289 | AO84: 1.72e-07 | AP84: 0.477952 | AQ84: 0.0914305 | AR84: rs17849502 | AS84: T | AT84: G | AU84: 0.05127 | AV84: 0.008841 | AW84: 0.0709517 | AX84: 0.0270938 | AY84: 0.00013 | AZ84: 27.3266 | BC84: rs17413959 | BD84: G | BE84: A | BF84: 0.141 | BG84: 1.25e-08 | BH84: -0.0114942 | BI84: 0.00201905 | BJ84: rs7412819 | BK84: T | BL84: C | BM84: 0.91613 | BN84: 0.626583 | BO84: 0.0101421 | BP84: 0.0208469 | BQ84: 0.00003 | BR84: 32.4088
A85: rs1056074 | B85: C | C85: T | D85: 0.169 | E85: 1.34e-08 | F85: -0.0104193 | G85: 0.00183405 | H85: rs12997031 | I85: A | J85: G | K85: 0.43649 | L85: 0.183073 | M85: 0.0161149 | N85: 0.0121042 | O85: 0.00003 | P85: 32.2741 | S85: rs35806535 | T85: T | U85: C | V85: 0.191 | W85: 2.99e-08 | X85: 0.00982919 | Y85: 0.00177355 | Z85: rs1107850 | AA85: A | AB85: G | AC85: 0.47885 | AD85: 0.547203 | AE85: 0.00704035 | AF85: 0.0117003 | AG85: 0.00003 | AH85: 30.7149 | AK85: rs11264224 | AL85: C | AM85: A | AN85: 0.165 | AO85: 3.88e-11 | AP85: 0.0127621 | AQ85: 0.00193111 | AR85: rs10911505 | AS85: C | AT85: T | AU85: 0.35659 | AV85: 0.744215 | AW85: 0.00401069 | AX85: 0.0122773 | AY85: 0.00004 | AZ85: 43.6747 | BC85: rs1966210 | BD85: T | BE85: C | BF85: 0.416 | BG85: 1.52e-06 | BH85: -0.0067301 | BI85: 0.00139944 | BJ85: rs2369607 | BK85: C | BL85: A | BM85: 0.38839 | BN85: 0.625841 | BO85: 0.00591505 | BP85: 0.0121331 | BQ85: 0.00002 | BR85: 23.1278
A86: rs13432533 | B86: G | C86: A | D86: 0.465 | E86: 1.65e-10 | F86: 0.00885955 | G86: 0.00138626 | H86: rs805317 | I86: T | J86: A | K86: 0.53659 | L86: 0.254988 | M86: 0.0137056 | N86: 0.0120321 | O86: 0.00004 | P86: 40.8445 | S86: rs56105022 | T86: A | U86: G | V86: 0.0348 | W86: 2.09e-14 | X86: -0.030072 | Y86: 0.00393367 | Z86: rs676210 | AA86: A | AB86: G | AC86: 0.24422 | AD86: 0.66317 | AE86: 0.00592948 | AF86: 0.013619 | AG86: 0.00006 | AH86: 58.4425 | AK86: rs151026328 | AL86: A | AM86: G | AN86: 0.0282 | AO86: 9.13e-08 | AP86: -0.0235203 | AQ86: 0.00440195 | AR86: rs2298883 | AS86: A | AT86: G | AU86: 0.8194 | AV86: 0.28552 | AW86: 0.0161005 | AX86: 0.0150762 | AY86: 0.00003 | AZ86: 28.5493 | BC86: rs11161570 | BD86: T | BE86: C | BF86: 0.499 | BG86: 5.88e-11 | BH86: 0.0090078 | BI86: 0.00137593 | BJ86: rs4656984 | BK86: T | BL86: C | BM86: 0.37032 | BN86: 0.483326 | BO86: 0.00913226 | BP86: 0.0130131 | BQ86: 0.00004 | BR86: 42.8593
A87: rs13389106 | B87: G | C87: T | D87: 0.195 | E87: 9.3e-13 | F87: -0.0123905 | G87: 0.00173526 | H87: rs12477711 | I87: C | J87: T | K87: 0.53267 | L87: 0.179502 | M87: 0.0160428 | N87: 0.0119455 | O87: 0.00005 | P87: 50.9857 | S87: rs7553823 | T87: A | U87: T | V87: 0.0435 | W87: 2.95e-10 | X87: -0.0211654 | Y87: 0.0033588 | Z87: rs1056074 | AA87: C | AB87: T | AC87: 0.17516 | AD87: 0.286922 | AE87: 0.0165044 | AF87: 0.015509 | AG87: 0.00004 | AH87: 39.7086 | AK87: rs61813324 | AL87: T | AM87: C | AN87: 0.129 | AO87: 1.05e-09 | AP87: -0.0127338 | AQ87: 0.00208696 | AR87: rs6675366 | AS87: C | AT87: T | AU87: 0.06072 | AV87: 0.14466 | AW87: 0.0345381 | AX87: 0.0236891 | AY87: 0.00004 | AZ87: 37.2296 | BC87: rs184603761 | BD87: A | BE87: G | BF87: 0.00473 | BG87: 4.71e-07 | BH87: -0.0578823 | BI87: 0.01149 | BJ87: rs1771582 | BK87: G | BL87: T | BM87: 0.54156 | BN87: 0.07628 | BO87: 0.0260695 | BP87: 0.0147011 | BQ87: 0.00003 | BR87: 25.3777
A88: rs72790679 | B88: A | C88: G | D88: 0.016 | E88: 1.83e-08 | F88: 0.0321936 | G88: 0.00572048 | H88: rs17049712 | I88: T | J88: C | K88: 0.29072 | L88: 0.073646 | M88: 0.0233572 | N88: 0.0130564 | O88: 0.00003 | P88: 31.6719 | S88: rs6690181 | T88: C | U88: T | V88: 0.387 | W88: 6.82e-09 | X88: 0.00938577 | Y88: 0.00161955 | Z88: rs71439172 | AA88: A | AB88: G | AC88: 0.14815 | AD88: 0.253242 | AE88: 0.0199958 | AF88: 0.0174999 | AG88: 0.00004 | AH88: 33.5854 | AK88: rs3806415 | AL88: T | AM88: C | AN88: 0.325 | AO88: 1.76e-14 | AP88: 0.011271 | AQ88: 0.00147006 | AR88: rs12410613 | AS88: C | AT88: G | AU88: 0.14213 | AV88: 0.356281 | AW88: 0.0163602 | AX88: 0.0177451 | AY88: 0.00006 | AZ88: 58.7834 | BC88: NA | BD88: T | BE88: G | BF88: 0.00209 | BG88: 4.12e-05 | BH88: -0.452692 | BI88: 0.110396 | BJ88: rs2279469 | BK88: C | BL88: G | BM88: 0.50219 | BN88: 0.722811 | BO88: 0.00414053 | BP88: 0.0116858 | BQ88: 0.00085 | BR88: 16.8151
A89: rs62136301 | B89: G | C89: A | D89: 0.193 | E89: 2.67e-10 | F89: 0.0111928 | G89: 0.0017719 | H89: rs17432483 | I89: C | J89: T | K89: 0.05727 | L89: 0.606324 | M89: 0.0141384 | N89: 0.0274401 | O89: 0.00004 | P89: 39.9024 | S89: rs10127775 | T89: A | U89: T | V89: 0.4 | W89: 6.73e-291 | X89: -0.0511741 | Y89: 0.00140393 | Z89: rs13432533 | AA89: A | AB89: G | AC89: 0.52569 | AD89: 0.000134 | AE89: 0.0459643 | AF89: 0.0120321 | AG89: 0.00126 | AH89: 1328.6467 | AK89: rs4656984 | AL89: T | AM89: C | AN89: 0.39 | AO89: 1.17e-12 | AP89: -0.0103285 | AQ89: 0.00145299 | AR89: rs2821388 | AS89: G | AT89: A | AU89: 0.2708 | AV89: 0.498037 | AW89: 0.00903127 | AX89: 0.0133305 | AY89: 0.00005 | AZ89: 50.5300 | BC89: rs138805281 | BD89: A | BE89: T | BF89: 0.0137 | BG89: 3.88e-09 | BH89: -0.0370068 | BI89: 0.0062839 | BJ89: rs2205846 | BK89: G | BL89: A | BM89: 0.6911 | BN89: 0.621721 | BO89: 0.006319 | BP89: 0.0128256 | BQ89: 0.00004 | BR89: 34.6820
A90: rs12478677 | B90: T | C90: C | D90: 0.425 | E90: 3.69e-08 | F90: -0.0077619 | G90: 0.00140996 | H90: rs2540949 | I90: A | J90: T | K90: 0.61637 | L90: 0.489967 | M90: 0.00843977 | N90: 0.0122196 | O90: 0.00003 | P90: 30.3056 | S90: rs145957520 | T90: C | U90: CAT | V90: 0.044 | W90: 1.04e-11 | X90: -0.0256918 | Y90: 0.00377755 | Z90: rs7586601 | AA90: G | AB90: A | AC90: 0.43694 | AD90: 0.611164 | AE90: 0.00611703 | AF90: 0.0120176 | AG90: 0.00006 | AH90: 46.2561 | AK90: rs1771582 | AL90: T | AM90: G | AN90: 0.435 | AO90: 1.67e-11 | AP90: -0.0111108 | AQ90: 0.00165046 | AR90: rs12119128 | AS90: A | AT90: G | AU90: 0.28969 | AV90: 0.002744 | AW90: 0.0395298 | AX90: 0.0132007 | AY90: 0.00006 | AZ90: 45.3190 | BC90: rs186942696 | BD90: T | BE90: C | BF90: 0.0202 | BG90: 1.54e-05 | BH90: -0.0246833 | BI90: 0.00571074 | BJ90: rs6425364 | BK90: G | BL90: T | BM90: 0.71058 | BN90: 0.812216 | BO90: 0.0031595 | BP90: 0.0133161 | BQ90: 0.00002 | BR90: 18.6819
A91: rs12998038 | B91: T | C91: C | D91: 0.256 | E91: 4.82e-10 | F91: 0.0100034 | G91: 0.00160702 | H91: rs11883967 | I91: A | J91: C | K91: 0.35665 | L91: 0.733651 | M91: 0.0042848 | N91: 0.0125947 | O91: 0.00004 | P91: 38.7483 | S91: rs553427 | T91: C | U91: T | V91: 0.473 | W91: 1.14e-34 | X91: -0.0171565 | Y91: 0.00139696 | Z91: rs13389106 | AA91: G | AB91: T | AC91: 0.18806 | AD91: 0.694639 | AE91: 0.00618916 | AF91: 0.0157687 | AG91: 0.00015 | AH91: 150.8306 | AK91: rs2279469 | AL91: C | AM91: G | AN91: 0.495 | AO91: 2.2e-06 | AP91: -0.00657488 | AQ91: 0.00138883 | AR91: rs7532633 | AS91: C | AT91: T | AU91: 0.44454 | AV91: 0.475516 | AW91: 0.00855518 | AX91: 0.0119888 | AY91: 0.00002 | AZ91: 22.4118 | BC91: rs12089815 | BD91: G | BE91: A | BF91: 0.463 | BG91: 2.81e-08 | BH91: -0.0077441 | BI91: 0.00139468 | BJ91: rs9425299 | BK91: C | BL91: T | BM91: 0.44326 | BN91: 0.034638 | BO91: 0.025276 | BP91: 0.0119599 | BQ91: 0.00003 | BR91: 30.8314
A92: rs79154515 | B92: A | C92: G | D92: 0.112 | E92: 4.37e-08 | F92: -0.0119507 | G92: 0.00218275 | H92: rs6546564 | I92: T | J92: C | K92: 0.39517 | L92: 0.370705 | M92: 0.0110943 | N92: 0.0123928 | O92: 0.00003 | P92: 29.9763 | S92: rs4006430 | T92: C | U92: G | V92: 0.23 | W92: 2.24e-09 | X92: -0.00995599 | Y92: 0.00166507 | Z92: rs72790679 | AA92: A | AB92: G | AC92: 0.017 | AD92: 0.607344 | AE92: 0.0278007 | AF92: 0.0540866 | AG92: 0.00004 | AH92: 35.7523 | AK92: rs2205846 | AL92: A | AM92: G | AN92: 0.322 | AO92: 1.4e-06 | AP92: 0.0071329 | AQ92: 0.0014785 | AR92: rs13303359 | AS92: A | AT92: C | AU92: 0.49059 | AV92: 0.846459 | AW92: 0.00292867 | AX92: 0.0151483 | AY92: 0.00002 | AZ92: 23.2750 | BC92: rs17881268 | BD92: A | BE92: G | BF92: 0.0266 | BG92: 1.26e-06 | BH92: 0.0215826 | BI92: 0.00445352 | BJ92: rs9425779 | BK92: C | BL92: A | BM92: 0.12393 | BN92: 0.394406 | BO92: 0.0147443 | BP92: 0.0173123 | BQ92: 0.00002 | BR92: 23.4855
A93: rs17326656 | B93: T | C93: G | D93: 0.231 | E93: 4.73e-23 | F93: -0.0162522 | G93: 0.00164376 | H93: rs7586605 | I93: C | J93: T | K93: 0.25491 | L93: 0.73061 | M93: 0.00500615 | N93: 0.0145424 | O93: 0.00009 | P93: 97.7569 | S93: rs12037424 | T93: C | U93: T | V93: 0.286 | W93: 1.85e-07 | X93: -0.00791379 | Y93: 0.00151772 | Z93: rs62136301 | AA93: A | AB93: G | AC93: 0.82012 | AD93: 0.837629 | AE93: 0.00324606 | AF93: 0.0158264 | AG93: 0.00003 | AH93: 27.1885 | AK93: rs6425364 | AL93: T | AM93: G | AN93: 0.299 | AO93: 1.03e-09 | AP93: -0.00922715 | AQ93: 0.00151141 | AR93: rs3862948 | AS93: A | AT93: C | AU93: 0.25073 | AV93: 0.009528 | AW93: 0.0342352 | AX93: 0.0132007 | AY93: 0.00004 | AZ93: 37.2710 | BC93: rs556652781 | BD93: A | BE93: G | BF93: 5.24e-05 | BG93: 4.21e-05 | BH93: -0.734328 | BI93: 0.179285 | BJ93: rs10218528 | BK93: A | BL93: T | BM93: 0.3891 | BN93: 0.537831 | BO93: 0.00755972 | BP93: 0.0122773 | BQ93: 0.00006 | BR93: 16.7761
A94: rs12997031 | B94: A | C94: G | D94: 0.424 | E94: 8.5e-09 | F94: -0.00809155 | G94: 0.00140523 | H94: rs56304923 | I94: T | J94: C | K94: 0.80923 | L94: 0.037259 | M94: 0.0331964 | N94: 0.0159418 | O94: 0.00003 | P94: 33.1565 | S94: rs17713729 | T94: C | U94: A | V94: 0.352 | W94: 7.84e-28 | X94: 0.0157694 | Y94: 0.0014421 | Z94: rs115030737 | AA94: C | AB94: T | AC94: 0.98985 | AD94: 0.140548 | AE94: 0.108967 | AF94: 0.0739381 | AG94: 0.00011 | AH94: 119.5748 | AK94: rs9425299 | AL94: C | AM94: T | AN94: 0.43 | AO94: 3.45e-17 | AP94: -0.0117647 | AQ94: 0.00139555 | AR94: rs3747973 | AS94: A | AT94: G | AU94: 0.40421 | AV94: 0.10034 | AW94: 0.0191157 | AX94: 0.0116281 | AY94: 0.00007 | AZ94: 71.0675 | BC94: rs140071297 | BD94: A | BE94: G | BF94: 0.0139 | BG94: 6.88e-07 | BH94: 0.0316293 | BI94: 0.00637073 | BJ94: rs12041149 | BK94: T | BL94: A | BM94: 0.27455 | BN94: 0.259954 | BO94: 0.0153214 | BP94: 0.0136046 | BQ94: 0.00003 | BR94: 24.6491
A95: rs805317 | B95: A | C95: T | D95: 0.449 | E95: 2.47e-14 | F95: 0.010611 | G95: 0.0013919 | H95: rs62154466 | I95: G | J95: A | K95: 0.97686 | L95: 0.047208 | M95: 0.091943 | N95: 0.0463249 | O95: 0.00006 | P95: 58.1161 | S95: rs397983732 | T95: CT | U95: C | V95: 0.408 | W95: 3.97e-07 | X95: -0.00813116 | Y95: 0.00160368 | Z95: rs12478677 | AA95: C | AB95: T | AC95: 0.54707 | AD95: 0.362746 | AE95: 0.0108923 | AF95: 0.0119599 | AG95: 0.00003 | AH95: 25.7081 | AK95: rs9425779 | AL95: C | AM95: A | AN95: 0.112 | AO95: 2.17e-08 | AP95: -0.0123823 | AQ95: 0.00221211 | AR95: rs9242 | AS95: C | AT95: T | AU95: 0.49458 | AV95: 0.242061 | AW95: 0.0137922 | AX95: 0.0117868 | AY95: 0.00003 | AZ95: 31.3321 | BC95: rs4847419 | BD95: T | BE95: A | BF95: 0.362 | BG95: 1.7e-71 | BH95: 0.0258976 | BI95: 0.00144843 | BJ95: rs478788 | BK95: C | BL95: T | BM95: 0.22391 | BN95: 0.236048 | BO95: 0.0166631 | BP95: 0.0140663 | BQ95: 0.00031 | BR95: 319.6863
A96: rs12477711 | B96: T | C96: C | D96: 0.464 | E96: 1.46e-09 | F96: -0.00837541 | G96: 0.0013846 | H96: rs4851250 | I96: T | J96: C | K96: 0.82208 | L96: 0.495136 | M96: 0.0106759 | N96: 0.0156532 | O96: 0.00003 | P96: 36.5901 | S96: rs6542680 | T96: C | U96: T | V96: 0.192 | W96: 2.24e-37 | X96: 0.0226427 | Y96: 0.00177231 | Z96: rs12998038 | AA96: C | AB96: T | AC96: 0.76328 | AD96: 0.891463 | AE96: 0.00199092 | AF96: 0.0145712 | AG96: 0.00016 | AH96: 163.2214 | AK96: rs10218528 | AL96: A | AM96: T | AN96: 0.385 | AO96: 1.68e-09 | AP96: -0.00887135 | AQ96: 0.00147212 | AR96: rs11576725 | AS96: G | AT96: A | AU96: 0.72474 | AV96: 0.844897 | AW96: 0.00268341 | AX96: 0.0137345 | AY96: 0.00004 | AZ96: 36.3156 | BC96: rs11165579 | BD96: G | BE96: A | BF96: 0.3 | BG96: 1.03e-06 | BH96: -0.00737317 | BI96: 0.00150899 | BJ96: rs10913570 | BK96: C | BL96: A | BM96: 0.51367 | BN96: 0.015321 | BO96: 0.0281903 | BP96: 0.0116281 | BQ96: 0.00002 | BR96: 23.8746
A97: rs17049712 | B97: T | C97: C | D97: 0.295 | E97: 2.16e-15 | F97: -0.0120282 | G97: 0.00151647 | H97: rs4851057 | I97: C | J97: T | K97: 0.88434 | L97: 0.556074 | M97: 0.0111953 | N97: 0.0190147 | O97: 0.00006 | P97: 62.9120 | S97: rs2358040 | T97: G | U97: T | V97: 0.487 | W97: 7.51e-09 | X97: -0.00795727 | Y97: 0.00137689 | Z97: rs79154515 | AA97: A | AB97: G | AC97: 0.10856 | AD97: 0.51617 | AE97: 0.0130708 | AF97: 0.0201256 | AG97: 0.00003 | AH97: 33.3987 | AK97: rs12041149 | AL97: T | AM97: A | AN97: 0.278 | AO97: 7.04e-07 | AP97: -0.00787466 | AQ97: 0.00158757 | AR97: rs12034991 | AS97: G | AT97: A | AU97: 0.34281 | AV97: 0.003707 | AW97: 0.0361395 | AX97: 0.0124505 | AY97: 0.00002 | AZ97: 24.6036 | BC97: rs355364 | BD97: A | BE97: G | BF97: 0.348 | BG97: 1.03e-07 | BH97: 0.00769742 | BI97: 0.00144628 | BJ97: rs3845412 | BK97: T | BL97: C | BM97: 0.58462 | BN97: 0.29686 | BO97: 0.0125226 | BP97: 0.0120032 | BQ97: 0.00003 | BR97: 28.3260
A98: rs17432483 | B98: C | C98: T | D98: 0.0611 | E98: 1.03e-09 | F98: -0.0178632 | G98: 0.00292584 | H98: rs3761706 | I98: A | J98: G | K98: 0.06502 | L98: 0.0206 | M98: 0.055688 | N98: 0.0240497 | O98: 0.00004 | P98: 37.2750 | S98: rs1107850 | T98: A | U98: G | V98: 0.485 | W98: 8.96e-22 | X98: -0.0132386 | Y98: 0.00138071 | Z98: rs17326656 | AA98: T | AB98: G | AC98: 0.21718 | AD98: 0.224502 | AE98: 0.0178029 | AF98: 0.0146578 | AG98: 0.00009 | AH98: 91.9346 | AK98: rs553409824 | AL98: A | AM98: AAAGG | AN98: 0.0131 | AO98: 3.82e-06 | AP98: -0.0355005 | AQ98: 0.00768268 | AR98: rs12023488 | AS98: C | AT98: T | AU98: 0.6371 | AV98: 0.674463 | AW98: 0.00512157 | AX98: 0.0122052 | AY98: 0.00003 | AZ98: 21.3522 | BC98: rs541118105 | BD98: A | BE98: G | BF98: 4.65e-05 | BG98: 3.32e-05 | BH98: -1.25151 | BI98: 0.301553 | BJ98: rs1689797 | BK98: A | BL98: C | BM98: 0.32423 | BN98: 0.68886 | BO98: 0.00499172 | BP98: 0.0124649 | BQ98: 0.00015 | BR98: 17.2243
A99: rs2540949 | B99: T | C99: A | D99: 0.383 | E99: 4.26e-31 | F99: 0.0164761 | G99: 0.00142071 | H99: rs11688682 | I99: G | J99: C | K99: 0.75844 | L99: 0.658156 | M99: 0.00708363 | N99: 0.0159995 | O99: 0.00013 | P99: 134.4925 | S99: rs676210 | T99: A | U99: G | V99: 0.214 | W99: 2e-286 | X99: 0.0604574 | Y99: 0.00167161 | Z99: rs12997031 | AA99: A | AB99: G | AC99: 0.43649 | AD99: 0.183073 | AE99: 0.0161149 | AF99: 0.0121042 | AG99: 0.00123 | AH99: 1308.0641 | AK99: rs478788 | AL99: C | AM99: T | AN99: 0.226 | AO99: 7.66e-11 | AP99: -0.0106953 | AQ99: 0.00164364 | AR99: rs4528088 | AS99: A | AT99: G | AU99: 0.46546 | AV99: 0.669155 | AW99: 0.00506386 | AX99: 0.0118445 | AY99: 0.00004 | AZ99: 42.3421 | BC99: rs3900628 | BD99: A | BE99: C | BF99: 0.388 | BG99: 5.4e-07 | BH99: 0.00722768 | BI99: 0.00144218 | BJ99: rs116464992 | BK99: T | BL99: C | BM99: 0.01821 | BN99: 0.443698 | BO99: 0.0454016 | BP99: 0.0592659 | BQ99: 0.00002 | BR99: 25.1165
A100: rs11883967 | B100: A | C100: C | D100: 0.338 | E100: 2.31e-13 | F100: -0.0107699 | G100: 0.00146939 | H100: rs10211103 | I100: T | J100: C | K100: 0.77945 | L100: 0.31836 | M100: 0.0144991 | N100: 0.0145279 | O100: 0.00005 | P100: 53.7216 | S100: rs184344489 | T100: A | U100: G | V100: 0.00246 | W100: 3.11e-11 | X100: 0.119011 | Y100: 0.0179205 | Z100: rs805317 | AA100: T | AB100: A | AC100: 0.53659 | AD100: 0.254988 | AE100: 0.0137056 | AF100: 0.0120321 | AG100: 0.00007 | AH100: 44.1036 | AK100: rs10913570 | AL100: A | AM100: C | AN100: 0.481 | AO100: 1.53e-39 | AP100: 0.0181662 | AQ100: 0.00138062 | AR100: rs144848582 | AS100: A | AT100: AT | AU100: 0.62728 | AV100: 0.826452 | AW100: 0.00285654 | AX100: 0.013042 | AY100: 0.00016 | AZ100: 173.1330 | BC100: rs553409358 | BD100: G | BE100: T | BF100: 0.000472 | BG100: 3.25e-05 | BH100: -0.209539 | BI100: 0.0504266 | BJ100: rs17849502 | BK100: T | BL100: G | BM100: 0.05127 | BN100: 0.008841 | BO100: 0.0709517 | BP100: 0.0270938 | BQ100: 0.00004 | BR100: 17.2667
A101: rs6546564 | B101: T | C101: C | D101: 0.374 | E101: 2.99e-08 | F101: 0.00792448 | G101: 0.0014299 | H101: rs840873 | I101: T | J101: C | K101: 0.96008 | L101: 0.115483 | M101: 0.0531922 | N101: 0.0337879 | O101: 0.00003 | P101: 30.7136 | S101: rs113236368 | T101: C | U101: T | V101: 0.00229 | W101: 7.74e-08 | X101: 0.0989932 | Y101: 0.0184235 | Z101: rs12477711 | AA101: C | AB101: T | AC101: 0.53267 | AD101: 0.179502 | AE101: 0.0160428 | AF101: 0.0119455 | AG101: 0.00004 | AH101: 28.8713 | AK101: rs3845412 | AL101: C | AM101: T | AN101: 0.4 | AO101: 1.46e-06 | AP101: -0.0068534 | AQ101: 0.00142276 | AR101: rs59770119 | AS101: A | AT101: G | AU101: 0.54704 | AV101: 0.050515 | AW101: 0.0237035 | AX101: 0.0121186 | AY101: 0.00002 | AZ101: 23.2033 | BC101: rs188195212 | BD101: A | BE101: G | BF101: 0.00145 | BG101: 4.6e-05 | BH101: 0.0850089 | BI101: 0.0208596 | BJ101: rs10911505 | BK101: C | BL101: T | BM101: 0.35659 | BN101: 0.744215 | BO101: 0.00401069 | BP101: 0.0122773 | BQ101: 0.00002 | BR101: 16.6080
A102: rs7586605 | B102: C | C102: T | D102: 0.27 | E102: 6.27e-15 | F102: -0.0121958 | G102: 0.00156389 | H102: rs35564151 | I102: G | J102: A | K102: 0.55188 | L102: 0.208617 | M102: 0.0164034 | N102: 0.013042 | O102: 0.00006 | P102: 60.8146 | S102: rs1056074 | T102: C | U102: T | V102: 0.169 | W102: 1.34e-08 | X102: -0.0104193 | Y102: 0.00183405 | Z102: rs17049712 | AA102: T | AB102: C | AC102: 0.29072 | AD102: 0.073646 | AE102: 0.0233572 | AF102: 0.0130564 | AG102: 0.00003 | AH102: 32.2741 | AK102: rs1689797 | AL102: A | AM102: C | AN102: 0.326 | AO102: 2.59e-70 | AP102: -0.0260934 | AQ102: 0.00147195 | AR102: rs2642438 | AS102: G | AT102: A | AU102: 0.70795 | AV102: 0.943717 | AW102: 0.00157254 | AX102: 0.0222319 | AY102: 0.00030 | AZ102: 314.2500 | BC102: rs113329442 | BD102: G | BE102: A | BF102: 0.329 | BG102: 6.88e-10 | BH102: -0.00917482 | BI102: 0.00148731 | BJ102: rs57234886 | BK102: T | BL102: G | BM102: 0.15512 | BN102: 0.282311 | BO102: 0.017572 | BP102: 0.0163457 | BQ102: 0.00004 | BR102: 38.0533
A103: rs56304923 | B103: C | C103: T | D103: 0.189 | E103: 3.32e-08 | F103: 0.00975366 | G103: 0.0017658 | H103: rs1869829 | I103: G | J103: A | K103: 0.30074 | L103: 0.914521 | M103: 0.00147155 | N103: 0.0137489 | O103: 0.00003 | P103: 30.5107 | S103: rs71439172 | T103: A | U103: G | V103: 0.148 | W103: 7.57e-08 | X103: 0.0107274 | Y103: 0.00199503 | Z103: rs356979 | AA103: C | AB103: T | AC103: 0.69271 | AD103: 0.039383 | AE103: 0.0272958 | AF103: 0.0132439 | AG103: 0.00003 | AH103: 28.9128 | AK103: rs116464992 | AL103: T | AM103: C | AN103: 0.0185 | AO103: 2.44e-08 | AP103: -0.0316987 | AQ103: 0.0056835 | AR103: rs115054770 | AS103: A | AT103: C | AU103: 0.02062 | AV103: 0.251344 | AW103: 0.0511435 | AX103: 0.0445937 | AY103: 0.00004 | AZ103: 31.1065 | BC103: rs78696806 | BD103: T | BE103: C | BF103: 0.0457 | BG103: 8.78e-07 | BH103: 0.0167068 | BI103: 0.00339766 | BJ103: rs12044133 | BK103: G | BL103: A | BM103: 0.49652 | BN103: 0.302288 | BO103: 0.0120176 | BP103: 0.0116425 | BQ103: 0.00002 | BR103: 24.1784
A104: rs62154466 | B104: A | C104: G | D104: 0.0217 | E104: 4.2e-08 | F104: 0.0266595 | G104: 0.00486276 | H104: rs3739020 | I104: G | J104: T | K104: 0.25501 | L104: 0.152465 | M104: 0.0193177 | N104: 0.0135036 | O104: 0.00003 | P104: 30.0565 | S104: rs13432533 | T104: G | U104: A | V104: 0.465 | W104: 1.65e-10 | X104: 0.00885955 | Y104: 0.00138626 | Z104: rs17432483 | AA104: C | AB104: T | AC104: 0.05727 | AD104: 0.606324 | AE104: 0.0141384 | AF104: 0.0274401 | AG104: 0.00004 | AH104: 40.8445 | AK104: rs17849502 | AL104: T | AM104: G | AN104: 0.0476 | AO104: 3.43e-08 | AP104: -0.0178945 | AQ104: 0.00324307 | AR104: rs35806535 | AS104: C | AT104: T | AU104: 0.78785 | AV104: 1.28e-06 | AW104: 0.072885 | AX104: 0.0150329 | AY104: 0.00003 | AZ104: 30.4457 | BC104: rs111751551 | BD104: A | BE104: G | BF104: 0.0101 | BG104: 1.75e-09 | BH104: 0.0417235 | BI104: 0.00693109 | BJ104: rs2298883 | BK104: A | BL104: G | BM104: 0.8194 | BN104: 0.28552 | BO104: 0.0161005 | BP104: 0.0150762 | BQ104: 0.00003 | BR104: 36.2375
A105: rs4851250 | B105: C | C105: T | D105: 0.172 | E105: 5.74e-16 | F105: 0.0147729 | G105: 0.00182499 | H105: rs7568603 | I105: T | J105: G | K105: 0.43011 | L105: 0.517787 | M105: 0.00802138 | N105: 0.0124072 | O105: 0.00006 | P105: 65.5255 | S105: rs7586601 | T105: G | U105: A | V105: 0.447 | W105: 2.01e-07 | X105: 0.00729186 | Y105: 0.00140282 | Z105: rs2540949 | AA105: A | AB105: T | AC105: 0.61637 | AD105: 0.489967 | AE105: 0.00843977 | AF105: 0.0122196 | AG105: 0.00003 | AH105: 27.0192 | AK105: rs10911505 | AL105: C | AM105: T | AN105: 0.359 | AO105: 1.02e-09 | AP105: -0.00881276 | AQ105: 0.00144326 | AR105: rs6674492 | AS105: A | AT105: G | AU105: 0.75995 | AV105: 0.439845 | AW105: 0.0107337 | AX105: 0.0138932 | AY105: 0.00004 | AZ105: 37.2851 | BC105: rs646776 | BD105: C | BE105: T | BF105: 0.22 | BG105: 5.71e-98 | BH105: 0.0346789 | BI105: 0.00165086 | BJ105: rs17564924 | BK105: C | BL105: T | BM105: 0.30553 | BN105: 0.007973 | BO105: 0.0339178 | BP105: 0.0127823 | BQ105: 0.00041 | BR105: 441.2758
A106: rs62152938 | B106: T | C106: G | D106: 0.304 | E106: 4.23e-10 | F106: -0.00952572 | G106: 0.00152522 | H106: rs2598503 | I106: T | J106: C | K106: 0.58898 | L106: 0.990002 | M106: 0.000158696 | N106: 0.0125514 | O106: 0.00004 | P106: 39.0059 | S106: rs13389106 | T106: G | U106: T | V106: 0.195 | W106: 9.3e-13 | X106: -0.0123905 | Y106: 0.00173526 | Z106: rs11883967 | AA106: A | AB106: C | AC106: 0.35665 | AD106: 0.733651 | AE106: 0.0042848 | AF106: 0.0125947 | AG106: 0.00005 | AH106: 50.9857 | AK106: rs185987460 | AL106: A | AM106: G | AN106: 0.00246 | AO106: 1.94e-06 | AP106: -0.0763272 | AQ106: 0.0160362 | AR106: rs56105022 | AS106: A | AT106: G | AU106: 0.0361 | AV106: 0.732517 | AW106: 0.0119311 | AX106: 0.0348844 | AY106: 0.00003 | AZ106: 22.6546 | BC106: rs333947 | BD106: A | BE106: G | BF106: 0.15 | BG106: 7.3e-42 | BH106: -0.0267442 | BI106: 0.00197286 | BJ106: rs6675366 | BK106: C | BL106: T | BM106: 0.06072 | BN106: 0.14466 | BO106: 0.0345381 | BP106: 0.0236891 | BQ106: 0.00018 | BR106: 183.7666
A107: rs4851057 | B107: T | C107: C | D107: 0.123 | E107: 4.34e-08 | F107: -0.0113803 | G107: 0.00207812 | H107: rs7596408 | I107: G | J107: A | K107: 0.65005 | L107: 0.163002 | M107: 0.017572 | N107: 0.0125947 | O107: 0.00003 | P107: 29.9893 | S107: rs72790679 | T107: A | U107: G | V107: 0.016 | W107: 1.83e-08 | X107: 0.0321936 | Y107: 0.00572048 | Z107: rs6546564 | AA107: T | AB107: C | AC107: 0.39517 | AD107: 0.370705 | AE107: 0.0110943 | AF107: 0.0123928 | AG107: 0.00003 | AH107: 31.6719 | AK107: rs568720782 | AL107: G | AM107: A | AN107: 0.000403 | AO107: 4.88e-06 | AP107: -0.291852 | AQ107: 0.0638622 | AR107: rs7553823 | AS107: A | AT107: T | AU107: 0.04658 | AV107: 0.36426 | AW107: 0.0262859 | AX107: 0.0289693 | AY107: 0.00007 | AZ107: 20.8851 | BC107: rs781310068 | BD107: T | BE107: G | BF107: 0.000304 | BG107: 4.65e-06 | BH107: 0.286498 | BI107: 0.0625562 | BJ107: rs12410613 | BK107: C | BL107: G | BM107: 0.14213 | BN107: 0.356281 | BO107: 0.0163602 | BP107: 0.0177451 | BQ107: 0.00005 | BR107: 20.9750
A108: rs3761706 | B108: A | C108: G | D108: 0.06 | E108: 2.69e-11 | F108: -0.0192006 | G108: 0.00288174 | H108: rs11900786 | I108: T | J108: C | K108: 0.15594 | L108: 0.933317 | M108: 0.0015004 | N108: 0.0179616 | O108: 0.00004 | P108: 44.3936 | S108: rs62136301 | T108: G | U108: A | V108: 0.193 | W108: 2.67e-10 | X108: 0.0111928 | Y108: 0.0017719 | Z108: rs7586605 | AA108: C | AB108: T | AC108: 0.25491 | AD108: 0.73061 | AE108: 0.00500615 | AF108: 0.0145424 | AG108: 0.00004 | AH108: 39.9024 | AK108: rs763908543 | AL108: C | AM108: CAT | AN108: 0.000665 | AO108: 4.14e-06 | AP108: -0.254516 | AQ108: 0.0552794 | AR108: rs143756921 | AS108: G | AT108: A | AU108: 0.03723 | AV108: 0.712304 | AW108: 0.012436 | AX108: 0.0337302 | AY108: 0.00009 | AZ108: 21.1984 | BC108: rs79082053 | BD108: A | BE108: G | BF108: 0.03 | BG108: 2.23e-05 | BH108: -0.0180335 | BI108: 0.00425258 | BJ108: rs2821388 | BK108: G | BL108: A | BM108: 0.2708 | BN108: 0.498037 | BO108: 0.00903127 | BP108: 0.0133305 | BQ108: 0.00002 | BR108: 17.9827
A109: rs11688682 | B109: C | C109: G | D109: 0.257 | E109: 6.39e-23 | F109: 0.0177778 | G109: 0.00180355 | H109: rs76840964 | I109: G | J109: A | K109: 0.11282 | L109: 0.168468 | M109: 0.0291713 | N109: 0.0211788 | O109: 0.00012 | P109: 97.1627 | S109: rs861919 | T109: T | U109: C | V109: 0.468 | W109: 4.52e-07 | X109: 0.00702686 | Y109: 0.00139271 | Z109: rs56304923 | AA109: T | AB109: C | AC109: 0.80923 | AD109: 0.037259 | AE109: 0.0331964 | AF109: 0.0159418 | AG109: 0.00002 | AH109: 25.4566 | AK109: rs536946988 | AL109: A | AM109: C | AN109: 0.000414 | AO109: 4.68e-06 | AP109: -0.434727 | AQ109: 0.094948 | AR109: rs114987279 | AS109: T | AT109: C | AU109: 0.03685 | AV109: 0.257812 | AW109: 0.0385632 | AX109: 0.0340765 | AY109: 0.00016 | AZ109: 20.9634 | BC109: rs12033257 | BD109: G | BE109: A | BF109: 0.382 | BG109: 3.26e-09 | BH109: 0.00862025 | BI109: 0.00145669 | BJ109: rs12119128 | BK109: A | BL109: G | BM109: 0.28969 | BN109: 0.002744 | BO109: 0.0395298 | BP109: 0.0132007 | BQ109: 0.00004 | BR109: 35.0191
A110: rs10211103 | B110: C | C110: T | D110: 0.187 | E110: 1.1e-08 | F110: -0.0100988 | G110: 0.00176717 | H110: rs12692596 | I110: T | J110: C | K110: 0.36067 | L110: 0.00055 | M110: 0.0427759 | N110: 0.0123783 | O110: 0.00003 | P110: 32.6575 | S110: rs115030737 | T110: T | U110: C | V110: 0.00398 | W110: 1.44e-07 | X110: 0.0606393 | Y110: 0.0115278 | Z110: rs6729411 | AA110: C | AB110: T | AC110: 0.58609 | AD110: 0.873573 | AE110: 0.00201977 | AF110: 0.0126669 | AG110: 0.00003 | AH110: 27.6704 | AK110: rs761037013 | AL110: T | AM110: C | AN110: 0.000101 | AO110: 4.51e-06 | AP110: -0.616315 | AQ110: 0.134378 | AR110: rs10127775 | AS110: A | AT110: T | AU110: 0.43538 | AV110: 0.005515 | AW110: 0.033485 | AX110: 0.0120609 | AY110: 0.00008 | AZ110: 21.0353 | BC110: rs753094343 | BD110: C | BE110: A | BF110: 0.000174 | BG110: 5.35e-06 | BH110: 0.425572 | BI110: 0.0935196 | BJ110: rs7532633 | BK110: C | BL110: T | BM110: 0.44454 | BN110: 0.475516 | BO110: 0.00855518 | BP110: 0.0119888 | BQ110: 0.00006 | BR110: 20.7081
A111: rs840873 | B111: C | C111: T | D111: 0.0409 | E111: 3.36e-10 | F111: -0.0221199 | G111: 0.00352156 | H111: rs1990760 | I111: T | J111: C | K111: 0.60081 | L111: 0.00121 | M111: 0.0401502 | N111: 0.0123928 | O111: 0.00004 | P111: 39.4545 | S111: rs12478677 | T111: T | U111: C | V111: 0.425 | W111: 3.69e-08 | X111: -0.0077619 | Y111: 0.00140996 | Z111: rs62154466 | AA111: G | AB111: A | AC111: 0.97686 | AD111: 0.047208 | AE111: 0.091943 | AF111: 0.0463249 | AG111: 0.00003 | AH111: 30.3056 | AK111: rs2298883 | AL111: G | AM111: A | AN111: 0.16 | AO111: 6.56e-10 | AP111: 0.0118258 | AQ111: 0.00191467 | AR111: rs145957520 | AS111: C | AT111: CAT | AU111: 0.04516 | AV111: 0.650316 | AW111: 0.0147588 | AX111: 0.0325616 | AY111: 0.00004 | AZ111: 38.1481 | BC111: rs549580348 | BD111: G | BE111: A | BF111: 4.55e-05 | BG111: 5.96e-06 | BH111: -1.45627 | BI111: 0.321639 | BJ111: rs13303359 | BK111: A | BL111: C | BM111: 0.49059 | BN111: 0.846459 | BO111: 0.00292867 | BP111: 0.0151483 | BQ111: 0.00019 | BR111: 20.4996
A112: rs35564151 | B112: G | C112: A | D112: 0.483 | E112: 1.15e-09 | F112: 0.00907967 | G112: 0.00149171 | H112: rs13389219 | I112: C | J112: T | K112: 0.60566 | L112: 0.017838 | M112: 0.0294021 | N112: 0.0124072 | O112: 0.00004 | P112: 37.0486 | S112: rs12998038 | T112: T | U112: C | V112: 0.256 | W112: 4.82e-10 | X112: 0.0100034 | Y112: 0.00160702 | Z112: rs4851250 | AA112: T | AB112: C | AC112: 0.82208 | AD112: 0.495136 | AE112: 0.0106759 | AF112: 0.0156532 | AG112: 0.00004 | AH112: 38.7483 | AK112: rs6675366 | AL112: C | AM112: T | AN112: 0.0401 | AO112: 8.03e-10 | AP112: -0.0218051 | AQ112: 0.00354887 | AR112: 1:231566619_G_T | AS112: G | AT112: T | AU112: 0.58198 | AV112: 0.51022 | AW112: 0.00796368 | AX112: 0.0120898 | AY112: 0.00004 | AZ112: 37.7517 | BC112: rs182765782 | BD112: T | BE112: C | BF112: 0.00118 | BG112: 1.28e-06 | BH112: -0.139941 | BI112: 0.0288948 | BJ112: rs3862948 | BK112: A | BL112: C | BM112: 0.25073 | BN112: 0.009528 | BO112: 0.0342352 | BP112: 0.0132007 | BQ112: 0.00005 | BR112: 23.4558
A113: rs1869829 | B113: G | C113: A | D113: 0.231 | E113: 8.63e-20 | F113: 0.0156846 | G113: 0.00172264 | H113: rs17694506 | I113: T | J113: C | K113: 0.61478 | L113: 0.720084 | M113: 0.00441465 | N113: 0.0123206 | O113: 0.00009 | P113: 82.9006 | S113: rs79154515 | T113: A | U113: G | V113: 0.112 | W113: 4.37e-08 | X113: -0.0119507 | Y113: 0.00218275 | Z113: rs4851057 | AA113: C | AB113: T | AC113: 0.88434 | AD113: 0.556074 | AE113: 0.0111953 | AF113: 0.0190147 | AG113: 0.00003 | AH113: 29.9763 | AK113: rs12410613 | AL113: C | AM113: G | AN113: 0.143 | AO113: 1.34e-06 | AP113: -0.00995498 | AQ113: 0.0020592 | AR113: rs553427 | AS113: T | AT113: C | AU113: 0.5444 | AV113: 0.015554 | AW113: 0.0287529 | AX113: 0.0118878 | AY113: 0.00002 | AZ113: 23.3713 | BC113: rs1707113 | BD113: G | BE113: A | BF113: 0.368 | BG113: 3.88e-06 | BH113: 0.00664416 | BI113: 0.00143891 | BJ113: rs3747973 | BK113: A | BL113: G | BM113: 0.40421 | BN113: 0.10034 | BO113: 0.0191157 | BP113: 0.0116281 | BQ113: 0.00002 | BR113: 21.3213
A114: rs3739020 | B114: G | C114: T | D114: 0.216 | E114: 3.3e-26 | F114: 0.01843 | G114: 0.00174024 | H114: rs1866631 | I114: G | J114: A | K114: 0.4294 | L114: 0.653514 | M114: 0.00545339 | N114: 0.0121475 | O114: 0.00012 | P114: 112.1585 | S114: rs17326656 | T114: T | U114: G | V114: 0.231 | W114: 4.73e-23 | X114: -0.0162522 | Y114: 0.00164376 | Z114: rs3761706 | AA114: A | AB114: G | AC114: 0.06502 | AD114: 0.0206 | AE114: 0.055688 | AF114: 0.0240497 | AG114: 0.00009 | AH114: 97.7569 | AK114: rs2821388 | AL114: G | AM114: A | AN114: 0.261 | AO114: 2.16e-09 | AP114: -0.00932099 | AQ114: 0.0015574 | AR114: rs4006430 | AS114: C | AT114: G | AU114: 0.23264 | AV114: 0.227384 | AW114: 0.0172402 | AX114: 0.0142827 | AY114: 0.00003 | AZ114: 35.8198 | BC114: rs188399721 | BD114: T | BE114: G | BF114: 0.000106 | BG114: 1.45e-05 | BH114: 0.549456 | BI114: 0.126716 | BJ114: rs9242 | BK114: C | BL114: T | BM114: 0.49458 | BN114: 0.242061 | BO114: 0.0137922 | BP114: 0.0117868 | BQ114: 0.00006 | BR114: 18.8020
A115: rs7568603 | B115: T | C115: G | D115: 0.401 | E115: 1.8e-09 | F115: -0.00846854 | G115: 0.001408 | H115: rs10497442 | I115: T | J115: C | K115: 0.67951 | L115: 0.217283 | M115: 0.0156532 | N115: 0.0126957 | O115: 0.00003 | P115: 36.1753 | S115: rs12997031 | T115: A | U115: G | V115: 0.424 | W115: 8.5e-09 | X115: -0.00809155 | Y115: 0.00140523 | Z115: rs11688682 | AA115: G | AB115: C | AC115: 0.75844 | AD115: 0.658156 | AE115: 0.00708363 | AF115: 0.0159995 | AG115: 0.00003 | AH115: 33.1565 | AK115: rs142403729 | AL115: T | AM115: TACAC | AN115: 0.142 | AO115: 2.52e-08 | AP115: 0.0145383 | AQ115: 0.00260921 | AR115: rs6689162 | AS115: G | AT115: A | AU115: 0.61141 | AV115: 0.041807 | AW115: 0.0249731 | AX115: 0.0122629 | AY115: 0.00005 | AZ115: 31.0463 | BC115: rs760738262 | BD115: T | BE115: C | BF115: 0.00023 | BG115: 1.55e-05 | BH115: 0.375433 | BI115: 0.0868735 | BJ115: rs11576725 | BK115: G | BL115: A | BM115: 0.72474 | BN115: 0.844897 | BO115: 0.00268341 | BP115: 0.0137345 | BQ115: 0.00006 | BR115: 18.6763
A116: rs2598503 | B116: C | C116: T | D116: 0.383 | E116: 6.76e-09 | F116: -0.00836493 | G116: 0.00144303 | H116: rs13005431 | I116: C | J116: T | K116: 0.3462 | L116: 0.762251 | M116: 0.00392413 | N116: 0.0129698 | O116: 0.00003 | P116: 33.6027 | S116: rs805317 | T116: A | U116: T | V116: 0.449 | W116: 2.47e-14 | X116: 0.010611 | Y116: 0.0013919 | Z116: rs10211103 | AA116: T | AB116: C | AC116: 0.77945 | AD116: 0.31836 | AE116: 0.0144991 | AF116: 0.0145279 | AG116: 0.00006 | AH116: 58.1161 | AK116: rs12119128 | AL116: A | AM116: G | AN116: 0.291 | AO116: 6.93e-07 | AP116: -0.00854699 | AQ116: 0.00172208 | AR116: rs12037424 | AS116: C | AT116: T | AU116: 0.28677 | AV116: 0.306078 | AW116: 0.0132295 | AX116: 0.0129265 | AY116: 0.00003 | AZ116: 24.6331 | BC116: rs186147970 | BD116: C | BE116: T | BF116: 0.00451 | BG116: 1.78e-12 | BH116: 0.0922309 | BI116: 0.0130806 | BJ116: rs12034991 | BK116: G | BL116: A | BM116: 0.34281 | BN116: 0.003707 | BO116: 0.0361395 | BP116: 0.0124505 | BQ116: 0.00008 | BR116: 49.7162
A117: rs7596408 | B117: A | C117: G | D117: 0.336 | E117: 3.82e-09 | F117: -0.00868815 | G117: 0.00147463 | H117: rs717684 | I117: T | J117: G | K117: 0.28645 | L117: 0.223637 | M117: 0.0158552 | N117: 0.0130275 | O117: 0.00003 | P117: 34.7127 | S117: rs12477711 | T117: T | U117: C | V117: 0.464 | W117: 1.46e-09 | X117: -0.00837541 | Y117: 0.0013846 | Z117: rs840873 | AA117: T | AB117: C | AC117: 0.96008 | AD117: 0.115483 | AE117: 0.0531922 | AF117: 0.0337879 | AG117: 0.00003 | AH117: 36.5901 | AK117: rs7532633 | AL117: C | AM117: T | AN117: 0.463 | AO117: 8.99e-12 | AP117: 0.00954592 | AQ117: 0.00139931 | AR117: rs34679019 | AS117: AC | AT117: A | AU117: 0.08035 | AV117: 0.617147 | AW117: 0.0111088 | AX117: 0.0222175 | AY117: 0.00005 | AZ117: 46.5380 | BC117: rs190675279 | BD117: G | BE117: A | BF117: 0.00548 | BG117: 6e-10 | BH117: 0.111992 | BI117: 0.0180913 | BJ117: rs12023488 | BK117: C | BL117: T | BM117: 0.6371 | BN117: 0.674463 | BO117: 0.00512157 | BP117: 0.0122052 | BQ117: 0.00014 | BR117: 38.3208
A118: rs11900786 | B118: T | C118: C | D118: 0.131 | E118: 1.41e-09 | F118: 0.0126089 | G118: 0.00208245 | H118: rs111917980 | I118: G | J118: A | K118: 0.68796 | L118: 0.00087 | M118: 0.0432664 | N118: 0.0129843 | O118: 0.00004 | P118: 36.6611 | S118: rs17049712 | T118: T | U118: C | V118: 0.295 | W118: 2.16e-15 | X118: -0.0120282 | Y118: 0.00151647 | Z118: rs35564151 | AA118: G | AB118: A | AC118: 0.55188 | AD118: 0.208617 | AE118: 0.0164034 | AF118: 0.013042 | AG118: 0.00006 | AH118: 62.9120 | AK118: rs13303359 | AL118: A | AM118: C | AN118: 0.478 | AO118: 5.11e-15 | AP118: -0.0118279 | AQ118: 0.00151169 | AR118: rs77462835 | AS118: T | AT118: C | AU118: 0.15809 | AV118: 0.262741 | AW118: 0.018654 | AX118: 0.0166487 | AY118: 0.00007 | AZ118: 61.2195 | BC118: rs868996459 | BD118: G | BE118: C | BF118: 0.0112 | BG118: 8.68e-06 | BH118: 0.0846089 | BI118: 0.019023 | BJ118: rs4528088 | BK118: A | BL118: G | BM118: 0.46546 | BN118: 0.669155 | BO118: 0.00506386 | BP118: 0.0118445 | BQ118: 0.00016 | BR118: 19.7822
A119: rs76840964 | B119: G | C119: A | D119: 0.128 | E119: 1.09e-09 | F119: 0.0128567 | G119: 0.00210941 | H119: rs13419481 | I119: A | J119: T | K119: 0.41049 | L119: 0.375995 | M119: 0.0112674 | N119: 0.0127246 | O119: 0.00004 | P119: 37.1481 | S119: rs356979 | T119: T | U119: C | V119: 0.296 | W119: 1.91e-07 | X119: 0.00785607 | Y119: 0.00150841 | Z119: rs1869829 | AA119: G | AB119: A | AC119: 0.30074 | AD119: 0.914521 | AE119: 0.00147155 | AF119: 0.0137489 | AG119: 0.00003 | AH119: 27.1251 | AK119: rs3862948 | AL119: A | AM119: C | AN119: 0.234 | AO119: 2.49e-14 | AP119: -0.012452 | AQ119: 0.00163363 | AR119: rs17713729 | AS119: A | AT119: C | AU119: 0.66198 | AV119: 0.058474 | AW119: 0.0234149 | AX119: 0.0123783 | AY119: 0.00006 | AZ119: 58.0993 | BC119: rs879970538 | BD119: A | BE119: C | BF119: 0.0133 | BG119: 1.88e-07 | BH119: 0.125467 | BI119: 0.0240804 | BJ119: rs144848582 | BK119: A | BL119: AT | BM119: 0.62728 | BN119: 0.826452 | BO119: 0.00285654 | BP119: 0.013042 | BQ119: 0.00041 | BR119: 27.1476
A120: rs12692596 | B120: T | C120: C | D120: 0.367 | E120: 2.51e-10 | F120: -0.0090446 | G120: 0.00142968 | H120: rs7581601 | I120: C | J120: A | K120: 0.28968 | L120: 0.023103 | M120: 0.0306284 | N120: 0.0134748 | O120: 0.00004 | P120: 40.0222 | S120: rs17432483 | T120: C | U120: T | V120: 0.0611 | W120: 1.03e-09 | X120: -0.0178632 | Y120: 0.00292584 | Z120: rs3739020 | AA120: G | AB120: T | AC120: 0.25501 | AD120: 0.152465 | AE120: 0.0193177 | AF120: 0.0135036 | AG120: 0.00004 | AH120: 37.2750 | AK120: rs3747973 | AL120: A | AM120: G | AN120: 0.412 | AO120: 2.66e-28 | AP120: -0.0156362 | AQ120: 0.00141729 | AR120: rs6542680 | AS120: C | AT120: T | AU120: 0.22902 | AV120: 0.005413 | AW120: 0.0413332 | AX120: 0.0148598 | AY120: 0.00012 | AZ120: 121.7152 | BC120: rs587607578 | BD120: C | BE120: G | BF120: 0.00668 | BG120: 1.03e-06 | BH120: 0.129904 | BI120: 0.0265907 | BJ120: rs59770119 | BK120: A | BL120: G | BM120: 0.54704 | BN120: 0.050515 | BO120: 0.0237035 | BP120: 0.0121186 | BQ120: 0.00022 | BR120: 23.8663
A121: rs1990760 | B121: C | C121: T | D121: 0.39 | E121: 6.63e-11 | F121: 0.009184 | G121: 0.00140671 | H121: rs10172421 | I121: A | J121: C | K121: 0.1167 | L121: 0.355364 | M121: 0.0178461 | N121: 0.0193177 | O121: 0.00004 | P121: 42.6240 | S121: rs2540949 | T121: T | U121: A | V121: 0.383 | W121: 4.26e-31 | X121: 0.0164761 | Y121: 0.00142071 | Z121: rs11691595 | AA121: G | AB121: A | AC121: 0.33395 | AD121: 0.40161 | AE121: 0.0106038 | AF121: 0.012638 | AG121: 0.00013 | AH121: 134.4925 | AK121: rs9242 | AL121: C | AM121: T | AN121: 0.482 | AO121: 4.84e-10 | AP121: -0.00878836 | AQ121: 0.001412 | AR121: rs1560246 | AS121: G | AT121: A | AU121: 0.42932 | AV121: 0.105067 | AW121: 0.0191157 | AX121: 0.0118012 | AY121: 0.00004 | AZ121: 38.7388 | BC121: rs181473381 | BD121: A | BE121: C | BF121: 0.00404 | BG121: 8.16e-27 | BH121: 0.140501 | BI121: 0.0131059 | BJ121: rs2642438 | BK121: G | BL121: A | BM121: 0.70795 | BN121: 0.943717 | BO121: 0.00157254 | BP121: 0.0222319 | BQ121: 0.00016 | BR121: 114.9278
A122: rs13389219 | B122: T | C122: C | D122: 0.4 | E122: 8.02e-95 | F122: 0.0290173 | G122: 0.00140455 | H122: rs2551639 | I122: A | J122: G | K122: 0.82217 | L122: 0.458122 | M122: 0.0120465 | N122: 0.0162447 | O122: 0.00040 | P122: 426.8149 | S122: rs11883967 | T122: A | U122: C | V122: 0.338 | W122: 2.31e-13 | X122: -0.0107699 | Y122: 0.00146939 | Z122: rs7568603 | AA122: T | AB122: G | AC122: 0.43011 | AD122: 0.517787 | AE122: 0.00802138 | AF122: 0.0124072 | AG122: 0.00005 | AH122: 53.7216 | AK122: rs3820521 | AL122: A | AM122: G | AN122: 0.0205 | AO122: 1.13e-06 | AP122: -0.0241935 | AQ122: 0.00497061 | AR122: rs2358040 | AS122: G | AT122: T | AU122: 0.49297 | AV122: 0.786483 | AW122: 0.00317393 | AX122: 0.0117003 | AY122: 0.00002 | AZ122: 23.6907 | BC122: rs185520438 | BD122: C | BE122: A | BF122: 0.00223 | BG122: 1.29e-06 | BH122: 0.133896 | BI122: 0.0276607 | BJ122: rs115054770 | BK122: A | BL122: C | BM122: 0.02062 | BN122: 0.251344 | BO122: 0.0511435 | BP122: 0.0445937 | BQ122: 0.00008 | BR122: 23.4320
A123: rs17694506 | B123: C | C123: T | D123: 0.38 | E123: 1.73e-08 | F123: -0.00800628 | G123: 0.00142041 | H123: rs1047891 | I123: C | J123: A | K123: 0.68788 | L123: 0.01515 | M123: 0.0323741 | N123: 0.0133305 | O123: 0.00003 | P123: 31.7712 | S123: rs6546564 | T123: T | U123: C | V123: 0.374 | W123: 2.99e-08 | X123: 0.00792448 | Y123: 0.0014299 | Z123: rs2598503 | AA123: T | AB123: C | AC123: 0.58898 | AD123: 0.990002 | AE123: 0.000158696 | AF123: 0.0125514 | AG123: 0.00003 | AH123: 30.7136 | AK123: rs11576725 | AL123: A | AM123: G | AN123: 0.296 | AO123: 1.04e-06 | AP123: 0.00742853 | AQ123: 0.00152079 | AR123: rs144632077 | AS123: GA | AT123: G | AU123: 0.89682 | AV123: 0.441551 | AW123: 0.0149752 | AX123: 0.019462 | AY123: 0.00002 | AZ123: 23.8598 | BC123: rs138030384 | BD123: C | BE123: T | BF123: 0.00304 | BG123: 6.52e-09 | BH123: 0.117365 | BI123: 0.0202257 | BJ123: rs35806535 | BK123: C | BL123: T | BM123: 0.78785 | BN123: 1.28e-06 | BO123: 0.072885 | BP123: 0.0150329 | BQ123: 0.00008 | BR123: 33.6721
A124: rs1866631 | B124: G | C124: A | D124: 0.416 | E124: 3.26e-14 | F124: 0.0106601 | G124: 0.00140492 | H124: rs3791705 | I124: A | J124: G | K124: 0.34735 | L124: 0.330393 | M124: 0.0122485 | N124: 0.0125803 | O124: 0.00006 | P124: 57.5731 | S124: rs7586605 | T124: C | U124: T | V124: 0.27 | W124: 6.27e-15 | X124: -0.0121958 | Y124: 0.00156389 | Z124: rs7596408 | AA124: G | AB124: A | AC124: 0.65005 | AD124: 0.163002 | AE124: 0.017572 | AF124: 0.0125947 | AG124: 0.00006 | AH124: 60.8146 | AK124: rs12034991 | AL124: G | AM124: A | AN124: 0.355 | AO124: 1.11e-10 | AP124: -0.00945065 | AQ124: 0.00146489 | AR124: rs4832605 | AS124: C | AT124: T | AU124: 0.5946 | AV124: 0.443931 | AW124: 0.00943523 | AX124: 0.0123206 | AY124: 0.00004 | AZ124: 41.6211 | BC124: NA | BD124: C | BE124: G | BF124: 0.000391 | BG124: 6.2e-07 | BH124: 0.379057 | BI124: 0.0760394 | BJ124: rs6674492 | BK124: A | BL124: G | BM124: 0.75995 | BN124: 0.439845 | BO124: 0.0107337 | BP124: 0.0138932 | BQ124: 0.00011 | BR124: 24.8503
A125: rs10497442 | B125: C | C125: T | D125: 0.307 | E125: 5.4e-09 | F125: 0.00867667 | G125: 0.0014872 | H125: rs10932536 | I125: C | J125: T | K125: 0.49703 | L125: 0.632611 | M125: 0.00574193 | N125: 0.0119888 | O125: 0.00003 | P125: 34.0383 | S125: rs56304923 | T125: C | U125: T | V125: 0.189 | W125: 3.32e-08 | X125: 0.00975366 | Y125: 0.0017658 | Z125: rs11900786 | AA125: T | AB125: C | AC125: 0.15594 | AD125: 0.933317 | AE125: 0.0015004 | AF125: 0.0179616 | AG125: 0.00003 | AH125: 30.5107 | AK125: rs12023488 | AL125: T | AM125: C | AN125: 0.376 | AO125: 7.19e-12 | AP125: 0.00977536 | AQ125: 0.00142625 | AR125: rs1107850 | AS125: A | AT125: G | AU125: 0.47885 | AV125: 0.547203 | AW125: 0.00704035 | AX125: 0.0117003 | AY125: 0.00004 | AZ125: 46.9758 | BC125: rs587699996 | BD125: G | BE125: A | BF125: 0.000374 | BG125: 2.55e-05 | BH125: -0.343207 | BI125: 0.0815102 | BJ125: rs56105022 | BK125: A | BL125: G | BM125: 0.0361 | BN125: 0.732517 | BO125: 0.0119311 | BP125: 0.0348844 | BQ125: 0.00009 | BR125: 17.7292
A126: rs13005431 | B126: C | C126: T | D126: 0.366 | E126: 1.32e-08 | F126: -0.00813641 | G126: 0.00143145 | H126: rs192243120 | I126: A | J126: G | K126: 0.01359 | L126: 0.272551 | M126: 0.0694802 | N126: 0.0633343 | O126: 0.00003 | P126: 32.3082 | S126: rs6729411 | T126: T | U126: C | V126: 0.451 | W126: 9.02e-08 | X126: 0.00753396 | Y126: 0.00140944 | Z126: rs76840964 | AA126: G | AB126: A | AC126: 0.11282 | AD126: 0.168468 | AE126: 0.0291713 | AF126: 0.0211788 | AG126: 0.00003 | AH126: 28.5728 | AK126: rs4528088 | AL126: A | AM126: G | AN126: 0.45 | AO126: 4.29e-07 | AP126: 0.00708345 | AQ126: 0.00140111 | AR126: rs676210 | AS126: A | AT126: G | AU126: 0.24422 | AV126: 0.66317 | AW126: 0.00592948 | AX126: 0.013619 | AY126: 0.00002 | AZ126: 25.5591 | BC126: rs72692851 | BD126: G | BE126: C | BF126: 0.0879 | BG126: 6.09e-24 | BH126: 0.0248324 | BI126: 0.002461 | BJ126: rs7553823 | BK126: A | BL126: T | BM126: 0.04658 | BN126: 0.36426 | BO126: 0.0262859 | BP126: 0.0289693 | BQ126: 0.00010 | BR126: 101.8156
A127: rs717684 | B127: T | C127: G | D127: 0.268 | E127: 4.32e-09 | F127: -0.00910811 | G127: 0.00155126 | H127: rs3768897 | I127: A | J127: G | K127: 0.14911 | L127: 0.553949 | M127: 0.00969491 | N127: 0.0163746 | O127: 0.00003 | P127: 34.4737 | S127: rs62154466 | T127: A | U127: G | V127: 0.0217 | W127: 4.2e-08 | X127: 0.0266595 | Y127: 0.00486276 | Z127: rs12692596 | AA127: T | AB127: C | AC127: 0.36067 | AD127: 0.00055 | AE127: 0.0427759 | AF127: 0.0123783 | AG127: 0.00003 | AH127: 30.0565 | AK127: rs144848582 | AL127: AT | AM127: A | AN127: 0.353 | AO127: 1.55e-06 | AP127: 0.00832849 | AQ127: 0.00173325 | AR127: rs12613275 | AS127: C | AT127: T | AU127: 0.75732 | AV127: 0.716722 | AW127: 0.00502058 | AX127: 0.0138643 | AY127: 0.00003 | AZ127: 23.0893 | BC127: rs267738 | BD127: G | BE127: T | BF127: 0.213 | BG127: 3.46e-40 | BH127: 0.0223838 | BI127: 0.00168682 | BJ127: rs143756921 | BK127: G | BL127: A | BM127: 0.03723 | BN127: 0.712304 | BO127: 0.012436 | BP127: 0.0337302 | BQ127: 0.00017 | BR127: 176.0882
A128: rs111917980 | B128: A | C128: G | D128: 0.324 | E128: 4.89e-12 | F128: 0.0102527 | G128: 0.00148404 | H128: rs2943645 | I128: T | J128: C | K128: 0.64435 | L128: 3.86e-05 | M128: 0.0526007 | N128: 0.0127679 | O128: 0.00005 | P128: 47.7293 | S128: rs4851250 | T128: C | U128: T | V128: 0.172 | W128: 5.74e-16 | X128: 0.0147729 | Y128: 0.00182499 | Z128: rs1990760 | AA128: T | AB128: C | AC128: 0.60081 | AD128: 0.00121 | AE128: 0.0401502 | AF128: 0.0123928 | AG128: 0.00006 | AH128: 65.5255 | AK128: rs59770119 | AL128: G | AM128: A | AN128: 0.423 | AO128: 6.36e-33 | AP128: 0.0168521 | AQ128: 0.00141002 | AR128: rs1056074 | AS128: C | AT128: T | AU128: 0.17516 | AV128: 0.286922 | AW128: 0.0165044 | AX128: 0.015509 | AY128: 0.00014 | AZ128: 142.8425 | BC128: rs34834099 | BD128: T | BE128: C | BF128: 0.0638 | BG128: 8.9e-08 | BH128: 0.0152063 | BI128: 0.00284345 | BJ128: rs114987279 | BK128: T | BL128: C | BM128: 0.03685 | BN128: 0.257812 | BO128: 0.0385632 | BP128: 0.0340765 | BQ128: 0.00003 | BR128: 28.5993
A129: rs13419481 | B129: A | C129: T | D129: 0.416 | E129: 2.6e-09 | F129: -0.00856264 | G129: 0.00143794 | H129: rs11694828 | I129: G | J129: A | K129: 0.56323 | L129: 0.770249 | M129: 0.00380871 | N129: 0.0130275 | O129: 0.00004 | P129: 35.4596 | S129: rs62152938 | T129: T | U129: G | V129: 0.304 | W129: 4.23e-10 | X129: -0.00952572 | Y129: 0.00152522 | Z129: rs13389219 | AA129: C | AB129: T | AC129: 0.60566 | AD129: 0.017838 | AE129: 0.0294021 | AF129: 0.0124072 | AG129: 0.00004 | AH129: 39.0059 | AK129: rs2642438 | AL129: A | AM129: G | AN129: 0.294 | AO129: 7.11e-72 | AP129: -0.0271768 | AQ129: 0.00151587 | AR129: rs71439172 | AS129: A | AT129: G | AU129: 0.14815 | AV129: 0.253242 | AW129: 0.0199958 | AX129: 0.0174999 | AY129: 0.00031 | AZ129: 321.4199 | BC129: rs563247839 | BD129: T | BE129: C | BF129: 0.000289 | BG129: 1.72e-07 | BH129: 0.477952 | BI129: 0.0914305 | BJ129: rs10127775 | BK129: A | BL129: T | BM129: 0.43538 | BN129: 0.005515 | BO129: 0.033485 | BP129: 0.0120609 | BQ129: 0.00013 | BR129: 27.3266
A130: rs7581601 | B130: C | C130: A | D130: 0.315 | E130: 6.37e-32 | F130: -0.0175099 | G130: 0.0014891 | H130: rs985891 | I130: G | J130: A | K130: 0.65429 | L130: 0.005693 | M130: 0.0350286 | N130: 0.0126669 | O130: 0.00013 | P130: 138.2673 | S130: rs4851057 | T130: T | U130: C | V130: 0.123 | W130: 4.34e-08 | X130: -0.0113803 | Y130: 0.00207812 | Z130: rs17694506 | AA130: T | AB130: C | AC130: 0.61478 | AD130: 0.720084 | AE130: 0.00441465 | AF130: 0.0123206 | AG130: 0.00003 | AH130: 29.9893 | AK130: rs115054770 | AL130: A | AM130: C | AN130: 0.0182 | AO130: 1.38e-07 | AP130: -0.0275115 | AQ130: 0.00522222 | AR130: rs13432533 | AS130: A | AT130: G | AU130: 0.52569 | AV130: 0.000134 | AW130: 0.0459643 | AX130: 0.0120321 | AY130: 0.00003 | AZ130: 27.7535 | BC130: rs11264224 | BD130: C | BE130: A | BF130: 0.165 | BG130: 3.88e-11 | BH130: 0.0127621 | BI130: 0.00193111 | BJ130: rs145957520 | BK130: C | BL130: CAT | BM130: 0.04516 | BN130: 0.650316 | BO130: 0.0147588 | BP130: 0.0325616 | BQ130: 0.00004 | BR130: 43.6747
A131: rs10172421 | B131: A | C131: C | D131: 0.122 | E131: 4.19e-08 | F131: 0.0116224 | G131: 0.00211985 | H131: rs4321388 | I131: A | J131: T | K131: 0.46088 | L131: 0.79549 | M131: 0.00310179 | N131: 0.0119744 | O131: 0.00003 | P131: 30.0595 | S131: rs3761706 | T131: A | U131: G | V131: 0.06 | W131: 2.69e-11 | X131: -0.0192006 | Y131: 0.00288174 | Z131: rs6730441 | AA131: A | AB131: G | AC131: 0.29801 | AD131: 0.360225 | AE131: 0.0120032 | AF131: 0.0131141 | AG131: 0.00004 | AH131: 44.3936 | AK131: rs35806535 | AL131: T | AM131: C | AN131: 0.191 | AO131: 2.99e-08 | AP131: 0.00982919 | AQ131: 0.00177355 | AR131: rs7586601 | AS131: G | AT131: A | AU131: 0.43694 | AV131: 0.611164 | AW131: 0.00611703 | AX131: 0.0120176 | AY131: 0.00003 | AZ131: 30.7149 | BC131: rs151026328 | BD131: A | BE131: G | BF131: 0.0282 | BG131: 9.13e-08 | BH131: -0.0235203 | BI131: 0.00440195 | BJ131: 1:231566619_G_T | BK131: G | BL131: T | BM131: 0.58198 | BN131: 0.51022 | BO131: 0.00796368 | BP131: 0.0120898 | BQ131: 0.00003 | BR131: 28.5493
A132: rs2551639 | B132: G | C132: A | D132: 0.191 | E132: 9.83e-13 | F132: 0.0125212 | G132: 0.00175544 | H132: rs4675812 | I132: A | J132: G | K132: 0.5774 | L132: 0.41723 | M132: 0.0097959 | N132: 0.0120609 | O132: 0.00005 | P132: 50.8768 | S132: rs11688682 | T132: C | U132: G | V132: 0.257 | W132: 6.39e-23 | X132: 0.0177778 | Y132: 0.00180355 | Z132: rs1866631 | AA132: G | AB132: A | AC132: 0.4294 | AD132: 0.653514 | AE132: 0.00545339 | AF132: 0.0121475 | AG132: 0.00012 | AH132: 97.1627 | AK132: rs6674492 | AL132: G | AM132: A | AN132: 0.22 | AO132: 4.51e-06 | AP132: 0.00771571 | AQ132: 0.00168226 | AR132: rs62131975 | AS132: T | AT132: C | AU132: 0.46456 | AV132: 0.13007 | AW132: 0.0184521 | AX132: 0.0121908 | AY132: 0.00002 | AZ132: 21.0361 | BC132: rs61813324 | BD132: T | BE132: C | BF132: 0.129 | BG132: 1.05e-09 | BH132: -0.0127338 | BI132: 0.00208696 | BJ132: rs553427 | BK132: T | BL132: C | BM132: 0.5444 | BN132: 0.015554 | BO132: 0.0287529 | BP132: 0.0118878 | BQ132: 0.00004 | BR132: 37.2296
A133: rs1047891 | B133: A | C133: C | D133: 0.308 | E133: 1.19e-27 | F133: -0.0164194 | G133: 0.00150676 | H133: rs12485478 | I133: A | J133: G | K133: 0.96301 | L133: 0.363653 | M133: 0.0273246 | N133: 0.0300802 | O133: 0.00011 | P133: 118.7480 | S133: rs10211103 | T133: C | U133: T | V133: 0.187 | W133: 1.1e-08 | X133: -0.0100988 | Y133: 0.00176717 | Z133: rs10497442 | AA133: T | AB133: C | AC133: 0.67951 | AD133: 0.217283 | AE133: 0.0156532 | AF133: 0.0126957 | AG133: 0.00003 | AH133: 32.6575 | AK133: rs56105022 | AL133: A | AM133: G | AN133: 0.0348 | AO133: 2.09e-14 | AP133: -0.030072 | AQ133: 0.00393367 | AR133: rs151117068 | AS133: AAG | AT133: A | AU133: 0.97539 | AV133: 0.50171 | AW133: 0.0279594 | AX133: 0.0416218 | AY133: 0.00006 | AZ133: 58.4425 | BC133: rs3806415 | BD133: T | BE133: C | BF133: 0.325 | BG133: 1.76e-14 | BH133: 0.011271 | BI133: 0.00147006 | BJ133: rs76596316 | BK133: T | BL133: A | BM133: 0.8974 | BN133: 0.709344 | BO133: 0.00779055 | BP133: 0.0208902 | BQ133: 0.00006 | BR133: 58.7834
A134: rs3791705 | B134: A | C134: G | D134: 0.314 | E134: 1.17e-08 | F134: -0.00845434 | G134: 0.00148205 | H134: rs3773177 | I134: T | J134: C | K134: 0.58209 | L134: 0.565588 | M134: 0.00682395 | N134: 0.0118734 | O134: 0.00003 | P134: 32.5412 | S134: rs840873 | T134: C | U134: T | V134: 0.0409 | W134: 3.36e-10 | X134: -0.0221199 | Y134: 0.00352156 | Z134: rs13005431 | AA134: C | AB134: T | AC134: 0.3462 | AD134: 0.762251 | AE134: 0.00392413 | AF134: 0.0129698 | AG134: 0.00004 | AH134: 39.4545 | AK134: rs7553823 | AL134: A | AM134: T | AN134: 0.0435 | AO134: 2.95e-10 | AP134: -0.0211654 | AQ134: 0.0033588 | AR134: rs13389106 | AS134: G | AT134: T | AU134: 0.18806 | AV134: 0.694639 | AW134: 0.00618916 | AX134: 0.0157687 | AY134: 0.00004 | AZ134: 39.7086 | BC134: rs7412819 | BD134: C | BE134: T | BF134: 0.0594 | BG134: 4e-05 | BH134: -0.0131618 | BI134: 0.00320453 | BJ134: rs4006430 | BK134: C | BL134: G | BM134: 0.23264 | BN134: 0.227384 | BO134: 0.0172402 | BP134: 0.0142827 | BQ134: 0.00002 | BR134: 16.8695
A135: rs10932536 | B135: C | C135: T | D135: 0.494 | E135: 4.26e-12 | F135: 0.00955066 | G135: 0.00137848 | H135: rs2455850 | I135: A | J135: C | K135: 0.33975 | L135: 0.310419 | M135: 0.0130131 | N135: 0.0128256 | O135: 0.00005 | P135: 48.0027 | S135: rs35564151 | T135: G | U135: A | V135: 0.483 | W135: 1.15e-09 | X135: 0.00907967 | Y135: 0.00149171 | Z135: rs111882666 | AA135: C | AB135: T | AC135: 0.90812 | AD135: 0.015563 | AE135: 0.0506963 | AF135: 0.0209479 | AG135: 0.00004 | AH135: 37.0486 | AK135: rs143756921 | AL135: G | AM135: A | AN135: 0.0392 | AO135: 8.13e-07 | AP135: -0.0176993 | AQ135: 0.00358845 | AR135: rs72790679 | AS135: A | AT135: G | AU135: 0.017 | AV135: 0.607344 | AW135: 0.0278007 | AX135: 0.0540866 | AY135: 0.00002 | AZ135: 24.3276 | BC135: rs73030035 | BD135: G | BE135: T | BF135: 0.000257 | BG135: 6.24e-06 | BH135: -0.249129 | BI135: 0.0551404 | BJ135: rs6689162 | BK135: G | BL135: A | BM135: 0.61141 | BN135: 0.041807 | BO135: 0.0249731 | BP135: 0.0122629 | BQ135: 0.00003 | BR135: 20.4131
A136: rs192243120 | B136: A | C136: G | D136: 0.0084 | E136: 1.5e-11 | F136: -0.0578338 | G136: 0.00857039 | H136: rs2948080 | I136: C | J136: G | K136: 0.31856 | L136: 0.337233 | M136: 0.0127246 | N136: 0.0132584 | O136: 0.00006 | P136: 45.5368 | S136: rs1869829 | T136: G | U136: A | V136: 0.231 | W136: 8.63e-20 | X136: 0.0156846 | Y136: 0.00172264 | Z136: rs62177195 | AA136: A | AB136: T | AC136: 0.26234 | AD136: 0.205719 | AE136: 0.0180625 | AF136: 0.0142827 | AG136: 0.00009 | AH136: 82.9006 | AK136: rs114987279 | AL136: T | AM136: C | AN136: 0.0385 | AO136: 3.59e-06 | AP136: -0.0199323 | AQ136: 0.00430141 | AR136: rs62136301 | AS136: A | AT136: G | AU136: 0.82012 | AV136: 0.837629 | AW136: 0.00324606 | AX136: 0.0158264 | AY136: 0.00003 | AZ136: 21.4730 | BC136: rs2369607 | BD136: C | BE136: A | BF136: 0.388 | BG136: 1.23e-05 | BH136: -0.00628966 | BI136: 0.00143841 | BJ136: rs12562500 | BK136: C | BL136: G | BM136: 0.5363 | BN136: 0.564623 | BO136: 0.00708363 | BP136: 0.0123062 | BQ136: 0.00002 | BR136: 19.1200
A137: rs78058190 | B137: A | C137: G | D137: 0.0522 | E137: 2.69e-113 | F137: -0.0808669 | G137: 0.00357485 | H137: rs2044754 | I137: A | J137: G | K137: 0.89128 | L137: 0.2746 | M137: 0.0209624 | N137: 0.0191878 | O137: 0.00065 | P137: 511.7124 | S137: rs3739020 | T137: G | U137: T | V137: 0.216 | W137: 3.3e-26 | X137: 0.01843 | Y137: 0.00174024 | Z137: rs717684 | AA137: T | AB137: G | AC137: 0.28645 | AD137: 0.223637 | AE137: 0.0158552 | AF137: 0.0130275 | AG137: 0.00012 | AH137: 112.1585 | AK137: rs6690181 | AL137: C | AM137: T | AN137: 0.387 | AO137: 6.82e-09 | AP137: 0.00938577 | AQ137: 0.00161955 | AR137: rs6704621 | AS137: C | AT137: T | AU137: 0.52013 | AV137: 0.258002 | AW137: 0.0135036 | AX137: 0.0119311 | AY137: 0.00004 | AZ137: 33.5854 | BC137: rs4656984 | BD137: T | BE137: C | BF137: 0.39 | BG137: 1.17e-12 | BH137: -0.0103285 | BI137: 0.00145299 | BJ137: rs12037424 | BK137: C | BL137: T | BM137: 0.28677 | BN137: 0.306078 | BO137: 0.0132295 | BP137: 0.0129265 | BQ137: 0.00005 | BR137: 50.5300
A138: rs3768897 | B138: A | C138: G | D138: 0.131 | E138: 4.68e-08 | F138: 0.0112583 | G138: 0.00206087 | H138: rs11706926 | I138: G | J138: A | K138: 0.54204 | L138: 0.685327 | M138: 0.00476089 | N138: 0.0117291 | O138: 0.00003 | P138: 29.8431 | S138: rs11691595 | T138: G | U138: A | V138: 0.31 | W138: 4.75e-07 | X138: -0.0074949 | Y138: 0.00148823 | Z138: rs111917980 | AA138: G | AB138: A | AC138: 0.68796 | AD138: 0.00087 | AE138: 0.0432664 | AF138: 0.0129843 | AG138: 0.00002 | AH138: 25.3625 | AK138: rs10127775 | AL138: A | AM138: T | AN138: 0.4 | AO138: 6.73e-291 | AP138: -0.0511741 | AQ138: 0.00140393 | AR138: rs115030737 | AS138: C | AT138: T | AU138: 0.98985 | AV138: 0.140548 | AW138: 0.108967 | AX138: 0.0739381 | AY138: 0.00126 | AZ138: 1328.6467 | BC138: rs1771582 | BD138: T | BE138: G | BF138: 0.435 | BG138: 1.67e-11 | BH138: -0.0111108 | BI138: 0.00165046 | BJ138: rs34679019 | BK138: AC | BL138: A | BM138: 0.08035 | BN138: 0.617147 | BO138: 0.0111088 | BP138: 0.0222175 | BQ138: 0.00006 | BR138: 45.3190
A139: rs2943645 | B139: C | C139: T | D139: 0.364 | E139: 1.88e-149 | F139: 0.0372461 | G139: 0.0014305 | H139: rs4128529 | I139: T | J139: C | K139: 0.95704 | L139: 0.750191 | M139: 0.00877159 | N139: 0.0275699 | O139: 0.00064 | P139: 677.9316 | S139: rs7568603 | T139: T | U139: G | V139: 0.401 | W139: 1.8e-09 | X139: -0.00846854 | Y139: 0.001408 | Z139: rs72913721 | AA139: A | AB139: G | AC139: 0.78094 | AD139: 0.149693 | AE139: 0.0213086 | AF139: 0.0148021 | AG139: 0.00003 | AH139: 36.1753 | AK139: rs145957520 | AL139: C | AM139: CAT | AN139: 0.044 | AO139: 1.04e-11 | AP139: -0.0256918 | AQ139: 0.00377755 | AR139: rs12478677 | AS139: C | AT139: T | AU139: 0.54707 | AV139: 0.362746 | AW139: 0.0108923 | AX139: 0.0119599 | AY139: 0.00006 | AZ139: 46.2561 | BC139: rs557691936 | BD139: T | BE139: C | BF139: 0.000121 | BG139: 5.71e-06 | BH139: -0.718513 | BI139: 0.158375 | BJ139: rs2291409 | BK139: A | BL139: G | BM139: 0.63972 | BN139: 0.864611 | BO139: 0.00210633 | BP139: 0.0123639 | BQ139: 0.00012 | BR139: 20.5824
A140: rs11694828 | B140: A | C140: G | D140: 0.451 | E140: 5.25e-24 | F140: 0.0145721 | G140: 0.00144206 | H140: rs2290547 | I140: G | J140: A | K140: 0.8333 | L140: 0.014689 | M140: 0.0410302 | N140: 0.0168074 | O140: 0.00011 | P140: 102.1122 | S140: rs2598503 | T140: C | U140: T | V140: 0.383 | W140: 6.76e-09 | X140: -0.00836493 | Y140: 0.00144303 | Z140: rs13419481 | AA140: A | AB140: T | AC140: 0.41049 | AD140: 0.375995 | AE140: 0.0112674 | AF140: 0.0127246 | AG140: 0.00003 | AH140: 33.6027 | AK140: rs1769810 | AL140: T | AM140: G | AN140: 0.404 | AO140: 1.9e-06 | AP140: -0.00697495 | AQ140: 0.00146421 | AR140: rs12998038 | AS140: C | AT140: T | AU140: 0.76328 | AV140: 0.891463 | AW140: 0.00199092 | AX140: 0.0145712 | AY140: 0.00002 | AZ140: 22.6921 | BC140: rs2279469 | BD140: C | BE140: G | BF140: 0.495 | BG140: 2.2e-06 | BH140: -0.00657488 | BI140: 0.00138883 | BJ140: rs77462835 | BK140: T | BL140: C | BM140: 0.15809 | BN140: 0.262741 | BO140: 0.018654 | BP140: 0.0166487 | BQ140: 0.00002 | BR140: 22.4118
A141: rs985891 | B141: A | C141: G | D141: 0.349 | E141: 7.65e-11 | F141: -0.00939304 | G141: 0.00144344 | H141: rs184852236 | I141: G | J141: A | K141: 0.98225 | L141: 0.230305 | M141: 0.062411 | N141: 0.052038 | O141: 0.00004 | P141: 42.3462 | S141: rs7596408 | T141: A | U141: G | V141: 0.336 | W141: 3.82e-09 | X141: -0.00868815 | Y141: 0.00147463 | Z141: rs7581601 | AA141: C | AB141: A | AC141: 0.28968 | AD141: 0.023103 | AE141: 0.0306284 | AF141: 0.0134748 | AG141: 0.00003 | AH141: 34.7127 | AK141: rs927343136 | AL141: G | AM141: A | AN141: 0.000957 | AO141: 3.81e-06 | AP141: 0.178488 | AQ141: 0.0386229 | AR141: rs4952950 | AS141: C | AT141: G | AU141: 0.7552 | AV141: 0.471488 | AW141: 0.0100989 | AX141: 0.014023 | AY141: 0.00006 | AZ141: 21.3564 | BC141: rs116943683 | BD141: T | BE141: C | BF141: 0.000142 | BG141: 9.86e-06 | BH141: 0.504083 | BI141: 0.114042 | BJ141: rs17713729 | BK141: A | BL141: C | BM141: 0.66198 | BN141: 0.058474 | BO141: 0.0234149 | BP141: 0.0123783 | BQ141: 0.00007 | BR141: 19.5377
A142: rs4321388 | B142: A | C142: T | D142: 0.477 | E142: 1.84e-09 | F142: 0.00825273 | G142: 0.00137294 | H142: rs74780677 | I142: A | J142: G | K142: 0.98309 | L142: 0.142539 | M142: 0.0738083 | N142: 0.0503356 | O142: 0.00003 | P142: 36.1320 | S142: rs11900786 | T142: T | U142: C | V142: 0.131 | W142: 1.41e-09 | X142: 0.0126089 | Y142: 0.00208245 | Z142: rs10172421 | AA142: A | AB142: C | AC142: 0.1167 | AD142: 0.355364 | AE142: 0.0178461 | AF142: 0.0193177 | AG142: 0.00004 | AH142: 36.6611 | AK142: rs553427 | AL142: C | AM142: T | AN142: 0.473 | AO142: 1.14e-34 | AP142: -0.0171565 | AQ142: 0.00139696 | AR142: rs79154515 | AS142: A | AT142: G | AU142: 0.10856 | AV142: 0.51617 | AW142: 0.0130708 | AX142: 0.0201256 | AY142: 0.00015 | AZ142: 150.8306 | BC142: rs546198036 | BD142: C | BE142: A | BF142: 0.00118 | BG142: 4.38e-05 | BH142: 0.168604 | BI142: 0.0412599 | BJ142: rs6542680 | BK142: C | BL142: T | BM142: 0.22902 | BN142: 0.005413 | BO142: 0.0413332 | BP142: 0.0148598 | BQ142: 0.00007 | BR142: 16.6986
A143: rs4675812 | B143: G | C143: A | D143: 0.41 | E143: 2.3e-21 | F143: -0.0133286 | G143: 0.00140445 | H143: rs140543125 | I143: G | J143: A | K143: 0.98174 | L143: 0.026681 | M143: 0.105764 | N143: 0.0477099 | O143: 0.00009 | P143: 90.0651 | S143: rs76840964 | T143: G | U143: A | V143: 0.128 | W143: 1.09e-09 | X143: 0.0128567 | Y143: 0.00210941 | Z143: rs3072657 | AA143: AAT | AB143: A | AC143: 0.5388 | AD143: 0.213852 | AE143: 0.0153214 | AF143: 0.0123206 | AG143: 0.00004 | AH143: 37.1481 | AK143: rs4006430 | AL143: C | AM143: G | AN143: 0.23 | AO143: 2.24e-09 | AP143: -0.00995599 | AQ143: 0.00166507 | AR143: rs17326656 | AS143: T | AT143: G | AU143: 0.21718 | AV143: 0.224502 | AW143: 0.0178029 | AX143: 0.0146578 | AY143: 0.00004 | AZ143: 35.7523 | BC143: rs2205846 | BD143: A | BE143: G | BF143: 0.322 | BG143: 1.4e-06 | BH143: 0.0071329 | BI143: 0.0014785 | BJ143: rs1560246 | BK143: G | BL143: A | BM143: 0.42932 | BN143: 0.105067 | BO143: 0.0191157 | BP143: 0.0118012 | BQ143: 0.00002 | BR143: 23.2750
A144: rs147168367 | B144: T | C144: C | D144: 0.00353 | E144: 3.35e-09 | F144: -0.0684852 | G144: 0.0115816 | H144: rs7634917 | I144: T | J144: G | K144: 0.50894 | L144: 0.003034 | M144: 0.0362982 | N144: 0.0122341 | O144: 0.00003 | P144: 34.9668 | S144: rs12692596 | T144: T | U144: C | V144: 0.367 | W144: 2.51e-10 | X144: -0.0090446 | Y144: 0.00142968 | Z144: rs2551639 | AA144: A | AB144: G | AC144: 0.82217 | AD144: 0.458122 | AE144: 0.0120465 | AF144: 0.0162447 | AG144: 0.00004 | AH144: 40.0222 | AK144: rs6689162 | AL144: A | AM144: G | AN144: 0.362 | AO144: 1.37e-06 | AP144: 0.00706154 | AQ144: 0.00146206 | AR144: rs58496935 | AS144: A | AT144: G | AU144: 0.89263 | AV144: 0.230382 | AW144: 0.0238189 | AX144: 0.0198515 | AY144: 0.00002 | AZ144: 23.3275 | BC144: rs6425364 | BD144: T | BE144: G | BF144: 0.299 | BG144: 1.03e-09 | BH144: -0.00922715 | BI144: 0.00151141 | BJ144: rs2358040 | BK144: G | BL144: T | BM144: 0.49297 | BN144: 0.786483 | BO144: 0.00317393 | BP144: 0.0117003 | BQ144: 0.00004 | BR144: 37.2710
A145: rs12485478 | B145: G | C145: A | D145: 0.0271 | E145: 3.35e-37 | F145: -0.0536649 | G145: 0.00421086 | H145: rs115482549 | I145: G | J145: A | K145: 0.98152 | L145: 0.747578 | M145: 0.0163313 | N145: 0.0507252 | O145: 0.00015 | P145: 162.4198 | S145: rs1990760 | T145: C | U145: T | V145: 0.39 | W145: 6.63e-11 | X145: 0.009184 | Y145: 0.00140671 | Z145: rs1047891 | AA145: C | AB145: A | AC145: 0.68788 | AD145: 0.01515 | AE145: 0.0323741 | AF145: 0.0133305 | AG145: 0.00004 | AH145: 42.6240 | AK145: rs12037424 | AL145: C | AM145: T | AN145: 0.286 | AO145: 1.85e-07 | AP145: -0.00791379 | AQ145: 0.00151772 | AR145: rs12997031 | AS145: A | AT145: G | AU145: 0.43649 | AV145: 0.183073 | AW145: 0.0161149 | AX145: 0.0121042 | AY145: 0.00003 | AZ145: 27.1885 | BC145: rs9425299 | BD145: C | BE145: T | BF145: 0.43 | BG145: 3.45e-17 | BH145: -0.0117647 | BI145: 0.00139555 | BJ145: rs144632077 | BK145: GA | BL145: G | BM145: 0.89682 | BN145: 0.441551 | BO145: 0.0149752 | BP145: 0.019462 | BQ145: 0.00007 | BR145: 71.0675
A146: rs187545452 | B146: A | C146: C | D146: 0.00298 | E146: 3.73e-10 | F146: -0.0801499 | G146: 0.0127934 | H146: rs73087292 | I146: A | J146: G | K146: 0.85188 | L146: 0.956155 | M146: 0.000923325 | N146: 0.0168795 | O146: 0.00004 | P146: 39.2495 | S146: rs13389219 | T146: T | U146: C | V146: 0.4 | W146: 8.02e-95 | X146: 0.0290173 | Y146: 0.00140455 | Z146: rs3791705 | AA146: A | AB146: G | AC146: 0.34735 | AD146: 0.330393 | AE146: 0.0122485 | AF146: 0.0125803 | AG146: 0.00040 | AH146: 426.8149 | AK146: rs34679019 | AL146: AC | AM146: A | AN146: 0.0785 | AO146: 8.81e-07 | AP146: -0.0139752 | AQ146: 0.00284245 | AR146: rs805317 | AS146: T | AT146: A | AU146: 0.53659 | AV146: 0.254988 | AW146: 0.0137056 | AX146: 0.0120321 | AY146: 0.00003 | AZ146: 24.1730 | BC146: rs9425779 | BD146: C | BE146: A | BF146: 0.112 | BG146: 2.17e-08 | BH146: -0.0123823 | BI146: 0.00221211 | BJ146: rs4669887 | BK146: G | BL146: T | BM146: 0.76874 | BN146: 0.992003 | BO146: 0.000158696 | BP146: 0.0153358 | BQ146: 0.00003 | BR146: 31.3321
A147: rs3773177 | B147: C | C147: T | D147: 0.417 | E147: 2.24e-08 | F147: 0.00779789 | G147: 0.00139441 | H147: rs79558344 | I147: C | J147: T | K147: 0.98039 | L147: 0.340932 | M147: 0.0507107 | N147: 0.0532499 | O147: 0.00003 | P147: 31.2733 | S147: rs11369303 | T147: C | U147: CT | V147: 0.25 | W147: 7.04e-08 | X147: -0.0102155 | Y147: 0.00189526 | Z147: rs10932536 | AA147: C | AB147: T | AC147: 0.49703 | AD147: 0.632611 | AE147: 0.00574193 | AF147: 0.0119888 | AG147: 0.00004 | AH147: 29.0524 | AK147: rs77462835 | AL147: T | AM147: C | AN147: 0.152 | AO147: 2.18e-06 | AP147: -0.00916972 | AQ147: 0.00193616 | AR147: rs12477711 | AS147: C | AT147: T | AU147: 0.53267 | AV147: 0.179502 | AW147: 0.0160428 | AX147: 0.0119455 | AY147: 0.00002 | AZ147: 22.4300 | BC147: rs10218528 | BD147: A | BE147: T | BF147: 0.385 | BG147: 1.68e-09 | BH147: -0.00887135 | BI147: 0.00147212 | BJ147: rs4832605 | BK147: C | BL147: T | BM147: 0.5946 | BN147: 0.443931 | BO147: 0.00943523 | BP147: 0.0123206 | BQ147: 0.00004 | BR147: 36.3156
A148: rs2455850 | B148: A | C148: C | D148: 0.316 | E148: 2.41e-19 | F148: -0.0136177 | G148: 0.00151429 | H148: rs59612757 | I148: T | J148: C | K148: 0.83004 | L148: 0.177069 | M148: 0.0219001 | N148: 0.0162303 | O148: 0.00008 | P148: 80.8704 | S148: rs17694506 | T148: C | U148: T | V148: 0.38 | W148: 1.73e-08 | X148: -0.00800628 | Y148: 0.00142041 | Z148: rs192243120 | AA148: A | AB148: G | AC148: 0.01359 | AD148: 0.272551 | AE148: 0.0694802 | AF148: 0.0633343 | AG148: 0.00003 | AH148: 31.7712 | AK148: rs17713729 | AL148: C | AM148: A | AN148: 0.352 | AO148: 7.84e-28 | AP148: 0.0157694 | AQ148: 0.0014421 | AR148: rs3893927 | AS148: C | AT148: T | AU148: 0.33222 | AV148: 0.352083 | AW148: 0.0119167 | AX148: 0.0127967 | AY148: 0.00011 | AZ148: 119.5748 | BC148: rs12041149 | BD148: T | BE148: A | BF148: 0.278 | BG148: 7.04e-07 | BH148: -0.00787466 | BI148: 0.00158757 | BJ148: rs1107850 | BK148: A | BL148: G | BM148: 0.47885 | BN148: 0.547203 | BO148: 0.00704035 | BP148: 0.0117003 | BQ148: 0.00002 | BR148: 24.6036
A149: rs2948080 | B149: C | C149: G | D149: 0.313 | E149: 2.37e-08 | F149: -0.00850057 | G149: 0.00152276 | H149: rs2240921 | I149: T | J149: C | K149: 0.12002 | L149: 0.284975 | M149: 0.0197793 | N149: 0.0184954 | O149: 0.00003 | P149: 31.1626 | S149: rs6730441 | T149: A | U149: G | V149: 0.277 | W149: 2.18e-07 | X149: 0.00797021 | Y149: 0.00153778 | Z149: rs3768897 | AA149: A | AB149: G | AC149: 0.14911 | AD149: 0.553949 | AE149: 0.00969491 | AF149: 0.0163746 | AG149: 0.00003 | AH149: 26.8628 | AK149: rs397983732 | AL149: CT | AM149: C | AN149: 0.408 | AO149: 3.97e-07 | AP149: -0.00813116 | AQ149: 0.00160368 | AR149: rs17049712 | AS149: T | AT149: C | AU149: 0.29072 | AV149: 0.073646 | AW149: 0.0233572 | AX149: 0.0130564 | AY149: 0.00003 | AZ149: 25.7081 | BC149: rs12032083 | BD149: T | BE149: C | BF149: 0.306 | BG149: 1.38e-05 | BH149: -0.00724822 | BI149: 0.00166757 | BJ149: rs676210 | BK149: A | BL149: G | BM149: 0.24422 | BN149: 0.66317 | BO149: 0.00592948 | BP149: 0.013619 | BQ149: 0.00002 | BR149: 18.8927
A150: rs2044754 | B150: G | C150: A | D150: 0.109 | E150: 1.66e-14 | F150: -0.0169416 | G150: 0.00220751 | H150: rs75135222 | I150: T | J150: C | K150: 0.94916 | L150: 0.612003 | M150: 0.0151194 | N150: 0.0298061 | O150: 0.00006 | P150: 58.8984 | S150: rs1866631 | T150: G | U150: A | V150: 0.416 | W150: 3.26e-14 | X150: 0.0106601 | Y150: 0.00140492 | Z150: rs2943645 | AA150: T | AB150: C | AC150: 0.64435 | AD150: 3.86e-05 | AE150: 0.0526007 | AF150: 0.0127679 | AG150: 0.00006 | AH150: 57.5731 | AK150: rs6542680 | AL150: C | AM150: T | AN150: 0.192 | AO150: 2.24e-37 | AP150: 0.0226427 | AQ150: 0.00177231 | AR150: rs2080169 | AS150: T | AT150: C | AU150: 0.77763 | AV150: 0.929075 | AW150: 0.001284 | AX150: 0.0143692 | AY150: 0.00016 | AZ150: 163.2214 | BC150: rs553409824 | BD150: A | BE150: AAAGG | BF150: 0.0131 | BG150: 3.82e-06 | BH150: -0.0355005 | BI150: 0.00768268 | BJ150: rs144885846 | BK150: T | BL150: G | BM150: 0.04543 | BN150: 0.737465 | BO150: 0.0123495 | BP150: 0.0368464 | BQ150: 0.00003 | BR150: 21.3522
A151: rs11706926 | B151: A | C151: G | D151: 0.448 | E151: 1.19e-19 | F151: -0.0126115 | G151: 0.00139048 | H151: rs4597680 | I151: C | J151: T | K151: 0.76379 | L151: 0.133217 | M151: 0.0226647 | N151: 0.015105 | O151: 0.00008 | P151: 82.2629 | S151: rs10497442 | T151: C | U151: T | V151: 0.307 | W151: 5.4e-09 | X151: 0.00867667 | Y151: 0.0014872 | Z151: rs11694828 | AA151: G | AB151: A | AC151: 0.56323 | AD151: 0.770249 | AE151: 0.00380871 | AF151: 0.0130275 | AG151: 0.00003 | AH151: 34.0383 | AK151: rs1560246 | AL151: G | AM151: A | AN151: 0.423 | AO151: 2.97e-06 | AP151: -0.00652687 | AQ151: 0.00139684 | AR151: rs356979 | AS151: C | AT151: T | AU151: 0.69271 | AV151: 0.039383 | AW151: 0.0272958 | AX151: 0.0132439 | AY151: 0.00002 | AZ151: 21.8332 | BC151: rs774874662 | BD151: T | BE151: C | BF151: 8.68e-05 | BG151: 1.71e-05 | BH151: -0.686874 | BI151: 0.159763 | BJ151: rs12613275 | BK151: C | BL151: T | BM151: 0.75732 | BN151: 0.716722 | BO151: 0.00502058 | BP151: 0.0138643 | BQ151: 0.00008 | BR151: 18.4842
A152: rs4128529 | B152: C | C152: T | D152: 0.0372 | E152: 3.5e-08 | F152: 0.020475 | G152: 0.00371311 | H152: rs76824303 | I152: A | J152: C | K152: 0.89372 | L152: 0.2155 | M152: 0.0247566 | N152: 0.0199813 | O152: 0.00003 | P152: 30.4069 | S152: rs13005431 | T152: C | U152: T | V152: 0.366 | W152: 1.32e-08 | X152: -0.00813641 | Y152: 0.00143145 | Z152: rs985891 | AA152: G | AB152: A | AC152: 0.65429 | AD152: 0.005693 | AE152: 0.0350286 | AF152: 0.0126669 | AG152: 0.00003 | AH152: 32.3082 | AK152: rs117517636 | AL152: A | AM152: G | AN152: 7.03e-05 | AO152: 8.93e-07 | AP152: 0.930495 | AQ152: 0.189363 | AR152: rs17432483 | AS152: C | AT152: T | AU152: 0.05727 | AV152: 0.606324 | AW152: 0.0141384 | AX152: 0.0274401 | AY152: 0.00012 | AZ152: 24.1456 | BC152: rs478788 | BD152: C | BE152: T | BF152: 0.226 | BG152: 7.66e-11 | BH152: -0.0106953 | BI152: 0.00164364 | BJ152: rs11125393 | BK152: C | BL152: T | BM152: 0.2614 | BN152: 0.709294 | BO152: 0.00502058 | BP152: 0.0134748 | BQ152: 0.00004 | BR152: 42.3421
A153: rs2290547 | B153: A | C153: G | D153: 0.172 | E153: 1.48e-27 | F153: -0.0201189 | G153: 0.00184966 | H153: rs704367 | I153: C | J153: A | K153: 0.68152 | L153: 0.012124 | M153: 0.031797 | N153: 0.0126669 | O153: 0.00012 | P153: 118.3109 | S153: rs111882666 | T153: T | U153: C | V153: 0.0945 | W153: 9.86e-08 | X153: 0.0125515 | Y153: 0.00235521 | Z153: rs11904625 | AA153: G | AB153: A | AC153: 0.2449 | AD153: 0.480677 | AE153: 0.0101999 | AF153: 0.0144558 | AG153: 0.00003 | AH153: 28.4009 | AK153: rs2358040 | AL153: G | AM153: T | AN153: 0.487 | AO153: 7.51e-09 | AP153: -0.00795727 | AQ153: 0.00137689 | AR153: rs17617459 | AS153: T | AT153: C | AU153: 0.05894 | AV153: 0.931977 | AW153: 0.00229389 | AX153: 0.0269351 | AY153: 0.00003 | AZ153: 33.3987 | BC153: rs10913570 | BD153: A | BE153: C | BF153: 0.481 | BG153: 1.53e-39 | BH153: 0.0181662 | BI153: 0.00138062 | BJ153: rs1056074 | BK153: C | BL153: T | BM153: 0.17516 | BN153: 0.286922 | BO153: 0.0165044 | BP153: 0.015509 | BQ153: 0.00016 | BR153: 173.1330
A154: rs184852236 | B154: A | C154: G | D154: 0.0165 | E154: 1.19e-29 | F154: -0.0625235 | G154: 0.0055288 | H154: rs141148474 | I154: A | J154: C | K154: 0.88965 | L154: 0.141091 | M154: 0.0281037 | N154: 0.0191013 | O154: 0.00013 | P154: 127.8865 | S154: rs62177195 | T154: A | U154: T | V154: 0.286 | W154: 2.98e-07 | X154: -0.00778353 | Y154: 0.00151876 | Z154: rs36092870 | AA154: T | AB154: C | AC154: 0.00142 | AD154: 0.980964 | AE154: 0.00731446 | AF154: 0.306919 | AG154: 0.00002 | AH154: 26.2648 | AK154: rs144632077 | AL154: G | AM154: GA | AN154: 0.113 | AO154: 9.5e-07 | AP154: -0.0114702 | AQ154: 0.00234001 | AR154: rs12995137 | AS154: G | AT154: A | AU154: 0.05837 | AV154: 0.51409 | AW154: 0.0180481 | AX154: 0.0276709 | AY154: 0.00003 | AZ154: 24.0274 | BC154: rs762267143 | BD154: T | BE154: C | BF154: 0.000262 | BG154: 1.24e-05 | BH154: -0.309846 | BI154: 0.0709069 | BJ154: rs71439172 | BK154: A | BL154: G | BM154: 0.14815 | BN154: 0.253242 | BO154: 0.0199958 | BP154: 0.0174999 | BQ154: 0.00005 | BR154: 19.0948
A155: rs74780677 | B155: G | C155: A | D155: 0.0169 | E155: 1.23e-36 | F155: -0.0680574 | G155: 0.00538324 | H155: rs9828193 | I155: G | J155: A | K155: 0.20978 | L155: 0.061923 | M155: 0.0272669 | N155: 0.0146001 | O155: 0.00015 | P155: 159.8318 | S155: rs717684 | T155: T | U155: G | V155: 0.268 | W155: 4.32e-09 | X155: -0.00910811 | Y155: 0.00155126 | Z155: rs4321388 | AA155: A | AB155: T | AC155: 0.46088 | AD155: 0.79549 | AE155: 0.00310179 | AF155: 0.0119744 | AG155: 0.00003 | AH155: 34.4737 | AK155: rs183050115 | AL155: G | AM155: T | AN155: 5.42e-05 | AO155: 3.92e-06 | AP155: 0.954831 | AQ155: 0.206875 | AR155: rs2540949 | AS155: A | AT155: T | AU155: 0.61637 | AV155: 0.489967 | AW155: 0.00843977 | AX155: 0.0122196 | AY155: 0.00010 | AZ155: 21.3028 | BC155: rs3845412 | BD155: C | BE155: T | BF155: 0.4 | BG155: 1.46e-06 | BH155: -0.0068534 | BI155: 0.00142276 | BJ155: rs13432533 | BK155: A | BL155: G | BM155: 0.52569 | BN155: 0.000134 | BO155: 0.0459643 | BP155: 0.0120321 | BQ155: 0.00002 | BR155: 23.2033
A156: rs140543125 | B156: A | C156: G | D156: 0.0189 | E156: 2.56e-24 | F156: -0.0513118 | G156: 0.00504292 | H156: rs4855447 | I156: G | J156: A | K156: 0.77791 | L156: 0.00281 | M156: 0.0427903 | N156: 0.0143115 | O156: 0.00010 | P156: 103.5310 | S156: rs111917980 | T156: A | U156: G | V156: 0.324 | W156: 4.89e-12 | X156: 0.0102527 | Y156: 0.00148404 | Z156: rs4675812 | AA156: A | AB156: G | AC156: 0.5774 | AD156: 0.41723 | AE156: 0.0097959 | AF156: 0.0120609 | AG156: 0.00005 | AH156: 47.7293 | AK156: rs4832605 | AL156: T | AM156: C | AN156: 0.425 | AO156: 5.31e-07 | AP156: 0.00702748 | AQ156: 0.00140134 | AR156: rs11883967 | AS156: A | AT156: C | AU156: 0.35665 | AV156: 0.733651 | AW156: 0.0042848 | AX156: 0.0125947 | AY156: 0.00002 | AZ156: 25.1485 | BC156: rs1689797 | BD156: A | BE156: C | BF156: 0.326 | BG156: 2.59e-70 | BH156: -0.0260934 | BI156: 0.00147195 | BJ156: rs7586601 | BK156: G | BL156: A | BM156: 0.43694 | BN156: 0.611164 | BO156: 0.00611703 | BP156: 0.0120176 | BQ156: 0.00030 | BR156: 314.2500
A157: rs7634917 | B157: G | C157: T | D157: 0.478 | E157: 1.25e-54 | F157: 0.0219633 | G157: 0.00141102 | H157: rs10510998 | I157: A | J157: G | K157: 0.55003 | L157: 0.042114 | M157: 0.0238045 | N157: 0.0117147 | O157: 0.00024 | P157: 242.2863 | S157: rs72913721 | T157: G | U157: A | V157: 0.224 | W157: 9.24e-08 | X157: 0.0088953 | Y157: 0.00166543 | Z157: rs2596927 | AA157: T | AB157: C | AC157: 0.57478 | AD157: 0.669573 | AE157: 0.00516485 | AF157: 0.0120898 | AG157: 0.00003 | AH157: 28.5278 | AK157: rs546442759 | AL157: A | AM157: G | AN157: 0.000262 | AO157: 1.89e-06 | AP157: -0.28785 | AQ157: 0.0604118 | AR157: rs6546564 | AS157: T | AT157: C | AU157: 0.39517 | AV157: 0.370705 | AW157: 0.0110943 | AX157: 0.0123928 | AY157: 0.00004 | AZ157: 22.7033 | BC157: rs116464992 | BD157: T | BE157: C | BF157: 0.0185 | BG157: 2.44e-08 | BH157: -0.0316987 | BI157: 0.0056835 | BJ157: rs62131975 | BK157: T | BL157: C | BM157: 0.46456 | BN157: 0.13007 | BO157: 0.0184521 | BP157: 0.0121908 | BQ157: 0.00004 | BR157: 31.1065
A158: rs115482549 | B158: A | C158: G | D158: 0.0144 | E158: 4.42e-23 | F158: -0.057671 | G158: 0.00582889 | H158: rs35540156 | I158: A | J158: G | K158: 0.54814 | L158: 0.001005 | M158: 0.0397751 | N158: 0.0120898 | O158: 0.00009 | P158: 97.8911 | S158: rs13419481 | T158: A | U158: T | V158: 0.416 | W158: 2.6e-09 | X158: -0.00856264 | Y158: 0.00143794 | Z158: rs12485478 | AA158: A | AB158: G | AC158: 0.96301 | AD158: 0.363653 | AE158: 0.0273246 | AF158: 0.0300802 | AG158: 0.00004 | AH158: 35.4596 | AK158: rs1107850 | AL158: A | AM158: G | AN158: 0.485 | AO158: 8.96e-22 | AP158: -0.0132386 | AQ158: 0.00138071 | AR158: rs141490929 | AS158: G | AT158: A | AU158: 0.989 | AV158: 0.48281 | AW158: 0.0455892 | AX158: 0.0649646 | AY158: 0.00009 | AZ158: 91.9346 | BC158: rs17849502 | BD158: T | BE158: G | BF158: 0.0476 | BG158: 3.43e-08 | BH158: -0.0178945 | BI158: 0.00324307 | BJ158: rs151117068 | BK158: AAG | BL158: A | BM158: 0.97539 | BN158: 0.50171 | BO158: 0.0279594 | BP158: 0.0416218 | BQ158: 0.00003 | BR158: 30.4457
A159: rs73087292 | B159: G | C159: A | D159: 0.128 | E159: 1.02e-13 | F159: 0.0157057 | G159: 0.00211142 | H159: rs13066793 | I159: G | J159: A | K159: 0.07886 | L159: 0.33035 | M159: 0.0255934 | N159: 0.0263003 | O159: 0.00006 | P159: 55.3306 | S159: rs7581601 | T159: C | U159: A | V159: 0.315 | W159: 6.37e-32 | X159: -0.0175099 | Y159: 0.0014891 | Z159: rs3773177 | AA159: T | AB159: C | AC159: 0.58209 | AD159: 0.565588 | AE159: 0.00682395 | AF159: 0.0118734 | AG159: 0.00013 | AH159: 138.2673 | AK159: rs676210 | AL159: A | AM159: G | AN159: 0.214 | AO159: 2e-286 | AP159: 0.0604574 | AQ159: 0.00167161 | AR159: rs6733538 | AS159: A | AT159: G | AU159: 0.90402 | AV159: 0.012758 | AW159: 0.054606 | AX159: 0.0219145 | AY159: 0.00123 | AZ159: 1308.0641 | BC159: rs10911505 | BD159: C | BE159: T | BF159: 0.359 | BG159: 1.02e-09 | BH159: -0.00881276 | BI159: 0.00144326 | BJ159: rs13389106 | BK159: G | BL159: T | BM159: 0.18806 | BN159: 0.694639 | BO159: 0.00618916 | BP159: 0.0157687 | BQ159: 0.00004 | BR159: 37.2851
A160: rs79558344 | B160: T | C160: C | D160: 0.014 | E160: 1.24e-19 | F160: -0.0534628 | G160: 0.00589721 | H160: rs7640424 | I160: C | J160: T | K160: 0.70637 | L160: 0.5548 | M160: 0.00793482 | N160: 0.0134315 | O160: 0.00008 | P160: 82.1883 | S160: rs10172421 | T160: A | U160: C | V160: 0.122 | W160: 4.19e-08 | X160: 0.0116224 | Y160: 0.00211985 | Z160: rs2455850 | AA160: A | AB160: C | AC160: 0.33975 | AD160: 0.310419 | AE160: 0.0130131 | AF160: 0.0128256 | AG160: 0.00003 | AH160: 30.0595 | AK160: rs184344489 | AL160: A | AM160: G | AN160: 0.00246 | AO160: 3.11e-11 | AP160: 0.119011 | AQ160: 0.0179205 | AR160: rs7586605 | AS160: C | AT160: T | AU160: 0.25491 | AV160: 0.73061 | AW160: 0.00500615 | AX160: 0.0145424 | AY160: 0.00007 | AZ160: 44.1036 | BC160: rs185987460 | BD160: A | BE160: G | BF160: 0.00246 | BG160: 1.94e-06 | BH160: -0.0763272 | BI160: 0.0160362 | BJ160: rs72790679 | BK160: A | BL160: G | BM160: 0.017 | BN160: 0.607344 | BO160: 0.0278007 | BP160: 0.0540866 | BQ160: 0.00003 | BR160: 22.6546
A161: rs59612757 | B161: C | C161: T | D161: 0.168 | E161: 8.29e-29 | F161: 0.0205548 | G161: 0.00184563 | H161: rs73216701 | I161: A | J161: G | K161: 0.5648 | L161: 0.147065 | M161: 0.0174999 | N161: 0.0120754 | O161: 0.00012 | P161: 124.0330 | S161: rs3072657 | T161: A | U161: AAT | V161: 0.453 | W161: 8.85e-08 | X161: 0.00834091 | Y161: 0.00155939 | Z161: rs2948080 | AA161: C | AB161: G | AC161: 0.31856 | AD161: 0.337233 | AE161: 0.0127246 | AF161: 0.0132584 | AG161: 0.00003 | AH161: 28.6100 | AK161: rs113236368 | AL161: C | AM161: T | AN161: 0.00229 | AO161: 7.74e-08 | AP161: 0.0989932 | AQ161: 0.0184235 | AR161: rs56304923 | AS161: T | AT161: C | AU161: 0.80923 | AV161: 0.037259 | AW161: 0.0331964 | AX161: 0.0159418 | AY161: 0.00004 | AZ161: 28.8713 | BC161: rs566291491 | BD161: C | BE161: A | BF161: 0.00043 | BG161: 3.02e-05 | BH161: -0.353344 | BI161: 0.0846882 | BJ161: rs62142076 | BK161: A | BL161: C | BM161: 0.80136 | BN161: 0.554118 | BO161: 0.00877159 | BP161: 0.0148165 | BQ161: 0.00011 | BR161: 17.4080
A162: rs2240921 | B162: T | C162: C | D162: 0.116 | E162: 4.32e-34 | F162: 0.0262069 | G162: 0.00215283 | H162: rs4516580 | I162: T | J162: C | K162: 0.20891 | L162: 0.722331 | M162: 0.00564094 | N162: 0.0158552 | O162: 0.00014 | P162: 148.1876 | S162: rs2551639 | T162: G | U162: A | V162: 0.191 | W162: 9.83e-13 | X162: 0.0125212 | Y162: 0.00175544 | Z162: rs9868645 | AA162: T | AB162: G | AC162: 0.62019 | AD162: 0.296425 | AE162: 0.0127101 | AF162: 0.0121763 | AG162: 0.00005 | AH162: 50.8768 | AK162: rs12613275 | AL162: T | AM162: C | AN162: 0.239 | AO162: 1.04e-06 | AP162: 0.00794871 | AQ162: 0.00162745 | AR162: rs79724734 | AS162: A | AT162: C | AU162: 0.03138 | AV162: 0.398949 | AW162: 0.0309891 | AX162: 0.036731 | AY162: 0.00002 | AZ162: 23.8549 | BC162: rs568720782 | BD162: G | BE162: A | BF162: 0.000403 | BG162: 4.88e-06 | BH162: -0.291852 | BI162: 0.0638622 | BJ162: rs62136301 | BK162: A | BL162: G | BM162: 0.82012 | BN162: 0.837629 | BO162: 0.00324606 | BP162: 0.0158264 | BQ162: 0.00007 | BR162: 20.8851
A163: rs75135222 | B163: C | C163: T | D163: 0.0477 | E163: 1.23e-08 | F163: -0.0191917 | G163: 0.0033695 | H163: rs12632328 | I163: T | J163: A | K163: 0.14002 | L163: 0.152297 | M163: 0.0236891 | N163: 0.0165477 | O163: 0.00003 | P163: 32.4411 | S163: rs1047891 | T163: A | U163: C | V163: 0.308 | W163: 1.19e-27 | X163: -0.0164194 | Y163: 0.00150676 | Z163: rs2044754 | AA163: A | AB163: G | AC163: 0.89128 | AD163: 0.2746 | AE163: 0.0209624 | AF163: 0.0191878 | AG163: 0.00011 | AH163: 118.7480 | AK163: rs1056074 | AL163: C | AM163: T | AN163: 0.169 | AO163: 1.34e-08 | AP163: -0.0104193 | AQ163: 0.00183405 | AR163: rs6729411 | AS163: C | AT163: T | AU163: 0.58609 | AV163: 0.873573 | AW163: 0.00201977 | AX163: 0.0126669 | AY163: 0.00003 | AZ163: 32.2741 | BC163: rs12046547 | BD163: A | BE163: G | BF163: 7.32e-05 | BG163: 3.89e-05 | BH163: -0.847344 | BI163: 0.205964 | BJ163: rs6704621 | BK163: C | BL163: T | BM163: 0.52013 | BN163: 0.258002 | BO163: 0.0135036 | BP163: 0.0119311 | BQ163: 0.00011 | BR163: 16.9253
A164: rs34509464 | B164: AT | C164: A | D164: 0.322 | E164: 4.27e-08 | F164: 0.00956741 | G164: 0.00174607 | H164: rs3732356 | I164: T | J164: G | K164: 0.90628 | L164: 0.770362 | M164: 0.00660754 | N164: 0.0226503 | O164: 0.00004 | P164: 30.0238 | S164: rs3791705 | T164: A | U164: G | V164: 0.314 | W164: 1.17e-08 | X164: -0.00845434 | Y164: 0.00148205 | Z164: rs1286772 | AA164: C | AB164: G | AC164: 0.41086 | AD164: 0.214031 | AE164: 0.0148598 | AF164: 0.0119599 | AG164: 0.00003 | AH164: 32.5412 | AK164: rs71439172 | AL164: A | AM164: G | AN164: 0.148 | AO164: 7.57e-08 | AP164: 0.0107274 | AQ164: 0.00199503 | AR164: rs62156361 | AS164: G | AT164: A | AU164: 0.97863 | AV164: 0.106215 | AW164: 0.0757271 | AX164: 0.0468732 | AY164: 0.00003 | AZ164: 28.9128 | BC164: rs57234886 | BD164: T | BE164: G | BF164: 0.157 | BG164: 4.4e-05 | BH164: -0.00782448 | BI164: 0.00191524 | BJ164: rs79965100 | BK164: A | BL164: T | BM164: 0.11611 | BN164: 0.738604 | BO164: 0.0070115 | BP164: 0.0209912 | BQ164: 0.00002 | BR164: 16.6903
A165: rs4597680 | B165: T | C165: C | D165: 0.211 | E165: 1.74e-09 | F165: 0.0103816 | G165: 0.00172429 | H165: rs75205331 | I165: G | J165: A | K165: 0.95574 | L165: 0.461042 | M165: 0.0216837 | N165: 0.0294021 | O165: 0.00004 | P165: 36.2500 | S165: rs10932536 | T165: C | U165: T | V165: 0.494 | W165: 4.26e-12 | X165: 0.00955066 | Y165: 0.00137848 | Z165: rs11706926 | AA165: G | AB165: A | AC165: 0.54204 | AD165: 0.685327 | AE165: 0.00476089 | AF165: 0.0117291 | AG165: 0.00005 | AH165: 48.0027 | AK165: rs13432533 | AL165: G | AM165: A | AN165: 0.465 | AO165: 1.65e-10 | AP165: 0.00885955 | AQ165: 0.00138626 | AR165: rs62154466 | AS165: G | AT165: A | AU165: 0.97686 | AV165: 0.047208 | AW165: 0.091943 | AX165: 0.0463249 | AY165: 0.00004 | AZ165: 40.8445 | BC165: rs563815750 | BD165: A | BE165: AAAG | BF165: 0.00407 | BG165: 4.78e-05 | BH165: -0.0853197 | BI165: 0.0209831 | BJ165: rs115030737 | BK165: C | BL165: T | BM165: 0.98985 | BN165: 0.140548 | BO165: 0.108967 | BP165: 0.0739381 | BQ165: 0.00006 | BR165: 16.5333
A166: rs76824303 | B166: C | C166: A | D166: 0.0968 | E166: 7.97e-12 | F166: 0.0164648 | G166: 0.00240743 | H166: rs11708067 | I166: G | J166: A | K166: 0.23374 | L166: 0.912365 | M166: 0.00167353 | N166: 0.0151483 | O166: 0.00005 | P166: 46.7741 | S166: rs192243120 | T166: A | U166: G | V166: 0.0084 | W166: 1.5e-11 | X166: -0.0578338 | Y166: 0.00857039 | Z166: rs4128529 | AA166: T | AB166: C | AC166: 0.95704 | AD166: 0.750191 | AE166: 0.00877159 | AF166: 0.0275699 | AG166: 0.00006 | AH166: 45.5368 | AK166: rs7586601 | AL166: G | AM166: A | AN166: 0.447 | AO166: 2.01e-07 | AP166: 0.00729186 | AQ166: 0.00140282 | AR166: rs4851250 | AS166: T | AT166: C | AU166: 0.82208 | AV166: 0.495136 | AW166: 0.0106759 | AX166: 0.0156532 | AY166: 0.00003 | AZ166: 27.0192 | BC166: rs763908543 | BD166: C | BE166: CAT | BF166: 0.000665 | BG166: 4.14e-06 | BH166: -0.254516 | BI166: 0.0552794 | BJ166: rs12478677 | BK166: C | BL166: T | BM166: 0.54707 | BN166: 0.362746 | BO166: 0.0108923 | BP166: 0.0119599 | BQ166: 0.00009 | BR166: 21.1984
A167: rs704367 | B167: A | C167: C | D167: 0.294 | E167: 3.94e-08 | F167: 0.00831395 | G167: 0.00151343 | H167: rs113761591 | I167: C | J167: T | K167: 0.81428 | L167: 0.664411 | M167: 0.00680952 | N167: 0.0156965 | O167: 0.00003 | P167: 30.1780 | S167: rs78058190 | T167: A | U167: G | V167: 0.0522 | W167: 2.69e-113 | X167: -0.0808669 | Y167: 0.00357485 | Z167: rs6770210 | AA167: T | AB167: G | AC167: 0.31174 | AD167: 0.270026 | AE167: 0.0143548 | AF167: 0.0130131 | AG167: 0.00065 | AH167: 511.7124 | AK167: rs62131975 | AL167: C | AM167: T | AN167: 0.496 | AO167: 1.32e-06 | AP167: 0.00667738 | AQ167: 0.00138043 | AR167: rs77127114 | AS167: A | AT167: T | AU167: 0.04423 | AV167: 0.138204 | AW167: 0.048489 | AX167: 0.0327059 | AY167: 0.00002 | AZ167: 23.3983 | BC167: rs536946988 | BD167: A | BE167: C | BF167: 0.000414 | BG167: 4.68e-06 | BH167: -0.434727 | BI167: 0.094948 | BJ167: rs2217363 | BK167: T | BL167: C | BM167: 0.63018 | BN167: 0.980454 | BO167: 0.000302966 | BP167: 0.0124937 | BQ167: 0.00016 | BR167: 20.9634
A168: rs141148474 | B168: C | C168: A | D168: 0.103 | E168: 1.45e-10 | F168: 0.0147562 | G168: 0.00230186 | H168: rs2811468 | I168: A | J168: G | K168: 0.79718 | L168: 0.772445 | M168: 0.00424152 | N168: 0.0146866 | O168: 0.00004 | P168: 41.0952 | S168: rs3768897 | T168: A | U168: G | V168: 0.131 | W168: 4.68e-08 | X168: 0.0112583 | Y168: 0.00206087 | Z168: rs2290547 | AA168: G | AB168: A | AC168: 0.8333 | AD168: 0.014689 | AE168: 0.0410302 | AF168: 0.0168074 | AG168: 0.00003 | AH168: 29.8431 | AK168: rs151117068 | AL168: A | AM168: AAG | AN168: 0.0254 | AO168: 1.54e-06 | AP168: 0.0241074 | AQ168: 0.00501649 | AR168: rs4851057 | AS168: C | AT168: T | AU168: 0.88434 | AV168: 0.556074 | AW168: 0.0111953 | AX168: 0.0190147 | AY168: 0.00003 | AZ168: 23.0941 | BC168: rs761037013 | BD168: T | BE168: C | BF168: 0.000101 | BG168: 4.51e-06 | BH168: -0.616315 | BI168: 0.134378 | BJ168: rs12998038 | BK168: C | BL168: T | BM168: 0.76328 | BN168: 0.891463 | BO168: 0.00199092 | BP168: 0.0145712 | BQ168: 0.00008 | BR168: 21.0353
A169: rs9828193 | B169: G | C169: A | D169: 0.175 | E169: 5.73e-10 | F169: -0.0113437 | G169: 0.00183029 | H169: rs7649058 | I169: T | J169: C | K169: 0.69426 | L169: 0.275908 | M169: 0.0138932 | N169: 0.0127534 | O169: 0.00004 | P169: 38.4122 | S169: rs2943645 | T169: C | U169: T | V169: 0.364 | W169: 1.88e-149 | X169: 0.0372461 | Y169: 0.0014305 | Z169: rs184852236 | AA169: G | AB169: A | AC169: 0.98225 | AD169: 0.230305 | AE169: 0.062411 | AF169: 0.052038 | AG169: 0.00064 | AH169: 677.9316 | AK169: rs13389106 | AL169: G | AM169: T | AN169: 0.195 | AO169: 9.3e-13 | AP169: -0.0123905 | AQ169: 0.00173526 | AR169: rs3761706 | AS169: A | AT169: G | AU169: 0.06502 | AV169: 0.0206 | AW169: 0.055688 | AX169: 0.0240497 | AY169: 0.00005 | AZ169: 50.9857 | BC169: rs12044133 | BD169: G | BE169: A | BF169: 0.499 | BG169: 1.07e-05 | BH169: -0.00614872 | BI169: 0.00139664 | BJ169: rs4952950 | BK169: C | BL169: G | BM169: 0.7552 | BN169: 0.471488 | BO169: 0.0100989 | BP169: 0.014023 | BQ169: 0.00002 | BR169: 19.3821
A170: rs4855447 | B170: A | C170: G | D170: 0.211 | E170: 3.56e-11 | F170: 0.0112195 | G170: 0.00169443 | H170: rs1154988 | I170: A | J170: T | K170: 0.76508 | L170: 0.000318 | M170: 0.0511435 | N170: 0.0141961 | O170: 0.00004 | P170: 43.8429 | S170: rs11694828 | T170: A | U170: G | V170: 0.451 | W170: 5.25e-24 | X170: 0.0145721 | Y170: 0.00144206 | Z170: rs74780677 | AA170: A | AB170: G | AC170: 0.98309 | AD170: 0.142539 | AE170: 0.0738083 | AF170: 0.0503356 | AG170: 0.00011 | AH170: 102.1122 | AK170: rs72790679 | AL170: A | AM170: G | AN170: 0.016 | AO170: 1.83e-08 | AP170: 0.0321936 | AQ170: 0.00572048 | AR170: rs6541932 | AS170: T | AT170: C | AU170: 0.05887 | AV170: 0.116806 | AW170: 0.0492536 | AX170: 0.0314075 | AY170: 0.00003 | AZ170: 31.6719 | BC170: rs2298883 | BD170: G | BE170: A | BF170: 0.16 | BG170: 6.56e-10 | BH170: 0.0118258 | BI170: 0.00191467 | BJ170: rs75251210 | BK170: G | BL170: T | BM170: 0.89072 | BN170: 0.45614 | BO170: 0.0152349 | BP170: 0.020443 | BQ170: 0.00004 | BR170: 38.1481
A171: rs10510998 | B171: G | C171: A | D171: 0.438 | E171: 4.68e-11 | F171: 0.00929017 | G171: 0.00141168 | H171: rs6439657 | I171: C | J171: T | K171: 0.75776 | L171: 0.018399 | M171: 0.0332974 | N171: 0.014124 | O171: 0.00004 | P171: 43.3087 | S171: rs985891 | T171: A | U171: G | V171: 0.349 | W171: 7.65e-11 | X171: -0.00939304 | Y171: 0.00144344 | Z171: rs140543125 | AA171: G | AB171: A | AC171: 0.98174 | AD171: 0.026681 | AE171: 0.105764 | AF171: 0.0477099 | AG171: 0.00004 | AH171: 42.3462 | AK171: rs62136301 | AL171: G | AM171: A | AN171: 0.193 | AO171: 2.67e-10 | AP171: 0.0111928 | AQ171: 0.0017719 | AR171: rs72829856 | AS171: A | AT171: G | AU171: 0.08129 | AV171: 0.153669 | AW171: 0.0352306 | AX171: 0.0246989 | AY171: 0.00004 | AZ171: 39.9024 | BC171: rs17564924 | BD171: C | BE171: T | BF171: 0.324 | BG171: 1.47e-05 | BH171: -0.00645234 | BI171: 0.00148883 | BJ171: rs1067337 | BK171: A | BL171: G | BM171: 0.27117 | BN171: 0.354714 | BO171: 0.0123062 | BP171: 0.0133016 | BQ171: 0.00002 | BR171: 18.7821
A172: rs35540156 | B172: G | C172: A | D172: 0.476 | E172: 4.92e-12 | F172: 0.00951104 | G172: 0.00137685 | H172: rs17633378 | I172: T | J172: C | K172: 0.37168 | L172: 0.885292 | M172: 0.00174566 | N172: 0.0120898 | O172: 0.00005 | P172: 47.7181 | S172: rs11904625 | T172: G | U172: A | V172: 0.25 | W172: 2.07e-07 | X172: -0.00842426 | Y172: 0.00162225 | Z172: rs7634917 | AA172: T | AB172: G | AC172: 0.50894 | AD172: 0.003034 | AE172: 0.0362982 | AF172: 0.0122341 | AG172: 0.00003 | AH172: 26.9667 | AK172: rs6704621 | AL172: T | AM172: C | AN172: 0.453 | AO172: 2.2e-06 | AP172: 0.0066155 | AQ172: 0.00139745 | AR172: rs11688682 | AS172: G | AT172: C | AU172: 0.75844 | AV172: 0.658156 | AW172: 0.00708363 | AX172: 0.0159995 | AY172: 0.00002 | AZ172: 22.4106 | BC172: rs6675366 | BD172: C | BE172: T | BF172: 0.0401 | BG172: 8.03e-10 | BH172: -0.0218051 | BI172: 0.00354887 | BJ172: rs7580254 | BK172: A | BL172: G | BM172: 0.51906 | BN172: 0.064389 | BO172: 0.0222464 | BP172: 0.0120321 | BQ172: 0.00004 | BR172: 37.7517
A173: rs13066793 | B173: G | C173: A | D173: 0.0909 | E173: 1.63e-13 | F173: 0.0180945 | G173: 0.00245326 | H173: rs62271373 | I173: A | J173: T | K173: 0.05562 | L173: 0.005549 | M173: 0.0779632 | N173: 0.0281037 | O173: 0.00005 | P173: 54.4009 | S173: rs36092870 | T173: T | U173: C | V173: 0.000156 | W173: 3.47e-07 | X173: -0.344973 | Y173: 0.0676991 | Z173: rs115482549 | AA173: G | AB173: A | AC173: 0.98152 | AD173: 0.747578 | AE173: 0.0163313 | AF173: 0.0507252 | AG173: 0.00004 | AH173: 25.9660 | AK173: rs861919 | AL173: T | AM173: C | AN173: 0.468 | AO173: 4.52e-07 | AP173: 0.00702686 | AQ173: 0.00139271 | AR173: rs10211103 | AS173: T | AT173: C | AU173: 0.77945 | AV173: 0.31836 | AW173: 0.0144991 | AX173: 0.0145279 | AY173: 0.00002 | AZ173: 25.4566 | BC173: rs12410613 | BD173: C | BE173: G | BF173: 0.143 | BG173: 1.34e-06 | BH173: -0.00995498 | BI173: 0.0020592 | BJ173: rs79154515 | BK173: A | BL173: G | BM173: 0.10856 | BN173: 0.51617 | BO173: 0.0130708 | BP173: 0.0201256 | BQ173: 0.00002 | BR173: 23.3713
A174: rs7640424 | B174: T | C174: C | D174: 0.308 | E174: 9.41e-10 | F174: 0.00918302 | G174: 0.00150073 | H174: rs13082076 | I174: T | J174: C | K174: 0.68411 | L174: 0.220637 | M174: 0.015408 | N174: 0.0125803 | O174: 0.00004 | P174: 37.4426 | S174: rs4321388 | T174: A | U174: T | V174: 0.477 | W174: 1.84e-09 | X174: 0.00825273 | Y174: 0.00137294 | Z174: rs73087292 | AA174: A | AB174: G | AC174: 0.85188 | AD174: 0.956155 | AE174: 0.000923325 | AF174: 0.0168795 | AG174: 0.00003 | AH174: 36.1320 | AK174: rs115030737 | AL174: T | AM174: C | AN174: 0.00398 | AO174: 1.44e-07 | AP174: 0.0606393 | AQ174: 0.0115278 | AR174: rs840873 | AS174: T | AT174: C | AU174: 0.96008 | AV174: 0.115483 | AW174: 0.0531922 | AX174: 0.0337879 | AY174: 0.00003 | AZ174: 27.6704 | BC174: rs2821388 | BD174: G | BE174: A | BF174: 0.261 | BG174: 2.16e-09 | BH174: -0.00932099 | BI174: 0.0015574 | BJ174: rs17326656 | BK174: T | BL174: G | BM174: 0.21718 | BN174: 0.224502 | BO174: 0.0178029 | BP174: 0.0146578 | BQ174: 0.00003 | BR174: 35.8198
A175: rs73216701 | B175: G | C175: A | D175: 0.432 | E175: 2.26e-10 | F175: 0.00881347 | G175: 0.00138951 | H175: rs7648816 | I175: T | J175: C | K175: 0.85682 | L175: 0.968591 | M175: 0.000649213 | N175: 0.0165044 | O175: 0.00004 | P175: 40.2319 | S175: rs4675812 | T175: G | U175: A | V175: 0.41 | W175: 2.3e-21 | X175: -0.0133286 | Y175: 0.00140445 | Z175: rs79558344 | AA175: C | AB175: T | AC175: 0.98039 | AD175: 0.340932 | AE175: 0.0507107 | AF175: 0.0532499 | AG175: 0.00009 | AH175: 90.0651 | AK175: rs12478677 | AL175: T | AM175: C | AN175: 0.425 | AO175: 3.69e-08 | AP175: -0.0077619 | AQ175: 0.00140996 | AR175: rs35564151 | AS175: G | AT175: A | AU175: 0.55188 | AV175: 0.208617 | AW175: 0.0164034 | AX175: 0.013042 | AY175: 0.00003 | AZ175: 30.3056 | BC175: rs142403729 | BD175: T | BE175: TACAC | BF175: 0.142 | BG175: 2.52e-08 | BH175: 0.0145383 | BI175: 0.00260921 | BJ175: rs58496935 | BK175: A | BL175: G | BM175: 0.89263 | BN175: 0.230382 | BO175: 0.0238189 | BP175: 0.0198515 | BQ175: 0.00005 | BR175: 31.0463
A176: rs4516580 | B176: T | C176: C | D176: 0.167 | E176: 5.28e-15 | F176: 0.0148484 | G176: 0.00189877 | H176: rs62285077 | I176: C | J176: T | K176: 0.83436 | L176: 0.043969 | M176: 0.0332974 | N176: 0.0165333 | O176: 0.00006 | P176: 61.1526 | S176: rs10212373 | T176: T | U176: C | V176: 0.474 | W176: 8.91e-08 | X176: 0.00750382 | Y176: 0.00140319 | Z176: rs59612757 | AA176: T | AB176: C | AC176: 0.83004 | AD176: 0.177069 | AE176: 0.0219001 | AF176: 0.0162303 | AG176: 0.00003 | AH176: 28.5977 | AK176: rs12998038 | AL176: T | AM176: C | AN176: 0.256 | AO176: 4.82e-10 | AP176: 0.0100034 | AQ176: 0.00160702 | AR176: rs1869829 | AS176: G | AT176: A | AU176: 0.30074 | AV176: 0.914521 | AW176: 0.00147155 | AX176: 0.0137489 | AY176: 0.00004 | AZ176: 38.7483 | BC176: rs536823442 | BD176: G | BE176: T | BF176: 0.000651 | BG176: 7.43e-06 | BH176: 0.255126 | BI176: 0.0569342 | BJ176: rs12997031 | BK176: A | BL176: G | BM176: 0.43649 | BN176: 0.183073 | BO176: 0.0161149 | BP176: 0.0121042 | BQ176: 0.00008 | BR176: 20.0800
A177: rs12632328 | B177: T | C177: A | D177: 0.107 | E177: 2.98e-12 | F177: -0.0154103 | G177: 0.00220816 | H177: rs10049088 | I177: T | J177: C | K177: 0.38259 | L177: 0.794857 | M177: 0.00321721 | N177: 0.0123495 | O177: 0.00005 | P177: 48.7036 | S177: rs2596927 | T177: C | U177: T | V177: 0.429 | W177: 9.21e-08 | X177: -0.00748553 | Y177: 0.00140135 | Z177: rs2240921 | AA177: T | AB177: C | AC177: 0.12002 | AD177: 0.284975 | AE177: 0.0197793 | AF177: 0.0184954 | AG177: 0.00003 | AH177: 28.5333 | AK177: rs4952950 | AL177: G | AM177: C | AN177: 0.249 | AO177: 3.19e-06 | AP177: 0.00743492 | AQ177: 0.00159607 | AR177: rs3739020 | AS177: G | AT177: T | AU177: 0.25501 | AV177: 0.152465 | AW177: 0.0193177 | AX177: 0.0135036 | AY177: 0.00002 | AZ177: 21.6995 | BC177: rs12119128 | BD177: A | BE177: G | BF177: 0.291 | BG177: 6.93e-07 | BH177: -0.00854699 | BI177: 0.00172208 | BJ177: rs805317 | BK177: T | BL177: A | BM177: 0.53659 | BN177: 0.254988 | BO177: 0.0137056 | BP177: 0.0120321 | BQ177: 0.00003 | BR177: 24.6331
A178: rs3732356 | B178: G | C178: T | D178: 0.0679 | E178: 2.71e-27 | F178: 0.0300666 | G178: 0.00277828 | H178: rs2152425 | I178: G | J178: A | K178: 0.46652 | L178: 0.239498 | M178: 0.0139076 | N178: 0.0118157 | O178: 0.00011 | P178: 117.1161 | S178: rs147168367 | T178: T | U178: C | V178: 0.00353 | W178: 3.35e-09 | X178: -0.0684852 | Y178: 0.0115816 | Z178: rs75135222 | AA178: T | AB178: C | AC178: 0.94916 | AD178: 0.612003 | AE178: 0.0151194 | AF178: 0.0298061 | AG178: 0.00003 | AH178: 34.9668 | AK178: rs79154515 | AL178: A | AM178: G | AN178: 0.112 | AO178: 4.37e-08 | AP178: -0.0119507 | AQ178: 0.00218275 | AR178: rs6740372 | AS178: C | AT178: T | AU178: 0.14827 | AV178: 0.071815 | AW178: 0.0299503 | AX178: 0.0166343 | AY178: 0.00003 | AZ178: 29.9763 | BC178: rs7532633 | BD178: C | BE178: T | BF178: 0.463 | BG178: 8.99e-12 | BH178: 0.00954592 | BI178: 0.00139931 | BJ178: rs12477711 | BK178: C | BL178: T | BM178: 0.53267 | BN178: 0.179502 | BO178: 0.0160428 | BP178: 0.0119455 | BQ178: 0.00005 | BR178: 46.5380
A179: rs75205331 | B179: A | C179: G | D179: 0.0367 | E179: 1.44e-12 | F179: 0.0269182 | G179: 0.00380197 | H179: rs56059966 | I179: G | J179: A | K179: 0.8747 | L179: 0.252713 | M179: 0.0198659 | N179: 0.01737 | O179: 0.00005 | P179: 50.1273 | S179: rs12485478 | T179: G | U179: A | V179: 0.0271 | W179: 3.35e-37 | X179: -0.0536649 | Y179: 0.00421086 | Z179: rs4597680 | AA179: C | AB179: T | AC179: 0.76379 | AD179: 0.133217 | AE179: 0.0226647 | AF179: 0.015105 | AG179: 0.00015 | AH179: 162.4198 | AK179: rs17326656 | AL179: T | AM179: G | AN179: 0.231 | AO179: 4.73e-23 | AP179: -0.0162522 | AQ179: 0.00164376 | AR179: rs11691595 | AS179: G | AT179: A | AU179: 0.33395 | AV179: 0.40161 | AW179: 0.0106038 | AX179: 0.012638 | AY179: 0.00009 | AZ179: 97.7569 | BC179: rs1042842694 | BD179: G | BE179: A | BF179: 0.000157 | BG179: 3.71e-05 | BH179: -0.422107 | BI179: 0.102329 | BJ179: rs3893927 | BK179: C | BL179: T | BM179: 0.33222 | BN179: 0.352083 | BO179: 0.0119167 | BP179: 0.0127967 | BQ179: 0.00006 | BR179: 17.0156
A180: rs11708067 | B180: G | C180: A | D180: 0.227 | E180: 2.39e-15 | F180: -0.0129598 | G180: 0.00163655 | H180: rs79287178 | I180: G | J180: A | K180: 0.97235 | L180: 0.021624 | M180: 0.0978869 | N180: 0.0426172 | O180: 0.00006 | P180: 62.7102 | S180: rs187545452 | T180: A | U180: C | V180: 0.00298 | W180: 3.73e-10 | X180: -0.0801499 | Y180: 0.0127934 | Z180: rs12638947 | AA180: G | AB180: A | AC180: 0.77293 | AD180: 0.25735 | AE180: 0.0166054 | AF180: 0.0146578 | AG180: 0.00004 | AH180: 39.2495 | AK180: rs58496935 | AL180: G | AM180: A | AN180: 0.11 | AO180: 4.38e-06 | AP180: 0.0102243 | AQ180: 0.00222637 | AR180: rs7568603 | AS180: T | AT180: G | AU180: 0.43011 | AV180: 0.517787 | AW180: 0.00802138 | AX180: 0.0124072 | AY180: 0.00002 | AZ180: 21.0898 | BC180: rs13303359 | BD180: A | BE180: C | BF180: 0.478 | BG180: 5.11e-15 | BH180: -0.0118279 | BI180: 0.00151169 | BJ180: rs17049712 | BK180: T | BL180: C | BM180: 0.29072 | BN180: 0.073646 | BO180: 0.0233572 | BP180: 0.0130564 | BQ180: 0.00007 | BR180: 61.2195
A181: rs113761591 | B181: T | C181: C | D181: 0.203 | E181: 7.33e-10 | F181: -0.0105742 | G181: 0.00171693 | H181: rs9942052 | I181: A | J181: C | K181: 0.74142 | L181: 0.133747 | M181: 0.0199958 | N181: 0.0133305 | O181: 0.00004 | P181: 37.9306 | S181: rs3773177 | T181: C | U181: T | V181: 0.417 | W181: 2.24e-08 | X181: 0.00779789 | Y181: 0.00139441 | Z181: rs76824303 | AA181: A | AB181: C | AC181: 0.89372 | AD181: 0.2155 | AE181: 0.0247566 | AF181: 0.0199813 | AG181: 0.00003 | AH181: 31.2733 | AK181: rs12997031 | AL181: A | AM181: G | AN181: 0.424 | AO181: 8.5e-09 | AP181: -0.00809155 | AQ181: 0.00140523 | AR181: rs2598503 | AS181: T | AT181: C | AU181: 0.58898 | AV181: 0.990002 | AW181: 0.000158696 | AX181: 0.0125514 | AY181: 0.00003 | AZ181: 33.1565 | BC181: rs114135919 | BD181: G | BE181: A | BF181: 9.07e-05 | BG181: 3.25e-05 | BH181: -0.538593 | BI181: 0.129617 | BJ181: rs2080169 | BK181: T | BL181: C | BM181: 0.77763 | BN181: 0.929075 | BO181: 0.001284 | BP181: 0.0143692 | BQ181: 0.00005 | BR181: 17.2662
A182: rs2811468 | B182: G | C182: A | D182: 0.195 | E182: 1.26e-16 | F182: 0.0144412 | G182: 0.00174459 | H182: rs843371 | I182: A | J182: G | K182: 0.25126 | L182: 0.3688 | M182: 0.0121475 | N182: 0.0135181 | O182: 0.00007 | P182: 68.5204 | S182: rs2455850 | T182: A | U182: C | V182: 0.316 | W182: 2.41e-19 | X182: -0.0136177 | Y182: 0.00151429 | Z182: rs704367 | AA182: C | AB182: A | AC182: 0.68152 | AD182: 0.012124 | AE182: 0.031797 | AF182: 0.0126669 | AG182: 0.00008 | AH182: 80.8704 | AK182: rs805317 | AL182: A | AM182: T | AN182: 0.449 | AO182: 2.47e-14 | AP182: 0.010611 | AQ182: 0.0013919 | AR182: rs11685710 | AS182: A | AT182: G | AU182: 0.57336 | AV182: 0.072088 | AW182: 0.0217847 | AX182: 0.0121186 | AY182: 0.00006 | AZ182: 58.1161 | BC182: rs3862948 | BD182: A | BE182: C | BF182: 0.234 | BG182: 2.49e-14 | BH182: -0.012452 | BI182: 0.00163363 | BJ182: rs356979 | BK182: C | BL182: T | BM182: 0.69271 | BN182: 0.039383 | BO182: 0.0272958 | BP182: 0.0132439 | BQ182: 0.00006 | BR182: 58.0993
A183: rs7649058 | B183: C | C183: T | D183: 0.314 | E183: 1.3e-09 | F183: -0.00901018 | G183: 0.00148487 | H183: rs1516725 | I183: C | J183: T | K183: 0.84799 | L183: 0.801936 | M183: 0.00434251 | N183: 0.0173123 | O183: 0.00003 | P183: 36.8205 | S183: rs2948080 | T183: C | U183: G | V183: 0.313 | W183: 2.37e-08 | X183: -0.00850057 | Y183: 0.00152276 | Z183: rs66815886 | AA183: T | AB183: G | AC183: 0.30445 | AD183: 0.076507 | AE183: 0.0226792 | AF183: 0.0127967 | AG183: 0.00003 | AH183: 31.1626 | AK183: rs12477711 | AL183: T | AM183: C | AN183: 0.464 | AO183: 1.46e-09 | AP183: -0.00837541 | AQ183: 0.0013846 | AR183: rs7596408 | AS183: G | AT183: A | AU183: 0.65005 | AV183: 0.163002 | AW183: 0.017572 | AX183: 0.0125947 | AY183: 0.00003 | AZ183: 36.5901 | BC183: rs3747973 | BD183: A | BE183: G | BF183: 0.412 | BG183: 2.66e-28 | BH183: -0.0156362 | BI183: 0.00141729 | BJ183: rs78116129 | BK183: A | BL183: C | BM183: 0.034 | BN183: 0.122553 | BO183: 0.0468587 | BP183: 0.0303543 | BQ183: 0.00012 | BR183: 121.7152
A184: rs72382362 | B184: T | C184: TTGTGTG | D184: 0.471 | E184: 9.78e-09 | F184: -0.00905769 | G184: 0.00157949 | H184: rs3774306 | I184: C | J184: T | K184: 0.39632 | L184: 0.973465 | M184: 0.000403955 | N184: 0.0122052 | O184: 0.00004 | P184: 32.8852 | S184: rs9868645 | T184: G | U184: T | V184: 0.375 | W184: 1.87e-07 | X184: -0.00745339 | Y184: 0.00143014 | Z184: rs141148474 | AA184: A | AB184: C | AC184: 0.88965 | AD184: 0.141091 | AE184: 0.0281037 | AF184: 0.0191013 | AG184: 0.00003 | AH184: 27.1613 | AK184: rs3893927 | AL184: C | AM184: T | AN184: 0.314 | AO184: 4.46e-06 | AP184: 0.00684334 | AQ184: 0.00149131 | AR184: rs11900786 | AS184: T | AT184: C | AU184: 0.15594 | AV184: 0.933317 | AW184: 0.0015004 | AX184: 0.0179616 | AY184: 0.00002 | AZ184: 21.0572 | BC184: rs9242 | BD184: C | BE184: T | BF184: 0.482 | BG184: 4.84e-10 | BH184: -0.00878836 | BI184: 0.001412 | BJ184: rs17432483 | BK184: C | BL184: T | BM184: 0.05727 | BN184: 0.606324 | BO184: 0.0141384 | BP184: 0.0274401 | BQ184: 0.00004 | BR184: 38.7388
A185: rs1154988 | B185: T | C185: A | D185: 0.22 | E185: 2.05e-54 | F185: 0.0260492 | G185: 0.00167695 | H185: rs4497978 | I185: A | J185: C | K185: 0.65073 | L185: 0.827932 | M185: 0.00275555 | N185: 0.0126524 | O185: 0.00023 | P185: 241.2951 | S185: rs2044754 | T185: G | U185: A | V185: 0.109 | W185: 1.66e-14 | X185: -0.0169416 | Y185: 0.00220751 | Z185: rs9828193 | AA185: G | AB185: A | AC185: 0.20978 | AD185: 0.061923 | AE185: 0.0272669 | AF185: 0.0146001 | AG185: 0.00006 | AH185: 58.8984 | AK185: rs17049712 | AL185: T | AM185: C | AN185: 0.295 | AO185: 2.16e-15 | AP185: -0.0120282 | AQ185: 0.00151647 | AR185: rs79005924 | AS185: C | AT185: A | AU185: 0.05792 | AV185: 0.508837 | AW185: 0.0180048 | AX185: 0.0272525 | AY185: 0.00006 | AZ185: 62.9120 | BC185: rs572055249 | BD185: G | BE185: A | BF185: 0.00116 | BG185: 4.25e-05 | BH185: 0.201025 | BI185: 0.0491093 | BJ185: rs17617459 | BK185: T | BL185: C | BM185: 0.05894 | BN185: 0.931977 | BO185: 0.00229389 | BP185: 0.0269351 | BQ185: 0.00009 | BR185: 16.7561
A186: rs6439657 | B186: T | C186: C | D186: 0.245 | E186: 1.24e-33 | F186: 0.0196964 | G186: 0.00162958 | H186: rs139828053 | I186: T | J186: C | K186: 0.96912 | L186: 0.634771 | M186: 0.0199813 | N186: 0.042069 | O186: 0.00014 | P186: 146.0906 | S186: rs1286772 | T186: C | U186: G | V186: 0.404 | W186: 1.01e-07 | X186: 0.00768679 | Y186: 0.00144352 | Z186: rs4855447 | AA186: G | AB186: A | AC186: 0.77791 | AD186: 0.00281 | AE186: 0.0427903 | AF186: 0.0143115 | AG186: 0.00003 | AH186: 28.3560 | AK186: rs2080169 | AL186: C | AM186: T | AN186: 0.211 | AO186: 2.04e-06 | AP186: -0.00809921 | AQ186: 0.00170515 | AR186: rs76840964 | AS186: G | AT186: A | AU186: 0.11282 | AV186: 0.168468 | AW186: 0.0291713 | AX186: 0.0211788 | AY186: 0.00002 | AZ186: 22.5611 | BC186: rs3820521 | BD186: A | BE186: G | BF186: 0.0205 | BG186: 1.13e-06 | BH186: -0.0241935 | BI186: 0.00497061 | BJ186: rs12995137 | BK186: G | BL186: A | BM186: 0.05837 | BN186: 0.51409 | BO186: 0.0180481 | BP186: 0.0276709 | BQ186: 0.00002 | BR186: 23.6907
A187: rs17633378 | B187: T | C187: C | D187: 0.385 | E187: 6.11e-09 | F187: 0.00819662 | G187: 0.00140986 | H187: rs4916497 | I187: T | J187: C | K187: 0.30481 | L187: 0.70295 | M187: 0.0049773 | N187: 0.0130564 | O187: 0.00003 | P187: 33.8001 | S187: rs11706926 | T187: A | U187: G | V187: 0.448 | W187: 1.19e-19 | X187: -0.0126115 | Y187: 0.00139048 | Z187: rs10510998 | AA187: A | AB187: G | AC187: 0.55003 | AD187: 0.042114 | AE187: 0.0238045 | AF187: 0.0117147 | AG187: 0.00008 | AH187: 82.2629 | AK187: rs356979 | AL187: T | AM187: C | AN187: 0.296 | AO187: 1.91e-07 | AP187: 0.00785607 | AQ187: 0.00150841 | AR187: rs12692596 | AS187: T | AT187: C | AU187: 0.36067 | AV187: 0.00055 | AW187: 0.0427759 | AX187: 0.0123783 | AY187: 0.00003 | AZ187: 27.1251 | BC187: rs11576725 | BD187: A | BE187: G | BF187: 0.296 | BG187: 1.04e-06 | BH187: 0.00742853 | BI187: 0.00152079 | BJ187: rs2540949 | BK187: A | BL187: T | BM187: 0.61637 | BN187: 0.489967 | BO187: 0.00843977 | BP187: 0.0122196 | BQ187: 0.00002 | BR187: 23.8598
A188: rs62271373 | B188: A | C188: T | D188: 0.0528 | E188: 2.84e-32 | F188: -0.0370833 | G188: 0.00313557 | H188: rs1051613 | I188: G | J188: A | K188: 0.47614 | L188: 0.319771 | M188: 0.012335 | N188: 0.0123928 | O188: 0.00014 | P188: 139.8697 | S188: rs4128529 | T188: C | U188: T | V188: 0.0372 | W188: 3.5e-08 | X188: 0.020475 | Y188: 0.00371311 | Z188: rs35540156 | AA188: A | AB188: G | AC188: 0.54814 | AD188: 0.001005 | AE188: 0.0397751 | AF188: 0.0120898 | AG188: 0.00003 | AH188: 30.4069 | AK188: rs17432483 | AL188: C | AM188: T | AN188: 0.0611 | AO188: 1.03e-09 | AP188: -0.0178632 | AQ188: 0.00292584 | AR188: rs1990760 | AS188: T | AT188: C | AU188: 0.60081 | AV188: 0.00121 | AW188: 0.0401502 | AX188: 0.0123928 | AY188: 0.00004 | AZ188: 37.2750 | BC188: rs560273851 | BD188: G | BE188: A | BF188: 0.00376 | BG188: 4.2e-05 | BH188: 0.103319 | BI188: 0.0252215 | BJ188: rs11883967 | BK188: A | BL188: C | BM188: 0.35665 | BN188: 0.733651 | BO188: 0.0042848 | BP188: 0.0125947 | BQ188: 0.00008 | BR188: 16.7810
A189: rs13082076 | B189: C | C189: T | D189: 0.296 | E189: 6.39e-16 | F189: 0.0122004 | G189: 0.00150963 | H189: rs2071659 | I189: G | J189: A | K189: 0.16024 | L189: 0.141235 | M189: 0.0235592 | N189: 0.0160139 | O189: 0.00006 | P189: 65.3141 | S189: rs6770210 | T189: T | U189: G | V189: 0.311 | W189: 2.78e-07 | X189: -0.00767594 | Y189: 0.00149402 | Z189: rs73141530 | AA189: C | AB189: T | AC189: 0.25672 | AD189: 0.04182 | AE189: 0.0275266 | AF189: 0.0135181 | AG189: 0.00003 | AH189: 26.3967 | AK189: rs17617459 | AL189: T | AM189: C | AN189: 0.0663 | AO189: 2.33e-06 | AP189: -0.0129886 | AQ189: 0.00275046 | AR189: rs13389219 | AS189: C | AT189: T | AU189: 0.60566 | AV189: 0.017838 | AW189: 0.0294021 | AX189: 0.0124072 | AY189: 0.00002 | AZ189: 22.3005 | BC189: rs12034991 | BD189: G | BE189: A | BF189: 0.355 | BG189: 1.11e-10 | BH189: -0.00945065 | BI189: 0.00146489 | BJ189: rs148773628 | BK189: G | BL189: A | BM189: 0.01337 | BN189: 0.422291 | BO189: 0.049167 | BP189: 0.0612568 | BQ189: 0.00004 | BR189: 41.6211
A190: rs7648816 | B190: C | C190: T | D190: 0.114 | E190: 2.14e-09 | F190: -0.0129591 | G190: 0.00216471 | H190: rs362307 | I190: T | J190: C | K190: 0.07216 | L190: 0.294795 | M190: 0.0255357 | N190: 0.0243815 | O190: 0.00003 | P190: 35.8385 | S190: rs2290547 | T190: A | U190: G | V190: 0.172 | W190: 1.48e-27 | X190: -0.0201189 | Y190: 0.00184966 | Z190: rs13066793 | AA190: G | AB190: A | AC190: 0.07886 | AD190: 0.33035 | AE190: 0.0255934 | AF190: 0.0263003 | AG190: 0.00012 | AH190: 118.3109 | AK190: rs12995137 | AL190: G | AM190: A | AN190: 0.0644 | AO190: 9.49e-07 | AP190: -0.0136995 | AQ190: 0.0027947 | AR190: rs168478 | AS190: T | AT190: C | AU190: 0.7001 | AV190: 0.204677 | AW190: 0.0164179 | AX190: 0.0129554 | AY190: 0.00002 | AZ190: 24.0292 | BC190: rs574252356 | BD190: C | BE190: CTA | BF190: 0.00229 | BG190: 6.71e-06 | BH190: -0.0972987 | BI190: 0.0216091 | BJ190: rs6546564 | BK190: T | BL190: C | BM190: 0.39517 | BN190: 0.370705 | BO190: 0.0110943 | BP190: 0.0123928 | BQ190: 0.00004 | BR190: 20.2741
A191: rs62285077 | B191: T | C191: C | D191: 0.163 | E191: 1.62e-10 | F191: 0.0119809 | G191: 0.00187377 | H191: rs4450871 | I191: A | J191: G | K191: 0.55624 | L191: 0.515304 | M191: 0.00887257 | N191: 0.0136335 | O191: 0.00004 | P191: 40.8833 | S191: rs184852236 | T191: A | U191: G | V191: 0.0165 | W191: 1.19e-29 | X191: -0.0625235 | Y191: 0.0055288 | Z191: rs2735556 | AA191: T | AB191: C | AC191: 0.89866 | AD191: 0.296514 | AE191: 0.0211788 | AF191: 0.0202843 | AG191: 0.00013 | AH191: 127.8865 | AK191: rs2540949 | AL191: T | AM191: A | AN191: 0.383 | AO191: 4.26e-31 | AP191: 0.0164761 | AQ191: 0.00142071 | AR191: rs78812745 | AS191: C | AT191: CA | AU191: 0.40656 | AV191: 0.311155 | AW191: 0.0123639 | AX191: 0.0122052 | AY191: 0.00013 | AZ191: 134.4925 | BC191: rs12023488 | BD191: T | BE191: C | BF191: 0.376 | BG191: 7.19e-12 | BH191: 0.00977536 | BI191: 0.00142625 | BJ191: rs141490929 | BK191: G | BL191: A | BM191: 0.989 | BN191: 0.48281 | BO191: 0.0455892 | BP191: 0.0649646 | BQ191: 0.00004 | BR191: 46.9758
A192: rs10049088 | B192: T | C192: C | D192: 0.384 | E192: 3.58e-50 | F192: 0.0211283 | G192: 0.00141853 | H192: rs7694606 | I192: A | J192: G | K192: 0.16722 | L192: 0.020632 | M192: 0.0362549 | N192: 0.0156677 | O192: 0.00021 | P192: 221.8462 | S192: rs74780677 | T192: G | U192: A | V192: 0.0169 | W192: 1.23e-36 | X192: -0.0680574 | Y192: 0.00538324 | Z192: rs600099 | AA192: C | AB192: T | AC192: 0.23559 | AD192: 0.028109 | AE192: 0.0316383 | AF192: 0.0144125 | AG192: 0.00015 | AH192: 159.8318 | AK192: rs11883967 | AL192: A | AM192: C | AN192: 0.338 | AO192: 2.31e-13 | AP192: -0.0107699 | AQ192: 0.00146939 | AR192: rs17694506 | AS192: T | AT192: C | AU192: 0.61478 | AV192: 0.720084 | AW192: 0.00441465 | AX192: 0.0123206 | AY192: 0.00005 | AZ192: 53.7216 | BC192: rs4528088 | BD192: A | BE192: G | BF192: 0.45 | BG192: 4.29e-07 | BH192: 0.00708345 | BI192: 0.00140111 | BJ192: rs6733538 | BK192: A | BL192: G | BM192: 0.90402 | BN192: 0.012758 | BO192: 0.054606 | BP192: 0.0219145 | BQ192: 0.00002 | BR192: 25.5591
A193: rs2152425 | B193: G | C193: A | D193: 0.448 | E193: 2.22e-09 | F193: 0.00846048 | G193: 0.00141454 | H193: rs17576121 | I193: T | J193: C | K193: 0.71435 | L193: 0.516023 | M193: 0.00864174 | N193: 0.0133016 | O193: 0.00004 | P193: 35.7733 | S193: rs140543125 | T193: A | U193: G | V193: 0.0189 | W193: 2.56e-24 | X193: -0.0513118 | Y193: 0.00504292 | Z193: rs7640424 | AA193: C | AB193: T | AC193: 0.70637 | AD193: 0.5548 | AE193: 0.00793482 | AF193: 0.0134315 | AG193: 0.00010 | AH193: 103.5310 | AK193: rs6546564 | AL193: T | AM193: C | AN193: 0.374 | AO193: 2.99e-08 | AP193: 0.00792448 | AQ193: 0.0014299 | AR193: rs6730441 | AS193: A | AT193: G | AU193: 0.29801 | AV193: 0.360225 | AW193: 0.0120032 | AX193: 0.0131141 | AY193: 0.00003 | AZ193: 30.7136 | BC193: rs142316528 | BD193: A | BE193: G | BF193: 0.000419 | BG193: 1.47e-05 | BH193: 0.224267 | BI193: 0.0517616 | BJ193: rs7603852 | BK193: G | BL193: A | BM193: 0.71626 | BN193: 0.98503 | BO193: 0.000245258 | BP193: 0.0132728 | BQ193: 0.00004 | BR193: 18.7722
A194: rs525297 | B194: C | C194: A | D194: 0.43 | E194: 3.97e-08 | F194: -0.00801873 | G194: 0.00146 | H194: rs73243877 | I194: G | J194: A | K194: 0.15876 | L194: 0.047755 | M194: 0.0330233 | N194: 0.0166776 | O194: 0.00003 | P194: 30.1651 | S194: rs7634917 | T194: G | U194: T | V194: 0.478 | W194: 1.25e-54 | X194: 0.0219633 | Y194: 0.00141102 | Z194: rs73216701 | AA194: A | AB194: G | AC194: 0.5648 | AD194: 0.147065 | AE194: 0.0174999 | AF194: 0.0120754 | AG194: 0.00024 | AH194: 242.2863 | AK194: rs141490929 | AL194: A | AM194: G | AN194: 0.0114 | AO194: 3.06e-06 | AP194: -0.0319595 | AQ194: 0.00684791 | AR194: rs1866631 | AS194: G | AT194: A | AU194: 0.4294 | AV194: 0.653514 | AW194: 0.00545339 | AX194: 0.0121475 | AY194: 0.00002 | AZ194: 21.7813 | BC194: rs144848582 | BD194: AT | BE194: A | BF194: 0.353 | BG194: 1.55e-06 | BH194: 0.00832849 | BI194: 0.00173325 | BJ194: rs1158752 | BK194: A | BL194: C | BM194: 0.41103 | BN194: 0.747528 | BO194: 0.00389528 | BP194: 0.0121186 | BQ194: 0.00003 | BR194: 23.0893
A195: rs56059966 | B195: A | C195: G | D195: 0.0988 | E195: 1.4e-08 | F195: -0.0131323 | G195: 0.0023147 | H195: rs2376180 | I195: T | J195: A | K195: 0.48346 | L195: 0.582591 | M195: 0.00640557 | N195: 0.011657 | O195: 0.00003 | P195: 32.1879 | S195: rs115482549 | T195: A | U195: G | V195: 0.0144 | W195: 4.42e-23 | X195: -0.057671 | Y195: 0.00582889 | Z195: rs10934228 | AA195: C | AB195: G | AC195: 0.50572 | AD195: 0.05176 | AE195: 0.0229677 | AF195: 0.0118012 | AG195: 0.00009 | AH195: 97.8911 | AK195: rs6733538 | AL195: G | AM195: A | AN195: 0.0923 | AO195: 1.59e-06 | AP195: -0.0115709 | AQ195: 0.00241073 | AR195: rs57645908 | AS195: A | AT195: T | AU195: 0.22865 | AV195: 0.414817 | AW195: 0.0118301 | AX195: 0.0144991 | AY195: 0.00002 | AZ195: 23.0376 | BC195: rs560211615 | BD195: T | BE195: A | BF195: 7.39e-05 | BG195: 1.13e-05 | BH195: 0.762377 | BI195: 0.173619 | BJ195: rs7586605 | BK195: C | BL195: T | BM195: 0.25491 | BN195: 0.73061 | BO195: 0.00500615 | BP195: 0.0145424 | BQ195: 0.00009 | BR195: 19.2817
A196: rs79287178 | B196: A | C196: G | D196: 0.0293 | E196: 2.73e-10 | F196: -0.0267289 | G196: 0.00423376 | H196: rs7658893 | I196: G | J196: A | K196: 0.74133 | L196: 0.547928 | M196: 0.00819451 | N196: 0.013619 | O196: 0.00004 | P196: 39.8575 | S196: rs73087292 | T196: G | U196: A | V196: 0.128 | W196: 1.02e-13 | X196: 0.0157057 | Y196: 0.00211142 | Z196: rs4516580 | AA196: T | AB196: C | AC196: 0.20891 | AD196: 0.722331 | AE196: 0.00564094 | AF196: 0.0158552 | AG196: 0.00006 | AH196: 55.3306 | AK196: rs879669732 | AL196: A | AM196: G | AN196: 0.000714 | AO196: 8.27e-07 | AP196: -0.183494 | AQ196: 0.0372289 | AR196: rs10497442 | AS196: T | AT196: C | AU196: 0.67951 | AV196: 0.217283 | AW196: 0.0156532 | AX196: 0.0126957 | AY196: 0.00005 | AZ196: 24.2931 | BC196: rs59770119 | BD196: G | BE196: A | BF196: 0.423 | BG196: 6.36e-33 | BH196: 0.0168521 | BI196: 0.00141002 | BJ196: rs56304923 | BK196: T | BL196: C | BM196: 0.80923 | BN196: 0.037259 | BO196: 0.0331964 | BP196: 0.0159418 | BQ196: 0.00014 | BR196: 142.8425
A197: rs9942052 | B197: C | C197: A | D197: 0.258 | E197: 6.34e-09 | F197: 0.00919977 | G197: 0.0015841 | H197: rs10517530 | I197: T | J197: C | K197: 0.62669 | L197: 0.098281 | M197: 0.0200102 | N197: 0.0121042 | O197: 0.00003 | P197: 33.7279 | S197: rs79558344 | T197: T | U197: C | V197: 0.014 | W197: 1.24e-19 | X197: -0.0534628 | Y197: 0.00589721 | Z197: rs12632328 | AA197: T | AB197: A | AC197: 0.14002 | AD197: 0.152297 | AE197: 0.0236891 | AF197: 0.0165477 | AG197: 0.00008 | AH197: 82.1883 | AK197: rs7586605 | AL197: C | AM197: T | AN197: 0.27 | AO197: 6.27e-15 | AP197: -0.0121958 | AQ197: 0.00156389 | AR197: rs11691113 | AS197: C | AT197: T | AU197: 0.36941 | AV197: 0.516443 | AW197: 0.00828107 | AX197: 0.0127679 | AY197: 0.00006 | AZ197: 60.8146 | BC197: rs546224691 | BD197: A | BE197: AATGAAT | BF197: 0.000754 | BG197: 1.27e-05 | BH197: 0.330102 | BI197: 0.0756127 | BJ197: rs79724734 | BK197: A | BL197: C | BM197: 0.03138 | BN197: 0.398949 | BO197: 0.0309891 | BP197: 0.036731 | BQ197: 0.00016 | BR197: 19.0593
A198: rs940438426 | B198: T | C198: C | D198: 0.000132 | E198: 3.7e-08 | F198: -0.738505 | G198: 0.134161 | H198: rs10938398 | I198: A | J198: G | K198: 0.4203 | L198: 0.001165 | M198: 0.0387941 | N198: 0.0119455 | O198: 0.00014 | P198: 30.3008 | S198: rs59612757 | T198: C | U198: T | V198: 0.168 | W198: 8.29e-29 | X198: 0.0205548 | Y198: 0.00184563 | Z198: rs3732356 | AA198: T | AB198: G | AC198: 0.90628 | AD198: 0.770362 | AE198: 0.00660754 | AF198: 0.0226503 | AG198: 0.00012 | AH198: 124.0330 | AK198: rs56304923 | AL198: C | AM198: T | AN198: 0.189 | AO198: 3.32e-08 | AP198: 0.00975366 | AQ198: 0.0017658 | AR198: rs13005431 | AS198: C | AT198: T | AU198: 0.3462 | AV198: 0.762251 | AW198: 0.00392413 | AX198: 0.0129698 | AY198: 0.00003 | AZ198: 30.5107 | BC198: rs2642438 | BD198: A | BE198: G | BF198: 0.294 | BG198: 7.11e-72 | BH198: -0.0271768 | BI198: 0.00151587 | BJ198: 2:98164409_G_T | BK198: T | BL198: G | BM198: 0.62611 | BN198: 0.62698 | BO198: 0.00662197 | BP198: 0.0136335 | BQ198: 0.00031 | BR198: 321.4199
A199: rs843371 | B199: A | C199: G | D199: 0.231 | E199: 2.29e-11 | F199: -0.0109782 | G199: 0.00164199 | H199: rs1620509 | I199: T | J199: A | K199: 0.42285 | L199: 0.106066 | M199: 0.0190869 | N199: 0.0118157 | O199: 0.00004 | P199: 44.7014 | S199: rs2240921 | T199: T | U199: C | V199: 0.116 | W199: 4.32e-34 | X199: 0.0262069 | Y199: 0.00215283 | Z199: rs75205331 | AA199: G | AB199: A | AC199: 0.95574 | AD199: 0.461042 | AE199: 0.0216837 | AF199: 0.0294021 | AG199: 0.00014 | AH199: 148.1876 | AK199: rs79724734 | AL199: A | AM199: C | AN199: 0.0324 | AO199: 3.36e-06 | AP199: -0.0185142 | AQ199: 0.00398381 | AR199: rs112405294 | AS199: G | AT199: A | AU199: 0.91354 | AV199: 0.752778 | AW199: 0.0066364 | AX199: 0.0210633 | AY199: 0.00002 | AZ199: 21.5980 | BC199: rs115054770 | BD199: A | BE199: C | BF199: 0.0182 | BG199: 1.38e-07 | BH199: -0.0275115 | BI199: 0.00522222 | BJ199: rs6729411 | BK199: C | BL199: T | BM199: 0.58609 | BN199: 0.873573 | BO199: 0.00201977 | BP199: 0.0126669 | BQ199: 0.00003 | BR199: 27.7535
A200: rs1516725 | B200: T | C200: C | D200: 0.134 | E200: 5.45e-49 | F200: -0.0300388 | G200: 0.00204187 | H200: rs35662434 | I200: G | J200: A | K200: 0.21829 | L200: 0.042251 | M200: 0.0359087 | N200: 0.017673 | O200: 0.00021 | P200: 216.4258 | S200: rs75135222 | T200: C | U200: T | V200: 0.0477 | W200: 1.23e-08 | X200: -0.0191917 | Y200: 0.0033695 | Z200: rs6438651 | AA200: G | AB200: C | AC200: 0.64333 | AD200: 0.676925 | AE200: 0.00510714 | AF200: 0.0122629 | AG200: 0.00003 | AH200: 32.4411 | AK200: rs6729411 | AL200: T | AM200: C | AN200: 0.451 | AO200: 9.02e-08 | AP200: 0.00753396 | AQ200: 0.00140944 | AR200: rs111882666 | AS200: C | AT200: T | AU200: 0.90812 | AV200: 0.015563 | AW200: 0.0506963 | AX200: 0.0209479 | AY200: 0.00003 | AZ200: 28.5728 | BC200: rs35806535 | BD200: T | BE200: C | BF200: 0.191 | BG200: 2.99e-08 | BH200: 0.00982919 | BI200: 0.00177355 | BJ200: rs62156361 | BK200: G | BL200: A | BM200: 0.97863 | BN200: 0.106215 | BO200: 0.0757271 | BP200: 0.0468732 | BQ200: 0.00003 | BR200: 30.7149
... 2294 more rows

Sheet AFR_HDLC
A1: 10¯⁸ | S1: 10¯⁷ | AK1: 10¯⁶ | BC1: 10¯⁵
A2: Exposure | H2: Outcome | O2: R^2 | P2: F | Q2: Mean F | R2: Median F | S2: Exposure | Z2: Outcome | AG2: R^2 | AH2: F | AI2: Mean F | AJ2: Median F | AK2: Exposure | AR2: Outcome | AY2: R^2 | AZ2: F | BA2: Mean F | BB2: Median F | BC2: Exposure | BJ2: Outcome | BQ2: R^2 | BR2: F | BS2: Mean F | BT2: Median F
A3: snp | B3: a1 | C3: a2 | D3: af | E3: p | F3: b | G3: bse | H3: snp | I3: a1 | J3: a2 | K3: af | L3: p | M3: b | N3: bse | S3: snp | T3: a1 | U3: a2 | V3: af | W3: p | X3: b | Y3: bse | Z3: snp | AA3: a1 | AB3: a2 | AC3: af | AD3: p | AE3: b | AF3: bse | AK3: snp | AL3: a1 | AM3: a2 | AN3: af | AO3: p | AP3: b | AQ3: bse | AR3: snp | AS3: a1 | AT3: a2 | AU3: af | AV3: p | AW3: b | AX3: bse | BC3: snp | BD3: a1 | BE3: a2 | BF3: af | BG3: p | BH3: b | BI3: bse | BJ3: snp | BK3: a1 | BL3: a2 | BM3: af | BN3: p | BO3: b | BP3: bse
A4: rs12740374 | B4: T | C4: G | D4: 0.254 | E4: 3.98e-08 | F4: 0.0297812 | G4: 0.00542272 | H4: rs12740374 | I4: T | J4: G | K4: 0.2488 | L4: 0.2036 | M4: -0.04237 | N4: 0.08689 | O4: 0.00034 | P4: 30.1613 | Q4: =AVERAGE(P4:P57) -> 117.8254 | R4: =MEDIAN(P4:P57) -> 41.5904 | S4: rs11207994 | T4: T | U4: C | V4: 0.342 | W4: 1e-07 | X4: -0.0280523 | Y4: 0.00526664 | Z4: rs12740374 | AA4: T | AB4: G | AC4: 0.2488 | AD4: 0.2036 | AE4: -0.04237 | AF4: 0.08689 | AG4: 0.00035 | AH4: 28.3707 | AI4: =AVERAGE(AH4:AH89) -> 84.0434 | AJ4: =MEDIAN(AH4:AH89) -> 32.1187 | AK4: rs1294014 | AL4: T | AM4: C | AN4: 0.318 | AO4: 4.87e-06 | AP4: -0.0244557 | AQ4: 0.005351 | AR4: rs12740374 | AS4: T | AT4: G | AU4: 0.2488 | AV4: 0.2036 | AW4: -0.04237 | AX4: 0.08689 | AY4: 0.00026 | AZ4: 20.8877 | BA4: =AVERAGE(AZ4:AZ200) -> 49.4565 | BB4: =MEDIAN(AZ4:AZ200) -> 24.3025 | BC4: rs2226157 | BD4: G | BE4: C | BF4: 0.289 | BG4: 4.84e-05 | BH4: -0.0221498 | BI4: 0.00545159 | BJ4: rs12740374 | BK4: T | BL4: G | BM4: 0.2488 | BN4: 0.2036 | BO4: -0.04237 | BP4: 0.08689 | BQ4: 0.00020 | BR4: 16.5080 | BS4: =AVERAGE(BR4:BR704) -> 26.9245 | BT4: =MEDIAN(BR4:BR704) -> 18.7529
A5: rs11122453 | B5: A | C5: C | D5: 0.141 | E5: 3.92e-08 | F5: 0.037939 | G5: 0.00690487 | H5: rs11122453 | I5: A | J5: C | K5: 0.07069 | L5: 0.3552 | M5: -0.1169 | N5: 0.1518 | O5: 0.00035 | P5: 30.1898 | S5: rs12740374 | T5: T | U5: G | V5: 0.254 | W5: 3.98e-08 | X5: 0.0297812 | Y5: 0.00542272 | Z5: rs11122453 | AA5: A | AB5: C | AC5: 0.07069 | AD5: 0.3552 | AE5: -0.1169 | AF5: 0.1518 | AG5: 0.00034 | AH5: 30.1613 | AK5: rs140921719 | AL5: T | AM5: C | AN5: 0.00139 | AO5: 1.1e-06 | AP5: 0.357848 | AQ5: 0.0734405 | AR5: rs11122453 | AS5: A | AT5: C | AU5: 0.07069 | AV5: 0.3552 | AW5: -0.1169 | AX5: 0.1518 | AY5: 0.00036 | AZ5: 23.7425 | BC5: rs1294014 | BD5: T | BE5: C | BF5: 0.318 | BG5: 4.87e-06 | BH5: -0.0244557 | BI5: 0.005351 | BJ5: rs114102885 | BK5: G | BL5: T | BM5: 0.02411 | BN5: 1.027 | BO5: 0.5142 | BP5: 0.307 | BQ5: 0.00026 | BR5: 20.8877
A6: rs11687133 | B6: T | C6: C | D6: 0.401 | E6: 1.08e-10 | F6: -0.0324245 | G6: 0.00502342 | H6: rs11687133 | I6: T | J6: C | K6: 0.4591 | L6: 1.124 | M6: 0.1382 | N6: 0.07768 | O6: 0.00051 | P6: 41.6627 | S6: rs11122453 | T6: A | U6: C | V6: 0.141 | W6: 3.92e-08 | X6: 0.037939 | Y6: 0.00690487 | Z6: rs11207994 | AA6: T | AB6: C | AC6: 0.3452 | AD6: 0.7452 | AE6: 0.1068 | AF6: 0.07964 | AG6: 0.00035 | AH6: 30.1898 | AK6: rs75944466 | AL6: A | AM6: G | AN6: 0.0997 | AO6: 3.76e-06 | AP6: 0.0385999 | AQ6: 0.00834781 | AR6: rs75944466 | AS6: A | AT6: G | AU6: 0.09697 | AV6: 0.596 | AW6: -0.1426 | AX6: 0.1249 | AY6: 0.00027 | AZ6: 21.3810 | BC6: rs140921719 | BD6: T | BE6: C | BF6: 0.00139 | BG6: 1.1e-06 | BH6: 0.357848 | BI6: 0.0734405 | BJ6: rs11265259 | BK6: C | BL6: T | BM6: 0.08989 | BN6: 0.1658 | BO6: -0.05822 | BP6: 0.1424 | BQ6: 0.00036 | BR6: 23.7425
A7: rs676210 | B7: A | C7: G | D7: 0.152 | E7: 5.47e-16 | F7: 0.053063 | G7: 0.00655055 | H7: rs676210 | I7: A | J7: G | K7: 0.145 | L7: 0.3857 | M7: 0.08939 | N7: 0.1088 | O7: 0.00073 | P7: 65.6188 | S7: rs11687133 | T7: T | U7: C | V7: 0.401 | W7: 1.08e-10 | X7: -0.0324245 | Y7: 0.00502342 | Z7: rs11687133 | AA7: T | AB7: C | AC7: 0.4591 | AD7: 1.124 | AE7: 0.1382 | AF7: 0.07768 | AG7: 0.00051 | AH7: 41.6627 | AK7: rs11207994 | AL7: T | AM7: C | AN7: 0.342 | AO7: 1e-07 | AP7: -0.0280523 | AQ7: 0.00526664 | AR7: rs11207994 | AS7: T | AT7: C | AU7: 0.3452 | AV7: 0.7452 | AW7: 0.1068 | AX7: 0.07964 | AY7: 0.00035 | AZ7: 28.3707 | BC7: rs574082055 | BD7: T | BE7: C | BF7: 0.000859 | BG7: 2.47e-05 | BH7: -0.74711 | BI7: 0.177158 | BJ7: rs12096687 | BK7: A | BL7: C | BM7: 0.1437 | BN7: 1.202 | BO7: -0.1955 | BP7: 0.1051 | BQ7: 0.00096 | BR7: 17.7847
A8: rs34305002 | B8: G | C8: GA | D8: 0.194 | E8: 1.57e-08 | F8: 0.0366717 | G8: 0.00648618 | H8: rs2203452 | I8: G | J8: A | K8: 0.6438 | L8: 0.2102 | M8: 0.03944 | N8: 0.07872 | O8: 0.00042 | P8: 31.9657 | S8: rs676210 | T8: A | U8: G | V8: 0.152 | W8: 5.47e-16 | X8: 0.053063 | Y8: 0.00655055 | Z8: rs676210 | AA8: A | AB8: G | AC8: 0.145 | AD8: 0.3857 | AE8: 0.08939 | AF8: 0.1088 | AG8: 0.00073 | AH8: 65.6188 | AK8: rs115125858 | AL8: T | AM8: C | AN8: 0.109 | AO8: 3.08e-06 | AP8: 0.0361442 | AQ8: 0.00774689 | AR8: rs1294014 | AS8: T | AT8: C | AU8: 0.3431 | AV8: 0.01814 | AW8: -0.004242 | AX8: 0.08268 | AY8: 0.00025 | AZ8: 21.7682 | BC8: rs115496175 | BD8: A | BE8: G | BF8: 0.0297 | BG8: 4.18e-05 | BH8: -0.0589297 | BI8: 0.0143835 | BJ8: rs115343949 | BK8: A | BL8: G | BM8: 0.01788 | BN8: 0.7289 | BO8: -0.3395 | BP8: 0.2571 | BQ8: 0.00020 | BR8: 16.7857
A9: rs2203452 | B9: A | C9: G | D9: 0.363 | E9: 2.45e-10 | F9: 0.0311823 | G9: 0.00492603 | H9: rs72931157 | I9: G | J9: C | K9: 0.245 | L9: 0.1534 | M9: 0.03416 | N9: 0.08943 | O9: 0.00045 | P9: 40.0703 | S9: rs34305002 | T9: G | U9: GA | V9: 0.194 | W9: 1.57e-08 | X9: 0.0366717 | Y9: 0.00648618 | Z9: rs2203452 | AA9: G | AB9: A | AC9: 0.6438 | AD9: 0.2102 | AE9: 0.03944 | AF9: 0.07872 | AG9: 0.00042 | AH9: 31.9657 | AK9: rs12740374 | AL9: T | AM9: G | AN9: 0.254 | AO9: 3.98e-08 | AP9: 0.0297812 | AQ9: 0.00542272 | AR9: rs115125858 | AS9: T | AT9: C | AU9: 0.09393 | AV9: 0.02155 | AW9: -0.0086 | AX9: 0.1417 | AY9: 0.00034 | AZ9: 30.1613 | BC9: rs535694047 | BD9: CT | BE9: C | BF9: 0.241 | BG9: 2.26e-05 | BH9: 0.0282874 | BI9: 0.00667573 | BJ9: rs11122453 | BK9: A | BL9: C | BM9: 0.07069 | BN9: 0.3552 | BO9: -0.1169 | BP9: 0.1518 | BQ9: 0.00029 | BR9: 17.9551
A10: rs72931157 | B10: G | C10: C | D10: 0.196 | E10: 1.55e-09 | F10: 0.0364711 | G10: 0.00603952 | H10: rs13131565 | I10: A | J10: G | K10: 0.2475 | L10: 0.1335 | M10: 0.03028 | N10: 0.08959 | O10: 0.00042 | P10: 36.4664 | S10: rs2203452 | T10: A | U10: G | V10: 0.363 | W10: 2.45e-10 | X10: 0.0311823 | Y10: 0.00492603 | Z10: rs72931157 | AA10: G | AB10: C | AC10: 0.245 | AD10: 0.1534 | AE10: 0.03416 | AF10: 0.08943 | AG10: 0.00045 | AH10: 40.0703 | AK10: rs11122453 | AL10: A | AM10: C | AN10: 0.141 | AO10: 3.92e-08 | AP10: 0.037939 | AQ10: 0.00690487 | AR10: rs6743376 | AS10: A | AT10: C | AU10: 0.7313 | AV10: 0.6219 | AW10: -0.1013 | AX10: 0.08602 | AY10: 0.00035 | AZ10: 30.1898 | BC10: rs532961499 | BD10: T | BE10: C | BF10: 0.0596 | BG10: 2.64e-05 | BH10: -0.0488189 | BI10: 0.0116168 | BJ10: rs2474632 | BK10: T | BL10: C | BM10: 0.2735 | BN10: 1.831 | BO10: -0.1987 | BP10: 0.08151 | BQ10: 0.00027 | BR10: 17.6605
A11: rs3822072 | B11: G | C11: A | D11: 0.487 | E11: 1.21e-10 | F11: 0.0303575 | G11: 0.00471562 | H11: rs3822072 | I11: A | J11: G | K11: 0.5363 | L11: 0.7781 | M11: 0.1038 | N11: 0.07504 | O11: 0.00046 | P11: 41.4433 | S11: rs72931157 | T11: G | U11: C | V11: 0.196 | W11: 1.55e-09 | X11: 0.0364711 | Y11: 0.00603952 | Z11: rs13131565 | AA11: A | AB11: G | AC11: 0.2475 | AD11: 0.1335 | AE11: 0.03028 | AF11: 0.08959 | AG11: 0.00042 | AH11: 36.4664 | AK11: rs374442549 | AL11: A | AM11: ACATCTCCTCC | AN11: 0.012 | AO11: 1.42e-06 | AP11: -0.113214 | AQ11: 0.0234785 | AR11: rs11687133 | AS11: T | AT11: C | AU11: 0.4591 | AV11: 1.124 | AW11: 0.1382 | AX11: 0.07768 | AY11: 0.00030 | AZ11: 23.2520 | BC11: rs142237226 | BD11: A | BE11: G | BF11: 0.00572 | BG11: 1.48e-05 | BH11: -0.16962 | BI11: 0.039164 | BJ11: rs115496175 | BK11: A | BL11: G | BM11: 0.02808 | BN11: 0.3066 | BO11: -0.1482 | BP11: 0.2165 | BQ11: 0.00033 | BR11: 18.7577
A12: rs13131565 | B12: A | C12: G | D12: 0.21 | E12: 1.01e-09 | F12: 0.0355267 | G12: 0.00581631 | H12: rs465002 | I12: T | J12: C | K12: 0.4774 | L12: 0.1505 | M12: -0.02812 | N12: 0.07483 | O12: 0.00042 | P12: 37.3091 | S12: rs3822072 | T12: G | U12: A | V12: 0.487 | W12: 1.21e-10 | X12: 0.0303575 | Y12: 0.00471562 | Z12: rs3822072 | AA12: A | AB12: G | AC12: 0.5363 | AD12: 0.7781 | AE12: 0.1038 | AF12: 0.07504 | AG12: 0.00046 | AH12: 41.4433 | AK12: rs11687133 | AL12: T | AM12: C | AN12: 0.401 | AO12: 1.08e-10 | AP12: -0.0324245 | AQ12: 0.00502342 | AR12: rs676210 | AS12: A | AT12: G | AU12: 0.145 | AV12: 0.3857 | AW12: 0.08939 | AX12: 0.1088 | AY12: 0.00051 | AZ12: 41.6627 | BC12: rs1417965 | BD12: G | BE12: A | BF12: 0.219 | BG12: 4.15e-05 | BH12: 0.0233727 | BI12: 0.00570208 | BJ12: rs1417965 | BK12: G | BL12: A | BM12: 0.2225 | BN12: 0.03303 | BO12: -0.008245 | BP12: 0.08971 | BQ12: 0.00019 | BR12: 16.8016
A13: rs465002 | B13: C | C13: T | D13: 0.488 | E13: 4.2e-10 | F13: 0.0296774 | G13: 0.00475118 | H13: rs1800769 | I13: T | J13: C | K13: 0.4767 | L13: 0.06015 | M13: 0.01247 | N13: 0.07662 | O13: 0.00044 | P13: 39.0165 | S13: rs13131565 | T13: A | U13: G | V13: 0.21 | W13: 1.01e-09 | X13: 0.0355267 | Y13: 0.00581631 | Z13: rs465002 | AA13: T | AB13: C | AC13: 0.4774 | AD13: 0.1505 | AE13: -0.02812 | AF13: 0.07483 | AG13: 0.00042 | AH13: 37.3091 | AK13: rs676210 | AL13: A | AM13: G | AN13: 0.152 | AO13: 5.47e-16 | AP13: 0.053063 | AQ13: 0.00655055 | AR13: rs2203452 | AS13: G | AT13: A | AU13: 0.6438 | AV13: 0.2102 | AW13: 0.03944 | AX13: 0.07872 | AY13: 0.00073 | AZ13: 65.6188 | BC13: rs75944466 | BD13: A | BE13: G | BF13: 0.0997 | BG13: 3.76e-06 | BH13: 0.0385999 | BI13: 0.00834781 | BJ13: rs75944466 | BK13: A | BL13: G | BM13: 0.09697 | BN13: 0.596 | BO13: -0.1426 | BP13: 0.1249 | BQ13: 0.00027 | BR13: 21.3810
A14: rs4711750 | B14: A | C14: T | D14: 0.196 | E14: 3.12e-08 | F14: -0.0342556 | G14: 0.00618956 | H14: rs4711750 | I14: A | J14: T | K14: 0.155 | L14: 0.8192 | M14: 0.1569 | N14: 0.1094 | O14: 0.00037 | P14: 30.6298 | S14: rs465002 | T14: C | U14: T | V14: 0.488 | W14: 4.2e-10 | X14: 0.0296774 | Y14: 0.00475118 | Z14: rs1800769 | AA14: T | AB14: C | AC14: 0.4767 | AD14: 0.06015 | AE14: 0.01247 | AF14: 0.07662 | AG14: 0.00044 | AH14: 39.0165 | AK14: rs1527899 | AL14: G | AM14: A | AN14: 0.0509 | AO14: 9.1e-07 | AP14: 0.0545725 | AQ14: 0.0111143 | AR14: rs1527899 | AS14: G | AT14: A | AU14: 0.04473 | AV14: 0.2036 | AW14: 0.09496 | AX14: 0.1947 | AY14: 0.00029 | AZ14: 24.1092 | BC14: rs141534355 | BD14: T | BE14: C | BF14: 0.0016 | BG14: 3.15e-05 | BH14: 0.272058 | BI14: 0.0653643 | BJ14: rs79403177 | BK14: G | BL14: C | BM14: 0.02156 | BN14: 0.1032 | BO14: 0.07797 | BP14: 0.2908 | BQ14: 0.00024 | BR14: 17.3237
A15: rs1800769 | B15: T | C15: C | D15: 0.446 | E15: 1.28e-08 | F15: -0.0284113 | G15: 0.00499466 | H15: rs2362529 | I15: C | J15: T | K15: 0.2685 | L15: 0.3918 | M15: -0.06958 | N15: 0.08368 | O15: 0.00040 | P15: 32.3572 | S15: rs4711750 | T15: A | U15: T | V15: 0.196 | W15: 3.12e-08 | X15: -0.0342556 | Y15: 0.00618956 | Z15: rs4711750 | AA15: A | AB15: T | AC15: 0.155 | AD15: 0.8192 | AE15: 0.1569 | AF15: 0.1094 | AG15: 0.00037 | AH15: 30.6298 | AK15: rs6743376 | AL15: C | AM15: A | AN15: 0.262 | AO15: 1.67e-06 | AP15: 0.025538 | AQ15: 0.00533247 | AR15: rs9842024 | AS15: G | AT15: A | AU15: 0.9617 | AV15: 0.1446 | AW15: -0.08584 | AX15: 0.2366 | AY15: 0.00025 | AZ15: 22.9360 | BC15: rs191992992 | BD15: A | BE15: G | BF15: 0.000355 | BG15: 2.68e-05 | BH15: -0.853452 | BI15: 0.203234 | BJ15: rs2226157 | BK15: G | BL15: C | BM15: 0.2857 | BN15: 0.272 | BO15: 0.05365 | BP15: 0.08639 | BQ15: 0.00052 | BR15: 17.6346
A16: rs2362529 | B16: C | C16: T | D16: 0.265 | E16: 5.92e-09 | F16: -0.0323655 | G16: 0.00556197 | H16: rs73729085 | I16: G | J16: A | K16: 0.1289 | L16: 0.4411 | M16: 0.1128 | N16: 0.1238 | O16: 0.00041 | P16: 33.8616 | S16: rs1800769 | T16: T | U16: C | V16: 0.446 | W16: 1.28e-08 | X16: -0.0284113 | Y16: 0.00499466 | Z16: rs2362529 | AA16: C | AB16: T | AC16: 0.2685 | AD16: 0.3918 | AE16: -0.06958 | AF16: 0.08368 | AG16: 0.00040 | AH16: 32.3572 | AK16: rs116292462 | AL16: C | AM16: A | AN16: 0.0187 | AO16: 1.53e-06 | AP16: -0.0935701 | AQ16: 0.0194626 | AR16: rs72931157 | AS16: G | AT16: C | AU16: 0.245 | AV16: 0.1534 | AW16: 0.03416 | AX16: 0.08943 | AY16: 0.00032 | AZ16: 23.1139 | BC16: rs6679589 | BD16: T | BE16: C | BF16: 0.00489 | BG16: 4.65e-05 | BH16: -0.15716 | BI16: 0.038588 | BJ16: rs11207994 | BK16: T | BL16: C | BM16: 0.3452 | BN16: 0.7452 | BO16: 0.1068 | BP16: 0.07964 | BQ16: 0.00024 | BR16: 16.5874
A17: rs3211938 | B17: G | C17: T | D17: 0.0871 | E17: 3.21e-54 | F17: 0.141115 | G17: 0.00910132 | H17: rs3211938 | I17: G | J17: T | K17: 0.1286 | L17: 0.1738 | M17: 0.05084 | N17: 0.1194 | O17: 0.00317 | P17: 240.4017 | S17: rs2362529 | T17: C | U17: T | V17: 0.265 | W17: 5.92e-09 | X17: -0.0323655 | Y17: 0.00556197 | Z17: rs73729085 | AA17: G | AB17: A | AC17: 0.1289 | AD17: 0.4411 | AE17: 0.1128 | AF17: 0.1238 | AG17: 0.00041 | AH17: 33.8616 | AK17: rs147477815 | AL17: C | AM17: T | AN17: 0.000335 | AO17: 1.45e-06 | AP17: 1.20552 | AQ17: 0.250217 | AR17: rs6795772 | AS17: T | AT17: C | AU17: 0.385 | AV17: 0.1271 | AW17: 0.0251 | AX17: 0.07759 | AY17: 0.00097 | AZ17: 23.2121 | BC17: rs71056687 | BD17: TGGAGAGGAGA | BE17: T | BF17: 0.299 | BG17: 1.35e-05 | BH17: 0.0271593 | BI17: 0.00623977 | BJ17: rs2152133 | BK17: T | BL17: C | BM17: 0.03889 | BN17: 0.6731 | BO17: 0.2795 | BP17: 0.2241 | BQ17: 0.00031 | BR17: 18.9452
A18: rs74705598 | B18: C | C18: G | D18: 0.0433 | E18: 6.01e-16 | F18: 0.0987013 | G18: 0.0122018 | H18: rs74705598 | I18: C | J18: G | K18: 0.06274 | L18: 0.2926 | M18: 0.1088 | N18: 0.165 | O18: 0.00081 | P18: 65.4332 | S18: rs6952559 | T18: C | U18: T | V18: 0.18 | W18: 7.15e-08 | X18: 0.0343853 | Y18: 0.00638262 | Z18: rs6952559 | AA18: C | AB18: T | AC18: 0.1495 | AD18: 1.065 | AE18: 0.1984 | AF18: 0.1156 | AG18: 0.00035 | AH18: 29.0234 | AK18: rs34305002 | AL18: G | AM18: GA | AN18: 0.194 | AO18: 1.57e-08 | AP18: 0.0366717 | AQ18: 0.00648618 | AR18: rs73835216 | AS18: T | AT18: C | AU18: 0.07309 | AV18: 0.2818 | AW18: -0.09064 | AX18: 0.1418 | AY18: 0.00042 | AZ18: 31.9657 | BC18: rs79403177 | BD18: G | BE18: C | BF18: 0.0408 | BG18: 3.92e-05 | BH18: -0.0564011 | BI18: 0.0137151 | BJ18: rs1294014 | BK18: T | BL18: C | BM18: 0.3431 | BN18: 0.01814 | BO18: -0.004242 | BP18: 0.08268 | BQ18: 0.00025 | BR18: 16.9113
A19: rs73729085 | B19: G | C19: A | D19: 0.103 | E19: 1.78e-08 | F19: -0.0469593 | G19: 0.00833742 | H19: rs73662898 | I19: G | J19: A | K19: 0.2113 | L19: 0.457 | M19: 0.09028 | N19: 0.09643 | O19: 0.00041 | P19: 31.7234 | S19: rs55728156 | T19: A | U19: G | V19: 0.0243 | W19: 7.64e-08 | X19: 0.0873626 | Y19: 0.0162523 | Z19: rs55728156 | AA19: A | AB19: G | AC19: 0.04462 | AD19: 0.6502 | AE19: 0.2591 | AF19: 0.213 | AG19: 0.00036 | AH19: 28.8949 | AK19: rs2203452 | AL19: A | AM19: G | AN19: 0.363 | AO19: 2.45e-10 | AP19: 0.0311823 | AQ19: 0.00492603 | AR19: rs73833983 | AS19: G | AT19: A | AU19: 0.09518 | AV19: 0.009228 | AW19: 0.003471 | AX19: 0.1317 | AY19: 0.00045 | AZ19: 40.0703 | BC19: rs113512564 | BD19: G | BE19: A | BF19: 0.0119 | BG19: 3.81e-05 | BH19: 0.122682 | BI19: 0.0297866 | BJ19: rs115125858 | BK19: T | BL19: C | BM19: 0.09393 | BN19: 0.02155 | BO19: -0.0086 | BP19: 0.1417 | BQ19: 0.00035 | BR19: 16.9637
A20: rs4841046 | B20: T | C20: C | D20: 0.33 | E20: 1.34e-08 | F20: -0.0294084 | G20: 0.00517679 | H20: rs78123380 | I20: A | J20: G | K20: 0.1775 | L20: 0.1545 | M20: 0.03838 | N20: 0.09982 | O20: 0.00038 | P20: 32.2717 | S20: rs3211938 | T20: G | U20: T | V20: 0.0871 | W20: 3.21e-54 | X20: 0.141115 | Y20: 0.00910132 | Z20: rs3211938 | AA20: G | AB20: T | AC20: 0.1286 | AD20: 0.1738 | AE20: 0.05084 | AF20: 0.1194 | AG20: 0.00317 | AH20: 240.4017 | AK20: rs72931157 | AL20: G | AM20: C | AN20: 0.196 | AO20: 1.55e-09 | AP20: 0.0364711 | AQ20: 0.00603952 | AR20: rs13131565 | AS20: A | AT20: G | AU20: 0.2475 | AV20: 0.1335 | AW20: 0.03028 | AX20: 0.08959 | AY20: 0.00042 | AZ20: 36.4664 | BC20: rs11207994 | BD20: T | BE20: C | BF20: 0.342 | BG20: 1e-07 | BH20: -0.0280523 | BI20: 0.00526664 | BJ20: rs6743376 | BK20: A | BL20: C | BM20: 0.7313 | BN20: 0.6219 | BO20: -0.1013 | BP20: 0.08602 | BQ20: 0.00035 | BR20: 28.3707
A21: rs6601299 | B21: T | C21: C | D21: 0.121 | E21: 4.23e-33 | F21: -0.0866796 | G21: 0.00723203 | H21: rs1346590 | I21: T | J21: G | K21: 0.06334 | L21: 0.2514 | M21: 0.09852 | N21: 0.1693 | O21: 0.00160 | P21: 143.6526 | S21: rs74705598 | T21: C | U21: G | V21: 0.0433 | W21: 6.01e-16 | X21: 0.0987013 | Y21: 0.0122018 | Z21: rs74705598 | AA21: C | AB21: G | AC21: 0.06274 | AD21: 0.2926 | AE21: 0.1088 | AF21: 0.165 | AG21: 0.00081 | AH21: 65.4332 | AK21: rs6795772 | AL21: T | AM21: C | AN21: 0.401 | AO21: 1.72e-06 | AP21: -0.0234604 | AQ21: 0.00490404 | AR21: rs10000396 | AS21: A | AT21: G | AU21: 0.2468 | AV21: 0.1123 | AW21: -0.02721 | AX21: 0.094 | AY21: 0.00026 | AZ21: 22.8856 | BC21: rs2152133 | BD21: T | BE21: C | BF21: 0.0236 | BG21: 2.42e-05 | BH21: -0.0690384 | BI21: 0.0163515 | BJ21: rs138276739 | BK21: T | BL21: C | BM21: 0.02547 | BN21: 0.4703 | BO21: 0.2554 | BP21: 0.267 | BQ21: 0.00022 | BR21: 17.8265
A22: rs73662898 | B22: G | C22: A | D22: 0.176 | E22: 3.8e-08 | F22: 0.0369434 | G22: 0.00671702 | H22: rs3208305 | I22: T | J22: A | K22: 0.5319 | L22: 0.9096 | M22: -0.1158 | N22: 0.07513 | O22: 0.00040 | P22: 30.2497 | S22: rs73729085 | T22: G | U22: A | V22: 0.103 | W22: 1.78e-08 | X22: -0.0469593 | Y22: 0.00833742 | Z22: rs73662898 | AA22: G | AB22: A | AC22: 0.2113 | AD22: 0.457 | AE22: 0.09028 | AF22: 0.09643 | AG22: 0.00041 | AH22: 31.7234 | AK22: rs73835216 | AL22: T | AM22: C | AN22: 0.0596 | AO22: 8.36e-07 | AP22: 0.0506062 | AQ22: 0.0102716 | AR22: rs3822072 | AS22: A | AT22: G | AU22: 0.5363 | AV22: 0.7781 | AW22: 0.1038 | AX22: 0.07504 | AY22: 0.00029 | AZ22: 24.2734 | BC22: rs556420207 | BD22: G | BE22: T | BF22: 0.00106 | BG22: 2.31e-05 | BH22: -0.563893 | BI22: 0.133234 | BJ22: rs10864877 | BK22: T | BL22: C | BM22: 0.5181 | BN22: 0.1154 | BO22: 0.02219 | BP22: 0.07476 | BQ22: 0.00067 | BR22: 17.9128
A23: rs7459547 | B23: G | C23: T | D23: 0.313 | E23: 2.18e-09 | F23: -0.0352611 | G23: 0.00589295 | H23: rs1106570 | I23: A | J23: G | K23: 0.2826 | L23: 0.02494 | M23: 0.00633 | N23: 0.09041 | O23: 0.00053 | P23: 35.8036 | S23: rs4841046 | T23: T | U23: C | V23: 0.33 | W23: 1.34e-08 | X23: -0.0294084 | Y23: 0.00517679 | Z23: rs7819395 | AA23: C | AB23: T | AC23: 0.149 | AD23: 1.523 | AE23: -0.2172 | AF23: 0.1 | AG23: 0.00038 | AH23: 32.2717 | AK23: rs73833983 | AL23: G | AM23: A | AN23: 0.0704 | AO23: 1.66e-06 | AP23: 0.0465445 | AQ23: 0.00971604 | AR23: rs75934212 | AS23: C | AT23: T | AU23: 0.06264 | AV23: 0.6048 | AW23: -0.1741 | AX23: 0.1509 | AY23: 0.00028 | AZ23: 22.9487 | BC23: rs563735115 | BD23: A | BE23: G | BF23: 0.00141 | BG23: 3.95e-05 | BH23: -0.296782 | BI23: 0.0722007 | BJ23: rs12468364 | BK23: T | BL23: C | BM23: 0.04945 | BN23: 0.4481 | BO23: 0.1864 | BP23: 0.2021 | BQ23: 0.00025 | BR23: 16.8963
A24: rs1346590 | B24: T | C24: G | D24: 0.108 | E24: 4.28e-08 | F24: -0.0439848 | G24: 0.00802793 | H24: rs4841046 | I24: T | J24: C | K24: 0.2348 | L24: 1.709 | M24: -0.2031 | N24: 0.08696 | O24: 0.00037 | P24: 30.0191 | S24: rs6601299 | T24: T | U24: C | V24: 0.121 | W24: 4.23e-33 | X24: -0.0866796 | Y24: 0.00723203 | Z24: rs62495202 | AA24: C | AB24: T | AC24: 0.04767 | AD24: 0.01407 | AE24: -0.007572 | AF24: 0.1895 | AG24: 0.00160 | AH24: 143.6526 | AK24: rs11291203 | AL24: TC | AM24: T | AN24: 0.3 | AO24: 2.26e-06 | AP24: 0.0248962 | AQ24: 0.00526495 | AR24: rs465002 | AS24: T | AT24: C | AU24: 0.4774 | AV24: 0.1505 | AW24: -0.02812 | AX24: 0.07483 | AY24: 0.00026 | AZ24: 22.3603 | BC24: rs570553758 | BD24: C | BE24: T | BF24: 0.000329 | BG24: 1.78e-05 | BH24: 1.46617 | BI24: 0.341697 | BJ24: rs1972120 | BK24: C | BL24: T | BM24: 0.848 | BN24: 0.686 | BO24: 0.1284 | BP24: 0.1015 | BQ24: 0.00141 | BR24: 18.4114
A25: rs3208305 | B25: A | C25: T | D25: 0.474 | E25: 1.35e-66 | F25: -0.0813829 | G25: 0.00472087 | H25: rs6601299 | I25: C | J25: T | K25: 0.87 | L25: 0.3088 | M25: 0.07259 | N25: 0.1054 | O25: 0.00330 | P25: 297.1818 | S25: rs654132 | T25: C | U25: T | V25: 0.248 | W25: 1.56e-07 | X25: -0.0305937 | Y25: 0.00583276 | Z25: rs78123380 | AA25: A | AB25: G | AC25: 0.1775 | AD25: 0.1545 | AE25: 0.03838 | AF25: 0.09982 | AG25: 0.00035 | AH25: 27.5116 | AK25: rs10651218 | AL25: C | AM25: CTT | AN25: 0.439 | AO25: 4.73e-06 | AP25: 0.0237309 | AQ25: 0.0051857 | AR25: rs592423 | AS25: C | AT25: A | AU25: 0.3663 | AV25: 0.2857 | AW25: -0.04982 | AX25: 0.07708 | AY25: 0.00028 | AZ25: 20.9418 | BC25: rs149787129 | BD25: T | BE25: C | BF25: 0.00127 | BG25: 2.97e-05 | BH25: -0.526141 | BI25: 0.12599 | BJ25: rs147691021 | BK25: T | BL25: G | BM25: 0.0226 | BN25: 0.1277 | BO25: -0.0797 | BP25: 0.2452 | BQ25: 0.00070 | BR25: 17.4394
A26: rs1106570 | B26: A | C26: G | D26: 0.372 | E26: 4.85e-08 | F26: -0.0304785 | G26: 0.00558557 | H26: rs2246594 | I26: G | J26: T | K26: 0.06058 | L26: 0.2718 | M26: -0.1027 | N26: 0.1654 | O26: 0.00043 | P26: 29.7750 | S26: rs73662898 | T26: G | U26: A | V26: 0.176 | W26: 3.8e-08 | X26: 0.0369434 | Y26: 0.00671702 | Z26: rs1346590 | AA26: T | AB26: G | AC26: 0.06334 | AD26: 0.2514 | AE26: 0.09852 | AF26: 0.1693 | AG26: 0.00040 | AH26: 30.2497 | AK26: rs74510129 | AL26: C | AM26: A | AN26: 0.00186 | AO26: 1.45e-06 | AP26: -0.337578 | AQ26: 0.0700567 | AR26: rs1800769 | AS26: T | AT26: C | AU26: 0.4767 | AV26: 0.06015 | AW26: 0.01247 | AX26: 0.07662 | AY26: 0.00042 | AZ26: 23.2193 | BC26: rs115977112 | BD26: C | BE26: T | BF26: 0.00884 | BG26: 4.29e-05 | BH26: 0.121569 | BI26: 0.0297125 | BJ26: rs7583052 | BK26: T | BL26: G | BM26: 0.5491 | BN26: 0.2177 | BO26: -0.03957 | BP26: 0.07668 | BQ26: 0.00026 | BR26: 16.7405
A27: rs78123380 | B27: A | C27: G | D27: 0.155 | E27: 3.89e-15 | F27: 0.0520696 | G27: 0.00662589 | H27: rs4149307 | I27: T | J27: C | K27: 0.7317 | L27: 0.4559 | M27: -0.081 | N27: 0.08668 | O27: 0.00071 | P27: 61.7561 | S27: rs7819395 | T27: C | U27: T | V27: 0.209 | W27: 1.9e-07 | X27: -0.0309363 | Y27: 0.00593893 | Z27: rs971652 | AA27: G | AB27: A | AC27: 0.07518 | AD27: 1.943 | AE27: 0.4425 | AF27: 0.1749 | AG27: 0.00032 | AH27: 27.1344 | AK27: rs141320799 | AL27: CA | AM27: C | AN27: 0.121 | AO27: 3.34e-06 | AP27: 0.0366683 | AQ27: 0.00788786 | AR27: rs4711750 | AS27: A | AT27: T | AU27: 0.155 | AV27: 0.8192 | AW27: 0.1569 | AX27: 0.1094 | AY27: 0.00029 | AZ27: 21.6104 | BC27: rs115125858 | BD27: T | BE27: C | BF27: 0.109 | BG27: 3.08e-06 | BH27: 0.0361442 | BI27: 0.00774689 | BJ27: rs34587752 | BK27: T | BL27: C | BM27: 0.185 | BN27: 0.08272 | BO27: 0.02133 | BP27: 0.09736 | BQ27: 0.00025 | BR27: 21.7682
